Workbook

Sheet CycleTime
L1: ↓ W～AQ 「表示しない」列 ↓ ↓ W～AQ 「表示しない」列 ↓ ↓ W～AQ 「表示しない」列 ↓ ↓ W～AQ 「表示しない」列 ↓ ↓ W～AQ 「表示しない」列 ↓ ↓ W～AQ 「表示しない」列 ↓ ↓ W～AQ 「表示しない」列 ↓ ↓ W～AQ 「表示しない」列 ↓ ↓ W～AQ 「表示しない」列 ↓ ↓ W～AQ 「表示しない」列 ↓ | AT1: 残す列 | AV1: 残す列
A2: =Message!C5 -> 通过速度・加减速度・移动距离自动计算单轴机械手的定位时间（Cycle Time）。 请在以下<a>～<e>项目中选择使用的产品。 在<1>～<5>中输入需要的运行条件。 点击「最快运行设定」按钮后，将根据移动距离与负载质量，计算速度与加减速度。 | L2: 参考表示
L3: Vmax[㎜/s] | N3: =SQRT(D14*(2*N4*N5)/(N4+N5)) -> 221.4345276 | AB3: feedforward | AE3: 物理計算用変換係数
A4: <a> | B4: =Message!C6 -> 系列 | C4: RCP3 | L4: =IF(AE33=0,"加速度[㎜/s^2]","加速度[deg/s^2]") -> 加速度[㎜/s^2] | N4: =D20*AH5*1000 -> 1961.33 | AB4: =AF45/100 -> 0 | AE4: ﾓｰﾀ軸角速度及び角加速度 | AH4: Ｇ
L5: =IF(AE33=0,"減速度[㎜/s^2]","減速度[deg/s^2]") -> 減速度[㎜/s^2] | N5: =D22*AH5*1000 -> 1961.33 | AB5: Kf | AC5: =IF( AB4=1,1,1-EXP(-((N11/(1-AB4))-N11)*N8) ) -> 0 | AE5: =IF(AE33=0,1000,360/(2*PI())) -> 1000 | AH5: =LeadData!$A$1 -> 9.80665
A6: <b> | B6: =Message!C7 -> 型号 | C6: RCP3-SA2AC-20P-*S | L6: 最高速度[㎜/s] | N6: =IF(D18<N3,D18,N3) -> 50 | AO6: (Tkp+2Kf) | AP6: =($N$8*$N$11+2*$AB$4) -> 0.01298047522
L7: 分割数 | N7: =ROUND(3200/(AP18+AP20*10)*AP18,0) -> 2429 | AO7: (Tkp-2Kf) | AP7: =($N$8*$N$11-2*$AB$4) -> 0.01298047522
A8: <c> | B8: =IF(AE33=0,Message!C8,Message!C9) -> 导程 | C8: 1 | D8: =IF(AE33=0,"㎜","：1") -> ㎜ | L8: ⊿ｔ[s] | N8: =AT32-AT31 -> 0.0002163412537 | AO8: (2+TKp) | AP8: =(2+$N$8*$N$11) -> 2.012980475
L9: 最終時刻[s] | N9: =AT3231 -> 0.692292012 | AO9: (2-TKp) | AP9: =(2-$N$8*$N$11) -> 1.987019525
A10: <d> | B10: =Message!C10 -> 行程 | C10: 25 | D10: ㎜ | L10: 最終位置[㎜] | N10: =AV3231 -> 24.99998078 | AO10: 減速時間 | AP10: =N6/N5 -> 0.02549290532 | AQ10: s
L11: 位置ｹﾞｲﾝ | N11: =AE45 -> 60 | AO11: 減速距離 | AP11: =N5*AP10*AP10/2 -> 0.6373226331 | AQ11: ㎜
A12: <e> | B12: =Message!C11 -> 安装姿态 | C12: 水平 | L12: 速度制御帯域 | N12: =AG45 -> 800 | AO12: 加速時間 | AP12: =N6/N4 -> 0.02549290532 | AQ12: s
AO13: 加速距離 | AP13: =N4*AP12*AP12/2 -> 0.6373226331 | AQ13: ㎜
A14: <1> | B14: =IF(AE33=0,Message!C12,Message!C13) -> 移动距离[mm] | D14: 25 | L14: 移動可能距離[㎜] | N14: =X45+Y45 -> 25 | AO14: 等速時間 | AP14: =IF(D18<N3,(D14-AP13-AP11)/D18,0) -> 0.4745070947 | AQ14: s
AO15: 等速距離 | AP15: =AP14*N6 -> 23.72535473 | AQ15: ㎜
A16: <2> | B16: =IF(AE33=0,Message!C14,Message!C15) -> 负载质量[kg] | D16: 1 | AO16: 減速時刻 | AP16: =AP12+AP14 -> 0.5 | AQ16: s
AO17: 減速位置 | AP17: =AP13+AP15 -> 24.36267737 | AQ17: ㎜
A18: <3> | B18: =IF(AE33=0,Message!C16,Message!C17) -> 速度[㎜/s] | D18: 50 | G18: =Message!C25 -> ●计算结果 | AO18: TotalTime | AP18: =AP14+AP12+AP10 -> 0.5254929053 | AQ18: s
AE19: 運転姿勢 | AF19: ←初期値 | AO19: Spdτ | AP19: =1/N12 -> 0.00125 | AQ19: s
A20: <4> | B20: =Message!C18 -> 加速度[G] | D20: 0.2 | G20: =Message!C26 -> 定位时间 [s] | I20: =LOOKUP((D14-D24),AV31:AV3231,AT31:AT3231) -> 0.5495067845 | AE20: =Message!C81 -> 水平 | AF20: 水平 | AO20: Posτ | AP20: =1/N11 -> 0.01666666667 | AQ20: s
AE21: =Message!C82 -> 垂直 | AO21: 収束時間 | AP21: =I20-AP18 -> 0.02401387916 | AQ21: s
A22: <5> | B22: =Message!C19 -> 减速度[G] | D22: 0.2
A24: <6> | B24: =IF(AE33=0,Message!C20,Message!C21) -> 定位宽度 [㎜] | D24: 0.1 | G24: =IF(N9<=I20,Message!C22,Message!C23) -> ※代表进入定位宽度范围内需要的时间
C25: =IF(N10<=I21,"",Message!C24) -> ※计算结果供参考。 根据负载情况变化，实际的定位时间也会发生变化。 ※伺服增益调整后，可能比计算结果更快定位完成。 详情请参考控制器的使用说明书。
A28: 1 | B28: =A28+1 -> 2 | C28: 3 | D28: 4 | E28: 5 | F28: 6 | G28: 7 | H28: 8 | I28: 9 | J28: 10 | K28: 11 | L28: 12 | M28: 13 | N28: 14 | O28: 15 | P28: =O28+1 -> 16 | Q28: =P28+1 -> 17 | R28: =Q28+1 -> 18 | S28: =R28+1 -> 19 | T28: =S28+1 -> 20 | U28: 21 | V28: 22 | W28: 23 | X28: 24 | Y28: 25 | Z28: 26 | AA28: 27 | AB28: 28 | AC28: 29 | AD28: 30 | AE28: 31 | AF28: 32 | AG28: 33 | AH28: 34 | AI28: 35 | AJ28: 36 | AK28: 37 | AL28: 38 | AM28: =AL28+1 -> 39 | AN28: 40 | AO28: 41 | AP28: 42 | AQ28: 43 | AR28: 44 | AS28: 45 | AT28: 46 | AU28: 47 | AV28: 48
O29: ↓↓↓↓↓↓↓↓ フォント色を白にする列 O29～U193 ↓↓↓↓↓↓↓↓ | AS29: ↓↓↓↓↓↓↓↓↓↓↓↓↓↓↓ フォント色を白に、数式は非表示に、する列 A29～J3231 ↓↓↓↓↓↓↓↓↓↓↓↓↓↓↓
B30: 可搬質量 | C30: 加減速度 | D30: 最高速度 | E30: 実加速度 | F30: 到達速度 | G30: 運転時間 | H30: 三角速度 | O30: № | P30: メカ型式リスト | Q30: 絞込み | R30: ﾀｲﾌﾟﾘｽﾄ | S30: ﾘｰﾄﾞﾘｽﾄ | T30: ｽﾄﾛｰｸﾘｽﾄ | U30: 型式総数 | W30: =DataSerch!B1 -> メカ機種データレコード | AS30: № | AT30: 時刻 | AU30: 位置計画 | AV30: 位置
A31: =A30+1 -> 1 | B31: 1 | C31: 0.2 | D31: 50 | E31: 1961.33 | F31: 50 | G31: 0.5254929053 | H31: 221.4345276 | O31: 1 | P31: RCP3-SA2AC-20P-*S | Q31: RCP3-SA2AC-20P-*S | R31: RCP3 | S31: 1 | T31: 25 | U31: 86 | W31: ﾚｺｰﾄﾞ№ | X31: =DataSerch!$C$2 -> ｱｸﾁｭｴｰﾀ型式 | Z31: =DataSerch!$E$2 -> 0 | AA31: =DataSerch!$F$2 -> 0 | AB31: =DataSerch!$G$2 -> 0 | AC31: =DataSerch!$H$2 -> 最小ｽﾄﾛｰｸ | AD31: =DataSerch!$I$2 -> 最大ｽﾄﾛｰｸ | AE31: =DataSerch!$J$2 -> 動作種別 | AF31: =DataSerch!$K$2 -> 0 | AS31: 0 | AT31: =$AP$18/$N$7*AS31 -> 0 | AU31: 0 | AV31: 0
A32: 2 | B32: -1 | C32: -1 | D32: -1 | E32: -1 | F32: -1 | G32: -1 | H32: -1 | O32: =O31+1 -> 2 | P32: RCP3-SA2BC-20P-*S | Q32: RCP3-SA2BC-20P-*S | R32: RCP2 | S32: 2 | T32: 50 | U32: 絞込み数 | W32: =DataSerch!$B$3 -> 1 | X32: =DataSerch!$C$3 -> RCP3-SA2AC-20P-*S | Z32: =DataSerch!$E$4 -> [kg] | AA32: =DataSerch!$F$4 -> [mm] | AB32: =DataSerch!$G$4 -> [mm] | AC32: =DataSerch!$H$4 -> [mm] | AD32: =DataSerch!$I$4 -> [mm] | AE32: =DataSerch!$J$4 -> 0/1 | AF32: =DataSerch!$K$4 -> [K] | AS32: =AS31+1 -> 1 | AT32: 0.0002163412537 | AU32: =IF(($N$4*AT32^2/2)<=$AP$13,($N$4*AT32^2/2), IF(($AP$13+$N$6*(AT32-$AP$12))<=$AP$17, ($AP$13+$N$6*(AT32-$AP$12)), IF(AU31<$D$14, ($AP$17+($N$6-$N$5*(AT32-$AP$16)/2)*(AT32-$AP$16)), $D$14))) -> 4.589859166e-05 | AV32: =( $AP$6*AU32 + $AP$7*AU31 + $AP$9*AV31 )/$AP$8 -> 2.959718384e-07
A33: 3 | B33: -1 | C33: -1 | D33: -1 | E33: -1 | F33: -1 | G33: -1 | H33: -1 | O33: =O32+1 -> 3 | P33: RCP3-SA3C | Q33: RCP3-SA3C | R33: ERC2 | S33: 4 | T33: 75 | U33: 34 | Z33: =DataSerch!$E$5 -> 0 | AA33: =IF(0<DataSerch!$F$5,DataSerch!$F$5,0) -> 0 | AB33: =DataSerch!$G$5 -> 0 | AC33: =DataSerch!$H$5 -> 25 | AD33: =DataSerch!$I$5 -> 100 | AE33: =DataSerch!$J$5 -> 0 | AF33: =DataSerch!$K$5 -> 0 | AS33: =AS32+1 -> 2 | AT33: 0.0004326825075 | AU33: 0.0001835943666 | AV33: =( $AP$6*AU33 + $AP$7*AU32 + $AP$9*AV32 )/$AP$8 -> 1.772013949e-06
A34: 4 | B34: -1 | C34: -1 | D34: -1 | E34: -1 | F34: -1 | G34: -1 | H34: -1 | O34: 4 | P34: RCP3-SA4C | Q34: RCP3-SA4C | R34: RCP3-S | S34: - - - | T34: 100 | AS34: 3 | AT34: 0.0006490237612 | AU34: 0.0004130873249 | AV34: 5.596794588e-06
A35: 5 | B35: -1 | C35: -1 | D35: -1 | E35: -1 | F35: -1 | G35: -1 | H35: -1 | O35: 5 | P35: RCP3-SA5C | Q35: RCP3-SA5C | R35: RCP3-R | S35: - - - | T35: - - - | U35: ﾘｰﾄﾞ総数 | W35: リードデータレコード | AS35: 4 | AT35: 0.0008653650149 | AU35: 0.0007343774666 | AV35: 1.292390996e-05
A36: 6 | B36: -1 | C36: -1 | D36: -1 | E36: -1 | F36: -1 | G36: -1 | H36: -1 | O36: 6 | P36: RCP3-SA6C | Q36: RCP3-SA6C | R36: RCP3-T | S36: - - - | T36: - - - | U36: 3 | W36: リスト№ | X36: =DataSerch!$F$24 -> ﾘｰﾄﾞ長 | Y36: =DataSerch!$G$24 -> 0 | Z36: =DataSerch!$H$24 -> 水平定格加速度 | AA36: =DataSerch!$I$24 -> 垂直定格加速度 | AB36: =DataSerch!$J$24 -> 水平最大加速度 | AC36: =DataSerch!$K$24 -> 垂直最大加速度 | AD36: =DataSerch!$L$24 -> 0 | AE36: =DataSerch!$M$24 -> 0 | AF36: =DataSerch!$N$24 -> 0 | AG36: =DataSerch!$O$24 -> ｷﾞｱ比分子 | AH36: =DataSerch!$P$24 -> ｷﾞｱ比分母 | AI36: =DataSerch!$Q$24 -> 0 | AJ36: =DataSerch!$R$24 -> ｽﾄﾛｰｸ刻み | AK36: =DataSerch!$S$24 -> 位置決め幅 初期値 | AS36: 5 | AT36: 0.001081706269 | AU36: 0.001147464791 | AV36: 2.489207861e-05
A37: 7 | B37: -1 | C37: -1 | D37: -1 | E37: -1 | F37: -1 | G37: -1 | H37: -1 | O37: 7 | P37: RCP3-SA2AR-20P-*S | Q37: RCP3-SA2AR-20P-*S | R37: RCP2-S | S37: - - - | T37: - - - | AS37: 6 | AT37: 0.001298047522 | AU37: 0.0016523493 | AV37: 4.262533329e-05
A38: 8 | B38: -1 | C38: -1 | D38: -1 | E38: -1 | F38: -1 | G38: -1 | H38: -1 | O38: 8 | P38: RCP3-SA2BR-20P-*S | Q38: RCP3-SA2BR-20P-*S | R38: RCP2-H | S38: - - - | T38: - - - | U38: ｽﾄﾛｰｸ総数 | W38: =DataSerch!$D$35 -> 1 | X38: =DataSerch!$F$25 -> [mm] | Y38: =DataSerch!$G$25 -> [kgm^2] | Z38: =DataSerch!$H$25 -> [m/s^2] | AA38: =DataSerch!$I$25 -> [m/s^2] | AB38: =DataSerch!$J$25 -> [m/s^2] | AC38: =DataSerch!$K$25 -> [m/s^2] | AD38: =DataSerch!$L$25 -> [Nm] | AE38: =DataSerch!$M$25 -> [Nms] | AF38: =DataSerch!$N$25 -> [Nm] | AG38: =DataSerch!$O$25 -> 0 | AH38: =DataSerch!$P$25 -> 0 | AI38: =DataSerch!$Q$25 -> 0 | AJ38: =DataSerch!$R$25 -> [mm] | AK38: =DataSerch!$S$25 -> [mm] | AS38: 7 | AT38: 0.001514388776 | AU38: 0.002249030991 | AV38: 6.723321034e-05
A39: 9 | B39: -1 | C39: -1 | D39: -1 | E39: -1 | F39: -1 | G39: -1 | H39: -1 | O39: 9 | P39: RCP3-SA3R | Q39: RCP3-SA3R | R39: RCP2-B | T39: - - - | U39: 4 | X39: =LOOKUP(W38,DataSerch!$B$26:$B$33,DataSerch!$F$26:$F$33) -> 1 | Y39: =LOOKUP(W38,DataSerch!$B$26:$B$33,DataSerch!$G$26:$G$33) -> 0 | Z39: =LOOKUP(W38,DataSerch!$B$26:$B$33,DataSerch!$H$26:$H$33) -> 1.96133 | AA39: =LOOKUP(W38,DataSerch!$B$26:$B$33,DataSerch!$I$26:$I$33) -> -1e-06 | AB39: =LOOKUP(W38,DataSerch!$B$26:$B$33,DataSerch!$J$26:$J$33) -> 1.96133 | AC39: =LOOKUP(W38,DataSerch!$B$26:$B$33,DataSerch!$K$26:$K$33) -> -1e-06 | AD39: =LOOKUP(W38,DataSerch!$B$26:$B$33,DataSerch!$L$26:$L$33) -> 0 | AE39: =LOOKUP(W38,DataSerch!$B$26:$B$33,DataSerch!$M$26:$M$33) -> 0 | AF39: =LOOKUP(W38,DataSerch!$B$26:$B$33,DataSerch!$N$26:$N$33) -> 0 | AG39: =LOOKUP(W38,DataSerch!$B$26:$B$33,DataSerch!$O$26:$O$33) -> 1 | AH39: =LOOKUP(W38,DataSerch!$B$26:$B$33,DataSerch!$P$26:$P$33) -> 1 | AI39: =LOOKUP(W38,DataSerch!$B$26:$B$33,DataSerch!$Q$26:$Q$33) -> 0 | AJ39: =LOOKUP(W38,DataSerch!$B$26:$B$33,DataSerch!$R$26:$R$33) -> 25 | AK39: =LOOKUP(W38,DataSerch!$B$26:$B$33,DataSerch!$S$26:$S$33) -> 0.1 | AS39: 8 | AT39: 0.00173073003 | AU39: 0.002937509866 | AV39: 9.981093669e-05
A40: 10 | B40: -1 | C40: -1 | D40: -1 | E40: -1 | F40: -1 | G40: -1 | H40: -1 | O40: 10 | P40: RCP3-SA4R | Q40: RCP3-SA4R | R40: RCP2-R | T40: - - - | AS40: 9 | AT40: 0.001947071284 | AU40: 0.003717785924 | AV40: 0.0001414396143
A41: 11 | B41: -1 | C41: -1 | D41: -1 | E41: -1 | F41: -1 | G41: -1 | H41: -1 | O41: 11 | P41: RCP3-SA5R | Q41: RCP3-SA5R | R41: RCP2CR | T41: - - - | W41: ストロークデータレコード | AS41: 10 | AT41: 0.002163412537 | AU41: 0.004589859166 | AV41: 0.0001931864026
A42: 12 | B42: -1 | C42: -1 | D42: -1 | E42: -1 | F42: -1 | G42: -1 | H42: -1 | O42: 12 | P42: RCP3-SA6R | Q42: RCP3-SA6R | R42: RCP2W | T42: - - - | W42: リスト№ | X42: =DataSerch!$E$58 -> ｽﾄﾛｰｸ長 | Y42: =DataSerch!$G$58 -> 有効ｽﾄﾛｰｸ補正 | Z42: =DataSerch!$H$58 -> 0 | AA42: =DataSerch!$I$58 -> 0 | AB42: =DataSerch!$J$58 -> 水平可搬質量 | AC42: =DataSerch!$K$58 -> 垂直可搬質量 | AD42: =DataSerch!$L$58 -> 最大速度 | AE42: =DataSerch!$M$58 -> 位置ｹﾞｲﾝ | AF42: =DataSerch!$N$58 -> FFｹﾞｲﾝ | AG42: =DataSerch!$O$58 -> 速度制御帯域 | AH42: =DataSerch!$P$58 -> 0 | AI42: =DataSerch!$Q$58 -> 0 | AJ42: =DataSerch!$R$58 -> 0 | AK42: =DataSerch!$S$58 -> 0 | AL42: =DataSerch!$T$58 -> 0 | AS42: 11 | AT42: 0.002379753791 | AU42: 0.005553729591 | AV42: 0.0002561046979
A43: 13 | B43: -1 | C43: -1 | D43: -1 | E43: -1 | F43: -1 | G43: -1 | H43: -1 | O43: 13 | P43: RCP2-SA5C | Q43: RCP3-RA2AC-20P-*S | T43: - - - | AS43: 12 | AT43: 0.002596095045 | AU43: 0.006609397199 | AV43: 0.0003312343111
A44: 14 | B44: -1 | C44: -1 | D44: -1 | E44: -1 | F44: -1 | G44: -1 | H44: -1 | O44: 14 | P44: RCP2-SA6C | Q44: RCP3-RA2BC-20P-*S | T44: - - - | W44: =MATCH(C10,DataSerch!$E$60:$E$109,0) -> 1 | X44: =DataSerch!$E$59 -> [mm] | Y44: =DataSerch!$G$59 -> [mm] | Z44: =DataSerch!$H$59 -> [kg/mm] | AA44: =DataSerch!$I$59 -> [kg] | AB44: =DataSerch!$J$59 -> [kg] | AC44: =DataSerch!$K$59 -> [kg] | AD44: =DataSerch!$L$59 -> [mm/s] | AE44: =DataSerch!$M$59 -> [1/s] | AF44: =DataSerch!$N$59 -> [%] | AG44: =DataSerch!$O$59 -> [rad/s] | AH44: =DataSerch!$P$59 -> 0 | AI44: =DataSerch!$Q$59 -> [s] | AJ44: =DataSerch!$R$59 -> 0 | AK44: =DataSerch!$S$59 -> 0 | AL44: =DataSerch!$T$59 -> [Nm/rad] | AS44: 13 | AT44: 0.002812436299 | AU44: 0.00775686199 | AV44: 0.0004196016431
A45: 15 | B45: -1 | C45: -1 | D45: -1 | E45: -1 | F45: -1 | G45: -1 | H45: -1 | O45: 15 | P45: RCP2-SA7C | Q45: RCP3-RA2AR-20P-*S | T45: - - - | X45: =LOOKUP(W44,DataSerch!$D$60:$D$109,DataSerch!$E$60:$E$109) -> 25 | Y45: =LOOKUP(W44,DataSerch!$D$60:$D$109,DataSerch!$G$60:$G$109) -> 0 | Z45: =LOOKUP(W44,DataSerch!$D$60:$D$109,DataSerch!$H$60:$H$109) -> 0 | AA45: =LOOKUP(W44,DataSerch!$D$60:$D$109,DataSerch!$I$60:$I$109) -> 0 | AB45: =LOOKUP(W44,DataSerch!$D$60:$D$109,DataSerch!$J$60:$J$109) -> 1 | AC45: =LOOKUP(W44,DataSerch!$D$60:$D$109,DataSerch!$K$60:$K$109) -> -0.001 | AD45: =LOOKUP(W44,DataSerch!$D$60:$D$109,DataSerch!$L$60:$L$109) -> 50 | AE45: =LOOKUP(W44,DataSerch!$D$60:$D$109,DataSerch!$M$60:$M$109) -> 60 | AF45: =LOOKUP(W44,DataSerch!$D$60:$D$109,DataSerch!$N$60:$N$109) -> 0 | AG45: =LOOKUP(W44,DataSerch!$D$60:$D$109,DataSerch!$O$60:$O$109) -> 800 | AH45: =LOOKUP(W44,DataSerch!$D$60:$D$109,DataSerch!$P$60:$P$109) -> 0 | AI45: =LOOKUP(W44,DataSerch!$D$60:$D$109,DataSerch!$Q$60:$Q$109) -> 0 | AJ45: =LOOKUP(W44,DataSerch!$D$60:$D$109,DataSerch!$R$60:$R$109) -> 0 | AK45: =LOOKUP(W44,DataSerch!$D$60:$D$109,DataSerch!$S$60:$S$109) -> 0 | AL45: =LOOKUP(W44,DataSerch!$D$60:$D$109,DataSerch!$T$60:$T$109) -> 0 | AS45: 14 | AT45: 0.003028777552 | AU45: 0.008996123965 | AV45: 0.0005222198574
A46: 16 | B46: -1 | C46: -1 | D46: -1 | E46: -1 | F46: -1 | G46: -1 | H46: -1 | O46: 16 | P46: RCP2-SS7C | Q46: RCP3-RA2BR-20P-*S | T46: - - - | AS46: 15 | AT46: 0.003245118806 | AU46: 0.01032718312 | AV46: 0.0006400890508
A47: 17 | B47: -1 | C47: -1 | D47: -1 | E47: -1 | F47: -1 | G47: -1 | H47: -1 | O47: 17 | P47: RCP2-SS8C | Q47: RCP3-TA3C | T47: - - - | AS47: 16 | AT47: 0.00346146006 | AU47: 0.01175003946 | AV47: 0.0007741964225
A48: 18 | B48: -1 | C48: -1 | D48: -1 | E48: -1 | F48: -1 | G48: -1 | H48: -1 | O48: 18 | P48: RCP2-HS8C | Q48: RCP3-TA4C | T48: - - - | AS48: 17 | AT48: 0.003677801314 | AU48: 0.01326469299 | AV48: 0.0009255164395
A49: 19 | B49: -1 | C49: -1 | D49: -1 | E49: -1 | F49: -1 | G49: -1 | H49: -1 | O49: 19 | P49: RCP2-SA5R | Q49: RCP3-TA5C | T49: - - - | AS49: 18 | AT49: 0.003894142567 | AU49: 0.0148711437 | AV49: 0.001095011002
A50: 20 | B50: -1 | C50: -1 | D50: -1 | E50: -1 | F50: -1 | G50: -1 | H50: -1 | O50: 20 | P50: RCP2-SA6R | Q50: RCP3-TA6C | T50: - - - | U50: リンクリスト総数 | AS50: 19 | AT50: 0.004110483821 | AU50: 0.01656939159 | AV50: 0.001283629604
A51: 21 | B51: -1 | C51: -1 | D51: -1 | E51: -1 | F51: -1 | G51: -1 | H51: -1 | O51: 21 | P51: RCP2-SA7R | Q51: RCP3-TA7C | T51: - - - | U51: 1 | AS51: 20 | AT51: 0.004326825075 | AU51: 0.01835943666 | AV51: 0.001492309494
A52: 22 | B52: -1 | C52: -1 | D52: -1 | E52: -1 | F52: -1 | G52: -1 | H52: -1 | O52: 22 | P52: RCP2-SS7R | Q52: RCP3-TA3R | T52: - - - | AS52: 21 | AT52: 0.004543166328 | AU52: 0.02024127892 | AV52: 0.001721975835
A53: 23 | B53: -1 | C53: -1 | D53: -1 | E53: -1 | F53: -1 | G53: -1 | H53: -1 | O53: 23 | P53: RCP2-SS8R | Q53: RCP3-TA4R | T53: - - - | AS53: 22 | AT53: 0.004759507582 | AU53: 0.02221491836 | AV53: 0.001973541856
A54: 24 | B54: -1 | C54: -1 | D54: -1 | E54: -1 | F54: -1 | G54: -1 | H54: -1 | O54: 24 | P54: RCP2-HS8R | Q54: RCP3-TA5R | T54: - - - | AS54: 23 | AT54: 0.004975848836 | AU54: 0.02428035499 | AV54: 0.002247909008
A55: 25 | B55: -1 | C55: -1 | D55: -1 | E55: -1 | F55: -1 | G55: -1 | H55: -1 | O55: 25 | P55: RCP2-BA6 | Q55: RCP3-TA6R | T55: - - - | AS55: 24 | AT55: 0.00519219009 | AU55: 0.0264375888 | AV55: 0.002545967119
A56: 26 | B56: -1 | C56: -1 | D56: -1 | E56: -1 | F56: -1 | G56: -1 | H56: -1 | O56: 26 | P56: RCP2-BA7 | Q56: RCP3-TA7R | T56: - - - | AS56: 25 | AT56: 0.005408531343 | AU56: 0.02868661979 | AV56: 0.00286859454
A57: 27 | B57: -1 | C57: -1 | D57: -1 | E57: -1 | F57: -1 | G57: -1 | H57: -1 | O57: 27 | P57: ERC2-SA6C | Q57: RCP3-RA2AC-20P | T57: - - - | AS57: 26 | AT57: 0.005624872597 | AU57: 0.03102744796 | AV57: 0.003216658291
A58: 28 | B58: -1 | C58: -1 | D58: -1 | E58: -1 | F58: -1 | G58: -1 | H58: -1 | O58: 28 | P58: ERC2-SA7C | Q58: RCP3-RA2AC-20SP | T58: - - - | AS58: 27 | AT58: 0.005841213851 | AU58: 0.03346007332 | AV58: 0.003591014215
A59: 29 | B59: -1 | C59: -1 | D59: -1 | E59: -1 | F59: -1 | G59: -1 | H59: -1 | O59: 29 | P59: RCP3-RA2AC-20P-*S | Q59: RCP3-RA2BC-20P | T59: - - - | AS59: 28 | AT59: 0.006057555105 | AU59: 0.03598449586 | AV59: 0.003992507115
A60: 30 | B60: -1 | C60: -1 | D60: -1 | E60: -1 | F60: -1 | G60: -1 | H60: -1 | O60: 30 | P60: RCP3-RA2BC-20P-*S | Q60: RCP3-RA2BC-20SP | T60: - - - | AS60: 29 | AT60: 0.006273896358 | AU60: 0.03860071559 | AV60: 0.004421970898
A61: 31 | B61: -1 | C61: -1 | D61: -1 | E61: -1 | F61: -1 | G61: -1 | H61: -1 | O61: 31 | P61: RCP3-RA2AR-20P-*S | Q61: RCP3-RA2AR-20P | T61: - - - | AS61: 30 | AT61: 0.006490237612 | AU61: 0.04130873249 | AV61: 0.004880228717
A62: 32 | B62: -1 | C62: -1 | D62: -1 | E62: -1 | F62: -1 | G62: -1 | H62: -1 | O62: 32 | P62: RCP3-RA2BR-20P-*S | Q62: RCP3-RA2AR-20SP | T62: - - - | AS62: 31 | AT62: 0.006706578866 | AU62: 0.04410854658 | AV62: 0.005368093111
A63: 33 | B63: -1 | C63: -1 | D63: -1 | E63: -1 | F63: -1 | G63: -1 | H63: -1 | O63: 33 | P63: RCP2-RA2C | Q63: RCP3-RA2BR-20P | T63: - - - | AS63: 32 | AT63: 0.00692292012 | AU63: 0.04700015786 | AV63: 0.005886366137
A64: 34 | B64: -1 | C64: -1 | D64: -1 | E64: -1 | F64: -1 | G64: -1 | H64: -1 | O64: 34 | P64: RCP2-RA3C | Q64: RCP3-RA2BR-20SP | T64: - - - | AS64: 33 | AT64: 0.007139261373 | AU64: 0.04998356632 | AV64: 0.006435839508
A65: 35 | B65: -1 | C65: -1 | D65: -1 | E65: -1 | F65: -1 | G65: -1 | H65: -1 | O65: 35 | P65: RCP2-RA4C | Q65: - - - | T65: - - - | AS65: 34 | AT65: 0.007355602627 | AU65: 0.05305877196 | AV65: 0.00701729473
A66: 36 | B66: -1 | C66: -1 | D66: -1 | E66: -1 | F66: -1 | G66: -1 | H66: -1 | O66: 36 | P66: RCP2-RA6C | Q66: - - - | T66: - - - | AS66: 35 | AT66: 0.007571943881 | AU66: 0.05622577478 | AV66: 0.007631503226
A67: 37 | B67: -1 | C67: -1 | D67: -1 | E67: -1 | F67: -1 | G67: -1 | H67: -1 | O67: 37 | P67: RCP2-RA10C | Q67: - - - | T67: - - - | AS67: 36 | AT67: 0.007788285134 | AU67: 0.05948457479 | AV67: 0.008279226473
A68: 38 | B68: -1 | C68: -1 | D68: -1 | E68: -1 | F68: -1 | G68: -1 | H68: -1 | O68: 38 | P68: RCP2-SRA4R | Q68: - - - | T68: - - - | AS68: 37 | AT68: 0.008004626388 | AU68: 0.06283517198 | AV68: 0.008961216125
A69: 39 | B69: -1 | C69: -1 | D69: -1 | E69: -1 | F69: -1 | G69: -1 | H69: -1 | O69: 39 | P69: RCP2-RGS4C | Q69: - - - | T69: - - - | AS69: 38 | AT69: 0.008220967642 | AU69: 0.06627756636 | AV69: 0.009678214144
A70: 40 | B70: -1 | C70: -1 | D70: -1 | E70: -1 | F70: -1 | G70: -1 | H70: -1 | O70: 40 | P70: RCP2-RGS6C | Q70: - - - | T70: - - - | AS70: 39 | AT70: 0.008437308896 | AU70: 0.06981175791 | AV70: 0.01043095292
A71: 41 | B71: -1 | C71: -1 | D71: -1 | E71: -1 | F71: -1 | G71: -1 | H71: -1 | O71: 41 | P71: RCP2-SRGS4R | Q71: - - - | T71: - - - | AS71: 40 | AT71: 0.008653650149 | AU71: 0.07343774666 | AV71: 0.01122015541
A72: 42 | B72: -1 | C72: -1 | D72: -1 | E72: -1 | F72: -1 | G72: -1 | H72: -1 | O72: 42 | P72: RCP2-RGD3C | Q72: - - - | T72: - - - | AS72: 41 | AT72: 0.008869991403 | AU72: 0.07715553258 | AV72: 0.01204653522
A73: 43 | B73: -1 | C73: -1 | D73: -1 | E73: -1 | F73: -1 | G73: -1 | H73: -1 | O73: 43 | P73: RCP2-RGD4C | Q73: - - - | T73: - - - | AS73: 42 | AT73: 0.009086332657 | AU73: 0.08096511569 | AV73: 0.01291079679
A74: 44 | B74: -1 | C74: -1 | D74: -1 | E74: -1 | F74: -1 | G74: -1 | H74: -1 | O74: 44 | P74: RCP2-RGD6C | Q74: - - - | T74: - - - | AS74: 43 | AT74: 0.009302673911 | AU74: 0.08486649598 | AV74: 0.01381363543
A75: 45 | B75: -1 | C75: -1 | D75: -1 | E75: -1 | F75: -1 | G75: -1 | H75: -1 | O75: 45 | P75: RCP2-SRGD4R | Q75: - - - | T75: - - - | AS75: 44 | AT75: 0.009519015164 | AU75: 0.08885967345 | AV75: 0.01475573753
A76: 46 | B76: -1 | C76: -1 | D76: -1 | E76: -1 | F76: -1 | G76: -1 | H76: -1 | O76: 46 | P76: ERC2-RA6C | Q76: - - - | T76: - - - | AS76: 45 | AT76: 0.009735356418 | AU76: 0.09294464811 | AV76: 0.0157377806
A77: 47 | B77: -1 | C77: -1 | D77: -1 | E77: -1 | F77: -1 | G77: -1 | H77: -1 | O77: 47 | P77: ERC2-RA7C | Q77: - - - | T77: - - - | AS77: 46 | AT77: 0.009951697672 | AU77: 0.09712141995 | AV77: 0.01676043341
A78: 48 | B78: -1 | C78: -1 | D78: -1 | E78: -1 | F78: -1 | G78: -1 | H78: -1 | O78: 48 | P78: ERC2-RGS6C | Q78: - - - | T78: - - - | AS78: 47 | AT78: 0.01016803893 | AU78: 0.101389989 | AV78: 0.01782435613
A79: 49 | B79: -1 | C79: -1 | D79: -1 | E79: -1 | F79: -1 | G79: -1 | H79: -1 | O79: 49 | P79: ERC2-RGS7C | Q79: - - - | T79: - - - | AS79: 48 | AT79: 0.01038438018 | AU79: 0.1057503552 | AV79: 0.01893020037
A80: 50 | B80: -1 | C80: -1 | D80: -1 | E80: -1 | F80: -1 | G80: -1 | H80: -1 | O80: 50 | P80: ERC2-RGD6C | Q80: - - - | T80: - - - | AS80: 49 | AT80: 0.01060072143 | AU80: 0.1102025186 | AV80: 0.02007860939
A81: 51 | B81: -1 | C81: -1 | D81: -1 | E81: -1 | F81: -1 | G81: -1 | H81: -1 | O81: 51 | P81: ERC2-RGD7C | Q81: - - - | AS81: 50 | AT81: 0.01081706269 | AU81: 0.1147464791 | AV81: 0.02127021812
A82: 52 | B82: -1 | C82: -1 | D82: -1 | E82: -1 | F82: -1 | G82: -1 | H82: -1 | O82: 52 | P82: RCP3-TA3C | Q82: - - - | AS82: 51 | AT82: 0.01103340394 | AU82: 0.1193822369 | AV82: 0.02250565331
A83: 53 | B83: -1 | C83: -1 | D83: -1 | E83: -1 | F83: -1 | G83: -1 | H83: -1 | O83: 53 | P83: RCP3-TA4C | Q83: - - - | AS83: 52 | AT83: 0.01124974519 | AU83: 0.1241097918 | AV83: 0.02378553363
A84: 54 | B84: -1 | C84: -1 | D84: -1 | E84: -1 | F84: -1 | G84: -1 | H84: -1 | O84: 54 | P84: RCP3-TA5C | Q84: - - - | AS84: 53 | AT84: 0.01146608645 | AU84: 0.128929144 | AV84: 0.02511046977
A85: 55 | B85: -1 | C85: -1 | D85: -1 | E85: -1 | F85: -1 | G85: -1 | H85: -1 | O85: 55 | P85: RCP3-TA6C | Q85: - - - | AS85: 54 | AT85: 0.0116824277 | AU85: 0.1338402933 | AV85: 0.02648106454
A86: 56 | B86: -1 | C86: -1 | D86: -1 | E86: -1 | F86: -1 | G86: -1 | H86: -1 | O86: 56 | P86: RCP3-TA7C | Q86: - - - | AS86: 55 | AT86: 0.01189876896 | AU86: 0.1388432398 | AV86: 0.02789791298
A87: 57 | B87: -1 | C87: -1 | D87: -1 | E87: -1 | F87: -1 | G87: -1 | H87: -1 | O87: 57 | P87: RCP3-TA3R | Q87: - - - | AS87: 56 | AT87: 0.01211511021 | AU87: 0.1439379834 | AV87: 0.02936160245
A88: 58 | B88: -1 | C88: -1 | D88: -1 | E88: -1 | F88: -1 | G88: -1 | H88: -1 | O88: 58 | P88: RCP3-TA4R | Q88: - - - | AS88: 57 | AT88: 0.01233145146 | AU88: 0.1491245243 | AV88: 0.03087271274
A89: 59 | B89: -1 | C89: -1 | D89: -1 | E89: -1 | F89: -1 | G89: -1 | H89: -1 | O89: 59 | P89: RCP3-TA5R | Q89: - - - | AS89: 58 | AT89: 0.01254779272 | AU89: 0.1544028623 | AV89: 0.03243181617
A90: 60 | B90: -1 | C90: -1 | D90: -1 | E90: -1 | F90: -1 | G90: -1 | H90: -1 | O90: 60 | P90: RCP3-TA6R | Q90: - - - | AS90: 59 | AT90: 0.01276413397 | AU90: 0.1597729976 | AV90: 0.03403947766
A91: 61 | B91: -1 | C91: -1 | D91: -1 | E91: -1 | F91: -1 | G91: -1 | H91: -1 | O91: 61 | P91: RCP3-TA7R | Q91: - - - | AS91: 60 | AT91: 0.01298047522 | AU91: 0.16523493 | AV91: 0.03569625486
A92: 62 | B92: -1 | C92: -1 | D92: -1 | E92: -1 | F92: -1 | G92: -1 | H92: -1 | O92: 62 | P92: RCP2-RTBSL | Q92: - - - | AS92: 61 | AT92: 0.01319681648 | AU92: 0.1707886596 | AV92: 0.03740269823
A93: 63 | B93: -1 | C93: -1 | D93: -1 | E93: -1 | F93: -1 | G93: -1 | H93: -1 | O93: 63 | P93: RCP2-RTCSL | Q93: - - - | AS93: 62 | AT93: 0.01341315773 | AU93: 0.1764341863 | AV93: 0.03915935111
A94: 64 | B94: -1 | C94: -1 | D94: -1 | E94: -1 | F94: -1 | G94: -1 | H94: -1 | O94: 64 | P94: RCP2-RTBL | Q94: - - - | AS94: 63 | AT94: 0.01362949899 | AU94: 0.1821715103 | AV94: 0.04096674985
A95: =A94+1 -> 65 | B95: -1 | C95: -1 | D95: -1 | E95: -1 | F95: -1 | G95: -1 | H95: -1 | O95: 65 | P95: RCP2-RTCL | Q95: - - - | AS95: 64 | AT95: =$AP$18/$N$7*AS95 -> 0.01384584024 | AU95: 0.1880006314 | AV95: 0.04282542389
A96: 66 | B96: -1 | C96: -1 | D96: -1 | E96: -1 | F96: -1 | G96: -1 | H96: -1 | O96: 66 | P96: RCP2-RTBBL | Q96: - - - | AS96: 65 | AT96: 0.01406218149 | AU96: =IF(($N$4*AT96^2/2)<=$AP$13,($N$4*AT96^2/2), IF(($AP$13+$N$6*(AT96-$AP$12))<=$AP$17, ($AP$13+$N$6*(AT96-$AP$12)), IF(AU95<$D$14, ($AP$17+($N$6-$N$5*(AT96-$AP$16)/2)*(AT96-$AP$16)), $D$14))) -> 0.1939215498 | AV96: 0.04473589583
A97: 67 | B97: -1 | C97: -1 | D97: -1 | E97: -1 | F97: -1 | G97: -1 | H97: -1 | O97: =O96+1 -> 67 | P97: RCP2-RTCBL | Q97: - - - | AS97: =AS96+1 -> 66 | AT97: 0.01427852275 | AU97: 0.1999342653 | AV97: =( $AP$6*AU97 + $AP$7*AU96 + $AP$9*AV96 )/$AP$8 -> 0.04669868152
A98: 68 | B98: -1 | C98: -1 | D98: -1 | E98: -1 | F98: -1 | G98: -1 | H98: -1 | O98: 68 | P98: RCP2CR-SA5C | Q98: - - - | AS98: 67 | AT98: 0.014494864 | AU98: 0.206038778 | AV98: 0.04871429018
A99: 69 | B99: -1 | C99: -1 | D99: -1 | E99: -1 | F99: -1 | G99: -1 | H99: -1 | O99: 69 | P99: RCP2CR-SA6C | Q99: - - - | AS99: 68 | AT99: 0.01471120525 | AU99: 0.2122350878 | AV99: 0.05078322444
A100: 70 | B100: -1 | C100: -1 | D100: -1 | E100: -1 | F100: -1 | G100: -1 | H100: -1 | O100: 70 | P100: RCP2CR-SA7C | Q100: - - - | AS100: 69 | AT100: 0.01492754651 | AU100: 0.2185231949 | AV100: 0.05290598047
A101: 71 | B101: -1 | C101: -1 | D101: -1 | E101: -1 | F101: -1 | G101: -1 | H101: -1 | O101: 71 | P101: RCP2CR-SS7C | Q101: - - - | AS101: 70 | AT101: 0.01514388776 | AU101: 0.2249030991 | AV101: 0.05508304803
A102: 72 | B102: -1 | C102: -1 | D102: -1 | E102: -1 | F102: -1 | G102: -1 | H102: -1 | O102: 72 | P102: RCP2CR-SS8C | Q102: - - - | AS102: 71 | AT102: 0.01536022902 | AU102: 0.2313748006 | AV102: 0.05731491056
A103: 73 | B103: -1 | C103: -1 | D103: -1 | E103: -1 | F103: -1 | G103: -1 | H103: -1 | O103: 73 | P103: RCP2CR-HS8C | Q103: - - - | AS103: 72 | AT103: 0.01557657027 | AU103: 0.2379382992 | AV103: 0.05960204526
A104: 74 | B104: -1 | C104: -1 | D104: -1 | E104: -1 | F104: -1 | G104: -1 | H104: -1 | O104: 74 | P104: RCP2W-RA4C | Q104: - - - | AS104: 73 | AT104: 0.01579291152 | AU104: 0.244593595 | AV104: 0.06194492321
A105: 75 | B105: -1 | C105: -1 | D105: -1 | E105: -1 | F105: -1 | G105: -1 | H105: -1 | O105: 75 | P105: RCP2W-RA6C | Q105: - - - | AS105: 74 | AT105: 0.01600925278 | AU105: 0.2513406879 | AV105: 0.06434400936
A106: 76 | B106: -1 | C106: -1 | D106: -1 | E106: -1 | F106: -1 | G106: -1 | H106: -1 | O106: =O105+1 -> 76 | P106: RCP2W-RA10C | Q106: - - - | AS106: 75 | AT106: 0.01622559403 | AU106: 0.2581795781 | AV106: 0.06679976271
A107: 77 | B107: -1 | C107: -1 | D107: -1 | E107: -1 | F107: -1 | G107: -1 | H107: -1 | O107: 77 | P107: RCP3-RA2AC-20P | Q107: - - - | AS107: 76 | AT107: 0.01644193528 | AU107: 0.2651102654 | AV107: 0.06931263633
A108: 78 | B108: -1 | C108: -1 | D108: -1 | E108: -1 | F108: -1 | G108: -1 | H108: -1 | O108: 78 | P108: RCP3-RA2AC-20SP | Q108: - - - | AS108: 77 | AT108: 0.01665827654 | AU108: 0.2721327499 | AV108: 0.07188307742
A109: 79 | B109: -1 | C109: -1 | D109: -1 | E109: -1 | F109: -1 | G109: -1 | H109: -1 | O109: 79 | P109: RCP3-RA2BC-20P | Q109: - - - | AS109: 78 | AT109: 0.01687461779 | AU109: 0.2792470317 | AV109: 0.07451152745
A110: 80 | B110: -1 | C110: -1 | D110: -1 | E110: -1 | F110: -1 | G110: -1 | H110: -1 | O110: 80 | P110: RCP3-RA2BC-20SP | Q110: - - - | AS110: 79 | AT110: 0.01709095905 | AU110: 0.2864531105 | AV110: 0.07719842216
A111: 81 | B111: -1 | C111: -1 | D111: -1 | E111: -1 | F111: -1 | G111: -1 | H111: -1 | O111: 81 | P111: RCP3-RA2AR-20P | Q111: - - - | AS111: 80 | AT111: 0.0173073003 | AU111: 0.2937509866 | AV111: 0.07994419172
A112: 82 | B112: -1 | C112: -1 | D112: -1 | E112: -1 | F112: -1 | G112: -1 | H112: -1 | O112: 82 | P112: RCP3-RA2AR-20SP | Q112: - - - | AS112: 81 | AT112: 0.01752364155 | AU112: 0.3011406599 | AV112: 0.08274926069
A113: 83 | B113: -1 | C113: -1 | D113: -1 | E113: -1 | F113: -1 | G113: -1 | H113: -1 | O113: 83 | P113: RCP3-RA2BR-20P | Q113: - - - | AS113: 82 | AT113: 0.01773998281 | AU113: 0.3086221303 | AV113: 0.08561404821
A114: 84 | B114: -1 | C114: -1 | D114: -1 | E114: -1 | F114: -1 | G114: -1 | H114: -1 | O114: =O113+1 -> 84 | P114: RCP3-RA2BR-20SP | Q114: - - - | AS114: 83 | AT114: 0.01795632406 | AU114: 0.3161953979 | AV114: 0.08853896797
A115: 85 | B115: -1 | C115: -1 | D115: -1 | E115: -1 | F115: -1 | G115: -1 | H115: -1 | O115: =O114+1 -> 85 | P115: RCP2-RA8C | Q115: - - - | AS115: 84 | AT115: 0.01817266531 | AU115: 0.3238604627 | AV115: 0.09152442837
A116: 86 | B116: -1 | C116: -1 | D116: -1 | E116: -1 | F116: -1 | G116: -1 | H116: -1 | O116: =O115+1 -> 86 | P116: RCP2-RA8R | Q116: - - - | AS116: 85 | AT116: 0.01838900657 | AU116: 0.3316173247 | AV116: 0.0945708325
A117: 87 | B117: -1 | C117: -1 | D117: -1 | E117: -1 | F117: -1 | G117: -1 | H117: -1 | AS117: 86 | AT117: 0.01860534782 | AU117: 0.3394659839 | AV117: 0.09767857827
A118: 88 | B118: -1 | C118: -1 | D118: -1 | E118: -1 | F118: -1 | G118: -1 | H118: -1 | AS118: 87 | AT118: 0.01882168908 | AU118: 0.3474064403 | AV118: 0.1008480585
A119: 89 | B119: -1 | C119: -1 | D119: -1 | E119: -1 | F119: -1 | G119: -1 | H119: -1 | AS119: 88 | AT119: 0.01903803033 | AU119: 0.3554386938 | AV119: 0.1040796608
A120: 90 | B120: -1 | C120: -1 | D120: -1 | E120: -1 | F120: -1 | G120: -1 | H120: -1 | AS120: 89 | AT120: 0.01925437158 | AU120: 0.3635627445 | AV120: 0.107373768
A121: 91 | B121: -1 | C121: -1 | D121: -1 | E121: -1 | F121: -1 | G121: -1 | H121: -1 | AS121: 90 | AT121: 0.01947071284 | AU121: 0.3717785924 | AV121: 0.1107307578
A122: 92 | B122: -1 | C122: -1 | D122: -1 | E122: -1 | F122: -1 | G122: -1 | H122: -1 | AS122: 91 | AT122: 0.01968705409 | AU122: 0.3800862375 | AV122: 0.1141510031
A123: 93 | B123: -1 | C123: -1 | D123: -1 | E123: -1 | F123: -1 | G123: -1 | H123: -1 | AS123: 92 | AT123: 0.01990339534 | AU123: 0.3884856798 | AV123: 0.1176348721
A124: 94 | B124: -1 | C124: -1 | D124: -1 | E124: -1 | F124: -1 | G124: -1 | H124: -1 | AS124: 93 | AT124: 0.0201197366 | AU124: 0.3969769193 | AV124: 0.121182728
A125: 95 | B125: -1 | C125: -1 | D125: -1 | E125: -1 | F125: -1 | G125: -1 | H125: -1 | AS125: 94 | AT125: 0.02033607785 | AU125: 0.4055599559 | AV125: 0.1247949296
A126: 96 | B126: -1 | C126: -1 | D126: -1 | E126: -1 | F126: -1 | G126: -1 | H126: -1 | AS126: 95 | AT126: 0.0205524191 | AU126: 0.4142347897 | AV126: 0.1284718308
A127: 97 | B127: -1 | C127: -1 | D127: -1 | E127: -1 | F127: -1 | G127: -1 | H127: -1 | AS127: 96 | AT127: 0.02076876036 | AU127: 0.4230014207 | AV127: 0.1322137812
A128: 98 | B128: -1 | C128: -1 | D128: -1 | E128: -1 | F128: -1 | G128: -1 | H128: -1 | AS128: 97 | AT128: 0.02098510161 | AU128: 0.4318598489 | AV128: 0.1360211257
A129: 99 | B129: -1 | C129: -1 | D129: -1 | E129: -1 | F129: -1 | G129: -1 | H129: -1 | AS129: 98 | AT129: 0.02120144287 | AU129: 0.4408100743 | AV129: 0.1398942048
A130: 100 | B130: -1 | C130: -1 | D130: -1 | E130: -1 | F130: -1 | G130: -1 | H130: -1 | AS130: 99 | AT130: 0.02141778412 | AU130: 0.4498520969 | AV130: 0.1438333546
A131: 101 | B131: -1 | C131: -1 | D131: -1 | E131: -1 | F131: -1 | G131: -1 | H131: -1 | AS131: 100 | AT131: 0.02163412537 | AU131: 0.4589859166 | AV131: 0.147838907
A132: 102 | B132: -1 | C132: -1 | D132: -1 | E132: -1 | F132: -1 | G132: -1 | H132: -1 | AS132: =AS131+1 -> 101 | AT132: 0.02185046663 | AU132: 0.4682115335 | AV132: 0.1519111894
A133: 103 | B133: -1 | C133: -1 | D133: -1 | E133: -1 | F133: -1 | G133: -1 | H133: -1 | AS133: 102 | AT133: 0.02206680788 | AU133: 0.4775289476 | AV133: 0.1560505252
A134: 104 | B134: -1 | C134: -1 | D134: -1 | E134: -1 | F134: -1 | G134: -1 | H134: -1 | AS134: 103 | AT134: 0.02228314913 | AU134: 0.4869381589 | AV134: 0.1602572333
A135: 105 | B135: -1 | C135: -1 | D135: -1 | E135: -1 | F135: -1 | G135: -1 | H135: -1 | AS135: 104 | AT135: 0.02249949039 | AU135: 0.4964391674 | AV135: 0.164531629
A136: 106 | B136: -1 | C136: -1 | D136: -1 | E136: -1 | F136: -1 | G136: -1 | H136: -1 | AS136: 105 | AT136: 0.02271583164 | AU136: 0.506031973 | AV136: 0.168874023
A137: 107 | B137: -1 | C137: -1 | D137: -1 | E137: -1 | F137: -1 | G137: -1 | H137: -1 | AS137: 106 | AT137: 0.0229321729 | AU137: 0.5157165759 | AV137: 0.1732847223
A138: 108 | B138: -1 | C138: -1 | D138: -1 | E138: -1 | F138: -1 | G138: -1 | H138: -1 | AS138: 107 | AT138: 0.02314851415 | AU138: 0.5254929759 | AV138: 0.1777640298
A139: 109 | B139: -1 | C139: -1 | D139: -1 | E139: -1 | F139: -1 | G139: -1 | H139: -1 | AS139: 108 | AT139: 0.0233648554 | AU139: 0.5353611731 | AV139: 0.1823122448
A140: 110 | B140: -1 | C140: -1 | D140: -1 | E140: -1 | F140: -1 | G140: -1 | H140: -1 | AS140: 109 | AT140: 0.02358119666 | AU140: 0.5453211675 | AV140: 0.1869296622
A141: 111 | B141: -1 | C141: -1 | D141: -1 | E141: -1 | F141: -1 | G141: -1 | H141: -1 | AS141: 110 | AT141: 0.02379753791 | AU141: 0.5553729591 | AV141: 0.1916165736
A142: 112 | B142: -1 | C142: -1 | D142: -1 | E142: -1 | F142: -1 | G142: -1 | H142: -1 | AS142: 111 | AT142: 0.02401387916 | AU142: 0.5655165478 | AV142: 0.1963732666
A143: 113 | B143: -1 | C143: -1 | D143: -1 | E143: -1 | F143: -1 | G143: -1 | H143: -1 | AS143: 112 | AT143: 0.02423022042 | AU143: 0.5757519338 | AV143: 0.2012000251
A144: 114 | B144: -1 | C144: -1 | D144: -1 | E144: -1 | F144: -1 | G144: -1 | H144: -1 | AS144: 113 | AT144: 0.02444656167 | AU144: 0.5860791169 | AV144: 0.2060971294
A145: 115 | B145: -1 | C145: -1 | D145: -1 | E145: -1 | F145: -1 | G145: -1 | H145: -1 | AS145: 114 | AT145: 0.02466290293 | AU145: 0.5964980972 | AV145: 0.2110648561
A146: 116 | B146: -1 | C146: -1 | D146: -1 | E146: -1 | F146: -1 | G146: -1 | H146: -1 | AS146: 115 | AT146: 0.02487924418 | AU146: 0.6070088747 | AV146: 0.2161034783
A147: 117 | B147: -1 | C147: -1 | D147: -1 | E147: -1 | F147: -1 | G147: -1 | H147: -1 | AS147: 116 | AT147: 0.02509558543 | AU147: 0.6176114494 | AV147: 0.2212132656
A148: 118 | B148: -1 | C148: -1 | D148: -1 | E148: -1 | F148: -1 | G148: -1 | H148: -1 | AS148: 117 | AT148: 0.02531192669 | AU148: 0.6283058212 | AV148: 0.2263944841
A149: 119 | B149: -1 | C149: -1 | D149: -1 | E149: -1 | F149: -1 | G149: -1 | H149: -1 | AS149: 118 | AT149: 0.02552826794 | AU149: 0.6390907639 | AV149: 0.2316473885
A150: 120 | B150: -1 | C150: -1 | D150: -1 | E150: -1 | F150: -1 | G150: -1 | H150: -1 | AS150: 119 | AT150: 0.02574460919 | AU150: 0.6499078266 | AV150: 0.2369718454
A151: 121 | B151: -1 | C151: -1 | D151: -1 | E151: -1 | F151: -1 | G151: -1 | H151: -1 | AS151: 120 | AT151: 0.02596095045 | AU151: 0.6607248893 | AV151: 0.2423671393
A152: 122 | B152: -1 | C152: -1 | D152: -1 | E152: -1 | F152: -1 | G152: -1 | H152: -1 | AS152: 121 | AT152: 0.0261772917 | AU152: 0.671541952 | AV152: 0.2478323564
A153: 123 | B153: -1 | C153: -1 | D153: -1 | E153: -1 | F153: -1 | G153: -1 | H153: -1 | AS153: 122 | AT153: 0.02639363296 | AU153: 0.6823590147 | AV153: 0.2533665951
A154: 124 | B154: -1 | C154: -1 | D154: -1 | E154: -1 | F154: -1 | G154: -1 | H154: -1 | AS154: 123 | AT154: 0.02660997421 | AU154: 0.6931760774 | AV154: 0.2589689652
A155: 125 | B155: -1 | C155: -1 | D155: -1 | E155: -1 | F155: -1 | G155: -1 | H155: -1 | AS155: 124 | AT155: 0.02682631546 | AU155: 0.7039931401 | AV155: 0.264638588
A156: 126 | B156: -1 | C156: -1 | D156: -1 | E156: -1 | F156: -1 | G156: -1 | H156: -1 | AS156: 125 | AT156: 0.02704265672 | AU156: 0.7148102027 | AV156: 0.2703745961
A157: 127 | B157: -1 | C157: -1 | D157: -1 | E157: -1 | F157: -1 | G157: -1 | H157: -1 | AS157: 126 | AT157: 0.02725899797 | AU157: 0.7256272654 | AV157: 0.2761761334
A158: 128 | B158: -1 | C158: -1 | D158: -1 | E158: -1 | F158: -1 | G158: -1 | H158: -1 | AS158: 127 | AT158: 0.02747533922 | AU158: 0.7364443281 | AV158: 0.2820423549
A159: =A158+1 -> 129 | B159: -1 | C159: -1 | D159: -1 | E159: -1 | F159: -1 | G159: -1 | H159: -1 | AS159: 128 | AT159: =$AP$18/$N$7*AS159 -> 0.02769168048 | AU159: 0.7472613908 | AV159: 0.2879724261
A160: 130 | B160: -1 | C160: -1 | D160: -1 | E160: -1 | F160: -1 | G160: -1 | H160: -1 | AS160: 129 | AT160: 0.02790802173 | AU160: =IF(($N$4*AT160^2/2)<=$AP$13,($N$4*AT160^2/2), IF(($AP$13+$N$6*(AT160-$AP$12))<=$AP$17, ($AP$13+$N$6*(AT160-$AP$12)), IF(AU159<$D$14, ($AP$17+($N$6-$N$5*(AT160-$AP$16)/2)*(AT160-$AP$16)), $D$14))) -> 0.7580784535 | AV160: 0.2939655238
A161: 131 | B161: -1 | C161: -1 | D161: -1 | E161: -1 | F161: -1 | G161: -1 | H161: -1 | AS161: 130 | AT161: 0.02812436299 | AU161: 0.7688955162 | AV161: =( $AP$6*AU161 + $AP$7*AU160 + $AP$9*AV160 )/$AP$8 -> 0.3000208351
A162: 132 | B162: -1 | C162: -1 | D162: -1 | E162: -1 | F162: -1 | G162: -1 | H162: -1 | AS162: 131 | AT162: 0.02834070424 | AU162: 0.7797125789 | AV162: 0.3061375576
A163: 133 | B163: -1 | C163: -1 | D163: -1 | E163: -1 | F163: -1 | G163: -1 | H163: -1 | AS163: 132 | AT163: 0.02855704549 | AU163: 0.7905296415 | AV163: 0.3123148994
A164: 134 | B164: -1 | C164: -1 | D164: -1 | E164: -1 | F164: -1 | G164: -1 | H164: -1 | AS164: 133 | AT164: 0.02877338675 | AU164: 0.8013467042 | AV164: 0.3185520785
A165: 135 | B165: -1 | C165: -1 | D165: -1 | E165: -1 | F165: -1 | G165: -1 | H165: -1 | AS165: 134 | AT165: 0.028989728 | AU165: 0.8121637669 | AV165: 0.3248483234
A166: 136 | B166: -1 | C166: -1 | D166: -1 | E166: -1 | F166: -1 | G166: -1 | H166: -1 | AS166: 135 | AT166: 0.02920606925 | AU166: 0.8229808296 | AV166: 0.3312028722
A167: 137 | B167: -1 | C167: -1 | D167: -1 | E167: -1 | F167: -1 | G167: -1 | H167: -1 | AS167: 136 | AT167: 0.02942241051 | AU167: 0.8337978923 | AV167: 0.337614973
A168: 138 | B168: -1 | C168: -1 | D168: -1 | E168: -1 | F168: -1 | G168: -1 | H168: -1 | AS168: 137 | AT168: 0.02963875176 | AU168: 0.844614955 | AV168: 0.3440838837
A169: 139 | B169: -1 | C169: -1 | D169: -1 | E169: -1 | F169: -1 | G169: -1 | H169: -1 | AS169: 138 | AT169: 0.02985509302 | AU169: 0.8554320177 | AV169: 0.3506088714
A170: 140 | B170: -1 | C170: -1 | D170: -1 | E170: -1 | F170: -1 | G170: -1 | H170: -1 | AS170: 139 | AT170: 0.03007143427 | AU170: 0.8662490804 | AV170: 0.3571892131
A171: 141 | B171: -1 | C171: -1 | D171: -1 | E171: -1 | F171: -1 | G171: -1 | H171: -1 | AS171: 140 | AT171: 0.03028777552 | AU171: 0.877066143 | AV171: 0.3638241948
A172: 142 | B172: -1 | C172: -1 | D172: -1 | E172: -1 | F172: -1 | G172: -1 | H172: -1 | AS172: 141 | AT172: 0.03050411678 | AU172: 0.8878832057 | AV172: 0.3705131118
A173: 143 | B173: -1 | C173: -1 | D173: -1 | E173: -1 | F173: -1 | G173: -1 | H173: -1 | AS173: 142 | AT173: 0.03072045803 | AU173: 0.8987002684 | AV173: 0.3772552686
A174: 144 | B174: -1 | C174: -1 | D174: -1 | E174: -1 | F174: -1 | G174: -1 | H174: -1 | AS174: 143 | AT174: 0.03093679928 | AU174: 0.9095173311 | AV174: 0.3840499785
A175: 145 | B175: -1 | C175: -1 | D175: -1 | E175: -1 | F175: -1 | G175: -1 | H175: -1 | AS175: 144 | AT175: 0.03115314054 | AU175: 0.9203343938 | AV175: 0.3908965638
A176: 146 | B176: -1 | C176: -1 | D176: -1 | E176: -1 | F176: -1 | G176: -1 | H176: -1 | AS176: 145 | AT176: 0.03136948179 | AU176: 0.9311514565 | AV176: 0.3977943555
A177: 147 | B177: -1 | C177: -1 | D177: -1 | E177: -1 | F177: -1 | G177: -1 | H177: -1 | AS177: 146 | AT177: 0.03158582305 | AU177: 0.9419685192 | AV177: 0.404742693
A178: 148 | B178: -1 | C178: -1 | D178: -1 | E178: -1 | F178: -1 | G178: -1 | H178: -1 | AS178: 147 | AT178: 0.0318021643 | AU178: 0.9527855818 | AV178: 0.4117409247
A179: 149 | B179: -1 | C179: -1 | D179: -1 | E179: -1 | F179: -1 | G179: -1 | H179: -1 | AS179: 148 | AT179: 0.03201850555 | AU179: 0.9636026445 | AV179: 0.4187884069
A180: 150 | B180: -1 | C180: -1 | D180: -1 | E180: -1 | F180: -1 | G180: -1 | H180: -1 | AS180: 149 | AT180: 0.03223484681 | AU180: 0.9744197072 | AV180: 0.4258845046
A181: 151 | B181: -1 | C181: -1 | D181: -1 | E181: -1 | F181: -1 | G181: -1 | H181: -1 | AS181: 150 | AT181: 0.03245118806 | AU181: 0.9852367699 | AV181: 0.4330285907
A182: 152 | B182: -1 | C182: -1 | D182: -1 | E182: -1 | F182: -1 | G182: -1 | H182: -1 | AS182: 151 | AT182: 0.03266752931 | AU182: 0.9960538326 | AV182: 0.4402200463
A183: 153 | B183: -1 | C183: -1 | D183: -1 | E183: -1 | F183: -1 | G183: -1 | H183: -1 | AS183: =AS182+1 -> 152 | AT183: 0.03288387057 | AU183: 1.006870895 | AV183: 0.4474582606
A184: 154 | B184: -1 | C184: -1 | D184: -1 | E184: -1 | F184: -1 | G184: -1 | H184: -1 | AS184: 153 | AT184: 0.03310021182 | AU184: 1.017687958 | AV184: 0.4547426305
A185: 155 | B185: -1 | C185: -1 | D185: -1 | E185: -1 | F185: -1 | G185: -1 | H185: -1 | AS185: 154 | AT185: 0.03331655308 | AU185: 1.028505021 | AV185: 0.4620725606
A186: 156 | B186: -1 | C186: -1 | D186: -1 | E186: -1 | F186: -1 | G186: -1 | H186: -1 | AS186: 155 | AT186: 0.03353289433 | AU186: 1.039322083 | AV186: 0.4694474636
A187: 157 | B187: -1 | C187: -1 | D187: -1 | E187: -1 | F187: -1 | G187: -1 | H187: -1 | AS187: 156 | AT187: 0.03374923558 | AU187: 1.050139146 | AV187: 0.4768667593
A188: 158 | B188: -1 | C188: -1 | D188: -1 | E188: -1 | F188: -1 | G188: -1 | H188: -1 | AS188: 157 | AT188: 0.03396557684 | AU188: 1.060956209 | AV188: 0.4843298752
A189: 159 | B189: -1 | C189: -1 | D189: -1 | E189: -1 | F189: -1 | G189: -1 | H189: -1 | AS189: 158 | AT189: 0.03418191809 | AU189: 1.071773271 | AV189: 0.4918362462
A190: 160 | B190: -1 | C190: -1 | D190: -1 | E190: -1 | F190: -1 | G190: -1 | H190: -1 | AS190: 159 | AT190: 0.03439825934 | AU190: 1.082590334 | AV190: 0.4993853145
A191: 161 | B191: -1 | C191: -1 | D191: -1 | E191: -1 | F191: -1 | G191: -1 | H191: -1 | AS191: 160 | AT191: 0.0346146006 | AU191: 1.093407397 | AV191: 0.5069765293
A192: 162 | B192: -1 | C192: -1 | D192: -1 | E192: -1 | F192: -1 | G192: -1 | H192: -1 | AS192: 161 | AT192: 0.03483094185 | AU192: 1.104224459 | AV192: 0.5146093472
A193: 163 | B193: -1 | C193: -1 | D193: -1 | E193: -1 | F193: -1 | G193: -1 | H193: -1 | AS193: 162 | AT193: 0.03504728311 | AU193: 1.115041522 | AV193: 0.5222832315
A194: 164 | B194: -1 | C194: -1 | D194: -1 | E194: -1 | F194: -1 | G194: -1 | H194: -1 | AS194: 163 | AT194: 0.03526362436 | AU194: 1.125858585 | AV194: 0.5299976527
A195: 165 | B195: -1 | C195: -1 | D195: -1 | E195: -1 | F195: -1 | G195: -1 | H195: -1 | AS195: 164 | AT195: 0.03547996561 | AU195: 1.136675648 | AV195: 0.5377520879
A196: 166 | B196: -1 | C196: -1 | D196: -1 | E196: -1 | F196: -1 | G196: -1 | H196: -1 | AS196: 165 | AT196: 0.03569630687 | AU196: 1.14749271 | AV196: 0.5455460212
A197: 167 | B197: -1 | C197: -1 | D197: -1 | E197: -1 | F197: -1 | G197: -1 | H197: -1 | AS197: 166 | AT197: 0.03591264812 | AU197: 1.158309773 | AV197: 0.553378943
A198: 168 | B198: -1 | C198: -1 | D198: -1 | E198: -1 | F198: -1 | G198: -1 | H198: -1 | AS198: 167 | AT198: 0.03612898937 | AU198: 1.169126836 | AV198: 0.5612503507
A199: 169 | B199: -1 | C199: -1 | D199: -1 | E199: -1 | F199: -1 | G199: -1 | H199: -1 | AS199: 168 | AT199: 0.03634533063 | AU199: 1.179943898 | AV199: 0.5691597478
A200: 170 | B200: -1 | C200: -1 | D200: -1 | E200: -1 | F200: -1 | G200: -1 | H200: -1 | AS200: 169 | AT200: 0.03656167188 | AU200: 1.190760961 | AV200: 0.5771066444
A201: 171 | B201: -1 | C201: -1 | D201: -1 | E201: -1 | F201: -1 | G201: -1 | H201: -1 | AS201: 170 | AT201: 0.03677801314 | AU201: 1.201578024 | AV201: 0.5850905568
A202: 172 | B202: -1 | C202: -1 | D202: -1 | E202: -1 | F202: -1 | G202: -1 | H202: -1 | AS202: 171 | AT202: 0.03699435439 | AU202: 1.212395086 | AV202: 0.5931110078
A203: 173 | B203: -1 | C203: -1 | D203: -1 | E203: -1 | F203: -1 | G203: -1 | H203: -1 | AS203: 172 | AT203: 0.03721069564 | AU203: 1.223212149 | AV203: 0.601167526
... 922 more rows

Sheet DataSerch (hidden)
A1: 選択型式 | B1: メカ機種データレコード | M1: :$89 | N1: ：「メカ機種データ」範囲検索
A2: =CycleTime!C6 -> RCP3-SA2AC-20P-*S | B2: № | C2: =ModelData!$B$2 -> ｱｸﾁｭｴｰﾀ型式 | H2: =ModelData!$C$2 -> 最小ｽﾄﾛｰｸ | I2: =ModelData!$D$2 -> 最大ｽﾄﾛｰｸ | J2: =ModelData!$E$2 -> 動作種別 | N2: ：「モータ機種データ」範囲検索
B3: =MATCH(A2,ModelData!$B$4:$B$89,0) -> 1 | C3: =LOOKUP(B3,ModelData!$A$4:$A$89,ModelData!$B$4:$B$89) -> RCP3-SA2AC-20P-*S | H3: =LOOKUP(B3,ModelData!$A$4:$A$89,ModelData!$C$4:$C$89) -> 25 | I3: =LOOKUP(B3,ModelData!$A$4:$A$89,ModelData!$D$4:$D$89) -> 100 | J3: =LOOKUP(B3,ModelData!$A$4:$A$89,ModelData!$E$4:$E$89) -> 0 | M3: :$242 | N3: ：「リードデータ」範囲検索
A4: リード | E4: [kg] | F4: [mm] | G4: [mm] | H4: [mm] | I4: [mm] | J4: 0/1 | K4: [K] | M4: :$525 | N4: ：「ストロークデータ」範囲検索
A5: =CycleTime!C8 -> 1 | H5: =H3 -> 25 | I5: =I3 -> 100 | J5: =J3 -> 0 | M5: :$1315 | N5: ：「搬送負荷データ」範囲検索
M6: :$1414 | N6: ：「加減速・速度データ」範囲検索
A7: ストローク | B7: モータ機種レコード
A8: =CycleTime!C10 -> 25
A10: 設置姿勢 | D10: [Nm/A] | E10: [A] | F10: [kgm^2] | G10: [Nm] | H10: [Nm] | I10: [rad/s] | J10: [rad/s] | K10: [rad/s] | L10: [Nm/(rad/s)] | M10: [K] | N10: [K] | O10: [s]
A11: =IF(CycleTime!C12=CycleTime!AE20,0,1) -> 0
A13: 搬送負荷質量 | B13: リレーション | F13: リードデータレコード | I13: =LOOKUP(C15,LeadData!$A$4:$A$242,LeadData!$K$4:$K$242) -> RCP3-SA2AC-20P-*S
A14: =CycleTime!B31 -> 1 | C14: ﾘｰﾄﾞ№ | D14: ｽﾄﾛｰｸ№ | E14: 負荷№ | F14: =LeadData!$B$2 -> ﾘｰﾄﾞ長 | H14: =LeadData!$C$2 -> 水平定格加速度 | I14: =LeadData!$D$2 -> 垂直定格加速度 | J14: =LeadData!$E$2 -> 水平最大加速度 | K14: =LeadData!$F$2 -> 垂直最大加速度 | O14: =LeadData!$G$2 -> ｷﾞｱ比分子 | P14: =LeadData!$H$2 -> ｷﾞｱ比分母 | R14: =LeadData!$I$2 -> ｽﾄﾛｰｸ刻み | S14: =LeadData!$J$2 -> 位置決め幅 初期値
B15: =ModelData!$F$2 -> リンク[0] | C15: =LOOKUP(B3,ModelData!$A$4:$A$89,ModelData!$F$4:$F$89) -> 1 | D15: =LOOKUP(B3,ModelData!$A$4:$A$89,ModelData!$G$4:$G$89) -> 1 | E15: =LOOKUP(B3,ModelData!$A$4:$A$89,ModelData!$H$4:$H$89) -> 1 | F15: =LOOKUP(C15,LeadData!$A$4:$A$242,LeadData!$B$4:$B$242) -> 1000 | H15: =LOOKUP(C15,LeadData!$A$4:$A$242,LeadData!$C$4:$C$242) -> 1961330 | I15: =LOOKUP(C15,LeadData!$A$4:$A$242,LeadData!$D$4:$D$242) -> -1 | J15: =LOOKUP(C15,LeadData!$A$4:$A$242,LeadData!$E$4:$E$242) -> 1961330 | K15: =LOOKUP(C15,LeadData!$A$4:$A$242,LeadData!$F$4:$F$242) -> -1 | O15: =LOOKUP(C15,LeadData!$A$4:$A$242,LeadData!$G$4:$G$242) -> 1 | P15: =LOOKUP(C15,LeadData!$A$4:$A$242,LeadData!$H$4:$H$242) -> 1 | R15: =LOOKUP(C15,LeadData!$A$4:$A$242,LeadData!$I$4:$I$242) -> 25 | S15: =LOOKUP(C15,LeadData!$A$4:$A$242,LeadData!$J$4:$J$242) -> 0.1
B16: =ModelData!$I$2 -> リンク[1] | C16: =LOOKUP(B3,ModelData!$A$4:$A$89,ModelData!$I$4:$I$89) -> 2 | D16: =LOOKUP(B3,ModelData!$A$4:$A$89,ModelData!$J$4:$J$89) -> 2 | E16: =LOOKUP(B3,ModelData!$A$4:$A$89,ModelData!$K$4:$K$89) -> 2 | F16: =LOOKUP(C16,LeadData!$A$4:$A$242,LeadData!$B$4:$B$242) -> 2000 | H16: =LOOKUP(C16,LeadData!$A$4:$A$242,LeadData!$C$4:$C$242) -> 1961330 | I16: =LOOKUP(C16,LeadData!$A$4:$A$242,LeadData!$D$4:$D$242) -> -1 | J16: =LOOKUP(C16,LeadData!$A$4:$A$242,LeadData!$E$4:$E$242) -> 1961330 | K16: =LOOKUP(C16,LeadData!$A$4:$A$242,LeadData!$F$4:$F$242) -> -1 | O16: =LOOKUP(C16,LeadData!$A$4:$A$242,LeadData!$G$4:$G$242) -> 1 | P16: =LOOKUP(C16,LeadData!$A$4:$A$242,LeadData!$H$4:$H$242) -> 1 | R16: =LOOKUP(C16,LeadData!$A$4:$A$242,LeadData!$I$4:$I$242) -> 25 | S16: =LOOKUP(C16,LeadData!$A$4:$A$242,LeadData!$J$4:$J$242) -> 0.1
B17: =ModelData!$L$2 -> リンク[2] | C17: =LOOKUP(B3,ModelData!$A$4:$A$89,ModelData!$L$4:$L$89) -> 3 | D17: =LOOKUP(B3,ModelData!$A$4:$A$89,ModelData!$M$4:$M$89) -> 3 | E17: =LOOKUP(B3,ModelData!$A$4:$A$89,ModelData!$N$4:$N$89) -> 3 | F17: =LOOKUP(C17,LeadData!$A$4:$A$242,LeadData!$B$4:$B$242) -> 4000 | H17: =LOOKUP(C17,LeadData!$A$4:$A$242,LeadData!$C$4:$C$242) -> 1961330 | I17: =LOOKUP(C17,LeadData!$A$4:$A$242,LeadData!$D$4:$D$242) -> -1 | J17: =LOOKUP(C17,LeadData!$A$4:$A$242,LeadData!$E$4:$E$242) -> 1961330 | K17: =LOOKUP(C17,LeadData!$A$4:$A$242,LeadData!$F$4:$F$242) -> -1 | O17: =LOOKUP(C17,LeadData!$A$4:$A$242,LeadData!$G$4:$G$242) -> 1 | P17: =LOOKUP(C17,LeadData!$A$4:$A$242,LeadData!$H$4:$H$242) -> 1 | R17: =LOOKUP(C17,LeadData!$A$4:$A$242,LeadData!$I$4:$I$242) -> 25 | S17: =LOOKUP(C17,LeadData!$A$4:$A$242,LeadData!$J$4:$J$242) -> 0.1
B18: =ModelData!$O$2 -> リンク[3] | C18: =LOOKUP(B3,ModelData!$A$4:$A$89,ModelData!$O$4:$O$89) -> -1 | D18: =LOOKUP(B3,ModelData!$A$4:$A$89,ModelData!$P$4:$P$89) -> -1 | E18: =LOOKUP(B3,ModelData!$A$4:$A$89,ModelData!$Q$4:$Q$89) -> -1 | F18: =LOOKUP(C18,LeadData!$A$4:$A$242,LeadData!$B$4:$B$242) ->  | H18: =LOOKUP(C18,LeadData!$A$4:$A$242,LeadData!$C$4:$C$242) ->  | I18: =LOOKUP(C18,LeadData!$A$4:$A$242,LeadData!$D$4:$D$242) ->  | J18: =LOOKUP(C18,LeadData!$A$4:$A$242,LeadData!$E$4:$E$242) ->  | K18: =LOOKUP(C18,LeadData!$A$4:$A$242,LeadData!$F$4:$F$242) ->  | O18: =LOOKUP(C18,LeadData!$A$4:$A$242,LeadData!$G$4:$G$242) ->  | P18: =LOOKUP(C18,LeadData!$A$4:$A$242,LeadData!$H$4:$H$242) ->  | R18: =LOOKUP(C18,LeadData!$A$4:$A$242,LeadData!$I$4:$I$242) ->  | S18: =LOOKUP(C18,LeadData!$A$4:$A$242,LeadData!$J$4:$J$242) -> 
B19: =ModelData!$R$2 -> リンク[4] | C19: =LOOKUP(B3,ModelData!$A$4:$A$89,ModelData!$R$4:$R$89) -> -1 | D19: =LOOKUP(B3,ModelData!$A$4:$A$89,ModelData!$S$4:$S$89) -> -1 | E19: =LOOKUP(B3,ModelData!$A$4:$A$89,ModelData!$T$4:$T$89) -> -1 | F19: =LOOKUP(C19,LeadData!$A$4:$A$242,LeadData!$B$4:$B$242) ->  | H19: =LOOKUP(C19,LeadData!$A$4:$A$242,LeadData!$C$4:$C$242) ->  | I19: =LOOKUP(C19,LeadData!$A$4:$A$242,LeadData!$D$4:$D$242) ->  | J19: =LOOKUP(C19,LeadData!$A$4:$A$242,LeadData!$E$4:$E$242) ->  | K19: =LOOKUP(C19,LeadData!$A$4:$A$242,LeadData!$F$4:$F$242) ->  | O19: =LOOKUP(C19,LeadData!$A$4:$A$242,LeadData!$G$4:$G$242) ->  | P19: =LOOKUP(C19,LeadData!$A$4:$A$242,LeadData!$H$4:$H$242) ->  | R19: =LOOKUP(C19,LeadData!$A$4:$A$242,LeadData!$I$4:$I$242) ->  | S19: =LOOKUP(C19,LeadData!$A$4:$A$242,LeadData!$J$4:$J$242) -> 
B20: =ModelData!$U$2 -> リンク[5] | C20: =LOOKUP(B3,ModelData!$A$4:$A$89,ModelData!$U$4:$U$89) -> -1 | D20: =LOOKUP(B3,ModelData!$A$4:$A$89,ModelData!$V$4:$V$89) -> -1 | E20: =LOOKUP(B3,ModelData!$A$4:$A$89,ModelData!$W$4:$W$89) -> -1 | F20: =LOOKUP(C20,LeadData!$A$4:$A$242,LeadData!$B$4:$B$242) ->  | H20: =LOOKUP(C20,LeadData!$A$4:$A$242,LeadData!$C$4:$C$242) ->  | I20: =LOOKUP(C20,LeadData!$A$4:$A$242,LeadData!$D$4:$D$242) ->  | J20: =LOOKUP(C20,LeadData!$A$4:$A$242,LeadData!$E$4:$E$242) ->  | K20: =LOOKUP(C20,LeadData!$A$4:$A$242,LeadData!$F$4:$F$242) ->  | O20: =LOOKUP(C20,LeadData!$A$4:$A$242,LeadData!$G$4:$G$242) ->  | P20: =LOOKUP(C20,LeadData!$A$4:$A$242,LeadData!$H$4:$H$242) ->  | R20: =LOOKUP(C20,LeadData!$A$4:$A$242,LeadData!$I$4:$I$242) ->  | S20: =LOOKUP(C20,LeadData!$A$4:$A$242,LeadData!$J$4:$J$242) -> 
B21: =ModelData!$X$2 -> リンク[6] | C21: =LOOKUP(B3,ModelData!$A$4:$A$89,ModelData!$X$4:$X$89) -> -1 | D21: =LOOKUP(B3,ModelData!$A$4:$A$89,ModelData!$Y$4:$Y$89) -> -1 | E21: =LOOKUP(B3,ModelData!$A$4:$A$89,ModelData!$Z$4:$Z$89) -> -1 | F21: =LOOKUP(C21,LeadData!$A$4:$A$242,LeadData!$B$4:$B$242) ->  | H21: =LOOKUP(C21,LeadData!$A$4:$A$242,LeadData!$C$4:$C$242) ->  | I21: =LOOKUP(C21,LeadData!$A$4:$A$242,LeadData!$D$4:$D$242) ->  | J21: =LOOKUP(C21,LeadData!$A$4:$A$242,LeadData!$E$4:$E$242) ->  | K21: =LOOKUP(C21,LeadData!$A$4:$A$242,LeadData!$F$4:$F$242) ->  | O21: =LOOKUP(C21,LeadData!$A$4:$A$242,LeadData!$G$4:$G$242) ->  | P21: =LOOKUP(C21,LeadData!$A$4:$A$242,LeadData!$H$4:$H$242) ->  | R21: =LOOKUP(C21,LeadData!$A$4:$A$242,LeadData!$I$4:$I$242) ->  | S21: =LOOKUP(C21,LeadData!$A$4:$A$242,LeadData!$J$4:$J$242) -> 
B22: =ModelData!$AA$2 -> リンク[7] | C22: =LOOKUP(B3,ModelData!$A$4:$A$89,ModelData!$AA$4:$AA$89) -> -1 | D22: =LOOKUP(B3,ModelData!$A$4:$A$89,ModelData!$AB$4:$AB$89) -> -1 | E22: =LOOKUP(B3,ModelData!$A$4:$A$89,ModelData!$AC$4:$AC$89) -> -1 | F22: =LOOKUP(C22,LeadData!$A$4:$A$242,LeadData!$B$4:$B$242) ->  | H22: =LOOKUP(C22,LeadData!$A$4:$A$242,LeadData!$C$4:$C$242) ->  | I22: =LOOKUP(C22,LeadData!$A$4:$A$242,LeadData!$D$4:$D$242) ->  | J22: =LOOKUP(C22,LeadData!$A$4:$A$242,LeadData!$E$4:$E$242) ->  | K22: =LOOKUP(C22,LeadData!$A$4:$A$242,LeadData!$F$4:$F$242) ->  | O22: =LOOKUP(C22,LeadData!$A$4:$A$242,LeadData!$G$4:$G$242) ->  | P22: =LOOKUP(C22,LeadData!$A$4:$A$242,LeadData!$H$4:$H$242) ->  | R22: =LOOKUP(C22,LeadData!$A$4:$A$242,LeadData!$I$4:$I$242) ->  | S22: =LOOKUP(C22,LeadData!$A$4:$A$242,LeadData!$J$4:$J$242) -> 
B23: リードリストとリレーション | F23: リードデータレコードの物理量変換
B24: ﾘｰﾄﾞﾘｽﾄ | D24: リンク | F24: =LeadData!$B$2 -> ﾘｰﾄﾞ長 | H24: =LeadData!$C$2 -> 水平定格加速度 | I24: =LeadData!$D$2 -> 垂直定格加速度 | J24: =LeadData!$E$2 -> 水平最大加速度 | K24: =LeadData!$F$2 -> 垂直最大加速度 | O24: =LeadData!$G$2 -> ｷﾞｱ比分子 | P24: =LeadData!$H$2 -> ｷﾞｱ比分母 | R24: =LeadData!$I$2 -> ｽﾄﾛｰｸ刻み | S24: =LeadData!$J$2 -> 位置決め幅 初期値
B25: № | C25: ﾃﾞｰﾀ | D25: =D14 -> ｽﾄﾛｰｸ№ | E25: =E14 -> 負荷№ | F25: [mm] | G25: [kgm^2] | H25: [m/s^2] | I25: [m/s^2] | J25: [m/s^2] | K25: [m/s^2] | L25: [Nm] | M25: [Nms] | N25: [Nm] | R25: [mm] | S25: [mm]
B26: 1 | C26: =IF(C15=-1,"- - -",IF(F26<=0,P26/O26,F26)) -> 1 | D26: =D15 -> 1 | E26: 1 | F26: =F15/1000 -> 1 | H26: =H15*0.000001 -> 1.96133 | I26: -1e-06 | J26: 1.96133 | K26: -1e-06 | O26: =O15 -> 1 | P26: =P15 -> 1 | R26: =R15 -> 25 | S26: 0.1
B27: =B26+1 -> 2 | C27: 2 | D27: 2 | E27: 2 | F27: 2 | H27: 1.96133 | I27: -1e-06 | J27: 1.96133 | K27: -1e-06 | O27: =O16 -> 1 | P27: 1 | R27: 25 | S27: 0.1
B28: =B27+1 -> 3 | C28: 4 | D28: 3 | E28: 3 | F28: 4 | H28: 1.96133 | I28: -1e-06 | J28: 1.96133 | K28: -1e-06 | O28: 1 | P28: 1 | R28: 25 | S28: 0.1
B29: 4 | C29: - - - | D29: -1 | E29: -1 | R29: =R18 -> 
B30: 5 | C30: - - - | D30: -1 | E30: -1
B31: 6 | C31: - - - | D31: -1 | E31: -1
B32: 7 | C32: - - - | D32: -1 | E32: -1
B33: 8 | C33: - - - | D33: -1 | E33: -1
B35: リードリスト選択№ | D35: =MATCH(A5,C26:C33,0) -> 1 | E35: ストロークデータレコード | H35: =LOOKUP(C37,StrokeData!$A$4:$A$525,StrokeData!$L$4:$L$525) -> RCP3-SA2AC-20P-1S
B36: № | C36: stﾚｺｰﾄﾞ№ | D36: =StrokeData!$B$2 -> ｽﾄﾛｰｸ長 | E36: =StrokeData!$C$2 -> 有効ｽﾄﾛｰｸ補正 | H36: =StrokeData!$D$2 -> 水平可搬質量 | I36: =StrokeData!$E$2 -> 垂直可搬質量 | J36: =StrokeData!$F$2 -> 最大速度 | K36: =StrokeData!$G$2 -> 位置ｹﾞｲﾝ | L36: =StrokeData!$H$2 -> FFｹﾞｲﾝ | M36: =StrokeData!$I$2 -> 速度制御帯域 | S36: =StrokeData!$J$2 -> 前ﾃﾞｰﾀ№ | T36: =StrokeData!$K$2 -> 次ﾃﾞｰﾀ№
B37: 1 | C37: =LOOKUP(D35,B26:B33,D26:D33) -> 1 | D37: =LOOKUP(C37,StrokeData!$A$4:$A$525,StrokeData!$B$4:$B$525) -> 100 | E37: =LOOKUP(C37,StrokeData!$A$4:$A$525,StrokeData!$C$4:$C$525) -> 0 | H37: =LOOKUP(C37,StrokeData!$A$4:$A$525,StrokeData!$D$4:$D$525) -> 1000 | I37: =LOOKUP(C37,StrokeData!$A$4:$A$525,StrokeData!$E$4:$E$525) -> -1 | J37: =LOOKUP(C37,StrokeData!$A$4:$A$525,StrokeData!$F$4:$F$525) -> 50 | K37: =LOOKUP(C37,StrokeData!$A$4:$A$525,StrokeData!$G$4:$G$525) -> 60 | L37: =LOOKUP(C37,StrokeData!$A$4:$A$525,StrokeData!$H$4:$H$525) -> 0 | M37: =LOOKUP(C37,StrokeData!$A$4:$A$525,StrokeData!$I$4:$I$525) -> 800 | S37: =LOOKUP(C37,StrokeData!$A$4:$A$525,StrokeData!$J$4:$J$525) -> -1 | T37: =LOOKUP(C37,StrokeData!$A$4:$A$525,StrokeData!$K$4:$K$525) -> -1
B38: =B37+1 -> 2 | C38: =IF(C37=-1,-1,LOOKUP(C37,StrokeData!$A$4:$A$525,StrokeData!$K$4:$K$525)) -> -1 | D38: =LOOKUP(C38,StrokeData!$A$4:$A$525,StrokeData!$B$4:$B$525) ->  | E38: =LOOKUP(C38,StrokeData!$A$4:$A$525,StrokeData!$C$4:$C$525) ->  | H38: =LOOKUP(C38,StrokeData!$A$4:$A$525,StrokeData!$D$4:$D$525) ->  | I38: =LOOKUP(C38,StrokeData!$A$4:$A$525,StrokeData!$E$4:$E$525) ->  | J38: =LOOKUP(C38,StrokeData!$A$4:$A$525,StrokeData!$F$4:$F$525) ->  | K38: =LOOKUP(C38,StrokeData!$A$4:$A$525,StrokeData!$G$4:$G$525) ->  | L38: =LOOKUP(C38,StrokeData!$A$4:$A$525,StrokeData!$H$4:$H$525) ->  | M38: =LOOKUP(C38,StrokeData!$A$4:$A$525,StrokeData!$I$4:$I$525) ->  | S38: =LOOKUP(C38,StrokeData!$A$4:$A$525,StrokeData!$J$4:$J$525) ->  | T38: =LOOKUP(C38,StrokeData!$A$4:$A$525,StrokeData!$K$4:$K$525) -> 
B39: =B38+1 -> 3 | C39: =IF(C38=-1,-1,LOOKUP(C38,StrokeData!$A$4:$A$525,StrokeData!$K$4:$K$525)) -> -1 | D39: =LOOKUP(C39,StrokeData!$A$4:$A$525,StrokeData!$B$4:$B$525) ->  | E39: =LOOKUP(C39,StrokeData!$A$4:$A$525,StrokeData!$C$4:$C$525) ->  | H39: =LOOKUP(C39,StrokeData!$A$4:$A$525,StrokeData!$D$4:$D$525) ->  | I39: =LOOKUP(C39,StrokeData!$A$4:$A$525,StrokeData!$E$4:$E$525) ->  | J39: =LOOKUP(C39,StrokeData!$A$4:$A$525,StrokeData!$F$4:$F$525) ->  | K39: =LOOKUP(C39,StrokeData!$A$4:$A$525,StrokeData!$G$4:$G$525) ->  | L39: =LOOKUP(C39,StrokeData!$A$4:$A$525,StrokeData!$H$4:$H$525) ->  | M39: =LOOKUP(C39,StrokeData!$A$4:$A$525,StrokeData!$I$4:$I$525) ->  | S39: =LOOKUP(C39,StrokeData!$A$4:$A$525,StrokeData!$J$4:$J$525) ->  | T39: =LOOKUP(C39,StrokeData!$A$4:$A$525,StrokeData!$K$4:$K$525) -> 
B40: 4 | C40: =IF(C39=-1,-1,LOOKUP(C39,StrokeData!$A$4:$A$525,StrokeData!$K$4:$K$525)) -> -1 | D40: =LOOKUP(C40,StrokeData!$A$4:$A$525,StrokeData!$B$4:$B$525) ->  | E40: =LOOKUP(C40,StrokeData!$A$4:$A$525,StrokeData!$C$4:$C$525) ->  | H40: =LOOKUP(C40,StrokeData!$A$4:$A$525,StrokeData!$D$4:$D$525) ->  | I40: =LOOKUP(C40,StrokeData!$A$4:$A$525,StrokeData!$E$4:$E$525) ->  | J40: =LOOKUP(C40,StrokeData!$A$4:$A$525,StrokeData!$F$4:$F$525) ->  | K40: =LOOKUP(C40,StrokeData!$A$4:$A$525,StrokeData!$G$4:$G$525) ->  | L40: =LOOKUP(C40,StrokeData!$A$4:$A$525,StrokeData!$H$4:$H$525) ->  | M40: =LOOKUP(C40,StrokeData!$A$4:$A$525,StrokeData!$I$4:$I$525) ->  | S40: =LOOKUP(C40,StrokeData!$A$4:$A$525,StrokeData!$J$4:$J$525) ->  | T40: =LOOKUP(C40,StrokeData!$A$4:$A$525,StrokeData!$K$4:$K$525) -> 
B41: 5 | C41: =IF(C40=-1,-1,LOOKUP(C40,StrokeData!$A$4:$A$525,StrokeData!$K$4:$K$525)) -> -1 | D41: =LOOKUP(C41,StrokeData!$A$4:$A$525,StrokeData!$B$4:$B$525) ->  | E41: =LOOKUP(C41,StrokeData!$A$4:$A$525,StrokeData!$C$4:$C$525) ->  | H41: =LOOKUP(C41,StrokeData!$A$4:$A$525,StrokeData!$D$4:$D$525) ->  | I41: =LOOKUP(C41,StrokeData!$A$4:$A$525,StrokeData!$E$4:$E$525) ->  | J41: =LOOKUP(C41,StrokeData!$A$4:$A$525,StrokeData!$F$4:$F$525) ->  | K41: =LOOKUP(C41,StrokeData!$A$4:$A$525,StrokeData!$G$4:$G$525) ->  | L41: =LOOKUP(C41,StrokeData!$A$4:$A$525,StrokeData!$H$4:$H$525) ->  | M41: =LOOKUP(C41,StrokeData!$A$4:$A$525,StrokeData!$I$4:$I$525) ->  | S41: =LOOKUP(C41,StrokeData!$A$4:$A$525,StrokeData!$J$4:$J$525) ->  | T41: =LOOKUP(C41,StrokeData!$A$4:$A$525,StrokeData!$K$4:$K$525) -> 
B42: 6 | C42: =IF(C41=-1,-1,LOOKUP(C41,StrokeData!$A$4:$A$525,StrokeData!$K$4:$K$525)) -> -1 | D42: =LOOKUP(C42,StrokeData!$A$4:$A$525,StrokeData!$B$4:$B$525) ->  | E42: =LOOKUP(C42,StrokeData!$A$4:$A$525,StrokeData!$C$4:$C$525) ->  | H42: =LOOKUP(C42,StrokeData!$A$4:$A$525,StrokeData!$D$4:$D$525) ->  | I42: =LOOKUP(C42,StrokeData!$A$4:$A$525,StrokeData!$E$4:$E$525) ->  | J42: =LOOKUP(C42,StrokeData!$A$4:$A$525,StrokeData!$F$4:$F$525) ->  | K42: =LOOKUP(C42,StrokeData!$A$4:$A$525,StrokeData!$G$4:$G$525) ->  | L42: =LOOKUP(C42,StrokeData!$A$4:$A$525,StrokeData!$H$4:$H$525) ->  | M42: =LOOKUP(C42,StrokeData!$A$4:$A$525,StrokeData!$I$4:$I$525) ->  | S42: =LOOKUP(C42,StrokeData!$A$4:$A$525,StrokeData!$J$4:$J$525) ->  | T42: =LOOKUP(C42,StrokeData!$A$4:$A$525,StrokeData!$K$4:$K$525) -> 
B43: 7 | C43: =IF(C42=-1,-1,LOOKUP(C42,StrokeData!$A$4:$A$525,StrokeData!$K$4:$K$525)) -> -1 | D43: =LOOKUP(C43,StrokeData!$A$4:$A$525,StrokeData!$B$4:$B$525) ->  | E43: =LOOKUP(C43,StrokeData!$A$4:$A$525,StrokeData!$C$4:$C$525) ->  | H43: =LOOKUP(C43,StrokeData!$A$4:$A$525,StrokeData!$D$4:$D$525) ->  | I43: =LOOKUP(C43,StrokeData!$A$4:$A$525,StrokeData!$E$4:$E$525) ->  | J43: =LOOKUP(C43,StrokeData!$A$4:$A$525,StrokeData!$F$4:$F$525) ->  | K43: =LOOKUP(C43,StrokeData!$A$4:$A$525,StrokeData!$G$4:$G$525) ->  | L43: =LOOKUP(C43,StrokeData!$A$4:$A$525,StrokeData!$H$4:$H$525) ->  | M43: =LOOKUP(C43,StrokeData!$A$4:$A$525,StrokeData!$I$4:$I$525) ->  | S43: =LOOKUP(C43,StrokeData!$A$4:$A$525,StrokeData!$J$4:$J$525) ->  | T43: =LOOKUP(C43,StrokeData!$A$4:$A$525,StrokeData!$K$4:$K$525) -> 
B44: 8 | C44: =IF(C43=-1,-1,LOOKUP(C43,StrokeData!$A$4:$A$525,StrokeData!$K$4:$K$525)) -> -1 | D44: =LOOKUP(C44,StrokeData!$A$4:$A$525,StrokeData!$B$4:$B$525) ->  | E44: =LOOKUP(C44,StrokeData!$A$4:$A$525,StrokeData!$C$4:$C$525) ->  | H44: =LOOKUP(C44,StrokeData!$A$4:$A$525,StrokeData!$D$4:$D$525) ->  | I44: =LOOKUP(C44,StrokeData!$A$4:$A$525,StrokeData!$E$4:$E$525) ->  | J44: =LOOKUP(C44,StrokeData!$A$4:$A$525,StrokeData!$F$4:$F$525) ->  | K44: =LOOKUP(C44,StrokeData!$A$4:$A$525,StrokeData!$G$4:$G$525) ->  | L44: =LOOKUP(C44,StrokeData!$A$4:$A$525,StrokeData!$H$4:$H$525) ->  | M44: =LOOKUP(C44,StrokeData!$A$4:$A$525,StrokeData!$I$4:$I$525) ->  | S44: =LOOKUP(C44,StrokeData!$A$4:$A$525,StrokeData!$J$4:$J$525) ->  | T44: =LOOKUP(C44,StrokeData!$A$4:$A$525,StrokeData!$K$4:$K$525) -> 
B45: 9 | C45: =IF(C44=-1,-1,LOOKUP(C44,StrokeData!$A$4:$A$525,StrokeData!$K$4:$K$525)) -> -1 | D45: =LOOKUP(C45,StrokeData!$A$4:$A$525,StrokeData!$B$4:$B$525) ->  | E45: =LOOKUP(C45,StrokeData!$A$4:$A$525,StrokeData!$C$4:$C$525) ->  | H45: =LOOKUP(C45,StrokeData!$A$4:$A$525,StrokeData!$D$4:$D$525) ->  | I45: =LOOKUP(C45,StrokeData!$A$4:$A$525,StrokeData!$E$4:$E$525) ->  | J45: =LOOKUP(C45,StrokeData!$A$4:$A$525,StrokeData!$F$4:$F$525) ->  | K45: =LOOKUP(C45,StrokeData!$A$4:$A$525,StrokeData!$G$4:$G$525) ->  | L45: =LOOKUP(C45,StrokeData!$A$4:$A$525,StrokeData!$H$4:$H$525) ->  | M45: =LOOKUP(C45,StrokeData!$A$4:$A$525,StrokeData!$I$4:$I$525) ->  | S45: =LOOKUP(C45,StrokeData!$A$4:$A$525,StrokeData!$J$4:$J$525) ->  | T45: =LOOKUP(C45,StrokeData!$A$4:$A$525,StrokeData!$K$4:$K$525) -> 
B46: 10 | C46: =IF(C45=-1,-1,LOOKUP(C45,StrokeData!$A$4:$A$525,StrokeData!$K$4:$K$525)) -> -1 | D46: =LOOKUP(C46,StrokeData!$A$4:$A$525,StrokeData!$B$4:$B$525) ->  | E46: =LOOKUP(C46,StrokeData!$A$4:$A$525,StrokeData!$C$4:$C$525) ->  | H46: =LOOKUP(C46,StrokeData!$A$4:$A$525,StrokeData!$D$4:$D$525) ->  | I46: =LOOKUP(C46,StrokeData!$A$4:$A$525,StrokeData!$E$4:$E$525) ->  | J46: =LOOKUP(C46,StrokeData!$A$4:$A$525,StrokeData!$F$4:$F$525) ->  | K46: =LOOKUP(C46,StrokeData!$A$4:$A$525,StrokeData!$G$4:$G$525) ->  | L46: =LOOKUP(C46,StrokeData!$A$4:$A$525,StrokeData!$H$4:$H$525) ->  | M46: =LOOKUP(C46,StrokeData!$A$4:$A$525,StrokeData!$I$4:$I$525) ->  | S46: =LOOKUP(C46,StrokeData!$A$4:$A$525,StrokeData!$J$4:$J$525) ->  | T46: =LOOKUP(C46,StrokeData!$A$4:$A$525,StrokeData!$K$4:$K$525) -> 
B47: 11 | C47: =IF(C46=-1,-1,LOOKUP(C46,StrokeData!$A$4:$A$525,StrokeData!$K$4:$K$525)) -> -1 | D47: =LOOKUP(C47,StrokeData!$A$4:$A$525,StrokeData!$B$4:$B$525) ->  | E47: =LOOKUP(C47,StrokeData!$A$4:$A$525,StrokeData!$C$4:$C$525) ->  | H47: =LOOKUP(C47,StrokeData!$A$4:$A$525,StrokeData!$D$4:$D$525) ->  | I47: =LOOKUP(C47,StrokeData!$A$4:$A$525,StrokeData!$E$4:$E$525) ->  | J47: =LOOKUP(C47,StrokeData!$A$4:$A$525,StrokeData!$F$4:$F$525) ->  | K47: =LOOKUP(C47,StrokeData!$A$4:$A$525,StrokeData!$G$4:$G$525) ->  | L47: =LOOKUP(C47,StrokeData!$A$4:$A$525,StrokeData!$H$4:$H$525) ->  | M47: =LOOKUP(C47,StrokeData!$A$4:$A$525,StrokeData!$I$4:$I$525) ->  | S47: =LOOKUP(C47,StrokeData!$A$4:$A$525,StrokeData!$J$4:$J$525) ->  | T47: =LOOKUP(C47,StrokeData!$A$4:$A$525,StrokeData!$K$4:$K$525) -> 
B48: 12 | C48: =IF(C47=-1,-1,LOOKUP(C47,StrokeData!$A$4:$A$525,StrokeData!$K$4:$K$525)) -> -1 | D48: =LOOKUP(C48,StrokeData!$A$4:$A$525,StrokeData!$B$4:$B$525) ->  | E48: =LOOKUP(C48,StrokeData!$A$4:$A$525,StrokeData!$C$4:$C$525) ->  | H48: =LOOKUP(C48,StrokeData!$A$4:$A$525,StrokeData!$D$4:$D$525) ->  | I48: =LOOKUP(C48,StrokeData!$A$4:$A$525,StrokeData!$E$4:$E$525) ->  | J48: =LOOKUP(C48,StrokeData!$A$4:$A$525,StrokeData!$F$4:$F$525) ->  | K48: =LOOKUP(C48,StrokeData!$A$4:$A$525,StrokeData!$G$4:$G$525) ->  | L48: =LOOKUP(C48,StrokeData!$A$4:$A$525,StrokeData!$H$4:$H$525) ->  | M48: =LOOKUP(C48,StrokeData!$A$4:$A$525,StrokeData!$I$4:$I$525) ->  | S48: =LOOKUP(C48,StrokeData!$A$4:$A$525,StrokeData!$J$4:$J$525) ->  | T48: =LOOKUP(C48,StrokeData!$A$4:$A$525,StrokeData!$K$4:$K$525) -> 
B49: 13 | C49: =IF(C48=-1,-1,LOOKUP(C48,StrokeData!$A$4:$A$525,StrokeData!$K$4:$K$525)) -> -1 | D49: =LOOKUP(C49,StrokeData!$A$4:$A$525,StrokeData!$B$4:$B$525) ->  | E49: =LOOKUP(C49,StrokeData!$A$4:$A$525,StrokeData!$C$4:$C$525) ->  | H49: =LOOKUP(C49,StrokeData!$A$4:$A$525,StrokeData!$D$4:$D$525) ->  | I49: =LOOKUP(C49,StrokeData!$A$4:$A$525,StrokeData!$E$4:$E$525) ->  | J49: =LOOKUP(C49,StrokeData!$A$4:$A$525,StrokeData!$F$4:$F$525) ->  | K49: =LOOKUP(C49,StrokeData!$A$4:$A$525,StrokeData!$G$4:$G$525) ->  | L49: =LOOKUP(C49,StrokeData!$A$4:$A$525,StrokeData!$H$4:$H$525) ->  | M49: =LOOKUP(C49,StrokeData!$A$4:$A$525,StrokeData!$I$4:$I$525) ->  | S49: =LOOKUP(C49,StrokeData!$A$4:$A$525,StrokeData!$J$4:$J$525) ->  | T49: =LOOKUP(C49,StrokeData!$A$4:$A$525,StrokeData!$K$4:$K$525) -> 
B50: 14 | C50: =IF(C49=-1,-1,LOOKUP(C49,StrokeData!$A$4:$A$525,StrokeData!$K$4:$K$525)) -> -1 | D50: =LOOKUP(C50,StrokeData!$A$4:$A$525,StrokeData!$B$4:$B$525) ->  | E50: =LOOKUP(C50,StrokeData!$A$4:$A$525,StrokeData!$C$4:$C$525) ->  | H50: =LOOKUP(C50,StrokeData!$A$4:$A$525,StrokeData!$D$4:$D$525) ->  | I50: =LOOKUP(C50,StrokeData!$A$4:$A$525,StrokeData!$E$4:$E$525) ->  | J50: =LOOKUP(C50,StrokeData!$A$4:$A$525,StrokeData!$F$4:$F$525) ->  | K50: =LOOKUP(C50,StrokeData!$A$4:$A$525,StrokeData!$G$4:$G$525) ->  | L50: =LOOKUP(C50,StrokeData!$A$4:$A$525,StrokeData!$H$4:$H$525) ->  | M50: =LOOKUP(C50,StrokeData!$A$4:$A$525,StrokeData!$I$4:$I$525) ->  | S50: =LOOKUP(C50,StrokeData!$A$4:$A$525,StrokeData!$J$4:$J$525) ->  | T50: =LOOKUP(C50,StrokeData!$A$4:$A$525,StrokeData!$K$4:$K$525) -> 
B51: 15 | C51: =IF(C50=-1,-1,LOOKUP(C50,StrokeData!$A$4:$A$525,StrokeData!$K$4:$K$525)) -> -1 | D51: =LOOKUP(C51,StrokeData!$A$4:$A$525,StrokeData!$B$4:$B$525) ->  | E51: =LOOKUP(C51,StrokeData!$A$4:$A$525,StrokeData!$C$4:$C$525) ->  | H51: =LOOKUP(C51,StrokeData!$A$4:$A$525,StrokeData!$D$4:$D$525) ->  | I51: =LOOKUP(C51,StrokeData!$A$4:$A$525,StrokeData!$E$4:$E$525) ->  | J51: =LOOKUP(C51,StrokeData!$A$4:$A$525,StrokeData!$F$4:$F$525) ->  | K51: =LOOKUP(C51,StrokeData!$A$4:$A$525,StrokeData!$G$4:$G$525) ->  | L51: =LOOKUP(C51,StrokeData!$A$4:$A$525,StrokeData!$H$4:$H$525) ->  | M51: =LOOKUP(C51,StrokeData!$A$4:$A$525,StrokeData!$I$4:$I$525) ->  | S51: =LOOKUP(C51,StrokeData!$A$4:$A$525,StrokeData!$J$4:$J$525) ->  | T51: =LOOKUP(C51,StrokeData!$A$4:$A$525,StrokeData!$K$4:$K$525) -> 
B52: 16 | C52: =IF(C51=-1,-1,LOOKUP(C51,StrokeData!$A$4:$A$525,StrokeData!$K$4:$K$525)) -> -1 | D52: =LOOKUP(C52,StrokeData!$A$4:$A$525,StrokeData!$B$4:$B$525) ->  | E52: =LOOKUP(C52,StrokeData!$A$4:$A$525,StrokeData!$C$4:$C$525) ->  | H52: =LOOKUP(C52,StrokeData!$A$4:$A$525,StrokeData!$D$4:$D$525) ->  | I52: =LOOKUP(C52,StrokeData!$A$4:$A$525,StrokeData!$E$4:$E$525) ->  | J52: =LOOKUP(C52,StrokeData!$A$4:$A$525,StrokeData!$F$4:$F$525) ->  | K52: =LOOKUP(C52,StrokeData!$A$4:$A$525,StrokeData!$G$4:$G$525) ->  | L52: =LOOKUP(C52,StrokeData!$A$4:$A$525,StrokeData!$H$4:$H$525) ->  | M52: =LOOKUP(C52,StrokeData!$A$4:$A$525,StrokeData!$I$4:$I$525) ->  | S52: =LOOKUP(C52,StrokeData!$A$4:$A$525,StrokeData!$J$4:$J$525) ->  | T52: =LOOKUP(C52,StrokeData!$A$4:$A$525,StrokeData!$K$4:$K$525) -> 
B53: 17 | C53: =IF(C52=-1,-1,LOOKUP(C52,StrokeData!$A$4:$A$525,StrokeData!$K$4:$K$525)) -> -1 | D53: =LOOKUP(C53,StrokeData!$A$4:$A$525,StrokeData!$B$4:$B$525) ->  | E53: =LOOKUP(C53,StrokeData!$A$4:$A$525,StrokeData!$C$4:$C$525) ->  | H53: =LOOKUP(C53,StrokeData!$A$4:$A$525,StrokeData!$D$4:$D$525) ->  | I53: =LOOKUP(C53,StrokeData!$A$4:$A$525,StrokeData!$E$4:$E$525) ->  | J53: =LOOKUP(C53,StrokeData!$A$4:$A$525,StrokeData!$F$4:$F$525) ->  | K53: =LOOKUP(C53,StrokeData!$A$4:$A$525,StrokeData!$G$4:$G$525) ->  | L53: =LOOKUP(C53,StrokeData!$A$4:$A$525,StrokeData!$H$4:$H$525) ->  | M53: =LOOKUP(C53,StrokeData!$A$4:$A$525,StrokeData!$I$4:$I$525) ->  | S53: =LOOKUP(C53,StrokeData!$A$4:$A$525,StrokeData!$J$4:$J$525) ->  | T53: =LOOKUP(C53,StrokeData!$A$4:$A$525,StrokeData!$K$4:$K$525) -> 
B54: 18 | C54: =IF(C53=-1,-1,LOOKUP(C53,StrokeData!$A$4:$A$525,StrokeData!$K$4:$K$525)) -> -1 | D54: =LOOKUP(C54,StrokeData!$A$4:$A$525,StrokeData!$B$4:$B$525) ->  | E54: =LOOKUP(C54,StrokeData!$A$4:$A$525,StrokeData!$C$4:$C$525) ->  | H54: =LOOKUP(C54,StrokeData!$A$4:$A$525,StrokeData!$D$4:$D$525) ->  | I54: =LOOKUP(C54,StrokeData!$A$4:$A$525,StrokeData!$E$4:$E$525) ->  | J54: =LOOKUP(C54,StrokeData!$A$4:$A$525,StrokeData!$F$4:$F$525) ->  | K54: =LOOKUP(C54,StrokeData!$A$4:$A$525,StrokeData!$G$4:$G$525) ->  | L54: =LOOKUP(C54,StrokeData!$A$4:$A$525,StrokeData!$H$4:$H$525) ->  | M54: =LOOKUP(C54,StrokeData!$A$4:$A$525,StrokeData!$I$4:$I$525) ->  | S54: =LOOKUP(C54,StrokeData!$A$4:$A$525,StrokeData!$J$4:$J$525) ->  | T54: =LOOKUP(C54,StrokeData!$A$4:$A$525,StrokeData!$K$4:$K$525) -> 
B55: 19 | C55: =IF(C54=-1,-1,LOOKUP(C54,StrokeData!$A$4:$A$525,StrokeData!$K$4:$K$525)) -> -1 | D55: =LOOKUP(C55,StrokeData!$A$4:$A$525,StrokeData!$B$4:$B$525) ->  | E55: =LOOKUP(C55,StrokeData!$A$4:$A$525,StrokeData!$C$4:$C$525) ->  | H55: =LOOKUP(C55,StrokeData!$A$4:$A$525,StrokeData!$D$4:$D$525) ->  | I55: =LOOKUP(C55,StrokeData!$A$4:$A$525,StrokeData!$E$4:$E$525) ->  | J55: =LOOKUP(C55,StrokeData!$A$4:$A$525,StrokeData!$F$4:$F$525) ->  | K55: =LOOKUP(C55,StrokeData!$A$4:$A$525,StrokeData!$G$4:$G$525) ->  | L55: =LOOKUP(C55,StrokeData!$A$4:$A$525,StrokeData!$H$4:$H$525) ->  | M55: =LOOKUP(C55,StrokeData!$A$4:$A$525,StrokeData!$I$4:$I$525) ->  | S55: =LOOKUP(C55,StrokeData!$A$4:$A$525,StrokeData!$J$4:$J$525) ->  | T55: =LOOKUP(C55,StrokeData!$A$4:$A$525,StrokeData!$K$4:$K$525) -> 
B56: 20 | C56: =IF(C55=-1,-1,LOOKUP(C55,StrokeData!$A$4:$A$525,StrokeData!$K$4:$K$525)) -> -1 | D56: =LOOKUP(C56,StrokeData!$A$4:$A$525,StrokeData!$B$4:$B$525) ->  | E56: =LOOKUP(C56,StrokeData!$A$4:$A$525,StrokeData!$C$4:$C$525) ->  | H56: =LOOKUP(C56,StrokeData!$A$4:$A$525,StrokeData!$D$4:$D$525) ->  | I56: =LOOKUP(C56,StrokeData!$A$4:$A$525,StrokeData!$E$4:$E$525) ->  | J56: =LOOKUP(C56,StrokeData!$A$4:$A$525,StrokeData!$F$4:$F$525) ->  | K56: =LOOKUP(C56,StrokeData!$A$4:$A$525,StrokeData!$G$4:$G$525) ->  | L56: =LOOKUP(C56,StrokeData!$A$4:$A$525,StrokeData!$H$4:$H$525) ->  | M56: =LOOKUP(C56,StrokeData!$A$4:$A$525,StrokeData!$I$4:$I$525) ->  | S56: =LOOKUP(C56,StrokeData!$A$4:$A$525,StrokeData!$J$4:$J$525) ->  | T56: =LOOKUP(C56,StrokeData!$A$4:$A$525,StrokeData!$K$4:$K$525) -> 
D57: ストローク | E57: =H5 -> 25 | F57: mm | G57: ～ | H57: =I5 -> 100 | I57: mm | K57: 刻み | L57: =LOOKUP(D35,B26:B33,R26:R33) -> 25 | M57: mm | O57: 慣性係数 | P57: =IF($J$5=1,0.000001,0.001) -> 0.001 | Q57: 有効桁数 | R57: =IF($J$5=1,6,3) -> 3
B58: stﾘｽﾄ検索用(降順) | D58: № | E58: =StrokeData!$B$2 -> ｽﾄﾛｰｸ長 | F58: stﾘｽﾄ№ | G58: =StrokeData!$C$2 -> 有効ｽﾄﾛｰｸ補正 | J58: =StrokeData!$D$2 -> 水平可搬質量 | K58: =StrokeData!$E$2 -> 垂直可搬質量 | L58: =StrokeData!$F$2 -> 最大速度 | M58: =StrokeData!$G$2 -> 位置ｹﾞｲﾝ | N58: =StrokeData!$H$2 -> FFｹﾞｲﾝ | O58: =StrokeData!$I$2 -> 速度制御帯域
B59: =B36 -> № | C59: =D36 -> ｽﾄﾛｰｸ長 | D59: 0 | E59: =H4 -> [mm] | G59: [mm] | H59: [kg/mm] | I59: =IF(J5=1,"[kgm^2]","[kg]") -> [kg] | J59: =IF(J5=1,"[kgm^2]","[kg]") -> [kg] | K59: =IF(J5=1,"[kgm^2]","[kg]") -> [kg] | L59: [mm/s] | M59: [1/s] | N59: [%] | O59: [rad/s] | Q59: [s] | T59: [Nm/rad]
B60: =B56 -> 20 | C60: =D56 ->  | D60: 1 | E60: =IF( (E57+L57*D59)<=H57,(E57+L57*D59),"- - -") -> 25 | F60: =(B60+1)-MATCH(E60,C60:C79,-1) -> 1 | G60: =LOOKUP(F60,B37:B56,E37:E56) -> 0 | J60: =LOOKUP(F60,B37:B56,H37:H56)*$P$57 -> 1 | K60: =LOOKUP(F60,B37:B56,I37:I56)*$P$57 -> -0.001 | L60: =LOOKUP(F60,B37:B56,J37:J56) -> 50 | M60: =LOOKUP(F60,B37:B56,K37:K56) -> 60 | N60: =LOOKUP(F60,B37:B56,L37:L56) -> 0 | O60: =LOOKUP(F60,B37:B56,M37:M56) -> 800
B61: =B55 -> 19 | C61: =D55 ->  | D61: =D60+1 -> 2 | E61: =IF( (E57+L57*D60)<=H57,(E57+L57*D60),"- - -") -> 50 | F61: =(B60+1)-MATCH(E61,C60:C79,-1) -> 1 | G61: =LOOKUP(F61,B37:B56,E37:E56) -> 0 | J61: =LOOKUP(F61,B37:B56,H37:H56)*$P$57 -> 1 | K61: =LOOKUP(F61,B37:B56,I37:I56)*$P$57 -> -0.001 | L61: =LOOKUP(F61,B37:B56,J37:J56) -> 50 | M61: =LOOKUP(F61,B37:B56,K37:K56) -> 60 | N61: =LOOKUP(F61,B37:B56,L37:L56) -> 0 | O61: =LOOKUP(F61,B37:B56,M37:M56) -> 800
B62: =B54 -> 18 | C62: =D54 ->  | D62: =D61+1 -> 3 | E62: =IF( (E57+L57*D61)<=H57,(E57+L57*D61),"- - -") -> 75 | F62: =(B60+1)-MATCH(E62,C60:C79,-1) -> 1 | G62: =LOOKUP(F62,B37:B56,E37:E56) -> 0 | J62: =LOOKUP(F62,B37:B56,H37:H56)*$P$57 -> 1 | K62: =LOOKUP(F62,B37:B56,I37:I56)*$P$57 -> -0.001 | L62: =LOOKUP(F62,B37:B56,J37:J56) -> 50 | M62: =LOOKUP(F62,B37:B56,K37:K56) -> 60 | N62: =LOOKUP(F62,B37:B56,L37:L56) -> 0 | O62: =LOOKUP(F62,B37:B56,M37:M56) -> 800
B63: =B53 -> 17 | C63: =D53 ->  | D63: 4 | E63: =IF( (E57+L57*D62)<=H57,(E57+L57*D62),"- - -") -> 100 | F63: =(B60+1)-MATCH(E63,C60:C79,-1) -> 1 | G63: =LOOKUP(F63,B37:B56,E37:E56) -> 0 | J63: =LOOKUP(F63,B37:B56,H37:H56)*$P$57 -> 1 | K63: =LOOKUP(F63,B37:B56,I37:I56)*$P$57 -> -0.001 | L63: =LOOKUP(F63,B37:B56,J37:J56) -> 50 | M63: =LOOKUP(F63,B37:B56,K37:K56) -> 60 | N63: =LOOKUP(F63,B37:B56,L37:L56) -> 0 | O63: =LOOKUP(F63,B37:B56,M37:M56) -> 800
B64: =B52 -> 16 | C64: =D52 ->  | D64: 5 | E64: =IF( (E57+L57*D63)<=H57,(E57+L57*D63),"- - -") -> - - - | F64: =(B60+1)-MATCH(E64,C60:C79,-1) ->  | G64: =LOOKUP(F64,B37:B56,E37:E56) ->  | J64: =LOOKUP(F64,B37:B56,H37:H56)*$P$57 ->  | K64: =LOOKUP(F64,B37:B56,I37:I56)*$P$57 ->  | L64: =LOOKUP(F64,B37:B56,J37:J56) ->  | M64: =LOOKUP(F64,B37:B56,K37:K56) ->  | N64: =LOOKUP(F64,B37:B56,L37:L56) ->  | O64: =LOOKUP(F64,B37:B56,M37:M56) -> 
B65: =B51 -> 15 | C65: =D51 ->  | D65: 6 | E65: =IF( (E57+L57*D64)<=H57,(E57+L57*D64),"- - -") -> - - - | F65: =(B60+1)-MATCH(E65,C60:C79,-1) ->  | G65: =LOOKUP(F65,B37:B56,E37:E56) ->  | J65: =LOOKUP(F65,B37:B56,H37:H56)*$P$57 ->  | K65: =LOOKUP(F65,B37:B56,I37:I56)*$P$57 ->  | L65: =LOOKUP(F65,B37:B56,J37:J56) ->  | M65: =LOOKUP(F65,B37:B56,K37:K56) ->  | N65: =LOOKUP(F65,B37:B56,L37:L56) ->  | O65: =LOOKUP(F65,B37:B56,M37:M56) -> 
B66: =B50 -> 14 | C66: =D50 ->  | D66: 7 | E66: =IF( (E57+L57*D65)<=H57,(E57+L57*D65),"- - -") -> - - - | F66: =(B60+1)-MATCH(E66,C60:C79,-1) ->  | G66: =LOOKUP(F66,B37:B56,E37:E56) ->  | J66: =LOOKUP(F66,B37:B56,H37:H56)*$P$57 ->  | K66: =LOOKUP(F66,B37:B56,I37:I56)*$P$57 ->  | L66: =LOOKUP(F66,B37:B56,J37:J56) ->  | M66: =LOOKUP(F66,B37:B56,K37:K56) ->  | N66: =LOOKUP(F66,B37:B56,L37:L56) ->  | O66: =LOOKUP(F66,B37:B56,M37:M56) -> 
B67: =B49 -> 13 | C67: =D49 ->  | D67: 8 | E67: =IF( (E57+L57*D66)<=H57,(E57+L57*D66),"- - -") -> - - - | F67: =(B60+1)-MATCH(E67,C60:C79,-1) ->  | G67: =LOOKUP(F67,B37:B56,E37:E56) ->  | J67: =LOOKUP(F67,B37:B56,H37:H56)*$P$57 ->  | K67: =LOOKUP(F67,B37:B56,I37:I56)*$P$57 ->  | L67: =LOOKUP(F67,B37:B56,J37:J56) ->  | M67: =LOOKUP(F67,B37:B56,K37:K56) ->  | N67: =LOOKUP(F67,B37:B56,L37:L56) ->  | O67: =LOOKUP(F67,B37:B56,M37:M56) -> 
B68: =B48 -> 12 | C68: =D48 ->  | D68: 9 | E68: =IF( (E57+L57*D67)<=H57,(E57+L57*D67),"- - -") -> - - - | F68: =(B60+1)-MATCH(E68,C60:C79,-1) ->  | G68: =LOOKUP(F68,B37:B56,E37:E56) ->  | J68: =LOOKUP(F68,B37:B56,H37:H56)*$P$57 ->  | K68: =LOOKUP(F68,B37:B56,I37:I56)*$P$57 ->  | L68: =LOOKUP(F68,B37:B56,J37:J56) ->  | M68: =LOOKUP(F68,B37:B56,K37:K56) ->  | N68: =LOOKUP(F68,B37:B56,L37:L56) ->  | O68: =LOOKUP(F68,B37:B56,M37:M56) -> 
B69: =B47 -> 11 | C69: =D47 ->  | D69: 10 | E69: =IF( (E57+L57*D68)<=H57,(E57+L57*D68),"- - -") -> - - - | F69: =(B60+1)-MATCH(E69,C60:C79,-1) ->  | G69: =LOOKUP(F69,B37:B56,E37:E56) ->  | J69: =LOOKUP(F69,B37:B56,H37:H56)*$P$57 ->  | K69: =LOOKUP(F69,B37:B56,I37:I56)*$P$57 ->  | L69: =LOOKUP(F69,B37:B56,J37:J56) ->  | M69: =LOOKUP(F69,B37:B56,K37:K56) ->  | N69: =LOOKUP(F69,B37:B56,L37:L56) ->  | O69: =LOOKUP(F69,B37:B56,M37:M56) -> 
B70: =B46 -> 10 | C70: =D46 ->  | D70: 11 | E70: =IF( (E57+L57*D69)<=H57,(E57+L57*D69),"- - -") -> - - - | F70: =(B60+1)-MATCH(E70,C60:C79,-1) ->  | G70: =LOOKUP(F70,B37:B56,E37:E56) ->  | J70: =LOOKUP(F70,B37:B56,H37:H56)*$P$57 ->  | K70: =LOOKUP(F70,B37:B56,I37:I56)*$P$57 ->  | L70: =LOOKUP(F70,B37:B56,J37:J56) ->  | M70: =LOOKUP(F70,B37:B56,K37:K56) ->  | N70: =LOOKUP(F70,B37:B56,L37:L56) ->  | O70: =LOOKUP(F70,B37:B56,M37:M56) -> 
B71: =B45 -> 9 | C71: =D45 ->  | D71: 12 | E71: =IF( (E57+L57*D70)<=H57,(E57+L57*D70),"- - -") -> - - - | F71: =(B60+1)-MATCH(E71,C60:C79,-1) ->  | G71: =LOOKUP(F71,B37:B56,E37:E56) ->  | J71: =LOOKUP(F71,B37:B56,H37:H56)*$P$57 ->  | K71: =LOOKUP(F71,B37:B56,I37:I56)*$P$57 ->  | L71: =LOOKUP(F71,B37:B56,J37:J56) ->  | M71: =LOOKUP(F71,B37:B56,K37:K56) ->  | N71: =LOOKUP(F71,B37:B56,L37:L56) ->  | O71: =LOOKUP(F71,B37:B56,M37:M56) -> 
B72: =B44 -> 8 | C72: =D44 ->  | D72: 13 | E72: =IF( (E57+L57*D71)<=H57,(E57+L57*D71),"- - -") -> - - - | F72: =(B60+1)-MATCH(E72,C60:C79,-1) ->  | G72: =LOOKUP(F72,B37:B56,E37:E56) ->  | J72: =LOOKUP(F72,B37:B56,H37:H56)*$P$57 ->  | K72: =LOOKUP(F72,B37:B56,I37:I56)*$P$57 ->  | L72: =LOOKUP(F72,B37:B56,J37:J56) ->  | M72: =LOOKUP(F72,B37:B56,K37:K56) ->  | N72: =LOOKUP(F72,B37:B56,L37:L56) ->  | O72: =LOOKUP(F72,B37:B56,M37:M56) -> 
B73: =B43 -> 7 | C73: =D43 ->  | D73: 14 | E73: =IF( (E57+L57*D72)<=H57,(E57+L57*D72),"- - -") -> - - - | F73: =(B60+1)-MATCH(E73,C60:C79,-1) ->  | G73: =LOOKUP(F73,B37:B56,E37:E56) ->  | J73: =LOOKUP(F73,B37:B56,H37:H56)*$P$57 ->  | K73: =LOOKUP(F73,B37:B56,I37:I56)*$P$57 ->  | L73: =LOOKUP(F73,B37:B56,J37:J56) ->  | M73: =LOOKUP(F73,B37:B56,K37:K56) ->  | N73: =LOOKUP(F73,B37:B56,L37:L56) ->  | O73: =LOOKUP(F73,B37:B56,M37:M56) -> 
B74: =B42 -> 6 | C74: =D42 ->  | D74: 15 | E74: =IF( (E57+L57*D73)<=H57,(E57+L57*D73),"- - -") -> - - - | F74: =(B60+1)-MATCH(E74,C60:C79,-1) ->  | G74: =LOOKUP(F74,B37:B56,E37:E56) ->  | J74: =LOOKUP(F74,B37:B56,H37:H56)*$P$57 ->  | K74: =LOOKUP(F74,B37:B56,I37:I56)*$P$57 ->  | L74: =LOOKUP(F74,B37:B56,J37:J56) ->  | M74: =LOOKUP(F74,B37:B56,K37:K56) ->  | N74: =LOOKUP(F74,B37:B56,L37:L56) ->  | O74: =LOOKUP(F74,B37:B56,M37:M56) -> 
B75: =B41 -> 5 | C75: =D41 ->  | D75: 16 | E75: =IF( (E57+L57*D74)<=H57,(E57+L57*D74),"- - -") -> - - - | F75: =(B60+1)-MATCH(E75,C60:C79,-1) ->  | G75: =LOOKUP(F75,B37:B56,E37:E56) ->  | J75: =LOOKUP(F75,B37:B56,H37:H56)*$P$57 ->  | K75: =LOOKUP(F75,B37:B56,I37:I56)*$P$57 ->  | L75: =LOOKUP(F75,B37:B56,J37:J56) ->  | M75: =LOOKUP(F75,B37:B56,K37:K56) ->  | N75: =LOOKUP(F75,B37:B56,L37:L56) ->  | O75: =LOOKUP(F75,B37:B56,M37:M56) -> 
B76: =B40 -> 4 | C76: =D40 ->  | D76: 17 | E76: =IF( (E57+L57*D75)<=H57,(E57+L57*D75),"- - -") -> - - - | F76: =(B60+1)-MATCH(E76,C60:C79,-1) ->  | G76: =LOOKUP(F76,B37:B56,E37:E56) ->  | J76: =LOOKUP(F76,B37:B56,H37:H56)*$P$57 ->  | K76: =LOOKUP(F76,B37:B56,I37:I56)*$P$57 ->  | L76: =LOOKUP(F76,B37:B56,J37:J56) ->  | M76: =LOOKUP(F76,B37:B56,K37:K56) ->  | N76: =LOOKUP(F76,B37:B56,L37:L56) ->  | O76: =LOOKUP(F76,B37:B56,M37:M56) -> 
B77: =B39 -> 3 | C77: =D39 ->  | D77: 18 | E77: =IF( (E57+L57*D76)<=H57,(E57+L57*D76),"- - -") -> - - - | F77: =(B60+1)-MATCH(E77,C60:C79,-1) ->  | G77: =LOOKUP(F77,B37:B56,E37:E56) ->  | J77: =LOOKUP(F77,B37:B56,H37:H56)*$P$57 ->  | K77: =LOOKUP(F77,B37:B56,I37:I56)*$P$57 ->  | L77: =LOOKUP(F77,B37:B56,J37:J56) ->  | M77: =LOOKUP(F77,B37:B56,K37:K56) ->  | N77: =LOOKUP(F77,B37:B56,L37:L56) ->  | O77: =LOOKUP(F77,B37:B56,M37:M56) -> 
B78: =B38 -> 2 | C78: =D38 ->  | D78: 19 | E78: =IF( (E57+L57*D77)<=H57,(E57+L57*D77),"- - -") -> - - - | F78: =(B60+1)-MATCH(E78,C60:C79,-1) ->  | G78: =LOOKUP(F78,B37:B56,E37:E56) ->  | J78: =LOOKUP(F78,B37:B56,H37:H56)*$P$57 ->  | K78: =LOOKUP(F78,B37:B56,I37:I56)*$P$57 ->  | L78: =LOOKUP(F78,B37:B56,J37:J56) ->  | M78: =LOOKUP(F78,B37:B56,K37:K56) ->  | N78: =LOOKUP(F78,B37:B56,L37:L56) ->  | O78: =LOOKUP(F78,B37:B56,M37:M56) -> 
B79: =B37 -> 1 | C79: =D37 -> 100 | D79: 20 | E79: =IF( (E57+L57*D78)<=H57,(E57+L57*D78),"- - -") -> - - - | F79: =(B60+1)-MATCH(E79,C60:C79,-1) ->  | G79: =LOOKUP(F79,B37:B56,E37:E56) ->  | J79: =LOOKUP(F79,B37:B56,H37:H56)*$P$57 ->  | K79: =LOOKUP(F79,B37:B56,I37:I56)*$P$57 ->  | L79: =LOOKUP(F79,B37:B56,J37:J56) ->  | M79: =LOOKUP(F79,B37:B56,K37:K56) ->  | N79: =LOOKUP(F79,B37:B56,L37:L56) ->  | O79: =LOOKUP(F79,B37:B56,M37:M56) -> 
D80: 21 | E80: =IF( (E57+L57*D79)<=H57,(E57+L57*D79),"- - -") -> - - - | F80: =(B60+1)-MATCH(E80,C60:C79,-1) ->  | G80: =LOOKUP(F80,B37:B56,E37:E56) ->  | J80: =LOOKUP(F80,B37:B56,H37:H56)*$P$57 ->  | K80: =LOOKUP(F80,B37:B56,I37:I56)*$P$57 ->  | L80: =LOOKUP(F80,B37:B56,J37:J56) ->  | M80: =LOOKUP(F80,B37:B56,K37:K56) ->  | N80: =LOOKUP(F80,B37:B56,L37:L56) ->  | O80: =LOOKUP(F80,B37:B56,M37:M56) -> 
D81: 22 | E81: =IF( (E57+L57*D80)<=H57,(E57+L57*D80),"- - -") -> - - - | F81: =(B60+1)-MATCH(E81,C60:C79,-1) ->  | G81: =LOOKUP(F81,B37:B56,E37:E56) ->  | J81: =LOOKUP(F81,B37:B56,H37:H56)*$P$57 ->  | K81: =LOOKUP(F81,B37:B56,I37:I56)*$P$57 ->  | L81: =LOOKUP(F81,B37:B56,J37:J56) ->  | M81: =LOOKUP(F81,B37:B56,K37:K56) ->  | N81: =LOOKUP(F81,B37:B56,L37:L56) ->  | O81: =LOOKUP(F81,B37:B56,M37:M56) -> 
D82: 23 | E82: =IF( (E57+L57*D81)<=H57,(E57+L57*D81),"- - -") -> - - - | F82: =(B60+1)-MATCH(E82,C60:C79,-1) ->  | G82: =LOOKUP(F82,B37:B56,E37:E56) ->  | J82: =LOOKUP(F82,B37:B56,H37:H56)*$P$57 ->  | K82: =LOOKUP(F82,B37:B56,I37:I56)*$P$57 ->  | L82: =LOOKUP(F82,B37:B56,J37:J56) ->  | M82: =LOOKUP(F82,B37:B56,K37:K56) ->  | N82: =LOOKUP(F82,B37:B56,L37:L56) ->  | O82: =LOOKUP(F82,B37:B56,M37:M56) -> 
D83: 24 | E83: =IF( (E57+L57*D82)<=H57,(E57+L57*D82),"- - -") -> - - - | F83: =(B60+1)-MATCH(E83,C60:C79,-1) ->  | G83: =LOOKUP(F83,B37:B56,E37:E56) ->  | J83: =LOOKUP(F83,B37:B56,H37:H56)*$P$57 ->  | K83: =LOOKUP(F83,B37:B56,I37:I56)*$P$57 ->  | L83: =LOOKUP(F83,B37:B56,J37:J56) ->  | M83: =LOOKUP(F83,B37:B56,K37:K56) ->  | N83: =LOOKUP(F83,B37:B56,L37:L56) ->  | O83: =LOOKUP(F83,B37:B56,M37:M56) -> 
D84: 25 | E84: =IF( (E57+L57*D83)<=H57,(E57+L57*D83),"- - -") -> - - - | F84: =(B60+1)-MATCH(E84,C60:C79,-1) ->  | G84: =LOOKUP(F84,B37:B56,E37:E56) ->  | J84: =LOOKUP(F84,B37:B56,H37:H56)*$P$57 ->  | K84: =LOOKUP(F84,B37:B56,I37:I56)*$P$57 ->  | L84: =LOOKUP(F84,B37:B56,J37:J56) ->  | M84: =LOOKUP(F84,B37:B56,K37:K56) ->  | N84: =LOOKUP(F84,B37:B56,L37:L56) ->  | O84: =LOOKUP(F84,B37:B56,M37:M56) -> 
D85: 26 | E85: =IF( (E57+L57*D84)<=H57,(E57+L57*D84),"- - -") -> - - - | F85: =(B60+1)-MATCH(E85,C60:C79,-1) ->  | G85: =LOOKUP(F85,B37:B56,E37:E56) ->  | J85: =LOOKUP(F85,B37:B56,H37:H56)*$P$57 ->  | K85: =LOOKUP(F85,B37:B56,I37:I56)*$P$57 ->  | L85: =LOOKUP(F85,B37:B56,J37:J56) ->  | M85: =LOOKUP(F85,B37:B56,K37:K56) ->  | N85: =LOOKUP(F85,B37:B56,L37:L56) ->  | O85: =LOOKUP(F85,B37:B56,M37:M56) -> 
D86: 27 | E86: =IF( (E57+L57*D85)<=H57,(E57+L57*D85),"- - -") -> - - - | F86: =(B60+1)-MATCH(E86,C60:C79,-1) ->  | G86: =LOOKUP(F86,B37:B56,E37:E56) ->  | J86: =LOOKUP(F86,B37:B56,H37:H56)*$P$57 ->  | K86: =LOOKUP(F86,B37:B56,I37:I56)*$P$57 ->  | L86: =LOOKUP(F86,B37:B56,J37:J56) ->  | M86: =LOOKUP(F86,B37:B56,K37:K56) ->  | N86: =LOOKUP(F86,B37:B56,L37:L56) ->  | O86: =LOOKUP(F86,B37:B56,M37:M56) -> 
D87: 28 | E87: =IF( (E57+L57*D86)<=H57,(E57+L57*D86),"- - -") -> - - - | F87: =(B60+1)-MATCH(E87,C60:C79,-1) ->  | G87: =LOOKUP(F87,B37:B56,E37:E56) ->  | J87: =LOOKUP(F87,B37:B56,H37:H56)*$P$57 ->  | K87: =LOOKUP(F87,B37:B56,I37:I56)*$P$57 ->  | L87: =LOOKUP(F87,B37:B56,J37:J56) ->  | M87: =LOOKUP(F87,B37:B56,K37:K56) ->  | N87: =LOOKUP(F87,B37:B56,L37:L56) ->  | O87: =LOOKUP(F87,B37:B56,M37:M56) -> 
D88: 29 | E88: =IF( (E57+L57*D87)<=H57,(E57+L57*D87),"- - -") -> - - - | F88: =(B60+1)-MATCH(E88,C60:C79,-1) ->  | G88: =LOOKUP(F88,B37:B56,E37:E56) ->  | J88: =LOOKUP(F88,B37:B56,H37:H56)*$P$57 ->  | K88: =LOOKUP(F88,B37:B56,I37:I56)*$P$57 ->  | L88: =LOOKUP(F88,B37:B56,J37:J56) ->  | M88: =LOOKUP(F88,B37:B56,K37:K56) ->  | N88: =LOOKUP(F88,B37:B56,L37:L56) ->  | O88: =LOOKUP(F88,B37:B56,M37:M56) -> 
D89: 30 | E89: =IF( (E57+L57*D88)<=H57,(E57+L57*D88),"- - -") -> - - - | F89: =(B60+1)-MATCH(E89,C60:C79,-1) ->  | G89: =LOOKUP(F89,B37:B56,E37:E56) ->  | J89: =LOOKUP(F89,B37:B56,H37:H56)*$P$57 ->  | K89: =LOOKUP(F89,B37:B56,I37:I56)*$P$57 ->  | L89: =LOOKUP(F89,B37:B56,J37:J56) ->  | M89: =LOOKUP(F89,B37:B56,K37:K56) ->  | N89: =LOOKUP(F89,B37:B56,L37:L56) ->  | O89: =LOOKUP(F89,B37:B56,M37:M56) -> 
D90: =D89+1 -> 31 | E90: =IF( (E57+L57*D89)<=H57,(E57+L57*D89),"- - -") -> - - - | F90: =(B60+1)-MATCH(E90,C60:C79,-1) ->  | G90: =LOOKUP(F90,B37:B56,E37:E56) ->  | J90: =LOOKUP(F90,B37:B56,H37:H56)*$P$57 ->  | K90: =LOOKUP(F90,B37:B56,I37:I56)*$P$57 ->  | L90: =LOOKUP(F90,B37:B56,J37:J56) ->  | M90: =LOOKUP(F90,B37:B56,K37:K56) ->  | N90: =LOOKUP(F90,B37:B56,L37:L56) ->  | O90: =LOOKUP(F90,B37:B56,M37:M56) -> 
D91: 32 | E91: =IF( (E57+L57*D90)<=H57,(E57+L57*D90),"- - -") -> - - - | F91: =(B60+1)-MATCH(E91,C60:C79,-1) ->  | G91: =LOOKUP(F91,B37:B56,E37:E56) ->  | J91: =LOOKUP(F91,B37:B56,H37:H56)*$P$57 ->  | K91: =LOOKUP(F91,B37:B56,I37:I56)*$P$57 ->  | L91: =LOOKUP(F91,B37:B56,J37:J56) ->  | M91: =LOOKUP(F91,B37:B56,K37:K56) ->  | N91: =LOOKUP(F91,B37:B56,L37:L56) ->  | O91: =LOOKUP(F91,B37:B56,M37:M56) -> 
D92: 33 | E92: =IF( (E57+L57*D91)<=H57,(E57+L57*D91),"- - -") -> - - - | F92: =(B60+1)-MATCH(E92,C60:C79,-1) ->  | G92: =LOOKUP(F92,B37:B56,E37:E56) ->  | J92: =LOOKUP(F92,B37:B56,H37:H56)*$P$57 ->  | K92: =LOOKUP(F92,B37:B56,I37:I56)*$P$57 ->  | L92: =LOOKUP(F92,B37:B56,J37:J56) ->  | M92: =LOOKUP(F92,B37:B56,K37:K56) ->  | N92: =LOOKUP(F92,B37:B56,L37:L56) ->  | O92: =LOOKUP(F92,B37:B56,M37:M56) -> 
D93: 34 | E93: =IF( (E57+L57*D92)<=H57,(E57+L57*D92),"- - -") -> - - - | F93: =(B60+1)-MATCH(E93,C60:C79,-1) ->  | G93: =LOOKUP(F93,B37:B56,E37:E56) ->  | J93: =LOOKUP(F93,B37:B56,H37:H56)*$P$57 ->  | K93: =LOOKUP(F93,B37:B56,I37:I56)*$P$57 ->  | L93: =LOOKUP(F93,B37:B56,J37:J56) ->  | M93: =LOOKUP(F93,B37:B56,K37:K56) ->  | N93: =LOOKUP(F93,B37:B56,L37:L56) ->  | O93: =LOOKUP(F93,B37:B56,M37:M56) -> 
D94: 35 | E94: =IF( (E57+L57*D93)<=H57,(E57+L57*D93),"- - -") -> - - - | F94: =(B60+1)-MATCH(E94,C60:C79,-1) ->  | G94: =LOOKUP(F94,B37:B56,E37:E56) ->  | J94: =LOOKUP(F94,B37:B56,H37:H56)*$P$57 ->  | K94: =LOOKUP(F94,B37:B56,I37:I56)*$P$57 ->  | L94: =LOOKUP(F94,B37:B56,J37:J56) ->  | M94: =LOOKUP(F94,B37:B56,K37:K56) ->  | N94: =LOOKUP(F94,B37:B56,L37:L56) ->  | O94: =LOOKUP(F94,B37:B56,M37:M56) -> 
D95: 36 | E95: =IF( (E57+L57*D94)<=H57,(E57+L57*D94),"- - -") -> - - - | F95: =(B60+1)-MATCH(E95,C60:C79,-1) ->  | G95: =LOOKUP(F95,B37:B56,E37:E56) ->  | J95: =LOOKUP(F95,B37:B56,H37:H56)*$P$57 ->  | K95: =LOOKUP(F95,B37:B56,I37:I56)*$P$57 ->  | L95: =LOOKUP(F95,B37:B56,J37:J56) ->  | M95: =LOOKUP(F95,B37:B56,K37:K56) ->  | N95: =LOOKUP(F95,B37:B56,L37:L56) ->  | O95: =LOOKUP(F95,B37:B56,M37:M56) -> 
D96: 37 | E96: =IF( (E57+L57*D95)<=H57,(E57+L57*D95),"- - -") -> - - - | F96: =(B60+1)-MATCH(E96,C60:C79,-1) ->  | G96: =LOOKUP(F96,B37:B56,E37:E56) ->  | J96: =LOOKUP(F96,B37:B56,H37:H56)*$P$57 ->  | K96: =LOOKUP(F96,B37:B56,I37:I56)*$P$57 ->  | L96: =LOOKUP(F96,B37:B56,J37:J56) ->  | M96: =LOOKUP(F96,B37:B56,K37:K56) ->  | N96: =LOOKUP(F96,B37:B56,L37:L56) ->  | O96: =LOOKUP(F96,B37:B56,M37:M56) -> 
D97: 38 | E97: =IF( (E57+L57*D96)<=H57,(E57+L57*D96),"- - -") -> - - - | F97: =(B60+1)-MATCH(E97,C60:C79,-1) ->  | G97: =LOOKUP(F97,B37:B56,E37:E56) ->  | J97: =LOOKUP(F97,B37:B56,H37:H56)*$P$57 ->  | K97: =LOOKUP(F97,B37:B56,I37:I56)*$P$57 ->  | L97: =LOOKUP(F97,B37:B56,J37:J56) ->  | M97: =LOOKUP(F97,B37:B56,K37:K56) ->  | N97: =LOOKUP(F97,B37:B56,L37:L56) ->  | O97: =LOOKUP(F97,B37:B56,M37:M56) -> 
D98: 39 | E98: =IF( (E57+L57*D97)<=H57,(E57+L57*D97),"- - -") -> - - - | F98: =(B60+1)-MATCH(E98,C60:C79,-1) ->  | G98: =LOOKUP(F98,B37:B56,E37:E56) ->  | J98: =LOOKUP(F98,B37:B56,H37:H56)*$P$57 ->  | K98: =LOOKUP(F98,B37:B56,I37:I56)*$P$57 ->  | L98: =LOOKUP(F98,B37:B56,J37:J56) ->  | M98: =LOOKUP(F98,B37:B56,K37:K56) ->  | N98: =LOOKUP(F98,B37:B56,L37:L56) ->  | O98: =LOOKUP(F98,B37:B56,M37:M56) -> 
D99: 40 | E99: =IF( (E57+L57*D98)<=H57,(E57+L57*D98),"- - -") -> - - - | F99: =(B60+1)-MATCH(E99,C60:C79,-1) ->  | G99: =LOOKUP(F99,B37:B56,E37:E56) ->  | J99: =LOOKUP(F99,B37:B56,H37:H56)*$P$57 ->  | K99: =LOOKUP(F99,B37:B56,I37:I56)*$P$57 ->  | L99: =LOOKUP(F99,B37:B56,J37:J56) ->  | M99: =LOOKUP(F99,B37:B56,K37:K56) ->  | N99: =LOOKUP(F99,B37:B56,L37:L56) ->  | O99: =LOOKUP(F99,B37:B56,M37:M56) -> 
D100: 41 | E100: =IF( (E57+L57*D99)<=H57,(E57+L57*D99),"- - -") -> - - - | F100: =(B60+1)-MATCH(E100,C60:C79,-1) ->  | G100: =LOOKUP(F100,B37:B56,E37:E56) ->  | J100: =LOOKUP(F100,B37:B56,H37:H56)*$P$57 ->  | K100: =LOOKUP(F100,B37:B56,I37:I56)*$P$57 ->  | L100: =LOOKUP(F100,B37:B56,J37:J56) ->  | M100: =LOOKUP(F100,B37:B56,K37:K56) ->  | N100: =LOOKUP(F100,B37:B56,L37:L56) ->  | O100: =LOOKUP(F100,B37:B56,M37:M56) -> 
D101: 42 | E101: =IF( (E57+L57*D100)<=H57,(E57+L57*D100),"- - -") -> - - - | F101: =(B60+1)-MATCH(E101,C60:C79,-1) ->  | G101: =LOOKUP(F101,B37:B56,E37:E56) ->  | J101: =LOOKUP(F101,B37:B56,H37:H56)*$P$57 ->  | K101: =LOOKUP(F101,B37:B56,I37:I56)*$P$57 ->  | L101: =LOOKUP(F101,B37:B56,J37:J56) ->  | M101: =LOOKUP(F101,B37:B56,K37:K56) ->  | N101: =LOOKUP(F101,B37:B56,L37:L56) ->  | O101: =LOOKUP(F101,B37:B56,M37:M56) -> 
D102: 43 | E102: =IF( (E57+L57*D101)<=H57,(E57+L57*D101),"- - -") -> - - - | F102: =(B60+1)-MATCH(E102,C60:C79,-1) ->  | G102: =LOOKUP(F102,B37:B56,E37:E56) ->  | J102: =LOOKUP(F102,B37:B56,H37:H56)*$P$57 ->  | K102: =LOOKUP(F102,B37:B56,I37:I56)*$P$57 ->  | L102: =LOOKUP(F102,B37:B56,J37:J56) ->  | M102: =LOOKUP(F102,B37:B56,K37:K56) ->  | N102: =LOOKUP(F102,B37:B56,L37:L56) ->  | O102: =LOOKUP(F102,B37:B56,M37:M56) -> 
D103: 44 | E103: =IF( (E57+L57*D102)<=H57,(E57+L57*D102),"- - -") -> - - - | F103: =(B60+1)-MATCH(E103,C60:C79,-1) ->  | G103: =LOOKUP(F103,B37:B56,E37:E56) ->  | J103: =LOOKUP(F103,B37:B56,H37:H56)*$P$57 ->  | K103: =LOOKUP(F103,B37:B56,I37:I56)*$P$57 ->  | L103: =LOOKUP(F103,B37:B56,J37:J56) ->  | M103: =LOOKUP(F103,B37:B56,K37:K56) ->  | N103: =LOOKUP(F103,B37:B56,L37:L56) ->  | O103: =LOOKUP(F103,B37:B56,M37:M56) -> 
D104: 45 | E104: =IF( (E57+L57*D103)<=H57,(E57+L57*D103),"- - -") -> - - - | F104: =(B60+1)-MATCH(E104,C60:C79,-1) ->  | G104: =LOOKUP(F104,B37:B56,E37:E56) ->  | J104: =LOOKUP(F104,B37:B56,H37:H56)*$P$57 ->  | K104: =LOOKUP(F104,B37:B56,I37:I56)*$P$57 ->  | L104: =LOOKUP(F104,B37:B56,J37:J56) ->  | M104: =LOOKUP(F104,B37:B56,K37:K56) ->  | N104: =LOOKUP(F104,B37:B56,L37:L56) ->  | O104: =LOOKUP(F104,B37:B56,M37:M56) -> 
D105: 46 | E105: =IF( (E57+L57*D104)<=H57,(E57+L57*D104),"- - -") -> - - - | F105: =(B60+1)-MATCH(E105,C60:C79,-1) ->  | G105: =LOOKUP(F105,B37:B56,E37:E56) ->  | J105: =LOOKUP(F105,B37:B56,H37:H56)*$P$57 ->  | K105: =LOOKUP(F105,B37:B56,I37:I56)*$P$57 ->  | L105: =LOOKUP(F105,B37:B56,J37:J56) ->  | M105: =LOOKUP(F105,B37:B56,K37:K56) ->  | N105: =LOOKUP(F105,B37:B56,L37:L56) ->  | O105: =LOOKUP(F105,B37:B56,M37:M56) -> 
D106: 47 | E106: =IF( (E57+L57*D105)<=H57,(E57+L57*D105),"- - -") -> - - - | F106: =(B60+1)-MATCH(E106,C60:C79,-1) ->  | G106: =LOOKUP(F106,B37:B56,E37:E56) ->  | J106: =LOOKUP(F106,B37:B56,H37:H56)*$P$57 ->  | K106: =LOOKUP(F106,B37:B56,I37:I56)*$P$57 ->  | L106: =LOOKUP(F106,B37:B56,J37:J56) ->  | M106: =LOOKUP(F106,B37:B56,K37:K56) ->  | N106: =LOOKUP(F106,B37:B56,L37:L56) ->  | O106: =LOOKUP(F106,B37:B56,M37:M56) -> 
D107: 48 | E107: =IF( (E57+L57*D106)<=H57,(E57+L57*D106),"- - -") -> - - - | F107: =(B60+1)-MATCH(E107,C60:C79,-1) ->  | G107: =LOOKUP(F107,B37:B56,E37:E56) ->  | J107: =LOOKUP(F107,B37:B56,H37:H56)*$P$57 ->  | K107: =LOOKUP(F107,B37:B56,I37:I56)*$P$57 ->  | L107: =LOOKUP(F107,B37:B56,J37:J56) ->  | M107: =LOOKUP(F107,B37:B56,K37:K56) ->  | N107: =LOOKUP(F107,B37:B56,L37:L56) ->  | O107: =LOOKUP(F107,B37:B56,M37:M56) -> 
D108: 49 | E108: =IF( (E57+L57*D107)<=H57,(E57+L57*D107),"- - -") -> - - - | F108: =(B60+1)-MATCH(E108,C60:C79,-1) ->  | G108: =LOOKUP(F108,B37:B56,E37:E56) ->  | J108: =LOOKUP(F108,B37:B56,H37:H56)*$P$57 ->  | K108: =LOOKUP(F108,B37:B56,I37:I56)*$P$57 ->  | L108: =LOOKUP(F108,B37:B56,J37:J56) ->  | M108: =LOOKUP(F108,B37:B56,K37:K56) ->  | N108: =LOOKUP(F108,B37:B56,L37:L56) ->  | O108: =LOOKUP(F108,B37:B56,M37:M56) -> 
D109: 50 | E109: =IF( (E57+L57*D108)<=H57,(E57+L57*D108),"- - -") -> - - - | F109: =(B60+1)-MATCH(E109,C60:C79,-1) ->  | G109: =LOOKUP(F109,B37:B56,E37:E56) ->  | J109: =LOOKUP(F109,B37:B56,H37:H56)*$P$57 ->  | K109: =LOOKUP(F109,B37:B56,I37:I56)*$P$57 ->  | L109: =LOOKUP(F109,B37:B56,J37:J56) ->  | M109: =LOOKUP(F109,B37:B56,K37:K56) ->  | N109: =LOOKUP(F109,B37:B56,L37:L56) ->  | O109: =LOOKUP(F109,B37:B56,M37:M56) -> 
B112: 搬送負荷データレコード | E112: =LOOKUP(C114,MassDataLink!$A$4:$A$1315,MassDataLink!$G$4:$G$1315) -> RCP3-SA2AC-20P-1S水平 | J112: 設置姿勢で絞込み | L112: - - - | N112: 加減速・速度データレコード
B113: № | C113: Ldﾚｺｰﾄﾞ№ | D113: =MassDataLink!B2 -> ｱｸﾁｭｴｰﾀ姿勢 | E113: =MassDataLink!C2 -> 搬送負荷質量 | F113: =MassDataLink!D2 -> 加減速・速度ﾃﾞｰﾀ | G113: =MassDataLink!E2 -> 前ﾃﾞｰﾀ№ | H113: =MassDataLink!F2 -> 次ﾃﾞｰﾀ№ | J113: № | K113: 搬送負荷質量 | L113: avﾚｺｰﾄﾞ№ | N113: 備考 | O113: =LOOKUP(O115,AccVelDataLink!$A$4:$A$1414,AccVelDataLink!$F$4:$F$1414) -> RCP3-SA2AC-20P-1S-水平
B114: 1 | C114: =LOOKUP(D35,B26:B33,E26:E33) -> 1 | D114: =LOOKUP(C114,MassDataLink!$A$4:$A$1315,MassDataLink!$B$4:$B$1315) -> 0 | E114: =LOOKUP(C114,MassDataLink!$A$4:$A$1315,MassDataLink!$C$4:$C$1315) -> 1000 | F114: =LOOKUP(C114,MassDataLink!$A$4:$A$1315,MassDataLink!$D$4:$D$1315) -> 1 | G114: =LOOKUP(C114,MassDataLink!$A$4:$A$1315,MassDataLink!$E$4:$E$1315) -> -1 | H114: =LOOKUP(C114,MassDataLink!$A$4:$A$1315,MassDataLink!$F$4:$F$1315) -> -1 | J114: 1 | K114: =IF(C114=-1,$L$112,IF($A$11=D114,ROUND((E114*$P$57),$R$57),$L$112)) -> 1 | L114: =IF(K114=$L$112,$L$112,F114) -> 1 | N114: № | O114: avﾚｺｰﾄﾞ№ | P114: 加速度 | Q114: 速度 | R114: 前ﾃﾞｰﾀ | S114: 次ﾃﾞｰﾀ
B115: =B114+1 -> 2 | C115: =IF(C114=-1,-1,H114) -> -1 | D115: =LOOKUP(C115,MassDataLink!$A$4:$A$1315,MassDataLink!$B$4:$B$1315) ->  | E115: =LOOKUP(C115,MassDataLink!$A$4:$A$1315,MassDataLink!$C$4:$C$1315) ->  | F115: =LOOKUP(C115,MassDataLink!$A$4:$A$1315,MassDataLink!$D$4:$D$1315) ->  | G115: =LOOKUP(C115,MassDataLink!$A$4:$A$1315,MassDataLink!$E$4:$E$1315) ->  | H115: =LOOKUP(C115,MassDataLink!$A$4:$A$1315,MassDataLink!$F$4:$F$1315) ->  | J115: =J114+1 -> 2 | K115: =IF(C115=-1,$L$112,IF($A$11=D115,ROUND((E115*$P$57),$R$57),$L$112)) -> - - - | L115: =IF(K115=$L$112,$L$112,F115) -> - - - | N115: 1 | O115: =LOOKUP(A14,K114:K163,L114:L163) -> 1 | P115: =LOOKUP(O115,AccVelDataLink!$A$4:$A$1414,AccVelDataLink!$B$4:$B$1414) -> 1961330 | Q115: =LOOKUP(O115,AccVelDataLink!$A$4:$A$1414,AccVelDataLink!$C$4:$C$1414) -> 50 | R115: =LOOKUP(O115,AccVelDataLink!$A$4:$A$1414,AccVelDataLink!$D$4:$D$1414) -> -1 | S115: =LOOKUP(O115,AccVelDataLink!$A$4:$A$1414,AccVelDataLink!$E$4:$E$1414) -> -1
B116: =B115+1 -> 3 | C116: =IF(C115=-1,-1,H115) -> -1 | D116: =LOOKUP(C116,MassDataLink!$A$4:$A$1315,MassDataLink!$B$4:$B$1315) ->  | E116: =LOOKUP(C116,MassDataLink!$A$4:$A$1315,MassDataLink!$C$4:$C$1315) ->  | F116: =LOOKUP(C116,MassDataLink!$A$4:$A$1315,MassDataLink!$D$4:$D$1315) ->  | G116: =LOOKUP(C116,MassDataLink!$A$4:$A$1315,MassDataLink!$E$4:$E$1315) ->  | H116: =LOOKUP(C116,MassDataLink!$A$4:$A$1315,MassDataLink!$F$4:$F$1315) ->  | J116: =J115+1 -> 3 | K116: - - - | L116: - - - | N116: =N115+1 -> 2 | O116: =IF(O115=-1,-1,S115) -> -1 | P116: =LOOKUP(O116,AccVelDataLink!$A$4:$A$1414,AccVelDataLink!$B$4:$B$1414) ->  | Q116: =LOOKUP(O116,AccVelDataLink!$A$4:$A$1414,AccVelDataLink!$C$4:$C$1414) ->  | R116: =LOOKUP(O116,AccVelDataLink!$A$4:$A$1414,AccVelDataLink!$D$4:$D$1414) ->  | S116: =LOOKUP(O116,AccVelDataLink!$A$4:$A$1414,AccVelDataLink!$E$4:$E$1414) -> 
B117: =B116+1 -> 4 | C117: =IF(C116=-1,-1,H116) -> -1 | D117: =LOOKUP(C117,MassDataLink!$A$4:$A$1315,MassDataLink!$B$4:$B$1315) ->  | E117: =LOOKUP(C117,MassDataLink!$A$4:$A$1315,MassDataLink!$C$4:$C$1315) ->  | F117: =LOOKUP(C117,MassDataLink!$A$4:$A$1315,MassDataLink!$D$4:$D$1315) ->  | G117: =LOOKUP(C117,MassDataLink!$A$4:$A$1315,MassDataLink!$E$4:$E$1315) ->  | H117: =LOOKUP(C117,MassDataLink!$A$4:$A$1315,MassDataLink!$F$4:$F$1315) ->  | J117: =J116+1 -> 4 | K117: - - - | L117: - - - | N117: 3 | O117: =IF(O116=-1,-1,S116) -> -1 | P117: =LOOKUP(O117,AccVelDataLink!$A$4:$A$1414,AccVelDataLink!$B$4:$B$1414) ->  | Q117: =LOOKUP(O117,AccVelDataLink!$A$4:$A$1414,AccVelDataLink!$C$4:$C$1414) ->  | R117: =LOOKUP(O117,AccVelDataLink!$A$4:$A$1414,AccVelDataLink!$D$4:$D$1414) ->  | S117: =LOOKUP(O117,AccVelDataLink!$A$4:$A$1414,AccVelDataLink!$E$4:$E$1414) -> 
B118: =B117+1 -> 5 | C118: =IF(C117=-1,-1,H117) -> -1 | D118: =LOOKUP(C118,MassDataLink!$A$4:$A$1315,MassDataLink!$B$4:$B$1315) ->  | E118: =LOOKUP(C118,MassDataLink!$A$4:$A$1315,MassDataLink!$C$4:$C$1315) ->  | F118: =LOOKUP(C118,MassDataLink!$A$4:$A$1315,MassDataLink!$D$4:$D$1315) ->  | G118: =LOOKUP(C118,MassDataLink!$A$4:$A$1315,MassDataLink!$E$4:$E$1315) ->  | H118: =LOOKUP(C118,MassDataLink!$A$4:$A$1315,MassDataLink!$F$4:$F$1315) ->  | J118: =J117+1 -> 5 | K118: - - - | L118: - - - | N118: 4 | O118: -1 | P118: =LOOKUP(O118,AccVelDataLink!$A$4:$A$1414,AccVelDataLink!$B$4:$B$1414) ->  | Q118: =LOOKUP(O118,AccVelDataLink!$A$4:$A$1414,AccVelDataLink!$C$4:$C$1414) ->  | R118: =LOOKUP(O118,AccVelDataLink!$A$4:$A$1414,AccVelDataLink!$D$4:$D$1414) ->  | S118: =LOOKUP(O118,AccVelDataLink!$A$4:$A$1414,AccVelDataLink!$E$4:$E$1414) -> 
B119: =B118+1 -> 6 | C119: =IF(C118=-1,-1,H118) -> -1 | D119: =LOOKUP(C119,MassDataLink!$A$4:$A$1315,MassDataLink!$B$4:$B$1315) ->  | E119: =LOOKUP(C119,MassDataLink!$A$4:$A$1315,MassDataLink!$C$4:$C$1315) ->  | F119: =LOOKUP(C119,MassDataLink!$A$4:$A$1315,MassDataLink!$D$4:$D$1315) ->  | G119: =LOOKUP(C119,MassDataLink!$A$4:$A$1315,MassDataLink!$E$4:$E$1315) ->  | H119: =LOOKUP(C119,MassDataLink!$A$4:$A$1315,MassDataLink!$F$4:$F$1315) ->  | J119: =J118+1 -> 6 | K119: - - - | L119: - - - | N119: 5 | O119: -1 | P119: =LOOKUP(O119,AccVelDataLink!$A$4:$A$1414,AccVelDataLink!$B$4:$B$1414) ->  | Q119: =LOOKUP(O119,AccVelDataLink!$A$4:$A$1414,AccVelDataLink!$C$4:$C$1414) ->  | R119: =LOOKUP(O119,AccVelDataLink!$A$4:$A$1414,AccVelDataLink!$D$4:$D$1414) ->  | S119: =LOOKUP(O119,AccVelDataLink!$A$4:$A$1414,AccVelDataLink!$E$4:$E$1414) -> 
B120: 7 | C120: -1 | D120: =LOOKUP(C120,MassDataLink!$A$4:$A$1315,MassDataLink!$B$4:$B$1315) ->  | E120: =LOOKUP(C120,MassDataLink!$A$4:$A$1315,MassDataLink!$C$4:$C$1315) ->  | F120: =LOOKUP(C120,MassDataLink!$A$4:$A$1315,MassDataLink!$D$4:$D$1315) ->  | G120: =LOOKUP(C120,MassDataLink!$A$4:$A$1315,MassDataLink!$E$4:$E$1315) ->  | H120: =LOOKUP(C120,MassDataLink!$A$4:$A$1315,MassDataLink!$F$4:$F$1315) ->  | J120: 7 | K120: - - - | L120: - - - | N120: 6 | O120: -1 | P120: =LOOKUP(O120,AccVelDataLink!$A$4:$A$1414,AccVelDataLink!$B$4:$B$1414) ->  | Q120: =LOOKUP(O120,AccVelDataLink!$A$4:$A$1414,AccVelDataLink!$C$4:$C$1414) ->  | R120: =LOOKUP(O120,AccVelDataLink!$A$4:$A$1414,AccVelDataLink!$D$4:$D$1414) ->  | S120: =LOOKUP(O120,AccVelDataLink!$A$4:$A$1414,AccVelDataLink!$E$4:$E$1414) -> 
B121: 8 | C121: -1 | D121: =LOOKUP(C121,MassDataLink!$A$4:$A$1315,MassDataLink!$B$4:$B$1315) ->  | E121: =LOOKUP(C121,MassDataLink!$A$4:$A$1315,MassDataLink!$C$4:$C$1315) ->  | F121: =LOOKUP(C121,MassDataLink!$A$4:$A$1315,MassDataLink!$D$4:$D$1315) ->  | G121: =LOOKUP(C121,MassDataLink!$A$4:$A$1315,MassDataLink!$E$4:$E$1315) ->  | H121: =LOOKUP(C121,MassDataLink!$A$4:$A$1315,MassDataLink!$F$4:$F$1315) ->  | J121: 8 | K121: - - - | L121: - - - | N121: 7 | O121: -1 | P121: =LOOKUP(O121,AccVelDataLink!$A$4:$A$1414,AccVelDataLink!$B$4:$B$1414) ->  | Q121: =LOOKUP(O121,AccVelDataLink!$A$4:$A$1414,AccVelDataLink!$C$4:$C$1414) ->  | R121: =LOOKUP(O121,AccVelDataLink!$A$4:$A$1414,AccVelDataLink!$D$4:$D$1414) ->  | S121: =LOOKUP(O121,AccVelDataLink!$A$4:$A$1414,AccVelDataLink!$E$4:$E$1414) -> 
B122: 9 | C122: -1 | D122: =LOOKUP(C122,MassDataLink!$A$4:$A$1315,MassDataLink!$B$4:$B$1315) ->  | E122: =LOOKUP(C122,MassDataLink!$A$4:$A$1315,MassDataLink!$C$4:$C$1315) ->  | F122: =LOOKUP(C122,MassDataLink!$A$4:$A$1315,MassDataLink!$D$4:$D$1315) ->  | G122: =LOOKUP(C122,MassDataLink!$A$4:$A$1315,MassDataLink!$E$4:$E$1315) ->  | H122: =LOOKUP(C122,MassDataLink!$A$4:$A$1315,MassDataLink!$F$4:$F$1315) ->  | J122: 9 | K122: - - - | L122: - - - | N122: 8 | O122: -1 | P122: =LOOKUP(O122,AccVelDataLink!$A$4:$A$1414,AccVelDataLink!$B$4:$B$1414) ->  | Q122: =LOOKUP(O122,AccVelDataLink!$A$4:$A$1414,AccVelDataLink!$C$4:$C$1414) ->  | R122: =LOOKUP(O122,AccVelDataLink!$A$4:$A$1414,AccVelDataLink!$D$4:$D$1414) ->  | S122: =LOOKUP(O122,AccVelDataLink!$A$4:$A$1414,AccVelDataLink!$E$4:$E$1414) -> 
B123: 10 | C123: -1 | D123: =LOOKUP(C123,MassDataLink!$A$4:$A$1315,MassDataLink!$B$4:$B$1315) ->  | E123: =LOOKUP(C123,MassDataLink!$A$4:$A$1315,MassDataLink!$C$4:$C$1315) ->  | F123: =LOOKUP(C123,MassDataLink!$A$4:$A$1315,MassDataLink!$D$4:$D$1315) ->  | G123: =LOOKUP(C123,MassDataLink!$A$4:$A$1315,MassDataLink!$E$4:$E$1315) ->  | H123: =LOOKUP(C123,MassDataLink!$A$4:$A$1315,MassDataLink!$F$4:$F$1315) ->  | J123: 10 | K123: - - - | L123: - - - | N123: 9 | O123: -1 | P123: =LOOKUP(O123,AccVelDataLink!$A$4:$A$1414,AccVelDataLink!$B$4:$B$1414) ->  | Q123: =LOOKUP(O123,AccVelDataLink!$A$4:$A$1414,AccVelDataLink!$C$4:$C$1414) ->  | R123: =LOOKUP(O123,AccVelDataLink!$A$4:$A$1414,AccVelDataLink!$D$4:$D$1414) ->  | S123: =LOOKUP(O123,AccVelDataLink!$A$4:$A$1414,AccVelDataLink!$E$4:$E$1414) -> 
B124: 11 | C124: -1 | D124: =LOOKUP(C124,MassDataLink!$A$4:$A$1315,MassDataLink!$B$4:$B$1315) ->  | E124: =LOOKUP(C124,MassDataLink!$A$4:$A$1315,MassDataLink!$C$4:$C$1315) ->  | F124: =LOOKUP(C124,MassDataLink!$A$4:$A$1315,MassDataLink!$D$4:$D$1315) ->  | G124: =LOOKUP(C124,MassDataLink!$A$4:$A$1315,MassDataLink!$E$4:$E$1315) ->  | H124: =LOOKUP(C124,MassDataLink!$A$4:$A$1315,MassDataLink!$F$4:$F$1315) ->  | J124: 11 | K124: - - - | L124: - - - | N124: 10 | O124: -1 | P124: =LOOKUP(O124,AccVelDataLink!$A$4:$A$1414,AccVelDataLink!$B$4:$B$1414) ->  | Q124: =LOOKUP(O124,AccVelDataLink!$A$4:$A$1414,AccVelDataLink!$C$4:$C$1414) ->  | R124: =LOOKUP(O124,AccVelDataLink!$A$4:$A$1414,AccVelDataLink!$D$4:$D$1414) ->  | S124: =LOOKUP(O124,AccVelDataLink!$A$4:$A$1414,AccVelDataLink!$E$4:$E$1414) -> 
B125: 12 | C125: -1 | D125: =LOOKUP(C125,MassDataLink!$A$4:$A$1315,MassDataLink!$B$4:$B$1315) ->  | E125: =LOOKUP(C125,MassDataLink!$A$4:$A$1315,MassDataLink!$C$4:$C$1315) ->  | F125: =LOOKUP(C125,MassDataLink!$A$4:$A$1315,MassDataLink!$D$4:$D$1315) ->  | G125: =LOOKUP(C125,MassDataLink!$A$4:$A$1315,MassDataLink!$E$4:$E$1315) ->  | H125: =LOOKUP(C125,MassDataLink!$A$4:$A$1315,MassDataLink!$F$4:$F$1315) ->  | J125: 12 | K125: - - - | L125: - - - | O125: 加速度系数 | P125: 1e-06
B126: 13 | C126: -1 | D126: =LOOKUP(C126,MassDataLink!$A$4:$A$1315,MassDataLink!$B$4:$B$1315) ->  | E126: =LOOKUP(C126,MassDataLink!$A$4:$A$1315,MassDataLink!$C$4:$C$1315) ->  | F126: =LOOKUP(C126,MassDataLink!$A$4:$A$1315,MassDataLink!$D$4:$D$1315) ->  | G126: =LOOKUP(C126,MassDataLink!$A$4:$A$1315,MassDataLink!$E$4:$E$1315) ->  | H126: =LOOKUP(C126,MassDataLink!$A$4:$A$1315,MassDataLink!$F$4:$F$1315) ->  | J126: 13 | K126: - - - | L126: - - - | N126: G | O126: № | P126: 加速度 | Q126: 速度
B127: 14 | C127: -1 | D127: =LOOKUP(C127,MassDataLink!$A$4:$A$1315,MassDataLink!$B$4:$B$1315) ->  | E127: =LOOKUP(C127,MassDataLink!$A$4:$A$1315,MassDataLink!$C$4:$C$1315) ->  | F127: =LOOKUP(C127,MassDataLink!$A$4:$A$1315,MassDataLink!$D$4:$D$1315) ->  | G127: =LOOKUP(C127,MassDataLink!$A$4:$A$1315,MassDataLink!$E$4:$E$1315) ->  | H127: =LOOKUP(C127,MassDataLink!$A$4:$A$1315,MassDataLink!$F$4:$F$1315) ->  | J127: 14 | K127: - - - | L127: - - - | N127: =LeadData!A1 -> 9.80665 | O127: 1 | P127: =IF(O115=-1,$L$112,(P115/$N$127)*$P$125) -> 0.2 | Q127: =IF(O115=-1,$L$112,Q115) -> 50
B128: 15 | C128: -1 | D128: =LOOKUP(C128,MassDataLink!$A$4:$A$1315,MassDataLink!$B$4:$B$1315) ->  | E128: =LOOKUP(C128,MassDataLink!$A$4:$A$1315,MassDataLink!$C$4:$C$1315) ->  | F128: =LOOKUP(C128,MassDataLink!$A$4:$A$1315,MassDataLink!$D$4:$D$1315) ->  | G128: =LOOKUP(C128,MassDataLink!$A$4:$A$1315,MassDataLink!$E$4:$E$1315) ->  | H128: =LOOKUP(C128,MassDataLink!$A$4:$A$1315,MassDataLink!$F$4:$F$1315) ->  | J128: 15 | K128: - - - | L128: - - - | O128: =O127+1 -> 2 | P128: =IF(O116=-1,$L$112,(P116/$N$127)*$P$125) -> - - - | Q128: =IF(O116=-1,$L$112,Q116) -> - - -
B129: 16 | C129: -1 | D129: =LOOKUP(C129,MassDataLink!$A$4:$A$1315,MassDataLink!$B$4:$B$1315) ->  | E129: =LOOKUP(C129,MassDataLink!$A$4:$A$1315,MassDataLink!$C$4:$C$1315) ->  | F129: =LOOKUP(C129,MassDataLink!$A$4:$A$1315,MassDataLink!$D$4:$D$1315) ->  | G129: =LOOKUP(C129,MassDataLink!$A$4:$A$1315,MassDataLink!$E$4:$E$1315) ->  | H129: =LOOKUP(C129,MassDataLink!$A$4:$A$1315,MassDataLink!$F$4:$F$1315) ->  | J129: 16 | K129: - - - | L129: - - - | O129: 3 | P129: - - - | Q129: - - -
B130: 17 | C130: -1 | D130: =LOOKUP(C130,MassDataLink!$A$4:$A$1315,MassDataLink!$B$4:$B$1315) ->  | E130: =LOOKUP(C130,MassDataLink!$A$4:$A$1315,MassDataLink!$C$4:$C$1315) ->  | F130: =LOOKUP(C130,MassDataLink!$A$4:$A$1315,MassDataLink!$D$4:$D$1315) ->  | G130: =LOOKUP(C130,MassDataLink!$A$4:$A$1315,MassDataLink!$E$4:$E$1315) ->  | H130: =LOOKUP(C130,MassDataLink!$A$4:$A$1315,MassDataLink!$F$4:$F$1315) ->  | J130: 17 | K130: - - - | L130: - - - | O130: 4 | P130: - - - | Q130: - - -
B131: 18 | C131: -1 | D131: =LOOKUP(C131,MassDataLink!$A$4:$A$1315,MassDataLink!$B$4:$B$1315) ->  | E131: =LOOKUP(C131,MassDataLink!$A$4:$A$1315,MassDataLink!$C$4:$C$1315) ->  | F131: =LOOKUP(C131,MassDataLink!$A$4:$A$1315,MassDataLink!$D$4:$D$1315) ->  | G131: =LOOKUP(C131,MassDataLink!$A$4:$A$1315,MassDataLink!$E$4:$E$1315) ->  | H131: =LOOKUP(C131,MassDataLink!$A$4:$A$1315,MassDataLink!$F$4:$F$1315) ->  | J131: 18 | K131: - - - | L131: - - - | O131: 5 | P131: - - - | Q131: - - -
B132: 19 | C132: -1 | D132: =LOOKUP(C132,MassDataLink!$A$4:$A$1315,MassDataLink!$B$4:$B$1315) ->  | E132: =LOOKUP(C132,MassDataLink!$A$4:$A$1315,MassDataLink!$C$4:$C$1315) ->  | F132: =LOOKUP(C132,MassDataLink!$A$4:$A$1315,MassDataLink!$D$4:$D$1315) ->  | G132: =LOOKUP(C132,MassDataLink!$A$4:$A$1315,MassDataLink!$E$4:$E$1315) ->  | H132: =LOOKUP(C132,MassDataLink!$A$4:$A$1315,MassDataLink!$F$4:$F$1315) ->  | J132: 19 | K132: - - - | L132: - - - | O132: 6 | P132: - - - | Q132: - - -
B133: 20 | C133: -1 | D133: =LOOKUP(C133,MassDataLink!$A$4:$A$1315,MassDataLink!$B$4:$B$1315) ->  | E133: =LOOKUP(C133,MassDataLink!$A$4:$A$1315,MassDataLink!$C$4:$C$1315) ->  | F133: =LOOKUP(C133,MassDataLink!$A$4:$A$1315,MassDataLink!$D$4:$D$1315) ->  | G133: =LOOKUP(C133,MassDataLink!$A$4:$A$1315,MassDataLink!$E$4:$E$1315) ->  | H133: =LOOKUP(C133,MassDataLink!$A$4:$A$1315,MassDataLink!$F$4:$F$1315) ->  | J133: 20 | K133: - - - | L133: - - - | O133: 7 | P133: - - - | Q133: - - -
B134: 21 | C134: -1 | D134: =LOOKUP(C134,MassDataLink!$A$4:$A$1315,MassDataLink!$B$4:$B$1315) ->  | E134: =LOOKUP(C134,MassDataLink!$A$4:$A$1315,MassDataLink!$C$4:$C$1315) ->  | F134: =LOOKUP(C134,MassDataLink!$A$4:$A$1315,MassDataLink!$D$4:$D$1315) ->  | G134: =LOOKUP(C134,MassDataLink!$A$4:$A$1315,MassDataLink!$E$4:$E$1315) ->  | H134: =LOOKUP(C134,MassDataLink!$A$4:$A$1315,MassDataLink!$F$4:$F$1315) ->  | J134: 21 | K134: - - - | L134: - - - | O134: 8 | P134: - - - | Q134: - - -
B135: 22 | C135: -1 | D135: =LOOKUP(C135,MassDataLink!$A$4:$A$1315,MassDataLink!$B$4:$B$1315) ->  | E135: =LOOKUP(C135,MassDataLink!$A$4:$A$1315,MassDataLink!$C$4:$C$1315) ->  | F135: =LOOKUP(C135,MassDataLink!$A$4:$A$1315,MassDataLink!$D$4:$D$1315) ->  | G135: =LOOKUP(C135,MassDataLink!$A$4:$A$1315,MassDataLink!$E$4:$E$1315) ->  | H135: =LOOKUP(C135,MassDataLink!$A$4:$A$1315,MassDataLink!$F$4:$F$1315) ->  | J135: 22 | K135: - - - | L135: - - - | O135: 9 | P135: - - - | Q135: - - -
B136: 23 | C136: -1 | D136: =LOOKUP(C136,MassDataLink!$A$4:$A$1315,MassDataLink!$B$4:$B$1315) ->  | E136: =LOOKUP(C136,MassDataLink!$A$4:$A$1315,MassDataLink!$C$4:$C$1315) ->  | F136: =LOOKUP(C136,MassDataLink!$A$4:$A$1315,MassDataLink!$D$4:$D$1315) ->  | G136: =LOOKUP(C136,MassDataLink!$A$4:$A$1315,MassDataLink!$E$4:$E$1315) ->  | H136: =LOOKUP(C136,MassDataLink!$A$4:$A$1315,MassDataLink!$F$4:$F$1315) ->  | J136: 23 | K136: - - - | L136: - - - | O136: 10 | P136: - - - | Q136: - - -
B137: =B136+1 -> 24 | C137: =IF(C136=-1,-1,H136) -> -1 | D137: =LOOKUP(C137,MassDataLink!$A$4:$A$1315,MassDataLink!$B$4:$B$1315) ->  | E137: =LOOKUP(C137,MassDataLink!$A$4:$A$1315,MassDataLink!$C$4:$C$1315) ->  | F137: =LOOKUP(C137,MassDataLink!$A$4:$A$1315,MassDataLink!$D$4:$D$1315) ->  | G137: =LOOKUP(C137,MassDataLink!$A$4:$A$1315,MassDataLink!$E$4:$E$1315) ->  | H137: =LOOKUP(C137,MassDataLink!$A$4:$A$1315,MassDataLink!$F$4:$F$1315) ->  | J137: 24 | K137: - - - | L137: - - -
B138: 25 | C138: -1 | D138: =LOOKUP(C138,MassDataLink!$A$4:$A$1315,MassDataLink!$B$4:$B$1315) ->  | E138: =LOOKUP(C138,MassDataLink!$A$4:$A$1315,MassDataLink!$C$4:$C$1315) ->  | F138: =LOOKUP(C138,MassDataLink!$A$4:$A$1315,MassDataLink!$D$4:$D$1315) ->  | G138: =LOOKUP(C138,MassDataLink!$A$4:$A$1315,MassDataLink!$E$4:$E$1315) ->  | H138: =LOOKUP(C138,MassDataLink!$A$4:$A$1315,MassDataLink!$F$4:$F$1315) ->  | J138: 25 | K138: - - - | L138: - - -
B139: 26 | C139: -1 | D139: =LOOKUP(C139,MassDataLink!$A$4:$A$1315,MassDataLink!$B$4:$B$1315) ->  | E139: =LOOKUP(C139,MassDataLink!$A$4:$A$1315,MassDataLink!$C$4:$C$1315) ->  | F139: =LOOKUP(C139,MassDataLink!$A$4:$A$1315,MassDataLink!$D$4:$D$1315) ->  | G139: =LOOKUP(C139,MassDataLink!$A$4:$A$1315,MassDataLink!$E$4:$E$1315) ->  | H139: =LOOKUP(C139,MassDataLink!$A$4:$A$1315,MassDataLink!$F$4:$F$1315) ->  | J139: 26 | K139: - - - | L139: - - -
B140: 27 | C140: -1 | D140: =LOOKUP(C140,MassDataLink!$A$4:$A$1315,MassDataLink!$B$4:$B$1315) ->  | E140: =LOOKUP(C140,MassDataLink!$A$4:$A$1315,MassDataLink!$C$4:$C$1315) ->  | F140: =LOOKUP(C140,MassDataLink!$A$4:$A$1315,MassDataLink!$D$4:$D$1315) ->  | G140: =LOOKUP(C140,MassDataLink!$A$4:$A$1315,MassDataLink!$E$4:$E$1315) ->  | H140: =LOOKUP(C140,MassDataLink!$A$4:$A$1315,MassDataLink!$F$4:$F$1315) ->  | J140: 27 | K140: - - - | L140: - - -
B141: 28 | C141: -1 | D141: =LOOKUP(C141,MassDataLink!$A$4:$A$1315,MassDataLink!$B$4:$B$1315) ->  | E141: =LOOKUP(C141,MassDataLink!$A$4:$A$1315,MassDataLink!$C$4:$C$1315) ->  | F141: =LOOKUP(C141,MassDataLink!$A$4:$A$1315,MassDataLink!$D$4:$D$1315) ->  | G141: =LOOKUP(C141,MassDataLink!$A$4:$A$1315,MassDataLink!$E$4:$E$1315) ->  | H141: =LOOKUP(C141,MassDataLink!$A$4:$A$1315,MassDataLink!$F$4:$F$1315) ->  | J141: 28 | K141: - - - | L141: - - -
B142: 29 | C142: -1 | D142: =LOOKUP(C142,MassDataLink!$A$4:$A$1315,MassDataLink!$B$4:$B$1315) ->  | E142: =LOOKUP(C142,MassDataLink!$A$4:$A$1315,MassDataLink!$C$4:$C$1315) ->  | F142: =LOOKUP(C142,MassDataLink!$A$4:$A$1315,MassDataLink!$D$4:$D$1315) ->  | G142: =LOOKUP(C142,MassDataLink!$A$4:$A$1315,MassDataLink!$E$4:$E$1315) ->  | H142: =LOOKUP(C142,MassDataLink!$A$4:$A$1315,MassDataLink!$F$4:$F$1315) ->  | J142: 29 | K142: - - - | L142: - - -
B143: 30 | C143: -1 | D143: =LOOKUP(C143,MassDataLink!$A$4:$A$1315,MassDataLink!$B$4:$B$1315) ->  | E143: =LOOKUP(C143,MassDataLink!$A$4:$A$1315,MassDataLink!$C$4:$C$1315) ->  | F143: =LOOKUP(C143,MassDataLink!$A$4:$A$1315,MassDataLink!$D$4:$D$1315) ->  | G143: =LOOKUP(C143,MassDataLink!$A$4:$A$1315,MassDataLink!$E$4:$E$1315) ->  | H143: =LOOKUP(C143,MassDataLink!$A$4:$A$1315,MassDataLink!$F$4:$F$1315) ->  | J143: 30 | K143: - - - | L143: - - -
B144: =B143+1 -> 31 | C144: =IF(C143=-1,-1,H143) -> -1 | D144: =LOOKUP(C144,MassDataLink!$A$4:$A$1315,MassDataLink!$B$4:$B$1315) ->  | E144: =LOOKUP(C144,MassDataLink!$A$4:$A$1315,MassDataLink!$C$4:$C$1315) ->  | F144: =LOOKUP(C144,MassDataLink!$A$4:$A$1315,MassDataLink!$D$4:$D$1315) ->  | G144: =LOOKUP(C144,MassDataLink!$A$4:$A$1315,MassDataLink!$E$4:$E$1315) ->  | H144: =LOOKUP(C144,MassDataLink!$A$4:$A$1315,MassDataLink!$F$4:$F$1315) ->  | J144: 31 | K144: - - - | L144: - - -
B145: 32 | C145: -1 | D145: =LOOKUP(C145,MassDataLink!$A$4:$A$1315,MassDataLink!$B$4:$B$1315) ->  | E145: =LOOKUP(C145,MassDataLink!$A$4:$A$1315,MassDataLink!$C$4:$C$1315) ->  | F145: =LOOKUP(C145,MassDataLink!$A$4:$A$1315,MassDataLink!$D$4:$D$1315) ->  | G145: =LOOKUP(C145,MassDataLink!$A$4:$A$1315,MassDataLink!$E$4:$E$1315) ->  | H145: =LOOKUP(C145,MassDataLink!$A$4:$A$1315,MassDataLink!$F$4:$F$1315) ->  | J145: 32 | K145: - - - | L145: - - -
B146: 33 | C146: -1 | D146: =LOOKUP(C146,MassDataLink!$A$4:$A$1315,MassDataLink!$B$4:$B$1315) ->  | E146: =LOOKUP(C146,MassDataLink!$A$4:$A$1315,MassDataLink!$C$4:$C$1315) ->  | F146: =LOOKUP(C146,MassDataLink!$A$4:$A$1315,MassDataLink!$D$4:$D$1315) ->  | G146: =LOOKUP(C146,MassDataLink!$A$4:$A$1315,MassDataLink!$E$4:$E$1315) ->  | H146: =LOOKUP(C146,MassDataLink!$A$4:$A$1315,MassDataLink!$F$4:$F$1315) ->  | J146: 33 | K146: - - - | L146: - - -
B147: 34 | C147: -1 | D147: =LOOKUP(C147,MassDataLink!$A$4:$A$1315,MassDataLink!$B$4:$B$1315) ->  | E147: =LOOKUP(C147,MassDataLink!$A$4:$A$1315,MassDataLink!$C$4:$C$1315) ->  | F147: =LOOKUP(C147,MassDataLink!$A$4:$A$1315,MassDataLink!$D$4:$D$1315) ->  | G147: =LOOKUP(C147,MassDataLink!$A$4:$A$1315,MassDataLink!$E$4:$E$1315) ->  | H147: =LOOKUP(C147,MassDataLink!$A$4:$A$1315,MassDataLink!$F$4:$F$1315) ->  | J147: 34 | K147: - - - | L147: - - -
B148: 35 | C148: -1 | D148: =LOOKUP(C148,MassDataLink!$A$4:$A$1315,MassDataLink!$B$4:$B$1315) ->  | E148: =LOOKUP(C148,MassDataLink!$A$4:$A$1315,MassDataLink!$C$4:$C$1315) ->  | F148: =LOOKUP(C148,MassDataLink!$A$4:$A$1315,MassDataLink!$D$4:$D$1315) ->  | G148: =LOOKUP(C148,MassDataLink!$A$4:$A$1315,MassDataLink!$E$4:$E$1315) ->  | H148: =LOOKUP(C148,MassDataLink!$A$4:$A$1315,MassDataLink!$F$4:$F$1315) ->  | J148: 35 | K148: - - - | L148: - - -
B149: 36 | C149: -1 | D149: =LOOKUP(C149,MassDataLink!$A$4:$A$1315,MassDataLink!$B$4:$B$1315) ->  | E149: =LOOKUP(C149,MassDataLink!$A$4:$A$1315,MassDataLink!$C$4:$C$1315) ->  | F149: =LOOKUP(C149,MassDataLink!$A$4:$A$1315,MassDataLink!$D$4:$D$1315) ->  | G149: =LOOKUP(C149,MassDataLink!$A$4:$A$1315,MassDataLink!$E$4:$E$1315) ->  | H149: =LOOKUP(C149,MassDataLink!$A$4:$A$1315,MassDataLink!$F$4:$F$1315) ->  | J149: 36 | K149: - - - | L149: - - -
B150: 37 | C150: -1 | D150: =LOOKUP(C150,MassDataLink!$A$4:$A$1315,MassDataLink!$B$4:$B$1315) ->  | E150: =LOOKUP(C150,MassDataLink!$A$4:$A$1315,MassDataLink!$C$4:$C$1315) ->  | F150: =LOOKUP(C150,MassDataLink!$A$4:$A$1315,MassDataLink!$D$4:$D$1315) ->  | G150: =LOOKUP(C150,MassDataLink!$A$4:$A$1315,MassDataLink!$E$4:$E$1315) ->  | H150: =LOOKUP(C150,MassDataLink!$A$4:$A$1315,MassDataLink!$F$4:$F$1315) ->  | J150: 37 | K150: - - - | L150: - - -
B151: 38 | C151: -1 | D151: =LOOKUP(C151,MassDataLink!$A$4:$A$1315,MassDataLink!$B$4:$B$1315) ->  | E151: =LOOKUP(C151,MassDataLink!$A$4:$A$1315,MassDataLink!$C$4:$C$1315) ->  | F151: =LOOKUP(C151,MassDataLink!$A$4:$A$1315,MassDataLink!$D$4:$D$1315) ->  | G151: =LOOKUP(C151,MassDataLink!$A$4:$A$1315,MassDataLink!$E$4:$E$1315) ->  | H151: =LOOKUP(C151,MassDataLink!$A$4:$A$1315,MassDataLink!$F$4:$F$1315) ->  | J151: 38 | K151: - - - | L151: - - -
B152: 39 | C152: -1 | D152: =LOOKUP(C152,MassDataLink!$A$4:$A$1315,MassDataLink!$B$4:$B$1315) ->  | E152: =LOOKUP(C152,MassDataLink!$A$4:$A$1315,MassDataLink!$C$4:$C$1315) ->  | F152: =LOOKUP(C152,MassDataLink!$A$4:$A$1315,MassDataLink!$D$4:$D$1315) ->  | G152: =LOOKUP(C152,MassDataLink!$A$4:$A$1315,MassDataLink!$E$4:$E$1315) ->  | H152: =LOOKUP(C152,MassDataLink!$A$4:$A$1315,MassDataLink!$F$4:$F$1315) ->  | J152: 39 | K152: - - - | L152: - - -
B153: 40 | C153: -1 | D153: =LOOKUP(C153,MassDataLink!$A$4:$A$1315,MassDataLink!$B$4:$B$1315) ->  | E153: =LOOKUP(C153,MassDataLink!$A$4:$A$1315,MassDataLink!$C$4:$C$1315) ->  | F153: =LOOKUP(C153,MassDataLink!$A$4:$A$1315,MassDataLink!$D$4:$D$1315) ->  | G153: =LOOKUP(C153,MassDataLink!$A$4:$A$1315,MassDataLink!$E$4:$E$1315) ->  | H153: =LOOKUP(C153,MassDataLink!$A$4:$A$1315,MassDataLink!$F$4:$F$1315) ->  | J153: 40 | K153: - - - | L153: - - -
B154: 41 | C154: -1 | D154: =LOOKUP(C154,MassDataLink!$A$4:$A$1315,MassDataLink!$B$4:$B$1315) ->  | E154: =LOOKUP(C154,MassDataLink!$A$4:$A$1315,MassDataLink!$C$4:$C$1315) ->  | F154: =LOOKUP(C154,MassDataLink!$A$4:$A$1315,MassDataLink!$D$4:$D$1315) ->  | G154: =LOOKUP(C154,MassDataLink!$A$4:$A$1315,MassDataLink!$E$4:$E$1315) ->  | H154: =LOOKUP(C154,MassDataLink!$A$4:$A$1315,MassDataLink!$F$4:$F$1315) ->  | J154: 41 | K154: - - - | L154: - - -
B155: 42 | C155: -1 | D155: =LOOKUP(C155,MassDataLink!$A$4:$A$1315,MassDataLink!$B$4:$B$1315) ->  | E155: =LOOKUP(C155,MassDataLink!$A$4:$A$1315,MassDataLink!$C$4:$C$1315) ->  | F155: =LOOKUP(C155,MassDataLink!$A$4:$A$1315,MassDataLink!$D$4:$D$1315) ->  | G155: =LOOKUP(C155,MassDataLink!$A$4:$A$1315,MassDataLink!$E$4:$E$1315) ->  | H155: =LOOKUP(C155,MassDataLink!$A$4:$A$1315,MassDataLink!$F$4:$F$1315) ->  | J155: 42 | K155: - - - | L155: - - -
B156: 43 | C156: -1 | D156: =LOOKUP(C156,MassDataLink!$A$4:$A$1315,MassDataLink!$B$4:$B$1315) ->  | E156: =LOOKUP(C156,MassDataLink!$A$4:$A$1315,MassDataLink!$C$4:$C$1315) ->  | F156: =LOOKUP(C156,MassDataLink!$A$4:$A$1315,MassDataLink!$D$4:$D$1315) ->  | G156: =LOOKUP(C156,MassDataLink!$A$4:$A$1315,MassDataLink!$E$4:$E$1315) ->  | H156: =LOOKUP(C156,MassDataLink!$A$4:$A$1315,MassDataLink!$F$4:$F$1315) ->  | J156: 43 | K156: - - - | L156: - - -
B157: 44 | C157: -1 | D157: =LOOKUP(C157,MassDataLink!$A$4:$A$1315,MassDataLink!$B$4:$B$1315) ->  | E157: =LOOKUP(C157,MassDataLink!$A$4:$A$1315,MassDataLink!$C$4:$C$1315) ->  | F157: =LOOKUP(C157,MassDataLink!$A$4:$A$1315,MassDataLink!$D$4:$D$1315) ->  | G157: =LOOKUP(C157,MassDataLink!$A$4:$A$1315,MassDataLink!$E$4:$E$1315) ->  | H157: =LOOKUP(C157,MassDataLink!$A$4:$A$1315,MassDataLink!$F$4:$F$1315) ->  | J157: 44 | K157: - - - | L157: - - -
B158: 45 | C158: -1 | D158: =LOOKUP(C158,MassDataLink!$A$4:$A$1315,MassDataLink!$B$4:$B$1315) ->  | E158: =LOOKUP(C158,MassDataLink!$A$4:$A$1315,MassDataLink!$C$4:$C$1315) ->  | F158: =LOOKUP(C158,MassDataLink!$A$4:$A$1315,MassDataLink!$D$4:$D$1315) ->  | G158: =LOOKUP(C158,MassDataLink!$A$4:$A$1315,MassDataLink!$E$4:$E$1315) ->  | H158: =LOOKUP(C158,MassDataLink!$A$4:$A$1315,MassDataLink!$F$4:$F$1315) ->  | J158: 45 | K158: - - - | L158: - - -
B159: 46 | C159: -1 | D159: =LOOKUP(C159,MassDataLink!$A$4:$A$1315,MassDataLink!$B$4:$B$1315) ->  | E159: =LOOKUP(C159,MassDataLink!$A$4:$A$1315,MassDataLink!$C$4:$C$1315) ->  | F159: =LOOKUP(C159,MassDataLink!$A$4:$A$1315,MassDataLink!$D$4:$D$1315) ->  | G159: =LOOKUP(C159,MassDataLink!$A$4:$A$1315,MassDataLink!$E$4:$E$1315) ->  | H159: =LOOKUP(C159,MassDataLink!$A$4:$A$1315,MassDataLink!$F$4:$F$1315) ->  | J159: 46 | K159: - - - | L159: - - -
B160: 47 | C160: -1 | D160: =LOOKUP(C160,MassDataLink!$A$4:$A$1315,MassDataLink!$B$4:$B$1315) ->  | E160: =LOOKUP(C160,MassDataLink!$A$4:$A$1315,MassDataLink!$C$4:$C$1315) ->  | F160: =LOOKUP(C160,MassDataLink!$A$4:$A$1315,MassDataLink!$D$4:$D$1315) ->  | G160: =LOOKUP(C160,MassDataLink!$A$4:$A$1315,MassDataLink!$E$4:$E$1315) ->  | H160: =LOOKUP(C160,MassDataLink!$A$4:$A$1315,MassDataLink!$F$4:$F$1315) ->  | J160: 47 | K160: - - - | L160: - - -
B161: 48 | C161: -1 | D161: =LOOKUP(C161,MassDataLink!$A$4:$A$1315,MassDataLink!$B$4:$B$1315) ->  | E161: =LOOKUP(C161,MassDataLink!$A$4:$A$1315,MassDataLink!$C$4:$C$1315) ->  | F161: =LOOKUP(C161,MassDataLink!$A$4:$A$1315,MassDataLink!$D$4:$D$1315) ->  | G161: =LOOKUP(C161,MassDataLink!$A$4:$A$1315,MassDataLink!$E$4:$E$1315) ->  | H161: =LOOKUP(C161,MassDataLink!$A$4:$A$1315,MassDataLink!$F$4:$F$1315) ->  | J161: 48 | K161: - - - | L161: - - -
B162: 49 | C162: -1 | D162: =LOOKUP(C162,MassDataLink!$A$4:$A$1315,MassDataLink!$B$4:$B$1315) ->  | E162: =LOOKUP(C162,MassDataLink!$A$4:$A$1315,MassDataLink!$C$4:$C$1315) ->  | F162: =LOOKUP(C162,MassDataLink!$A$4:$A$1315,MassDataLink!$D$4:$D$1315) ->  | G162: =LOOKUP(C162,MassDataLink!$A$4:$A$1315,MassDataLink!$E$4:$E$1315) ->  | H162: =LOOKUP(C162,MassDataLink!$A$4:$A$1315,MassDataLink!$F$4:$F$1315) ->  | J162: 49 | K162: - - - | L162: - - -
B163: 50 | C163: -1 | D163: =LOOKUP(C163,MassDataLink!$A$4:$A$1315,MassDataLink!$B$4:$B$1315) ->  | E163: =LOOKUP(C163,MassDataLink!$A$4:$A$1315,MassDataLink!$C$4:$C$1315) ->  | F163: =LOOKUP(C163,MassDataLink!$A$4:$A$1315,MassDataLink!$D$4:$D$1315) ->  | G163: =LOOKUP(C163,MassDataLink!$A$4:$A$1315,MassDataLink!$E$4:$E$1315) ->  | H163: =LOOKUP(C163,MassDataLink!$A$4:$A$1315,MassDataLink!$F$4:$F$1315) ->  | J163: 50 | K163: - - - | L163: - - -
B164: =B163+1 -> 51 | C164: =IF(C163=-1,-1,H163) -> -1 | D164: =LOOKUP(C164,MassDataLink!$A$4:$A$1315,MassDataLink!$B$4:$B$1315) ->  | E164: =LOOKUP(C164,MassDataLink!$A$4:$A$1315,MassDataLink!$C$4:$C$1315) ->  | F164: =LOOKUP(C164,MassDataLink!$A$4:$A$1315,MassDataLink!$D$4:$D$1315) ->  | G164: =LOOKUP(C164,MassDataLink!$A$4:$A$1315,MassDataLink!$E$4:$E$1315) ->  | H164: =LOOKUP(C164,MassDataLink!$A$4:$A$1315,MassDataLink!$F$4:$F$1315) ->  | J164: =J163+1 -> 51 | K164: =IF(C164=-1,$L$112,IF($A$11=D164,ROUND((E164*$P$57),$R$57),$L$112)) -> - - - | L164: =IF(K164=$L$112,$L$112,F164) -> - - -
B165: 52 | C165: -1 | D165: =LOOKUP(C165,MassDataLink!$A$4:$A$1315,MassDataLink!$B$4:$B$1315) ->  | E165: =LOOKUP(C165,MassDataLink!$A$4:$A$1315,MassDataLink!$C$4:$C$1315) ->  | F165: =LOOKUP(C165,MassDataLink!$A$4:$A$1315,MassDataLink!$D$4:$D$1315) ->  | G165: =LOOKUP(C165,MassDataLink!$A$4:$A$1315,MassDataLink!$E$4:$E$1315) ->  | H165: =LOOKUP(C165,MassDataLink!$A$4:$A$1315,MassDataLink!$F$4:$F$1315) ->  | J165: 52 | K165: - - - | L165: - - -
B166: 53 | C166: -1 | D166: =LOOKUP(C166,MassDataLink!$A$4:$A$1315,MassDataLink!$B$4:$B$1315) ->  | E166: =LOOKUP(C166,MassDataLink!$A$4:$A$1315,MassDataLink!$C$4:$C$1315) ->  | F166: =LOOKUP(C166,MassDataLink!$A$4:$A$1315,MassDataLink!$D$4:$D$1315) ->  | G166: =LOOKUP(C166,MassDataLink!$A$4:$A$1315,MassDataLink!$E$4:$E$1315) ->  | H166: =LOOKUP(C166,MassDataLink!$A$4:$A$1315,MassDataLink!$F$4:$F$1315) ->  | J166: 53 | K166: - - - | L166: - - -
B167: 54 | C167: -1 | D167: =LOOKUP(C167,MassDataLink!$A$4:$A$1315,MassDataLink!$B$4:$B$1315) ->  | E167: =LOOKUP(C167,MassDataLink!$A$4:$A$1315,MassDataLink!$C$4:$C$1315) ->  | F167: =LOOKUP(C167,MassDataLink!$A$4:$A$1315,MassDataLink!$D$4:$D$1315) ->  | G167: =LOOKUP(C167,MassDataLink!$A$4:$A$1315,MassDataLink!$E$4:$E$1315) ->  | H167: =LOOKUP(C167,MassDataLink!$A$4:$A$1315,MassDataLink!$F$4:$F$1315) ->  | J167: 54 | K167: - - - | L167: - - -
B168: 55 | C168: -1 | D168: =LOOKUP(C168,MassDataLink!$A$4:$A$1315,MassDataLink!$B$4:$B$1315) ->  | E168: =LOOKUP(C168,MassDataLink!$A$4:$A$1315,MassDataLink!$C$4:$C$1315) ->  | F168: =LOOKUP(C168,MassDataLink!$A$4:$A$1315,MassDataLink!$D$4:$D$1315) ->  | G168: =LOOKUP(C168,MassDataLink!$A$4:$A$1315,MassDataLink!$E$4:$E$1315) ->  | H168: =LOOKUP(C168,MassDataLink!$A$4:$A$1315,MassDataLink!$F$4:$F$1315) ->  | J168: 55 | K168: - - - | L168: - - -
B169: 56 | C169: -1 | D169: =LOOKUP(C169,MassDataLink!$A$4:$A$1315,MassDataLink!$B$4:$B$1315) ->  | E169: =LOOKUP(C169,MassDataLink!$A$4:$A$1315,MassDataLink!$C$4:$C$1315) ->  | F169: =LOOKUP(C169,MassDataLink!$A$4:$A$1315,MassDataLink!$D$4:$D$1315) ->  | G169: =LOOKUP(C169,MassDataLink!$A$4:$A$1315,MassDataLink!$E$4:$E$1315) ->  | H169: =LOOKUP(C169,MassDataLink!$A$4:$A$1315,MassDataLink!$F$4:$F$1315) ->  | J169: 56 | K169: - - - | L169: - - -
B170: 57 | C170: -1 | D170: =LOOKUP(C170,MassDataLink!$A$4:$A$1315,MassDataLink!$B$4:$B$1315) ->  | E170: =LOOKUP(C170,MassDataLink!$A$4:$A$1315,MassDataLink!$C$4:$C$1315) ->  | F170: =LOOKUP(C170,MassDataLink!$A$4:$A$1315,MassDataLink!$D$4:$D$1315) ->  | G170: =LOOKUP(C170,MassDataLink!$A$4:$A$1315,MassDataLink!$E$4:$E$1315) ->  | H170: =LOOKUP(C170,MassDataLink!$A$4:$A$1315,MassDataLink!$F$4:$F$1315) ->  | J170: 57 | K170: - - - | L170: - - -
B171: 58 | C171: -1 | D171: =LOOKUP(C171,MassDataLink!$A$4:$A$1315,MassDataLink!$B$4:$B$1315) ->  | E171: =LOOKUP(C171,MassDataLink!$A$4:$A$1315,MassDataLink!$C$4:$C$1315) ->  | F171: =LOOKUP(C171,MassDataLink!$A$4:$A$1315,MassDataLink!$D$4:$D$1315) ->  | G171: =LOOKUP(C171,MassDataLink!$A$4:$A$1315,MassDataLink!$E$4:$E$1315) ->  | H171: =LOOKUP(C171,MassDataLink!$A$4:$A$1315,MassDataLink!$F$4:$F$1315) ->  | J171: 58 | K171: - - - | L171: - - -
B172: 59 | C172: -1 | D172: =LOOKUP(C172,MassDataLink!$A$4:$A$1315,MassDataLink!$B$4:$B$1315) ->  | E172: =LOOKUP(C172,MassDataLink!$A$4:$A$1315,MassDataLink!$C$4:$C$1315) ->  | F172: =LOOKUP(C172,MassDataLink!$A$4:$A$1315,MassDataLink!$D$4:$D$1315) ->  | G172: =LOOKUP(C172,MassDataLink!$A$4:$A$1315,MassDataLink!$E$4:$E$1315) ->  | H172: =LOOKUP(C172,MassDataLink!$A$4:$A$1315,MassDataLink!$F$4:$F$1315) ->  | J172: 59 | K172: - - - | L172: - - -
B173: 60 | C173: -1 | D173: =LOOKUP(C173,MassDataLink!$A$4:$A$1315,MassDataLink!$B$4:$B$1315) ->  | E173: =LOOKUP(C173,MassDataLink!$A$4:$A$1315,MassDataLink!$C$4:$C$1315) ->  | F173: =LOOKUP(C173,MassDataLink!$A$4:$A$1315,MassDataLink!$D$4:$D$1315) ->  | G173: =LOOKUP(C173,MassDataLink!$A$4:$A$1315,MassDataLink!$E$4:$E$1315) ->  | H173: =LOOKUP(C173,MassDataLink!$A$4:$A$1315,MassDataLink!$F$4:$F$1315) ->  | J173: 60 | K173: - - - | L173: - - -
B174: 61 | C174: -1 | D174: =LOOKUP(C174,MassDataLink!$A$4:$A$1315,MassDataLink!$B$4:$B$1315) ->  | E174: =LOOKUP(C174,MassDataLink!$A$4:$A$1315,MassDataLink!$C$4:$C$1315) ->  | F174: =LOOKUP(C174,MassDataLink!$A$4:$A$1315,MassDataLink!$D$4:$D$1315) ->  | G174: =LOOKUP(C174,MassDataLink!$A$4:$A$1315,MassDataLink!$E$4:$E$1315) ->  | H174: =LOOKUP(C174,MassDataLink!$A$4:$A$1315,MassDataLink!$F$4:$F$1315) ->  | J174: 61 | K174: - - - | L174: - - -
B175: 62 | C175: -1 | D175: =LOOKUP(C175,MassDataLink!$A$4:$A$1315,MassDataLink!$B$4:$B$1315) ->  | E175: =LOOKUP(C175,MassDataLink!$A$4:$A$1315,MassDataLink!$C$4:$C$1315) ->  | F175: =LOOKUP(C175,MassDataLink!$A$4:$A$1315,MassDataLink!$D$4:$D$1315) ->  | G175: =LOOKUP(C175,MassDataLink!$A$4:$A$1315,MassDataLink!$E$4:$E$1315) ->  | H175: =LOOKUP(C175,MassDataLink!$A$4:$A$1315,MassDataLink!$F$4:$F$1315) ->  | J175: 62 | K175: - - - | L175: - - -
B176: 63 | C176: -1 | D176: =LOOKUP(C176,MassDataLink!$A$4:$A$1315,MassDataLink!$B$4:$B$1315) ->  | E176: =LOOKUP(C176,MassDataLink!$A$4:$A$1315,MassDataLink!$C$4:$C$1315) ->  | F176: =LOOKUP(C176,MassDataLink!$A$4:$A$1315,MassDataLink!$D$4:$D$1315) ->  | G176: =LOOKUP(C176,MassDataLink!$A$4:$A$1315,MassDataLink!$E$4:$E$1315) ->  | H176: =LOOKUP(C176,MassDataLink!$A$4:$A$1315,MassDataLink!$F$4:$F$1315) ->  | J176: 63 | K176: - - - | L176: - - -
B177: 64 | C177: -1 | D177: =LOOKUP(C177,MassDataLink!$A$4:$A$1315,MassDataLink!$B$4:$B$1315) ->  | E177: =LOOKUP(C177,MassDataLink!$A$4:$A$1315,MassDataLink!$C$4:$C$1315) ->  | F177: =LOOKUP(C177,MassDataLink!$A$4:$A$1315,MassDataLink!$D$4:$D$1315) ->  | G177: =LOOKUP(C177,MassDataLink!$A$4:$A$1315,MassDataLink!$E$4:$E$1315) ->  | H177: =LOOKUP(C177,MassDataLink!$A$4:$A$1315,MassDataLink!$F$4:$F$1315) ->  | J177: 64 | K177: - - - | L177: - - -
B178: 65 | C178: -1 | D178: =LOOKUP(C178,MassDataLink!$A$4:$A$1315,MassDataLink!$B$4:$B$1315) ->  | E178: =LOOKUP(C178,MassDataLink!$A$4:$A$1315,MassDataLink!$C$4:$C$1315) ->  | F178: =LOOKUP(C178,MassDataLink!$A$4:$A$1315,MassDataLink!$D$4:$D$1315) ->  | G178: =LOOKUP(C178,MassDataLink!$A$4:$A$1315,MassDataLink!$E$4:$E$1315) ->  | H178: =LOOKUP(C178,MassDataLink!$A$4:$A$1315,MassDataLink!$F$4:$F$1315) ->  | J178: 65 | K178: - - - | L178: - - -
B179: 66 | C179: -1 | D179: =LOOKUP(C179,MassDataLink!$A$4:$A$1315,MassDataLink!$B$4:$B$1315) ->  | E179: =LOOKUP(C179,MassDataLink!$A$4:$A$1315,MassDataLink!$C$4:$C$1315) ->  | F179: =LOOKUP(C179,MassDataLink!$A$4:$A$1315,MassDataLink!$D$4:$D$1315) ->  | G179: =LOOKUP(C179,MassDataLink!$A$4:$A$1315,MassDataLink!$E$4:$E$1315) ->  | H179: =LOOKUP(C179,MassDataLink!$A$4:$A$1315,MassDataLink!$F$4:$F$1315) ->  | J179: 66 | K179: - - - | L179: - - -
B180: 67 | C180: -1 | D180: =LOOKUP(C180,MassDataLink!$A$4:$A$1315,MassDataLink!$B$4:$B$1315) ->  | E180: =LOOKUP(C180,MassDataLink!$A$4:$A$1315,MassDataLink!$C$4:$C$1315) ->  | F180: =LOOKUP(C180,MassDataLink!$A$4:$A$1315,MassDataLink!$D$4:$D$1315) ->  | G180: =LOOKUP(C180,MassDataLink!$A$4:$A$1315,MassDataLink!$E$4:$E$1315) ->  | H180: =LOOKUP(C180,MassDataLink!$A$4:$A$1315,MassDataLink!$F$4:$F$1315) ->  | J180: 67 | K180: - - - | L180: - - -
B181: 68 | C181: -1 | D181: =LOOKUP(C181,MassDataLink!$A$4:$A$1315,MassDataLink!$B$4:$B$1315) ->  | E181: =LOOKUP(C181,MassDataLink!$A$4:$A$1315,MassDataLink!$C$4:$C$1315) ->  | F181: =LOOKUP(C181,MassDataLink!$A$4:$A$1315,MassDataLink!$D$4:$D$1315) ->  | G181: =LOOKUP(C181,MassDataLink!$A$4:$A$1315,MassDataLink!$E$4:$E$1315) ->  | H181: =LOOKUP(C181,MassDataLink!$A$4:$A$1315,MassDataLink!$F$4:$F$1315) ->  | J181: 68 | K181: - - - | L181: - - -
B182: 69 | C182: -1 | D182: =LOOKUP(C182,MassDataLink!$A$4:$A$1315,MassDataLink!$B$4:$B$1315) ->  | E182: =LOOKUP(C182,MassDataLink!$A$4:$A$1315,MassDataLink!$C$4:$C$1315) ->  | F182: =LOOKUP(C182,MassDataLink!$A$4:$A$1315,MassDataLink!$D$4:$D$1315) ->  | G182: =LOOKUP(C182,MassDataLink!$A$4:$A$1315,MassDataLink!$E$4:$E$1315) ->  | H182: =LOOKUP(C182,MassDataLink!$A$4:$A$1315,MassDataLink!$F$4:$F$1315) ->  | J182: 69 | K182: - - - | L182: - - -
B183: 70 | C183: -1 | D183: =LOOKUP(C183,MassDataLink!$A$4:$A$1315,MassDataLink!$B$4:$B$1315) ->  | E183: =LOOKUP(C183,MassDataLink!$A$4:$A$1315,MassDataLink!$C$4:$C$1315) ->  | F183: =LOOKUP(C183,MassDataLink!$A$4:$A$1315,MassDataLink!$D$4:$D$1315) ->  | G183: =LOOKUP(C183,MassDataLink!$A$4:$A$1315,MassDataLink!$E$4:$E$1315) ->  | H183: =LOOKUP(C183,MassDataLink!$A$4:$A$1315,MassDataLink!$F$4:$F$1315) ->  | J183: 70 | K183: - - - | L183: - - -
B184: 71 | C184: -1 | D184: =LOOKUP(C184,MassDataLink!$A$4:$A$1315,MassDataLink!$B$4:$B$1315) ->  | E184: =LOOKUP(C184,MassDataLink!$A$4:$A$1315,MassDataLink!$C$4:$C$1315) ->  | F184: =LOOKUP(C184,MassDataLink!$A$4:$A$1315,MassDataLink!$D$4:$D$1315) ->  | G184: =LOOKUP(C184,MassDataLink!$A$4:$A$1315,MassDataLink!$E$4:$E$1315) ->  | H184: =LOOKUP(C184,MassDataLink!$A$4:$A$1315,MassDataLink!$F$4:$F$1315) ->  | J184: 71 | K184: - - - | L184: - - -
B185: 72 | C185: -1 | D185: =LOOKUP(C185,MassDataLink!$A$4:$A$1315,MassDataLink!$B$4:$B$1315) ->  | E185: =LOOKUP(C185,MassDataLink!$A$4:$A$1315,MassDataLink!$C$4:$C$1315) ->  | F185: =LOOKUP(C185,MassDataLink!$A$4:$A$1315,MassDataLink!$D$4:$D$1315) ->  | G185: =LOOKUP(C185,MassDataLink!$A$4:$A$1315,MassDataLink!$E$4:$E$1315) ->  | H185: =LOOKUP(C185,MassDataLink!$A$4:$A$1315,MassDataLink!$F$4:$F$1315) ->  | J185: 72 | K185: - - - | L185: - - -
B186: 73 | C186: -1 | D186: =LOOKUP(C186,MassDataLink!$A$4:$A$1315,MassDataLink!$B$4:$B$1315) ->  | E186: =LOOKUP(C186,MassDataLink!$A$4:$A$1315,MassDataLink!$C$4:$C$1315) ->  | F186: =LOOKUP(C186,MassDataLink!$A$4:$A$1315,MassDataLink!$D$4:$D$1315) ->  | G186: =LOOKUP(C186,MassDataLink!$A$4:$A$1315,MassDataLink!$E$4:$E$1315) ->  | H186: =LOOKUP(C186,MassDataLink!$A$4:$A$1315,MassDataLink!$F$4:$F$1315) ->  | J186: 73 | K186: - - - | L186: - - -
B187: 74 | C187: -1 | D187: =LOOKUP(C187,MassDataLink!$A$4:$A$1315,MassDataLink!$B$4:$B$1315) ->  | E187: =LOOKUP(C187,MassDataLink!$A$4:$A$1315,MassDataLink!$C$4:$C$1315) ->  | F187: =LOOKUP(C187,MassDataLink!$A$4:$A$1315,MassDataLink!$D$4:$D$1315) ->  | G187: =LOOKUP(C187,MassDataLink!$A$4:$A$1315,MassDataLink!$E$4:$E$1315) ->  | H187: =LOOKUP(C187,MassDataLink!$A$4:$A$1315,MassDataLink!$F$4:$F$1315) ->  | J187: 74 | K187: - - - | L187: - - -
B188: 75 | C188: -1 | D188: =LOOKUP(C188,MassDataLink!$A$4:$A$1315,MassDataLink!$B$4:$B$1315) ->  | E188: =LOOKUP(C188,MassDataLink!$A$4:$A$1315,MassDataLink!$C$4:$C$1315) ->  | F188: =LOOKUP(C188,MassDataLink!$A$4:$A$1315,MassDataLink!$D$4:$D$1315) ->  | G188: =LOOKUP(C188,MassDataLink!$A$4:$A$1315,MassDataLink!$E$4:$E$1315) ->  | H188: =LOOKUP(C188,MassDataLink!$A$4:$A$1315,MassDataLink!$F$4:$F$1315) ->  | J188: 75 | K188: - - - | L188: - - -
B189: 76 | C189: -1 | D189: =LOOKUP(C189,MassDataLink!$A$4:$A$1315,MassDataLink!$B$4:$B$1315) ->  | E189: =LOOKUP(C189,MassDataLink!$A$4:$A$1315,MassDataLink!$C$4:$C$1315) ->  | F189: =LOOKUP(C189,MassDataLink!$A$4:$A$1315,MassDataLink!$D$4:$D$1315) ->  | G189: =LOOKUP(C189,MassDataLink!$A$4:$A$1315,MassDataLink!$E$4:$E$1315) ->  | H189: =LOOKUP(C189,MassDataLink!$A$4:$A$1315,MassDataLink!$F$4:$F$1315) ->  | J189: 76 | K189: - - - | L189: - - -
B190: 77 | C190: -1 | D190: =LOOKUP(C190,MassDataLink!$A$4:$A$1315,MassDataLink!$B$4:$B$1315) ->  | E190: =LOOKUP(C190,MassDataLink!$A$4:$A$1315,MassDataLink!$C$4:$C$1315) ->  | F190: =LOOKUP(C190,MassDataLink!$A$4:$A$1315,MassDataLink!$D$4:$D$1315) ->  | G190: =LOOKUP(C190,MassDataLink!$A$4:$A$1315,MassDataLink!$E$4:$E$1315) ->  | H190: =LOOKUP(C190,MassDataLink!$A$4:$A$1315,MassDataLink!$F$4:$F$1315) ->  | J190: 77 | K190: - - - | L190: - - -
B191: 78 | C191: -1 | D191: =LOOKUP(C191,MassDataLink!$A$4:$A$1315,MassDataLink!$B$4:$B$1315) ->  | E191: =LOOKUP(C191,MassDataLink!$A$4:$A$1315,MassDataLink!$C$4:$C$1315) ->  | F191: =LOOKUP(C191,MassDataLink!$A$4:$A$1315,MassDataLink!$D$4:$D$1315) ->  | G191: =LOOKUP(C191,MassDataLink!$A$4:$A$1315,MassDataLink!$E$4:$E$1315) ->  | H191: =LOOKUP(C191,MassDataLink!$A$4:$A$1315,MassDataLink!$F$4:$F$1315) ->  | J191: 78 | K191: - - - | L191: - - -
B192: 79 | C192: -1 | D192: =LOOKUP(C192,MassDataLink!$A$4:$A$1315,MassDataLink!$B$4:$B$1315) ->  | E192: =LOOKUP(C192,MassDataLink!$A$4:$A$1315,MassDataLink!$C$4:$C$1315) ->  | F192: =LOOKUP(C192,MassDataLink!$A$4:$A$1315,MassDataLink!$D$4:$D$1315) ->  | G192: =LOOKUP(C192,MassDataLink!$A$4:$A$1315,MassDataLink!$E$4:$E$1315) ->  | H192: =LOOKUP(C192,MassDataLink!$A$4:$A$1315,MassDataLink!$F$4:$F$1315) ->  | J192: 79 | K192: - - - | L192: - - -
B193: 80 | C193: -1 | D193: =LOOKUP(C193,MassDataLink!$A$4:$A$1315,MassDataLink!$B$4:$B$1315) ->  | E193: =LOOKUP(C193,MassDataLink!$A$4:$A$1315,MassDataLink!$C$4:$C$1315) ->  | F193: =LOOKUP(C193,MassDataLink!$A$4:$A$1315,MassDataLink!$D$4:$D$1315) ->  | G193: =LOOKUP(C193,MassDataLink!$A$4:$A$1315,MassDataLink!$E$4:$E$1315) ->  | H193: =LOOKUP(C193,MassDataLink!$A$4:$A$1315,MassDataLink!$F$4:$F$1315) ->  | J193: 80 | K193: - - - | L193: - - -
B194: 81 | C194: -1 | D194: =LOOKUP(C194,MassDataLink!$A$4:$A$1315,MassDataLink!$B$4:$B$1315) ->  | E194: =LOOKUP(C194,MassDataLink!$A$4:$A$1315,MassDataLink!$C$4:$C$1315) ->  | F194: =LOOKUP(C194,MassDataLink!$A$4:$A$1315,MassDataLink!$D$4:$D$1315) ->  | G194: =LOOKUP(C194,MassDataLink!$A$4:$A$1315,MassDataLink!$E$4:$E$1315) ->  | H194: =LOOKUP(C194,MassDataLink!$A$4:$A$1315,MassDataLink!$F$4:$F$1315) ->  | J194: 81 | K194: - - - | L194: - - -
B195: 82 | C195: -1 | D195: =LOOKUP(C195,MassDataLink!$A$4:$A$1315,MassDataLink!$B$4:$B$1315) ->  | E195: =LOOKUP(C195,MassDataLink!$A$4:$A$1315,MassDataLink!$C$4:$C$1315) ->  | F195: =LOOKUP(C195,MassDataLink!$A$4:$A$1315,MassDataLink!$D$4:$D$1315) ->  | G195: =LOOKUP(C195,MassDataLink!$A$4:$A$1315,MassDataLink!$E$4:$E$1315) ->  | H195: =LOOKUP(C195,MassDataLink!$A$4:$A$1315,MassDataLink!$F$4:$F$1315) ->  | J195: 82 | K195: - - - | L195: - - -
B196: 83 | C196: -1 | D196: =LOOKUP(C196,MassDataLink!$A$4:$A$1315,MassDataLink!$B$4:$B$1315) ->  | E196: =LOOKUP(C196,MassDataLink!$A$4:$A$1315,MassDataLink!$C$4:$C$1315) ->  | F196: =LOOKUP(C196,MassDataLink!$A$4:$A$1315,MassDataLink!$D$4:$D$1315) ->  | G196: =LOOKUP(C196,MassDataLink!$A$4:$A$1315,MassDataLink!$E$4:$E$1315) ->  | H196: =LOOKUP(C196,MassDataLink!$A$4:$A$1315,MassDataLink!$F$4:$F$1315) ->  | J196: 83 | K196: - - - | L196: - - -
B197: 84 | C197: -1 | D197: =LOOKUP(C197,MassDataLink!$A$4:$A$1315,MassDataLink!$B$4:$B$1315) ->  | E197: =LOOKUP(C197,MassDataLink!$A$4:$A$1315,MassDataLink!$C$4:$C$1315) ->  | F197: =LOOKUP(C197,MassDataLink!$A$4:$A$1315,MassDataLink!$D$4:$D$1315) ->  | G197: =LOOKUP(C197,MassDataLink!$A$4:$A$1315,MassDataLink!$E$4:$E$1315) ->  | H197: =LOOKUP(C197,MassDataLink!$A$4:$A$1315,MassDataLink!$F$4:$F$1315) ->  | J197: 84 | K197: - - - | L197: - - -
B198: 85 | C198: -1 | D198: =LOOKUP(C198,MassDataLink!$A$4:$A$1315,MassDataLink!$B$4:$B$1315) ->  | E198: =LOOKUP(C198,MassDataLink!$A$4:$A$1315,MassDataLink!$C$4:$C$1315) ->  | F198: =LOOKUP(C198,MassDataLink!$A$4:$A$1315,MassDataLink!$D$4:$D$1315) ->  | G198: =LOOKUP(C198,MassDataLink!$A$4:$A$1315,MassDataLink!$E$4:$E$1315) ->  | H198: =LOOKUP(C198,MassDataLink!$A$4:$A$1315,MassDataLink!$F$4:$F$1315) ->  | J198: 85 | K198: - - - | L198: - - -
B199: 86 | C199: -1 | D199: =LOOKUP(C199,MassDataLink!$A$4:$A$1315,MassDataLink!$B$4:$B$1315) ->  | E199: =LOOKUP(C199,MassDataLink!$A$4:$A$1315,MassDataLink!$C$4:$C$1315) ->  | F199: =LOOKUP(C199,MassDataLink!$A$4:$A$1315,MassDataLink!$D$4:$D$1315) ->  | G199: =LOOKUP(C199,MassDataLink!$A$4:$A$1315,MassDataLink!$E$4:$E$1315) ->  | H199: =LOOKUP(C199,MassDataLink!$A$4:$A$1315,MassDataLink!$F$4:$F$1315) ->  | J199: 86 | K199: - - - | L199: - - -
B200: 87 | C200: -1 | D200: =LOOKUP(C200,MassDataLink!$A$4:$A$1315,MassDataLink!$B$4:$B$1315) ->  | E200: =LOOKUP(C200,MassDataLink!$A$4:$A$1315,MassDataLink!$C$4:$C$1315) ->  | F200: =LOOKUP(C200,MassDataLink!$A$4:$A$1315,MassDataLink!$D$4:$D$1315) ->  | G200: =LOOKUP(C200,MassDataLink!$A$4:$A$1315,MassDataLink!$E$4:$E$1315) ->  | H200: =LOOKUP(C200,MassDataLink!$A$4:$A$1315,MassDataLink!$F$4:$F$1315) ->  | J200: 87 | K200: - - - | L200: - - -
B201: 88 | C201: -1 | D201: =LOOKUP(C201,MassDataLink!$A$4:$A$1315,MassDataLink!$B$4:$B$1315) ->  | E201: =LOOKUP(C201,MassDataLink!$A$4:$A$1315,MassDataLink!$C$4:$C$1315) ->  | F201: =LOOKUP(C201,MassDataLink!$A$4:$A$1315,MassDataLink!$D$4:$D$1315) ->  | G201: =LOOKUP(C201,MassDataLink!$A$4:$A$1315,MassDataLink!$E$4:$E$1315) ->  | H201: =LOOKUP(C201,MassDataLink!$A$4:$A$1315,MassDataLink!$F$4:$F$1315) ->  | J201: 88 | K201: - - - | L201: - - -
B202: 89 | C202: -1 | D202: =LOOKUP(C202,MassDataLink!$A$4:$A$1315,MassDataLink!$B$4:$B$1315) ->  | E202: =LOOKUP(C202,MassDataLink!$A$4:$A$1315,MassDataLink!$C$4:$C$1315) ->  | F202: =LOOKUP(C202,MassDataLink!$A$4:$A$1315,MassDataLink!$D$4:$D$1315) ->  | G202: =LOOKUP(C202,MassDataLink!$A$4:$A$1315,MassDataLink!$E$4:$E$1315) ->  | H202: =LOOKUP(C202,MassDataLink!$A$4:$A$1315,MassDataLink!$F$4:$F$1315) ->  | J202: 89 | K202: - - - | L202: - - -
B203: 90 | C203: -1 | D203: =LOOKUP(C203,MassDataLink!$A$4:$A$1315,MassDataLink!$B$4:$B$1315) ->  | E203: =LOOKUP(C203,MassDataLink!$A$4:$A$1315,MassDataLink!$C$4:$C$1315) ->  | F203: =LOOKUP(C203,MassDataLink!$A$4:$A$1315,MassDataLink!$D$4:$D$1315) ->  | G203: =LOOKUP(C203,MassDataLink!$A$4:$A$1315,MassDataLink!$E$4:$E$1315) ->  | H203: =LOOKUP(C203,MassDataLink!$A$4:$A$1315,MassDataLink!$F$4:$F$1315) ->  | J203: 90 | K203: - - - | L203: - - -
B204: 91 | C204: -1 | D204: =LOOKUP(C204,MassDataLink!$A$4:$A$1315,MassDataLink!$B$4:$B$1315) ->  | E204: =LOOKUP(C204,MassDataLink!$A$4:$A$1315,MassDataLink!$C$4:$C$1315) ->  | F204: =LOOKUP(C204,MassDataLink!$A$4:$A$1315,MassDataLink!$D$4:$D$1315) ->  | G204: =LOOKUP(C204,MassDataLink!$A$4:$A$1315,MassDataLink!$E$4:$E$1315) ->  | H204: =LOOKUP(C204,MassDataLink!$A$4:$A$1315,MassDataLink!$F$4:$F$1315) ->  | J204: 91 | K204: - - - | L204: - - -
B205: 92 | C205: -1 | D205: =LOOKUP(C205,MassDataLink!$A$4:$A$1315,MassDataLink!$B$4:$B$1315) ->  | E205: =LOOKUP(C205,MassDataLink!$A$4:$A$1315,MassDataLink!$C$4:$C$1315) ->  | F205: =LOOKUP(C205,MassDataLink!$A$4:$A$1315,MassDataLink!$D$4:$D$1315) ->  | G205: =LOOKUP(C205,MassDataLink!$A$4:$A$1315,MassDataLink!$E$4:$E$1315) ->  | H205: =LOOKUP(C205,MassDataLink!$A$4:$A$1315,MassDataLink!$F$4:$F$1315) ->  | J205: 92 | K205: - - - | L205: - - -
... 133 more rows

Sheet ModelData (hidden)
B1: 1 | C1: 6 | D1: 7 | E1: 8 | F1: 10 | G1: 11 | H1: 12 | I1: 13 | J1: 14 | K1: 15 | L1: 16 | M1: 17 | N1: 18 | O1: 19 | P1: 20 | Q1: 21 | R1: 22 | S1: 23 | T1: 24 | U1: 25 | V1: 26 | W1: 27 | X1: 28 | Y1: 29 | Z1: 30 | AA1: 31 | AB1: 32 | AC1: 33
A2: データ№ | B2: ｱｸﾁｭｴｰﾀ型式 | C2: 最小ｽﾄﾛｰｸ | D2: 最大ｽﾄﾛｰｸ | E2: 動作種別 | F2: リンク[0] | I2: リンク[1] | L2: リンク[2] | O2: リンク[3] | R2: リンク[4] | U2: リンク[5] | X2: リンク[6] | AA2: リンク[7]
A3: 0 | C3: ㎜ | D3: ㎜ | E3: 1/0:回/直 | F3: ﾘｰﾄﾞ | G3: ｽﾄﾛｰｸ | H3: 搬送負荷 | I3: ﾘｰﾄﾞ | J3: ｽﾄﾛｰｸ | K3: 搬送負荷 | L3: ﾘｰﾄﾞ | M3: ｽﾄﾛｰｸ | N3: 搬送負荷 | O3: ﾘｰﾄﾞ | P3: ｽﾄﾛｰｸ | Q3: 搬送負荷 | R3: ﾘｰﾄﾞ | S3: ｽﾄﾛｰｸ | T3: 搬送負荷 | U3: ﾘｰﾄﾞ | V3: ｽﾄﾛｰｸ | W3: 搬送負荷 | X3: ﾘｰﾄﾞ | Y3: ｽﾄﾛｰｸ | Z3: 搬送負荷 | AA3: ﾘｰﾄﾞ | AB3: ｽﾄﾛｰｸ | AC3: 搬送負荷
A4: =A3+1 -> 1 | B4: RCP3-SA2AC-20P-*S | C4: 25 | D4: 100 | E4: 0 | F4: =LeadData!A4 -> 1 | G4: =StrokeData!A4 -> 1 | H4: =MassDataLink!A4 -> 1 | I4: =LeadData!A5 -> 2 | J4: =StrokeData!A5 -> 2 | K4: =MassDataLink!A5 -> 2 | L4: =LeadData!A6 -> 3 | M4: =StrokeData!A6 -> 3 | N4: =MassDataLink!A6 -> 3 | O4: -1 | P4: -1 | Q4: -1 | R4: -1 | S4: -1 | T4: -1 | U4: -1 | V4: -1 | W4: -1 | X4: -1 | Y4: -1 | Z4: -1 | AA4: -1 | AB4: -1 | AC4: -1
A5: =A4+1 -> 2 | B5: RCP3-SA2BC-20P-*S | C5: 25 | D5: 150 | E5: 0 | F5: =LeadData!A7 -> 4 | G5: =StrokeData!A7 -> 4 | H5: =MassDataLink!A7 -> 4 | I5: =LeadData!A8 -> 5 | J5: =StrokeData!A8 -> 5 | K5: =MassDataLink!A8 -> 5 | L5: =LeadData!A9 -> 6 | M5: =StrokeData!A9 -> 6 | N5: =MassDataLink!A9 -> 6 | O5: -1 | P5: -1 | Q5: -1 | R5: -1 | S5: -1 | T5: -1 | U5: -1 | V5: -1 | W5: -1 | X5: -1 | Y5: -1 | Z5: -1 | AA5: -1 | AB5: -1 | AC5: -1
A6: =A5+1 -> 3 | B6: RCP3-SA3C | C6: 50 | D6: 300 | E6: 0 | F6: =LeadData!A10 -> 7 | G6: =StrokeData!A10 -> 7 | H6: =MassDataLink!A10 -> 7 | I6: =LeadData!A11 -> 8 | J6: =StrokeData!A11 -> 8 | K6: =MassDataLink!A12 -> 9 | L6: =LeadData!A12 -> 9 | M6: =StrokeData!A12 -> 9 | N6: =MassDataLink!A14 -> 11 | O6: -1 | P6: -1 | Q6: -1 | R6: -1 | S6: -1 | T6: -1 | U6: -1 | V6: -1 | W6: -1 | X6: -1 | Y6: -1 | Z6: -1 | AA6: -1 | AB6: -1 | AC6: -1
A7: 4 | B7: RCP3-SA4C | C7: 50 | D7: 500 | E7: 0 | F7: =LeadData!A13 -> 10 | G7: =StrokeData!A13 -> 10 | H7: =MassDataLink!A16 -> 13 | I7: =LeadData!A14 -> 11 | J7: =StrokeData!A15 -> 12 | K7: =MassDataLink!A26 -> 23 | L7: =LeadData!A15 -> 12 | M7: =StrokeData!A17 -> 14 | N7: =MassDataLink!A36 -> 33 | O7: -1 | P7: -1 | Q7: -1 | R7: -1 | S7: -1 | T7: -1 | U7: -1 | V7: -1 | W7: -1 | X7: -1 | Y7: -1 | Z7: -1 | AA7: -1 | AB7: -1 | AC7: -1
A8: =A7+1 -> 5 | B8: RCP3-SA5C | C8: 50 | D8: 800 | E8: 0 | F8: =LeadData!A16 -> 13 | G8: =StrokeData!A19 -> 16 | H8: =MassDataLink!A50 -> 47 | I8: =LeadData!A17 -> 14 | J8: =StrokeData!A26 -> 23 | K8: =MassDataLink!A69 -> 66 | L8: =LeadData!A18 -> 15 | M8: =StrokeData!A33 -> 30 | N8: =MassDataLink!A85 -> 82 | O8: =LeadData!A19 -> 16 | P8: =StrokeData!A40 -> 37 | Q8: =MassDataLink!A98 -> 95 | R8: -1 | S8: -1 | T8: -1 | U8: -1 | V8: -1 | W8: -1 | X8: -1 | Y8: -1 | Z8: -1 | AA8: -1 | AB8: -1 | AC8: -1
A9: 6 | B9: RCP3-SA6C | C9: 50 | D9: 800 | E9: 0 | F9: =LeadData!A20 -> 17 | G9: =StrokeData!A45 -> 42 | H9: =MassDataLink!A106 -> 103 | I9: =LeadData!A21 -> 18 | J9: =StrokeData!A52 -> 49 | K9: =MassDataLink!A125 -> 122 | L9: =LeadData!A22 -> 19 | M9: =StrokeData!A59 -> 56 | N9: =MassDataLink!A141 -> 138 | O9: =LeadData!A23 -> 20 | P9: =StrokeData!A66 -> 63 | Q9: =MassDataLink!A154 -> 151 | R9: -1 | S9: -1 | T9: -1 | U9: -1 | V9: -1 | W9: -1 | X9: -1 | Y9: -1 | Z9: -1 | AA9: -1 | AB9: -1 | AC9: -1
A10: 7 | B10: RCP3-SA2AR-20P-*S | C10: 25 | D10: 100 | E10: 0 | F10: =LeadData!A24 -> 21 | G10: =StrokeData!A71 -> 68 | H10: =MassDataLink!A162 -> 159 | I10: =LeadData!A25 -> 22 | J10: =StrokeData!A72 -> 69 | K10: =MassDataLink!A163 -> 160 | L10: =LeadData!A26 -> 23 | M10: =StrokeData!A73 -> 70 | N10: =MassDataLink!A164 -> 161 | O10: -1 | P10: -1 | Q10: -1 | R10: -1 | S10: -1 | T10: -1 | U10: -1 | V10: -1 | W10: -1 | X10: -1 | Y10: -1 | Z10: -1 | AA10: -1 | AB10: -1 | AC10: -1
A11: 8 | B11: RCP3-SA2BR-20P-*S | C11: 25 | D11: 150 | E11: 0 | F11: =LeadData!A27 -> 24 | G11: =StrokeData!A74 -> 71 | H11: =MassDataLink!A165 -> 162 | I11: =LeadData!A28 -> 25 | J11: =StrokeData!A75 -> 72 | K11: =MassDataLink!A166 -> 163 | L11: =LeadData!A29 -> 26 | M11: =StrokeData!A76 -> 73 | N11: =MassDataLink!A167 -> 164 | O11: -1 | P11: -1 | Q11: -1 | R11: -1 | S11: -1 | T11: -1 | U11: -1 | V11: -1 | W11: -1 | X11: -1 | Y11: -1 | Z11: -1 | AA11: -1 | AB11: -1 | AC11: -1
A12: 9 | B12: RCP3-SA3R | C12: 50 | D12: 300 | E12: 0 | F12: =LeadData!A30 -> 27 | G12: =StrokeData!A77 -> 74 | H12: =MassDataLink!A168 -> 165 | I12: =LeadData!A31 -> 28 | J12: =StrokeData!A78 -> 75 | K12: =MassDataLink!A170 -> 167 | L12: =LeadData!A32 -> 29 | M12: =StrokeData!A79 -> 76 | N12: =MassDataLink!A172 -> 169 | O12: -1 | P12: -1 | Q12: -1 | R12: -1 | S12: -1 | T12: -1 | U12: -1 | V12: -1 | W12: -1 | X12: -1 | Y12: -1 | Z12: -1 | AA12: -1 | AB12: -1 | AC12: -1
A13: 10 | B13: RCP3-SA4R | C13: 50 | D13: 500 | E13: 0 | F13: =F7 -> 10 | G13: =G7 -> 10 | H13: 13 | I13: 11 | J13: 12 | K13: 23 | L13: 12 | M13: 14 | N13: 33 | O13: -1 | P13: -1 | Q13: -1 | R13: -1 | S13: -1 | T13: -1 | U13: -1 | V13: -1 | W13: -1 | X13: -1 | Y13: -1 | Z13: -1 | AA13: -1 | AB13: -1 | AC13: -1
A14: 11 | B14: RCP3-SA5R | C14: 50 | D14: 800 | E14: 0 | F14: =F8 -> 13 | G14: 16 | H14: 47 | I14: 14 | J14: 23 | K14: 66 | L14: 15 | M14: 30 | N14: 82 | O14: -1 | P14: -1 | Q14: -1 | R14: -1 | S14: -1 | T14: -1 | U14: -1 | V14: -1 | W14: -1 | X14: -1 | Y14: -1 | Z14: -1 | AA14: -1 | AB14: -1 | AC14: -1
A15: 12 | B15: RCP3-SA6R | C15: 50 | D15: 800 | E15: 0 | F15: =F9 -> 17 | G15: 42 | H15: 103 | I15: 18 | J15: 49 | K15: 122 | L15: 19 | M15: 56 | N15: 138 | O15: -1 | P15: -1 | Q15: -1 | R15: -1 | S15: -1 | T15: -1 | U15: -1 | V15: -1 | W15: -1 | X15: -1 | Y15: -1 | Z15: -1 | AA15: -1 | AB15: -1 | AC15: -1
A16: 13 | B16: RCP2-SA5C | C16: 50 | D16: 800 | E16: 0 | F16: =LeadData!A42 -> 39 | G16: =StrokeData!A128 -> 125 | H16: =MassDataLink!A205 -> 202 | I16: =LeadData!A43 -> 40 | J16: =StrokeData!A134 -> 131 | K16: =MassDataLink!A219 -> 216 | L16: =LeadData!A44 -> 41 | M16: =StrokeData!A140 -> 137 | N16: =MassDataLink!A230 -> 227 | O16: -1 | P16: -1 | Q16: -1 | R16: -1 | S16: -1 | T16: -1 | U16: -1 | V16: -1 | W16: -1 | X16: -1 | Y16: -1 | Z16: -1 | AA16: -1 | AB16: -1 | AC16: -1
A17: 14 | B17: RCP2-SA6C | C17: 50 | D17: 800 | E17: 0 | F17: =LeadData!A45 -> 42 | G17: =StrokeData!A146 -> 143 | H17: =MassDataLink!A241 -> 238 | I17: =LeadData!A46 -> 43 | J17: =StrokeData!A152 -> 149 | K17: =MassDataLink!A254 -> 251 | L17: =LeadData!A47 -> 44 | M17: =StrokeData!A158 -> 155 | N17: =MassDataLink!A268 -> 265 | O17: -1 | P17: -1 | Q17: -1 | R17: -1 | S17: -1 | T17: -1 | U17: -1 | V17: -1 | W17: -1 | X17: -1 | Y17: -1 | Z17: -1 | AA17: -1 | AB17: -1 | AC17: -1
A18: 15 | B18: RCP2-SA7C | C18: 50 | D18: 800 | E18: 0 | F18: =LeadData!A48 -> 45 | G18: =StrokeData!A164 -> 161 | H18: =MassDataLink!A278 -> 275 | I18: =LeadData!A49 -> 46 | J18: =StrokeData!A167 -> 164 | K18: =MassDataLink!A282 -> 279 | L18: =LeadData!A50 -> 47 | M18: =StrokeData!A170 -> 167 | N18: =MassDataLink!A289 -> 286 | O18: -1 | P18: -1 | Q18: -1 | R18: -1 | S18: -1 | T18: -1 | U18: -1 | V18: -1 | W18: -1 | X18: -1 | Y18: -1 | Z18: -1 | AA18: -1 | AB18: -1 | AC18: -1
A19: 16 | B19: RCP2-SS7C | C19: 50 | D19: 600 | E19: 0 | F19: =LeadData!A51 -> 48 | G19: =StrokeData!A177 -> 174 | H19: =MassDataLink!A297 -> 294 | I19: =LeadData!A52 -> 49 | J19: =StrokeData!A179 -> 176 | K19: =MassDataLink!A302 -> 299 | L19: =LeadData!A53 -> 50 | M19: =StrokeData!A181 -> 178 | N19: =MassDataLink!A308 -> 305 | O19: -1 | P19: -1 | Q19: -1 | R19: -1 | S19: -1 | T19: -1 | U19: -1 | V19: -1 | W19: -1 | X19: -1 | Y19: -1 | Z19: -1 | AA19: -1 | AB19: -1 | AC19: -1
A20: 17 | B20: RCP2-SS8C | C20: 50 | D20: 1000 | E20: 0 | F20: =LeadData!A54 -> 51 | G20: =StrokeData!A183 -> 180 | H20: =MassDataLink!A316 -> 313 | I20: =LeadData!A55 -> 52 | J20: =StrokeData!A187 -> 184 | K20: =MassDataLink!A324 -> 321 | L20: =LeadData!A56 -> 53 | M20: =StrokeData!A191 -> 188 | N20: =MassDataLink!A332 -> 329 | O20: -1 | P20: -1 | Q20: -1 | R20: -1 | S20: -1 | T20: -1 | U20: -1 | V20: -1 | W20: -1 | X20: -1 | Y20: -1 | Z20: -1 | AA20: -1 | AB20: -1 | AC20: -1
A21: 18 | B21: RCP2-HS8C | C21: 50 | D21: 1000 | E21: 0 | F21: =LeadData!A57 -> 54 | G21: =StrokeData!A195 -> 192 | H21: =MassDataLink!A340 -> 337 | I21: -1 | J21: -1 | K21: -1 | L21: -1 | M21: -1 | N21: -1 | O21: -1 | P21: -1 | Q21: -1 | R21: -1 | S21: -1 | T21: -1 | U21: -1 | V21: -1 | W21: -1 | X21: -1 | Y21: -1 | Z21: -1 | AA21: -1 | AB21: -1 | AC21: -1
A22: 19 | B22: RCP2-SA5R | C22: 50 | D22: 800 | E22: 0 | F22: =LeadData!A58 -> 55 | G22: =StrokeData!A199 -> 196 | H22: =MassDataLink!A348 -> 345 | I22: =LeadData!A59 -> 56 | J22: =StrokeData!A205 -> 202 | K22: =MassDataLink!A350 -> 347 | L22: =LeadData!A60 -> 57 | M22: =StrokeData!A211 -> 208 | N22: =MassDataLink!A352 -> 349 | O22: -1 | P22: -1 | Q22: -1 | R22: -1 | S22: -1 | T22: -1 | U22: -1 | V22: -1 | W22: -1 | X22: -1 | Y22: -1 | Z22: -1 | AA22: -1 | AB22: -1 | AC22: -1
A23: 20 | B23: RCP2-SA6R | C23: 50 | D23: 800 | E23: 0 | F23: =LeadData!A61 -> 58 | G23: =StrokeData!A217 -> 214 | H23: =MassDataLink!A354 -> 351 | I23: =LeadData!A62 -> 59 | J23: =StrokeData!A223 -> 220 | K23: =MassDataLink!A357 -> 354 | L23: =LeadData!A63 -> 60 | M23: =StrokeData!A229 -> 226 | N23: =MassDataLink!A361 -> 358 | O23: -1 | P23: -1 | Q23: -1 | R23: -1 | S23: -1 | T23: -1 | U23: -1 | V23: -1 | W23: -1 | X23: -1 | Y23: -1 | Z23: -1 | AA23: -1 | AB23: -1 | AC23: -1
A24: 21 | B24: RCP2-SA7R | C24: 50 | D24: 800 | E24: 0 | F24: =LeadData!A64 -> 61 | G24: =StrokeData!A235 -> 232 | H24: =MassDataLink!A365 -> 362 | I24: =LeadData!A65 -> 62 | J24: =StrokeData!A238 -> 235 | K24: =MassDataLink!A370 -> 367 | L24: =LeadData!A66 -> 63 | M24: =StrokeData!A241 -> 238 | N24: =MassDataLink!A377 -> 374 | O24: -1 | P24: -1 | Q24: -1 | R24: -1 | S24: -1 | T24: -1 | U24: -1 | V24: -1 | W24: -1 | X24: -1 | Y24: -1 | Z24: -1 | AA24: -1 | AB24: -1 | AC24: -1
A25: 22 | B25: RCP2-SS7R | C25: 50 | D25: 600 | E25: 0 | F25: =LeadData!A67 -> 64 | G25: =StrokeData!A244 -> 241 | H25: =MassDataLink!A384 -> 381 | I25: =LeadData!A68 -> 65 | J25: =StrokeData!A246 -> 243 | K25: =MassDataLink!A389 -> 386 | L25: =LeadData!A69 -> 66 | M25: =StrokeData!A248 -> 245 | N25: =MassDataLink!A395 -> 392 | O25: -1 | P25: -1 | Q25: -1 | R25: -1 | S25: -1 | T25: -1 | U25: -1 | V25: -1 | W25: -1 | X25: -1 | Y25: -1 | Z25: -1 | AA25: -1 | AB25: -1 | AC25: -1
A26: 23 | B26: RCP2-SS8R | C26: 50 | D26: 1000 | E26: 0 | F26: =LeadData!A70 -> 67 | G26: =StrokeData!A250 -> 247 | H26: =MassDataLink!A402 -> 399 | I26: =LeadData!A71 -> 68 | J26: =StrokeData!A254 -> 251 | K26: =MassDataLink!A410 -> 407 | L26: =LeadData!A72 -> 69 | M26: =StrokeData!A258 -> 255 | N26: =MassDataLink!A417 -> 414 | O26: -1 | P26: -1 | Q26: -1 | R26: -1 | S26: -1 | T26: -1 | U26: -1 | V26: -1 | W26: -1 | X26: -1 | Y26: -1 | Z26: -1 | AA26: -1 | AB26: -1 | AC26: -1
A27: 24 | B27: RCP2-HS8R | C27: 50 | D27: 1000 | E27: 0 | F27: =LeadData!A73 -> 70 | G27: =StrokeData!A262 -> 259 | H27: =MassDataLink!A423 -> 420 | I27: -1 | J27: -1 | K27: -1 | L27: -1 | M27: -1 | N27: -1 | O27: -1 | P27: -1 | Q27: -1 | R27: -1 | S27: -1 | T27: -1 | U27: -1 | V27: -1 | W27: -1 | X27: -1 | Y27: -1 | Z27: -1 | AA27: -1 | AB27: -1 | AC27: -1
A28: 25 | B28: RCP2-BA6 | C28: 500 | D28: 1000 | E28: 0 | F28: =LeadData!A74 -> 71 | G28: =StrokeData!A266 -> 263 | H28: =MassDataLink!A432 -> 429 | I28: -1 | J28: -1 | K28: -1 | L28: -1 | M28: -1 | N28: -1 | O28: -1 | P28: -1 | Q28: -1 | R28: -1 | S28: -1 | T28: -1 | U28: -1 | V28: -1 | W28: -1 | X28: -1 | Y28: -1 | Z28: -1 | AA28: -1 | AB28: -1 | AC28: -1
A29: 26 | B29: RCP2-BA7 | C29: 600 | D29: 1200 | E29: 0 | F29: =LeadData!A75 -> 72 | G29: =StrokeData!A267 -> 264 | H29: =MassDataLink!A435 -> 432 | I29: -1 | J29: -1 | K29: -1 | L29: -1 | M29: -1 | N29: -1 | O29: -1 | P29: -1 | Q29: -1 | R29: -1 | S29: -1 | T29: -1 | U29: -1 | V29: -1 | W29: -1 | X29: -1 | Y29: -1 | Z29: -1 | AA29: -1 | AB29: -1 | AC29: -1
A30: 27 | B30: ERC2-SA6C | C30: 50 | D30: 600 | E30: 0 | F30: =LeadData!A76 -> 73 | G30: =StrokeData!A268 -> 265 | H30: =MassDataLink!A440 -> 437 | I30: =LeadData!A77 -> 74 | J30: =StrokeData!A270 -> 267 | K30: =MassDataLink!A443 -> 440 | L30: =LeadData!A78 -> 75 | M30: =StrokeData!A272 -> 269 | N30: =MassDataLink!A446 -> 443 | O30: -1 | P30: -1 | Q30: -1 | R30: -1 | S30: -1 | T30: -1 | U30: -1 | V30: -1 | W30: -1 | X30: -1 | Y30: -1 | Z30: -1 | AA30: -1 | AB30: -1 | AC30: -1
A31: 28 | B31: ERC2-SA7C | C31: 50 | D31: 600 | E31: 0 | F31: =LeadData!A79 -> 76 | G31: =StrokeData!A274 -> 271 | H31: =MassDataLink!A451 -> 448 | I31: =LeadData!A80 -> 77 | J31: =StrokeData!A275 -> 272 | K31: =MassDataLink!A454 -> 451 | L31: =LeadData!A81 -> 78 | M31: =StrokeData!A276 -> 273 | N31: =MassDataLink!A459 -> 456 | O31: -1 | P31: -1 | Q31: -1 | R31: -1 | S31: -1 | T31: -1 | U31: -1 | V31: -1 | W31: -1 | X31: -1 | Y31: -1 | Z31: -1 | AA31: -1 | AB31: -1 | AC31: -1
A32: 29 | B32: RCP3-RA2AC-20P-*S | C32: 25 | D32: 100 | E32: 0 | F32: =LeadData!A82 -> 79 | G32: =StrokeData!A277 -> 274 | H32: =MassDataLink!A464 -> 461 | I32: =LeadData!A83 -> 80 | J32: =StrokeData!A278 -> 275 | K32: =MassDataLink!A466 -> 463 | L32: =LeadData!A84 -> 81 | M32: =StrokeData!A279 -> 276 | N32: =MassDataLink!A468 -> 465 | O32: -1 | P32: -1 | Q32: -1 | R32: -1 | S32: -1 | T32: -1 | U32: -1 | V32: -1 | W32: -1 | X32: -1 | Y32: -1 | Z32: -1 | AA32: -1 | AB32: -1 | AC32: -1
A33: 30 | B33: RCP3-RA2BC-20P-*S | C33: 25 | D33: 150 | E33: 0 | F33: =LeadData!A85 -> 82 | G33: =StrokeData!A280 -> 277 | H33: =MassDataLink!A470 -> 467 | I33: =LeadData!A86 -> 83 | J33: =StrokeData!A281 -> 278 | K33: =MassDataLink!A472 -> 469 | L33: =LeadData!A87 -> 84 | M33: =StrokeData!A282 -> 279 | N33: =MassDataLink!A474 -> 471 | O33: -1 | P33: -1 | Q33: -1 | R33: -1 | S33: -1 | T33: -1 | U33: -1 | V33: -1 | W33: -1 | X33: -1 | Y33: -1 | Z33: -1 | AA33: -1 | AB33: -1 | AC33: -1
A34: 31 | B34: RCP3-RA2AR-20P-*S | C34: 25 | D34: 100 | E34: 0 | F34: =LeadData!A88 -> 85 | G34: =StrokeData!A283 -> 280 | H34: =MassDataLink!A476 -> 473 | I34: =LeadData!A89 -> 86 | J34: =StrokeData!A284 -> 281 | K34: =MassDataLink!A478 -> 475 | L34: =LeadData!A90 -> 87 | M34: =StrokeData!A285 -> 282 | N34: =MassDataLink!A480 -> 477 | O34: -1 | P34: -1 | Q34: -1 | R34: -1 | S34: -1 | T34: -1 | U34: -1 | V34: -1 | W34: -1 | X34: -1 | Y34: -1 | Z34: -1 | AA34: -1 | AB34: -1 | AC34: -1
A35: 32 | B35: RCP3-RA2BR-20P-*S | C35: 25 | D35: 150 | E35: 0 | F35: =LeadData!A91 -> 88 | G35: =StrokeData!A286 -> 283 | H35: =MassDataLink!A482 -> 479 | I35: =LeadData!A92 -> 89 | J35: =StrokeData!A287 -> 284 | K35: =MassDataLink!A484 -> 481 | L35: =LeadData!A93 -> 90 | M35: =StrokeData!A288 -> 285 | N35: =MassDataLink!A486 -> 483 | O35: -1 | P35: -1 | Q35: -1 | R35: -1 | S35: -1 | T35: -1 | U35: -1 | V35: -1 | W35: -1 | X35: -1 | Y35: -1 | Z35: -1 | AA35: -1 | AB35: -1 | AC35: -1
A36: 33 | B36: RCP2-RA2C | C36: 25 | D36: 100 | E36: 0 | F36: =LeadData!A94 -> 91 | G36: =StrokeData!A289 -> 286 | H36: =MassDataLink!A488 -> 485 | I36: -1 | J36: -1 | K36: -1 | L36: -1 | M36: -1 | N36: -1 | O36: -1 | P36: -1 | Q36: -1 | R36: -1 | S36: -1 | T36: -1 | U36: -1 | V36: -1 | W36: -1 | X36: -1 | Y36: -1 | Z36: -1 | AA36: -1 | AB36: -1 | AC36: -1
A37: 34 | B37: RCP2-RA3C | C37: 50 | D37: 200 | E37: 0 | F37: =LeadData!A95 -> 92 | G37: =StrokeData!A290 -> 287 | H37: =MassDataLink!A490 -> 487 | I37: =LeadData!A96 -> 93 | J37: =StrokeData!A291 -> 288 | K37: =MassDataLink!A497 -> 494 | L37: -1 | M37: -1 | N37: -1 | O37: -1 | P37: -1 | Q37: -1 | R37: -1 | S37: -1 | T37: -1 | U37: -1 | V37: -1 | W37: -1 | X37: -1 | Y37: -1 | Z37: -1 | AA37: -1 | AB37: -1 | AC37: -1
A38: 35 | B38: RCP2-RA4C | C38: 50 | D38: 300 | E38: 0 | F38: =LeadData!A97 -> 94 | G38: =StrokeData!A292 -> 289 | H38: =MassDataLink!A505 -> 502 | I38: =LeadData!A98 -> 95 | J38: =StrokeData!A295 -> 292 | K38: =MassDataLink!A510 -> 507 | L38: =LeadData!A99 -> 96 | M38: =StrokeData!A298 -> 295 | N38: =MassDataLink!A517 -> 514 | O38: -1 | P38: -1 | Q38: -1 | R38: -1 | S38: -1 | T38: -1 | U38: -1 | V38: -1 | W38: -1 | X38: -1 | Y38: -1 | Z38: -1 | AA38: -1 | AB38: -1 | AC38: -1
A39: 36 | B39: RCP2-RA6C | C39: 50 | D39: 300 | E39: 0 | F39: =LeadData!A100 -> 97 | G39: =StrokeData!A301 -> 298 | H39: =MassDataLink!A523 -> 520 | I39: =LeadData!A101 -> 98 | J39: =StrokeData!A302 -> 299 | K39: =MassDataLink!A532 -> 529 | L39: =LeadData!A102 -> 99 | M39: =StrokeData!A303 -> 300 | N39: =MassDataLink!A539 -> 536 | O39: -1 | P39: -1 | Q39: -1 | R39: -1 | S39: -1 | T39: -1 | U39: -1 | V39: -1 | W39: -1 | X39: -1 | Y39: -1 | Z39: -1 | AA39: -1 | AB39: -1 | AC39: -1
A40: 37 | B40: RCP2-RA10C | C40: 50 | D40: 300 | E40: 0 | F40: =LeadData!A103 -> 100 | G40: =StrokeData!A304 -> 301 | H40: =MassDataLink!A547 -> 544 | I40: =LeadData!A104 -> 101 | J40: =StrokeData!A305 -> 302 | K40: =MassDataLink!A555 -> 552 | L40: =LeadData!A105 -> 102 | M40: =StrokeData!A306 -> 303 | N40: =MassDataLink!A569 -> 566 | O40: -1 | P40: -1 | Q40: -1 | R40: -1 | S40: -1 | T40: -1 | U40: -1 | V40: -1 | W40: -1 | X40: -1 | Y40: -1 | Z40: -1 | AA40: -1 | AB40: -1 | AC40: -1
A41: 38 | B41: RCP2-SRA4R | C41: 20 | D41: 200 | E41: 0 | F41: =LeadData!A106 -> 103 | G41: =StrokeData!A307 -> 304 | H41: =MassDataLink!A581 -> 578 | I41: =LeadData!A107 -> 104 | J41: =StrokeData!A308 -> 305 | K41: =MassDataLink!A589 -> 586 | L41: -1 | M41: -1 | N41: -1 | O41: -1 | P41: -1 | Q41: -1 | R41: -1 | S41: -1 | T41: -1 | U41: -1 | V41: -1 | W41: -1 | X41: -1 | Y41: -1 | Z41: -1 | AA41: -1 | AB41: -1 | AC41: -1
A42: 39 | B42: RCP2-RGS4C | C42: 50 | D42: 300 | E42: 0 | F42: =LeadData!A108 -> 105 | G42: =StrokeData!A309 -> 306 | H42: =MassDataLink!A598 -> 595 | I42: =LeadData!A109 -> 106 | J42: =StrokeData!A312 -> 309 | K42: =MassDataLink!A603 -> 600 | L42: =LeadData!A110 -> 107 | M42: =StrokeData!A315 -> 312 | N42: =MassDataLink!A611 -> 608 | O42: -1 | P42: -1 | Q42: -1 | R42: -1 | S42: -1 | T42: -1 | U42: -1 | V42: -1 | W42: -1 | X42: -1 | Y42: -1 | Z42: -1 | AA42: -1 | AB42: -1 | AC42: -1
A43: 40 | B43: RCP2-RGS6C | C43: 50 | D43: 300 | E43: 0 | F43: =LeadData!A111 -> 108 | G43: =StrokeData!A318 -> 315 | H43: =MassDataLink!A618 -> 615 | I43: =LeadData!A112 -> 109 | J43: =StrokeData!A319 -> 316 | K43: =MassDataLink!A626 -> 623 | L43: =LeadData!A113 -> 110 | M43: =StrokeData!A320 -> 317 | N43: =MassDataLink!A633 -> 630 | O43: -1 | P43: -1 | Q43: -1 | R43: -1 | S43: -1 | T43: -1 | U43: -1 | V43: -1 | W43: -1 | X43: -1 | Y43: -1 | Z43: -1 | AA43: -1 | AB43: -1 | AC43: -1
A44: 41 | B44: RCP2-SRGS4R | C44: 20 | D44: 200 | E44: 0 | F44: =LeadData!A114 -> 111 | G44: =StrokeData!A321 -> 318 | H44: =MassDataLink!A641 -> 638 | I44: =LeadData!A115 -> 112 | J44: =StrokeData!A322 -> 319 | K44: =MassDataLink!A649 -> 646 | L44: -1 | M44: -1 | N44: -1 | O44: -1 | P44: -1 | Q44: -1 | R44: -1 | S44: -1 | T44: -1 | U44: -1 | V44: -1 | W44: -1 | X44: -1 | Y44: -1 | Z44: -1 | AA44: -1 | AB44: -1 | AC44: -1
A45: 42 | B45: RCP2-RGD3C | C45: 50 | D45: 200 | E45: 0 | F45: =LeadData!A116 -> 113 | G45: =StrokeData!A323 -> 320 | H45: =MassDataLink!A658 -> 655 | I45: =LeadData!A117 -> 114 | J45: =StrokeData!A324 -> 321 | K45: =MassDataLink!A664 -> 661 | L45: -1 | M45: -1 | N45: -1 | O45: -1 | P45: -1 | Q45: -1 | R45: -1 | S45: -1 | T45: -1 | U45: -1 | V45: -1 | W45: -1 | X45: -1 | Y45: -1 | Z45: -1 | AA45: -1 | AB45: -1 | AC45: -1
A46: 43 | B46: RCP2-RGD4C | C46: 50 | D46: 300 | E46: 0 | F46: =LeadData!A118 -> 115 | G46: =StrokeData!A325 -> 322 | H46: =MassDataLink!A672 -> 669 | I46: =LeadData!A119 -> 116 | J46: =StrokeData!A328 -> 325 | K46: =MassDataLink!A677 -> 674 | L46: =LeadData!A120 -> 117 | M46: =StrokeData!A331 -> 328 | N46: =MassDataLink!A685 -> 682 | O46: -1 | P46: -1 | Q46: -1 | R46: -1 | S46: -1 | T46: -1 | U46: -1 | V46: -1 | W46: -1 | X46: -1 | Y46: -1 | Z46: -1 | AA46: -1 | AB46: -1 | AC46: -1
A47: 44 | B47: RCP2-RGD6C | C47: 50 | D47: 300 | E47: 0 | F47: =LeadData!A121 -> 118 | G47: =StrokeData!A334 -> 331 | H47: =MassDataLink!A692 -> 689 | I47: =LeadData!A122 -> 119 | J47: =StrokeData!A335 -> 332 | K47: =MassDataLink!A700 -> 697 | L47: =LeadData!A123 -> 120 | M47: =StrokeData!A336 -> 333 | N47: =MassDataLink!A707 -> 704 | O47: -1 | P47: -1 | Q47: -1 | R47: -1 | S47: -1 | T47: -1 | U47: -1 | V47: -1 | W47: -1 | X47: -1 | Y47: -1 | Z47: -1 | AA47: -1 | AB47: -1 | AC47: -1
A48: 45 | B48: RCP2-SRGD4R | C48: 20 | D48: 200 | E48: 0 | F48: =LeadData!A124 -> 121 | G48: =StrokeData!A337 -> 334 | H48: =MassDataLink!A715 -> 712 | I48: =LeadData!A125 -> 122 | J48: =StrokeData!A338 -> 335 | K48: =MassDataLink!A723 -> 720 | L48: -1 | M48: -1 | N48: -1 | O48: -1 | P48: -1 | Q48: -1 | R48: -1 | S48: -1 | T48: -1 | U48: -1 | V48: -1 | W48: -1 | X48: -1 | Y48: -1 | Z48: -1 | AA48: -1 | AB48: -1 | AC48: -1
A49: 46 | B49: ERC2-RA6C | C49: 50 | D49: 300 | E49: 0 | F49: =LeadData!A126 -> 123 | G49: =StrokeData!A339 -> 336 | H49: =MassDataLink!A732 -> 729 | I49: =LeadData!A127 -> 124 | J49: =StrokeData!A341 -> 338 | K49: =MassDataLink!A736 -> 733 | L49: =LeadData!A128 -> 125 | M49: =StrokeData!A343 -> 340 | N49: =MassDataLink!A743 -> 740 | O49: -1 | P49: -1 | Q49: -1 | R49: -1 | S49: -1 | T49: -1 | U49: -1 | V49: -1 | W49: -1 | X49: -1 | Y49: -1 | Z49: -1 | AA49: -1 | AB49: -1 | AC49: -1
A50: 47 | B50: ERC2-RA7C | C50: 50 | D50: 300 | E50: 0 | F50: =LeadData!A129 -> 126 | G50: =StrokeData!A345 -> 342 | H50: =MassDataLink!A750 -> 747 | I50: =LeadData!A130 -> 127 | J50: =StrokeData!A346 -> 343 | K50: =MassDataLink!A756 -> 753 | L50: =LeadData!A131 -> 128 | M50: =StrokeData!A347 -> 344 | N50: =MassDataLink!A764 -> 761 | O50: -1 | P50: -1 | Q50: -1 | R50: -1 | S50: -1 | T50: -1 | U50: -1 | V50: -1 | W50: -1 | X50: -1 | Y50: -1 | Z50: -1 | AA50: -1 | AB50: -1 | AC50: -1
A51: 48 | B51: ERC2-RGS6C | C51: 50 | D51: 300 | E51: 0 | F51: =LeadData!A132 -> 129 | G51: =StrokeData!A348 -> 345 | H51: =MassDataLink!A769 -> 766 | I51: =LeadData!A133 -> 130 | J51: =StrokeData!A350 -> 347 | K51: =MassDataLink!A773 -> 770 | L51: =LeadData!A134 -> 131 | M51: =StrokeData!A352 -> 349 | N51: =MassDataLink!A780 -> 777 | O51: -1 | P51: -1 | Q51: -1 | R51: -1 | S51: -1 | T51: -1 | U51: -1 | V51: -1 | W51: -1 | X51: -1 | Y51: -1 | Z51: -1 | AA51: -1 | AB51: -1 | AC51: -1
A52: 49 | B52: ERC2-RGS7C | C52: 50 | D52: 300 | E52: 0 | F52: =LeadData!A135 -> 132 | G52: =StrokeData!A354 -> 351 | H52: =MassDataLink!A787 -> 784 | I52: =LeadData!A136 -> 133 | J52: =StrokeData!A355 -> 352 | K52: =MassDataLink!A793 -> 790 | L52: =LeadData!A137 -> 134 | M52: =StrokeData!A356 -> 353 | N52: =MassDataLink!A801 -> 798 | O52: -1 | P52: -1 | Q52: -1 | R52: -1 | S52: -1 | T52: -1 | U52: -1 | V52: -1 | W52: -1 | X52: -1 | Y52: -1 | Z52: -1 | AA52: -1 | AB52: -1 | AC52: -1
A53: 50 | B53: ERC2-RGD6C | C53: 50 | D53: 300 | E53: 0 | F53: =LeadData!A138 -> 135 | G53: =StrokeData!A357 -> 354 | H53: =MassDataLink!A806 -> 803 | I53: =LeadData!A139 -> 136 | J53: =StrokeData!A359 -> 356 | K53: =MassDataLink!A810 -> 807 | L53: =LeadData!A140 -> 137 | M53: =StrokeData!A361 -> 358 | N53: =MassDataLink!A817 -> 814 | O53: -1 | P53: -1 | Q53: -1 | R53: -1 | S53: -1 | T53: -1 | U53: -1 | V53: -1 | W53: -1 | X53: -1 | Y53: -1 | Z53: -1 | AA53: -1 | AB53: -1 | AC53: -1
A54: 51 | B54: ERC2-RGD7C | C54: 50 | D54: 300 | E54: 0 | F54: =LeadData!A141 -> 138 | G54: =StrokeData!A363 -> 360 | H54: =MassDataLink!A824 -> 821 | I54: =LeadData!A142 -> 139 | J54: =StrokeData!A364 -> 361 | K54: =MassDataLink!A830 -> 827 | L54: =LeadData!A143 -> 140 | M54: =StrokeData!A365 -> 362 | N54: =MassDataLink!A838 -> 835 | O54: -1 | P54: -1 | Q54: -1 | R54: -1 | S54: -1 | T54: -1 | U54: -1 | V54: -1 | W54: -1 | X54: -1 | Y54: -1 | Z54: -1 | AA54: -1 | AB54: -1 | AC54: -1
A55: 52 | B55: RCP3-TA3C | C55: 20 | D55: 100 | E55: 0 | F55: =LeadData!A144 -> 141 | G55: =StrokeData!A366 -> 363 | H55: =MassDataLink!A843 -> 840 | I55: =LeadData!A145 -> 142 | J55: =StrokeData!A367 -> 364 | K55: =MassDataLink!A847 -> 844 | L55: =LeadData!A146 -> 143 | M55: =StrokeData!A368 -> 365 | N55: =MassDataLink!A851 -> 848 | O55: -1 | P55: -1 | Q55: -1 | R55: -1 | S55: -1 | T55: -1 | U55: -1 | V55: -1 | W55: -1 | X55: -1 | Y55: -1 | Z55: -1 | AA55: -1 | AB55: -1 | AC55: -1
A56: 53 | B56: RCP3-TA4C | C56: 20 | D56: 100 | E56: 0 | F56: =LeadData!A147 -> 144 | G56: =StrokeData!A369 -> 366 | H56: =MassDataLink!A855 -> 852 | I56: =LeadData!A148 -> 145 | J56: =StrokeData!A370 -> 367 | K56: =MassDataLink!A859 -> 856 | L56: =LeadData!A149 -> 146 | M56: =StrokeData!A371 -> 368 | N56: =MassDataLink!A863 -> 860 | O56: -1 | P56: -1 | Q56: -1 | R56: -1 | S56: -1 | T56: -1 | U56: -1 | V56: -1 | W56: -1 | X56: -1 | Y56: -1 | Z56: -1 | AA56: -1 | AB56: -1 | AC56: -1
A57: 54 | B57: RCP3-TA5C | C57: 25 | D57: 100 | E57: 0 | F57: =LeadData!A150 -> 147 | G57: =StrokeData!A372 -> 369 | H57: =MassDataLink!A867 -> 864 | I57: =LeadData!A151 -> 148 | J57: =StrokeData!A373 -> 370 | K57: =MassDataLink!A875 -> 872 | L57: =LeadData!A152 -> 149 | M57: =StrokeData!A374 -> 371 | N57: =MassDataLink!A881 -> 878 | O57: -1 | P57: -1 | Q57: -1 | R57: -1 | S57: -1 | T57: -1 | U57: -1 | V57: -1 | W57: -1 | X57: -1 | Y57: -1 | Z57: -1 | AA57: -1 | AB57: -1 | AC57: -1
A58: 55 | B58: RCP3-TA6C | C58: 25 | D58: 150 | E58: 0 | F58: =LeadData!A153 -> 150 | G58: =StrokeData!A375 -> 372 | H58: =MassDataLink!A885 -> 882 | I58: =LeadData!A154 -> 151 | J58: =StrokeData!A376 -> 373 | K58: =MassDataLink!A889 -> 886 | L58: =LeadData!A155 -> 152 | M58: =StrokeData!A377 -> 374 | N58: =MassDataLink!A893 -> 890 | O58: -1 | P58: -1 | Q58: -1 | R58: -1 | S58: -1 | T58: -1 | U58: -1 | V58: -1 | W58: -1 | X58: -1 | Y58: -1 | Z58: -1 | AA58: -1 | AB58: -1 | AC58: -1
A59: 56 | B59: RCP3-TA7C | C59: 25 | D59: 200 | E59: 0 | F59: =LeadData!A156 -> 153 | G59: =StrokeData!A378 -> 375 | H59: =MassDataLink!A897 -> 894 | I59: =LeadData!A157 -> 154 | J59: =StrokeData!A379 -> 376 | K59: =MassDataLink!A901 -> 898 | L59: =LeadData!A158 -> 155 | M59: =StrokeData!A380 -> 377 | N59: =MassDataLink!A905 -> 902 | O59: -1 | P59: -1 | Q59: -1 | R59: -1 | S59: -1 | T59: -1 | U59: -1 | V59: -1 | W59: -1 | X59: -1 | Y59: -1 | Z59: -1 | AA59: -1 | AB59: -1 | AC59: -1
A60: 57 | B60: RCP3-TA3R | C60: 20 | D60: 100 | E60: 0 | F60: =LeadData!A159 -> 156 | G60: =StrokeData!A381 -> 378 | H60: =MassDataLink!A910 -> 907 | I60: =LeadData!A160 -> 157 | J60: =StrokeData!A382 -> 379 | K60: =MassDataLink!A914 -> 911 | L60: =LeadData!A161 -> 158 | M60: =StrokeData!A383 -> 380 | N60: =MassDataLink!A918 -> 915 | O60: -1 | P60: -1 | Q60: -1 | R60: -1 | S60: -1 | T60: -1 | U60: -1 | V60: -1 | W60: -1 | X60: -1 | Y60: -1 | Z60: -1 | AA60: -1 | AB60: -1 | AC60: -1
A61: 58 | B61: RCP3-TA4R | C61: 20 | D61: 100 | E61: 0 | F61: =LeadData!A162 -> 159 | G61: =StrokeData!A384 -> 381 | H61: =MassDataLink!A922 -> 919 | I61: =LeadData!A163 -> 160 | J61: =StrokeData!A385 -> 382 | K61: =MassDataLink!A926 -> 923 | L61: =LeadData!A164 -> 161 | M61: =StrokeData!A386 -> 383 | N61: =MassDataLink!A930 -> 927 | O61: -1 | P61: -1 | Q61: -1 | R61: -1 | S61: -1 | T61: -1 | U61: -1 | V61: -1 | W61: -1 | X61: -1 | Y61: -1 | Z61: -1 | AA61: -1 | AB61: -1 | AC61: -1
A62: 59 | B62: RCP3-TA5R | C62: 25 | D62: 100 | E62: 0 | F62: =LeadData!A165 -> 162 | G62: =StrokeData!A387 -> 384 | H62: =MassDataLink!A934 -> 931 | I62: =LeadData!A166 -> 163 | J62: =StrokeData!A388 -> 385 | K62: =MassDataLink!A942 -> 939 | L62: =LeadData!A167 -> 164 | M62: =StrokeData!A389 -> 386 | N62: =MassDataLink!A948 -> 945 | O62: -1 | P62: -1 | Q62: -1 | R62: -1 | S62: -1 | T62: -1 | U62: -1 | V62: -1 | W62: -1 | X62: -1 | Y62: -1 | Z62: -1 | AA62: -1 | AB62: -1 | AC62: -1
A63: 60 | B63: RCP3-TA6R | C63: 25 | D63: 150 | E63: 0 | F63: =LeadData!A168 -> 165 | G63: =StrokeData!A390 -> 387 | H63: =MassDataLink!A952 -> 949 | I63: =LeadData!A169 -> 166 | J63: =StrokeData!A391 -> 388 | K63: =MassDataLink!A956 -> 953 | L63: =LeadData!A170 -> 167 | M63: =StrokeData!A392 -> 389 | N63: =MassDataLink!A960 -> 957 | O63: -1 | P63: -1 | Q63: -1 | R63: -1 | S63: -1 | T63: -1 | U63: -1 | V63: -1 | W63: -1 | X63: -1 | Y63: -1 | Z63: -1 | AA63: -1 | AB63: -1 | AC63: -1
A64: 61 | B64: RCP3-TA7R | C64: 25 | D64: 200 | E64: 0 | F64: =LeadData!A171 -> 168 | G64: =StrokeData!A393 -> 390 | H64: =MassDataLink!A964 -> 961 | I64: =LeadData!A172 -> 169 | J64: =StrokeData!A394 -> 391 | K64: =MassDataLink!A968 -> 965 | L64: =LeadData!A173 -> 170 | M64: =StrokeData!A395 -> 392 | N64: =MassDataLink!A972 -> 969 | O64: -1 | P64: -1 | Q64: -1 | R64: -1 | S64: -1 | T64: -1 | U64: -1 | V64: -1 | W64: -1 | X64: -1 | Y64: -1 | Z64: -1 | AA64: -1 | AB64: -1 | AC64: -1
A65: 62 | B65: RCP2-RTBSL | C65: 360 | D65: 360 | E65: 1 | F65: =LeadData!A174 -> 171 | G65: =StrokeData!A396 -> 393 | H65: =MassDataLink!A977 -> 974 | I65: =LeadData!A175 -> 172 | J65: =StrokeData!A397 -> 394 | K65: =MassDataLink!A978 -> 975 | L65: -1 | M65: -1 | N65: -1 | O65: -1 | P65: -1 | Q65: -1 | R65: -1 | S65: -1 | T65: -1 | U65: -1 | V65: -1 | W65: -1 | X65: -1 | Y65: -1 | Z65: -1 | AA65: -1 | AB65: -1 | AC65: -1
A66: 63 | B66: RCP2-RTCSL | C66: 360 | D66: 360 | E66: 1 | F66: =LeadData!A176 -> 173 | G66: =StrokeData!A398 -> 395 | H66: =MassDataLink!A979 -> 976 | I66: =LeadData!A177 -> 174 | J66: =StrokeData!A399 -> 396 | K66: =MassDataLink!A980 -> 977 | L66: -1 | M66: -1 | N66: -1 | O66: -1 | P66: -1 | Q66: -1 | R66: -1 | S66: -1 | T66: -1 | U66: -1 | V66: -1 | W66: -1 | X66: -1 | Y66: -1 | Z66: -1 | AA66: -1 | AB66: -1 | AC66: -1
A67: 64 | B67: RCP2-RTBL | C67: 360 | D67: 360 | E67: 1 | F67: =LeadData!A178 -> 175 | G67: =StrokeData!A400 -> 397 | H67: =MassDataLink!A981 -> 978 | I67: =LeadData!A179 -> 176 | J67: =StrokeData!A401 -> 398 | K67: =MassDataLink!A983 -> 980 | L67: -1 | M67: -1 | N67: -1 | O67: -1 | P67: -1 | Q67: -1 | R67: -1 | S67: -1 | T67: -1 | U67: -1 | V67: -1 | W67: -1 | X67: -1 | Y67: -1 | Z67: -1 | AA67: -1 | AB67: -1 | AC67: -1
A68: 65 | B68: RCP2-RTCL | C68: 360 | D68: 360 | E68: 1 | F68: =LeadData!A180 -> 177 | G68: =StrokeData!A402 -> 399 | H68: =MassDataLink!A985 -> 982 | I68: =LeadData!A181 -> 178 | J68: =StrokeData!A403 -> 400 | K68: =MassDataLink!A987 -> 984 | L68: -1 | M68: -1 | N68: -1 | O68: -1 | P68: -1 | Q68: -1 | R68: -1 | S68: -1 | T68: -1 | U68: -1 | V68: -1 | W68: -1 | X68: -1 | Y68: -1 | Z68: -1 | AA68: -1 | AB68: -1 | AC68: -1
A69: 66 | B69: RCP2-RTBBL | C69: 360 | D69: 360 | E69: 1 | F69: =LeadData!A182 -> 179 | G69: =StrokeData!A404 -> 401 | H69: =MassDataLink!A989 -> 986 | I69: =LeadData!A183 -> 180 | J69: =StrokeData!A405 -> 402 | K69: =MassDataLink!A991 -> 988 | L69: -1 | M69: -1 | N69: -1 | O69: -1 | P69: -1 | Q69: -1 | R69: -1 | S69: -1 | T69: -1 | U69: -1 | V69: -1 | W69: -1 | X69: -1 | Y69: -1 | Z69: -1 | AA69: -1 | AB69: -1 | AC69: -1
A70: 67 | B70: RCP2-RTCBL | C70: 360 | D70: 360 | E70: 1 | F70: =LeadData!A184 -> 181 | G70: =StrokeData!A406 -> 403 | H70: =MassDataLink!A993 -> 990 | I70: =LeadData!A185 -> 182 | J70: =StrokeData!A407 -> 404 | K70: =MassDataLink!A995 -> 992 | L70: -1 | M70: -1 | N70: -1 | O70: -1 | P70: -1 | Q70: -1 | R70: -1 | S70: -1 | T70: -1 | U70: -1 | V70: -1 | W70: -1 | X70: -1 | Y70: -1 | Z70: -1 | AA70: -1 | AB70: -1 | AC70: -1
A71: 68 | B71: RCP2CR-SA5C | C71: 50 | D71: 800 | E71: 0 | F71: =LeadData!A186 -> 183 | G71: =StrokeData!A408 -> 405 | H71: =MassDataLink!A997 -> 994 | I71: =LeadData!A187 -> 184 | J71: =StrokeData!A414 -> 411 | K71: =MassDataLink!A1011 -> 1008 | L71: =LeadData!A188 -> 185 | M71: =StrokeData!A420 -> 417 | N71: =MassDataLink!A1022 -> 1019 | O71: -1 | P71: -1 | Q71: -1 | R71: -1 | S71: -1 | T71: -1 | U71: -1 | V71: -1 | W71: -1 | X71: -1 | Y71: -1 | Z71: -1 | AA71: -1 | AB71: -1 | AC71: -1
A72: 69 | B72: RCP2CR-SA6C | C72: 50 | D72: 800 | E72: 0 | F72: =LeadData!A189 -> 186 | G72: =StrokeData!A426 -> 423 | H72: =MassDataLink!A1033 -> 1030 | I72: =LeadData!A190 -> 187 | J72: =StrokeData!A432 -> 429 | K72: =MassDataLink!A1046 -> 1043 | L72: =LeadData!A191 -> 188 | M72: =StrokeData!A438 -> 435 | N72: =MassDataLink!A1060 -> 1057 | O72: -1 | P72: -1 | Q72: -1 | R72: -1 | S72: -1 | T72: -1 | U72: -1 | V72: -1 | W72: -1 | X72: -1 | Y72: -1 | Z72: -1 | AA72: -1 | AB72: -1 | AC72: -1
A73: 70 | B73: RCP2CR-SA7C | C73: 50 | D73: 800 | E73: 0 | F73: =LeadData!A192 -> 189 | G73: =StrokeData!A444 -> 441 | H73: =MassDataLink!A1070 -> 1067 | I73: =LeadData!A193 -> 190 | J73: =StrokeData!A447 -> 444 | K73: =MassDataLink!A1075 -> 1072 | L73: =LeadData!A194 -> 191 | M73: =StrokeData!A450 -> 447 | N73: =MassDataLink!A1082 -> 1079 | O73: -1 | P73: -1 | Q73: -1 | R73: -1 | S73: -1 | T73: -1 | U73: -1 | V73: -1 | W73: -1 | X73: -1 | Y73: -1 | Z73: -1 | AA73: -1 | AB73: -1 | AC73: -1
A74: 71 | B74: RCP2CR-SS7C | C74: 50 | D74: 600 | E74: 0 | F74: =LeadData!A195 -> 192 | G74: =StrokeData!A457 -> 454 | H74: =MassDataLink!A1089 -> 1086 | I74: =LeadData!A196 -> 193 | J74: =StrokeData!A459 -> 456 | K74: =MassDataLink!A1095 -> 1092 | L74: =LeadData!A197 -> 194 | M74: =StrokeData!A461 -> 458 | N74: =MassDataLink!A1101 -> 1098 | O74: -1 | P74: -1 | Q74: -1 | R74: -1 | S74: -1 | T74: -1 | U74: -1 | V74: -1 | W74: -1 | X74: -1 | Y74: -1 | Z74: -1 | AA74: -1 | AB74: -1 | AC74: -1
A75: 72 | B75: RCP2CR-SS8C | C75: 50 | D75: 1000 | E75: 0 | F75: =LeadData!A198 -> 195 | G75: =StrokeData!A463 -> 460 | H75: =MassDataLink!A1109 -> 1106 | I75: =LeadData!A199 -> 196 | J75: =StrokeData!A467 -> 464 | K75: =MassDataLink!A1117 -> 1114 | L75: =LeadData!A200 -> 197 | M75: =StrokeData!A471 -> 468 | N75: =MassDataLink!A1125 -> 1122 | O75: -1 | P75: -1 | Q75: -1 | R75: -1 | S75: -1 | T75: -1 | U75: -1 | V75: -1 | W75: -1 | X75: -1 | Y75: -1 | Z75: -1 | AA75: -1 | AB75: -1 | AC75: -1
A76: =A75+1 -> 73 | B76: RCP2CR-HS8C | C76: 50 | D76: 1000 | E76: 0 | F76: =LeadData!A201 -> 198 | G76: =StrokeData!A475 -> 472 | H76: =MassDataLink!A1132 -> 1129 | I76: -1 | J76: -1 | K76: -1 | L76: -1 | M76: -1 | N76: -1 | O76: -1 | P76: -1 | Q76: -1 | R76: -1 | S76: -1 | T76: -1 | U76: -1 | V76: -1 | W76: -1 | X76: -1 | Y76: -1 | Z76: -1 | AA76: -1 | AB76: -1 | AC76: -1
A77: =A76+1 -> 74 | B77: RCP2W-RA4C | C77: 50 | D77: 300 | E77: 0 | F77: =LeadData!A202 -> 199 | G77: =StrokeData!A479 -> 476 | H77: =MassDataLink!A1140 -> 1137 | I77: =LeadData!A203 -> 200 | J77: =StrokeData!A482 -> 479 | K77: =MassDataLink!A1145 -> 1142 | L77: =LeadData!A204 -> 201 | M77: =StrokeData!A485 -> 482 | N77: =MassDataLink!A1149 -> 1146 | O77: -1 | P77: -1 | Q77: -1 | R77: -1 | S77: -1 | T77: -1 | U77: -1 | V77: -1 | W77: -1 | X77: -1 | Y77: -1 | Z77: -1 | AA77: -1 | AB77: -1 | AC77: -1
A78: =A77+1 -> 75 | B78: RCP2W-RA6C | C78: 50 | D78: 300 | E78: 0 | F78: =LeadData!A205 -> 202 | G78: =StrokeData!A488 -> 485 | H78: =MassDataLink!A1154 -> 1151 | I78: =LeadData!A206 -> 203 | J78: =StrokeData!A489 -> 486 | K78: =MassDataLink!A1159 -> 1156 | L78: =LeadData!A207 -> 204 | M78: =StrokeData!A490 -> 487 | N78: =MassDataLink!A1164 -> 1161 | O78: -1 | P78: -1 | Q78: -1 | R78: -1 | S78: -1 | T78: -1 | U78: -1 | V78: -1 | W78: -1 | X78: -1 | Y78: -1 | Z78: -1 | AA78: -1 | AB78: -1 | AC78: -1
A79: =A78+1 -> 76 | B79: RCP2W-RA10C | C79: 50 | D79: 300 | E79: 0 | F79: =LeadData!A208 -> 205 | G79: =StrokeData!A491 -> 488 | H79: =MassDataLink!A1171 -> 1168 | I79: =LeadData!A209 -> 206 | J79: =StrokeData!A492 -> 489 | K79: =MassDataLink!A1179 -> 1176 | L79: =LeadData!A210 -> 207 | M79: =StrokeData!A493 -> 490 | N79: =MassDataLink!A1193 -> 1190 | O79: -1 | P79: -1 | Q79: -1 | R79: -1 | S79: -1 | T79: -1 | U79: -1 | V79: -1 | W79: -1 | X79: -1 | Y79: -1 | Z79: -1 | AA79: -1 | AB79: -1 | AC79: -1
A80: 77 | B80: RCP3-RA2AC-20P | C80: 25 | D80: 100 | E80: 0 | F80: =LeadData!A211 -> 208 | G80: =StrokeData!A494 -> 491 | H80: =MassDataLink!A1205 -> 1202 | I80: =LeadData!A212 -> 209 | J80: =StrokeData!A495 -> 492 | K80: =MassDataLink!A1207 -> 1204 | L80: =LeadData!A213 -> 210 | M80: =StrokeData!A496 -> 493 | N80: =MassDataLink!A1209 -> 1206 | O80: -1 | P80: -1 | Q80: -1 | R80: -1 | S80: -1 | T80: -1 | U80: -1 | V80: -1 | W80: -1 | X80: -1 | Y80: -1 | Z80: -1 | AA80: -1 | AB80: -1 | AC80: -1
A81: 78 | B81: RCP3-RA2AC-20SP | C81: 25 | D81: 100 | E81: 0 | F81: =LeadData!A214 -> 211 | G81: =StrokeData!A497 -> 494 | H81: =MassDataLink!A1211 -> 1208 | I81: =LeadData!A215 -> 212 | J81: =StrokeData!A498 -> 495 | K81: =MassDataLink!A1213 -> 1210 | L81: =LeadData!A216 -> 213 | M81: =StrokeData!A499 -> 496 | N81: =MassDataLink!A1215 -> 1212 | O81: -1 | P81: -1 | Q81: -1 | R81: -1 | S81: -1 | T81: -1 | U81: -1 | V81: -1 | W81: -1 | X81: -1 | Y81: -1 | Z81: -1 | AA81: -1 | AB81: -1 | AC81: -1
A82: 79 | B82: RCP3-RA2BC-20P | C82: 25 | D82: 150 | E82: 0 | F82: =LeadData!A217 -> 214 | G82: =StrokeData!A500 -> 497 | H82: =MassDataLink!A1217 -> 1214 | I82: =LeadData!A218 -> 215 | J82: =StrokeData!A501 -> 498 | K82: =MassDataLink!A1219 -> 1216 | L82: =LeadData!A219 -> 216 | M82: =StrokeData!A502 -> 499 | N82: =MassDataLink!A1221 -> 1218 | O82: =LeadData!A220 -> 217 | P82: =StrokeData!A503 -> 500 | Q82: =MassDataLink!A1223 -> 1220 | R82: -1 | S82: -1 | T82: -1 | U82: -1 | V82: -1 | W82: -1 | X82: -1 | Y82: -1 | Z82: -1 | AA82: -1 | AB82: -1 | AC82: -1
A83: 80 | B83: RCP3-RA2BC-20SP | C83: 25 | D83: 150 | E83: 0 | F83: =LeadData!A221 -> 218 | G83: =StrokeData!A504 -> 501 | H83: =MassDataLink!A1225 -> 1222 | I83: =LeadData!A222 -> 219 | J83: =StrokeData!A505 -> 502 | K83: =MassDataLink!A1227 -> 1224 | L83: =LeadData!A223 -> 220 | M83: =StrokeData!A506 -> 503 | N83: =MassDataLink!A1229 -> 1226 | O83: =LeadData!A224 -> 221 | P83: =StrokeData!A507 -> 504 | Q83: =MassDataLink!A1231 -> 1228 | R83: -1 | S83: -1 | T83: -1 | U83: -1 | V83: -1 | W83: -1 | X83: -1 | Y83: -1 | Z83: -1 | AA83: -1 | AB83: -1 | AC83: -1
A84: 81 | B84: RCP3-RA2AR-20P | C84: 25 | D84: 100 | E84: 0 | F84: =LeadData!A225 -> 222 | G84: =StrokeData!A508 -> 505 | H84: =MassDataLink!A1233 -> 1230 | I84: =LeadData!A226 -> 223 | J84: =StrokeData!A509 -> 506 | K84: =MassDataLink!A1235 -> 1232 | L84: =LeadData!A227 -> 224 | M84: =StrokeData!A510 -> 507 | N84: =MassDataLink!A1237 -> 1234 | O84: -1 | P84: -1 | Q84: -1 | R84: -1 | S84: -1 | T84: -1 | U84: -1 | V84: -1 | W84: -1 | X84: -1 | Y84: -1 | Z84: -1 | AA84: -1 | AB84: -1 | AC84: -1
A85: 82 | B85: RCP3-RA2AR-20SP | C85: 25 | D85: 100 | E85: 0 | F85: =LeadData!A228 -> 225 | G85: =StrokeData!A511 -> 508 | H85: =MassDataLink!A1239 -> 1236 | I85: =LeadData!A229 -> 226 | J85: =StrokeData!A512 -> 509 | K85: =MassDataLink!A1241 -> 1238 | L85: =LeadData!A230 -> 227 | M85: =StrokeData!A513 -> 510 | N85: =MassDataLink!A1243 -> 1240 | O85: -1 | P85: -1 | Q85: -1 | R85: -1 | S85: -1 | T85: -1 | U85: -1 | V85: -1 | W85: -1 | X85: -1 | Y85: -1 | Z85: -1 | AA85: -1 | AB85: -1 | AC85: -1
A86: 83 | B86: RCP3-RA2BR-20P | C86: 25 | D86: 150 | E86: 0 | F86: =LeadData!A231 -> 228 | G86: =StrokeData!A514 -> 511 | H86: =MassDataLink!A1245 -> 1242 | I86: =LeadData!A232 -> 229 | J86: =StrokeData!A515 -> 512 | K86: =MassDataLink!A1247 -> 1244 | L86: =LeadData!A233 -> 230 | M86: =StrokeData!A516 -> 513 | N86: =MassDataLink!A1249 -> 1246 | O86: =LeadData!A234 -> 231 | P86: =StrokeData!A517 -> 514 | Q86: =MassDataLink!A1251 -> 1248 | R86: -1 | S86: -1 | T86: -1 | U86: -1 | V86: -1 | W86: -1 | X86: -1 | Y86: -1 | Z86: -1 | AA86: -1 | AB86: -1 | AC86: -1
A87: 84 | B87: RCP3-RA2BR-20SP | C87: 25 | D87: 150 | E87: 0 | F87: =LeadData!A235 -> 232 | G87: =StrokeData!A518 -> 515 | H87: =MassDataLink!A1253 -> 1250 | I87: =LeadData!A236 -> 233 | J87: =StrokeData!A519 -> 516 | K87: =MassDataLink!A1255 -> 1252 | L87: =LeadData!A237 -> 234 | M87: =StrokeData!A520 -> 517 | N87: =MassDataLink!A1257 -> 1254 | O87: =LeadData!A238 -> 235 | P87: =StrokeData!A521 -> 518 | Q87: =MassDataLink!A1259 -> 1256 | R87: -1 | S87: -1 | T87: -1 | U87: -1 | V87: -1 | W87: -1 | X87: -1 | Y87: -1 | Z87: -1 | AA87: -1 | AB87: -1 | AC87: -1
A88: =A87+1 -> 85 | B88: RCP2-RA8C | C88: 50 | D88: 300 | E88: 0 | F88: =LeadData!A239 -> 236 | G88: =StrokeData!A522 -> 519 | H88: =MassDataLink!A1261 -> 1258 | I88: =LeadData!A240 -> 237 | J88: =StrokeData!A523 -> 520 | K88: =MassDataLink!A1273 -> 1270 | L88: -1 | M88: -1 | N88: -1 | O88: -1 | P88: -1 | Q88: -1 | R88: -1 | S88: -1 | T88: -1 | U88: -1 | V88: -1 | W88: -1 | X88: -1 | Y88: -1 | Z88: -1 | AA88: -1 | AB88: -1 | AC88: -1
A89: =A88+1 -> 86 | B89: RCP2-RA8R | C89: 50 | D89: 300 | E89: 0 | F89: =LeadData!A241 -> 238 | G89: =StrokeData!A524 -> 521 | H89: =MassDataLink!A1291 -> 1288 | I89: =LeadData!A242 -> 239 | J89: =StrokeData!A525 -> 522 | K89: =MassDataLink!A1299 -> 1296 | L89: -1 | M89: -1 | N89: -1 | O89: -1 | P89: -1 | Q89: -1 | R89: -1 | S89: -1 | T89: -1 | U89: -1 | V89: -1 | W89: -1 | X89: -1 | Y89: -1 | Z89: -1 | AA89: -1 | AB89: -1 | AC89: -1

Sheet LeadData (hidden)
A1: 9.80665 | B1: 1 | C1: 3 | D1: 4 | E1: 5 | F1: 6 | G1: 10 | H1: 11 | I1: 13 | J1: 15
A2: データ№ | B2: ﾘｰﾄﾞ長 | C2: 水平定格加速度 | D2: 垂直定格加速度 | E2: 水平最大加速度 | F2: 垂直最大加速度 | G2: ｷﾞｱ比分子 | H2: ｷﾞｱ比分母 | I2: ｽﾄﾛｰｸ刻み | J2: 位置決め幅 初期値 | K2: 備考
A3: =ModelData!A3 -> 0 | B3: 0.001㎜ | C3: 0.001mm/s^2 | D3: 0.001mm/s^2 | E3: 0.001mm/s^2 | F3: 0.001mm/s^2 | I3: mm | J3: mm
A4: =A3+1 -> 1 | B4: 1000 | C4: =$A$1*1000*1000*0.2 -> 1961330 | D4: -1 | E4: =$A$1*1000*1000*0.2 -> 1961330 | F4: -1 | G4: 1 | H4: 1 | I4: 25 | J4: 0.1 | K4: RCP3-SA2AC-20P-*S
A5: 2 | B5: 2000 | C5: 1961330 | D5: -1 | E5: 1961330 | F5: -1 | G5: 1 | H5: 1 | I5: 25 | J5: 0.1
A6: 3 | B6: 4000 | C6: 1961330 | D6: -1 | E6: 1961330 | F6: -1 | G6: 1 | H6: 1 | I6: 25 | J6: 0.1
A7: 4 | B7: 2000 | C7: 1961330 | D7: -1 | E7: 1961330 | F7: -1 | G7: 1 | H7: 1 | I7: 25 | J7: 0.1 | K7: RCP3-SA2BC-20P-*S
A8: 5 | B8: 4000 | C8: 1961330 | D8: -1 | E8: 1961330 | F8: -1 | G8: 1 | H8: 1 | I8: 25 | J8: 0.1
A9: 6 | B9: 6000 | C9: 1961330 | D9: -1 | E9: 1961330 | F9: -1 | G9: 1 | H9: 1 | I9: 25 | J9: 0.1
A10: 7 | B10: 2000 | C10: 1961330 | D10: =$A$1*1000*1000*0.2 -> 1961330 | E10: 1961330 | F10: =$A$1*1000*1000*0.2 -> 1961330 | G10: 1 | H10: 1 | I10: 50 | J10: 0.1 | K10: RCP3-SA3C
A11: 8 | B11: 4000 | C11: =$A$1*1000*1000*0.3 -> 2941995 | D11: 1961330 | E11: =$A$1*1000*1000*0.3 -> 2941995 | F11: =$A$1*1000*1000*0.2 -> 1961330 | G11: 1 | H11: 1 | I11: 50 | J11: 0.1
A12: 9 | B12: 6000 | C12: =$A$1*1000*1000*0.3 -> 2941995 | D12: 1961330 | E12: =$A$1*1000*1000*0.3 -> 2941995 | F12: =$A$1*1000*1000*0.2 -> 1961330 | G12: 1 | H12: 1 | I12: 50 | J12: 0.1
A13: 10 | B13: 2500 | C13: =$A$1*1000*1000*0.2 -> 1961330 | D13: 1961330 | E13: =$A$1*1000*1000*0.7 -> 6864655 | F13: =$A$1*1000*1000*0.3 -> 2941995 | G13: 1 | H13: 1 | I13: 50 | J13: 0.1 | K13: RCP3-SA4C
A14: 11 | B14: 5000 | C14: =$A$1*1000*1000*0.3 -> 2941995 | D14: 1961330 | E14: 6864655 | F14: 2941995 | G14: 1 | H14: 1 | I14: 50 | J14: 0.1
A15: 12 | B15: 10000 | C15: =$A$1*1000*1000*0.3 -> 2941995 | D15: 1961330 | E15: 6864655 | F15: 2941995 | G15: 1 | H15: 1 | I15: 50 | J15: 0.1
A16: 13 | B16: 3000 | C16: =$A$1*1000*1000*0.2 -> 1961330 | D16: 1961330 | E16: 6864655 | F16: 2941995 | G16: 1 | H16: 1 | I16: 50 | J16: 0.1 | K16: RCP3-SA5C
A17: 14 | B17: 6000 | C17: =$A$1*1000*1000*0.3 -> 2941995 | D17: 1961330 | E17: 6864655 | F17: 2941995 | G17: 1 | H17: 1 | I17: 50 | J17: 0.1
A18: =A17+1 -> 15 | B18: 12000 | C18: =$A$1*1000*1000*0.3 -> 2941995 | D18: 1961330 | E18: 6864655 | F18: 2941995 | G18: 1 | H18: 1 | I18: 50 | J18: 0.1
A19: 16 | B19: 20000 | C19: =$A$1*1000*1000*0.3 -> 2941995 | D19: =$A$1*1000*1000*0.2 -> 1961330 | E19: =$A$1*1000*1000*0.7 -> 6864655 | F19: =$A$1*1000*1000*0.2 -> 1961330 | G19: 1 | H19: 1 | I19: 50 | J19: 0.1
A20: 17 | B20: 3000 | C20: =$A$1*1000*1000*0.2 -> 1961330 | D20: 1961330 | E20: 6864655 | F20: 2941995 | G20: 1 | H20: 1 | I20: 50 | J20: 0.1 | K20: RCP3-SA6C
A21: 18 | B21: 6000 | C21: =$A$1*1000*1000*0.3 -> 2941995 | D21: 1961330 | E21: 6864655 | F21: 2941995 | G21: 1 | H21: 1 | I21: 50 | J21: 0.1
A22: 19 | B22: 12000 | C22: =$A$1*1000*1000*0.3 -> 2941995 | D22: 1961330 | E22: 6864655 | F22: 2941995 | G22: 1 | H22: 1 | I22: 50 | J22: 0.1
A23: 20 | B23: 20000 | C23: =$A$1*1000*1000*0.3 -> 2941995 | D23: =$A$1*1000*1000*0.2 -> 1961330 | E23: =$A$1*1000*1000*0.7 -> 6864655 | F23: =$A$1*1000*1000*0.2 -> 1961330 | G23: 1 | H23: 1 | I23: 50 | J23: 0.1
A24: 21 | B24: 1000 | C24: =$A$1*1000*1000*0.2 -> 1961330 | D24: -1 | E24: =$A$1*1000*1000*0.2 -> 1961330 | F24: -1 | G24: 1 | H24: 1 | I24: 25 | J24: 0.1 | K24: RCP3-SA2AR-20P-*S
A25: 22 | B25: 2000 | C25: 1961330 | D25: -1 | E25: 1961330 | F25: -1 | G25: 1 | H25: 1 | I25: 25 | J25: 0.1
A26: 23 | B26: 4000 | C26: 1961330 | D26: -1 | E26: 1961330 | F26: -1 | G26: 1 | H26: 1 | I26: 25 | J26: 0.1
A27: 24 | B27: 2000 | C27: 1961330 | D27: -1 | E27: 1961330 | F27: -1 | G27: 1 | H27: 1 | I27: 25 | J27: 0.1 | K27: RCP3-SA2BR-20P-*S
A28: 25 | B28: 4000 | C28: 1961330 | D28: -1 | E28: 1961330 | F28: -1 | G28: 1 | H28: 1 | I28: 25 | J28: 0.1
A29: 26 | B29: 6000 | C29: 1961330 | D29: -1 | E29: 1961330 | F29: -1 | G29: 1 | H29: 1 | I29: 25 | J29: 0.1
A30: 27 | B30: 2000 | C30: 1961330 | D30: =$A$1*1000*1000*0.2 -> 1961330 | E30: 1961330 | F30: =$A$1*1000*1000*0.2 -> 1961330 | G30: 1 | H30: 1 | I30: 50 | J30: 0.1 | K30: RCP3-SA3R
A31: 28 | B31: 4000 | C31: =$A$1*1000*1000*0.3 -> 2941995 | D31: 1961330 | E31: =$A$1*1000*1000*0.3 -> 2941995 | F31: 1961330 | G31: 1 | H31: 1 | I31: 50 | J31: 0.1
A32: 29 | B32: 6000 | C32: =$A$1*1000*1000*0.3 -> 2941995 | D32: 1961330 | E32: =$A$1*1000*1000*0.3 -> 2941995 | F32: 1961330 | G32: 1 | H32: 1 | I32: 50 | J32: 0.1
A33: 30 | B33: 2500 | C33: =$A$1*1000*1000*0.2 -> 1961330 | D33: 1961330 | E33: =$A$1*1000*1000*0.2 -> 1961330 | F33: 1961330 | G33: 1 | H33: 1 | I33: 50 | J33: 0.1 | K33: RCP3-SA4R | L33: ←Ver.Dまで使用していたデータ．販売部から機械諸元をストレートタイプと揃える依頼があり，参照先をストレートタイプと同一データへ移動．
A34: 31 | B34: 5000 | C34: =$A$1*1000*1000*0.3 -> 2941995 | D34: 1961330 | E34: =$A$1*1000*1000*0.3 -> 2941995 | F34: 1961330 | G34: 1 | H34: 1 | I34: 50 | J34: 0.1 | L34: ←Ver.Dまで使用していたデータ．販売部から機械諸元をストレートタイプと揃える依頼があり，参照先をストレートタイプと同一データへ移動．
A35: 32 | B35: 10000 | C35: =$A$1*1000*1000*0.3 -> 2941995 | D35: 1961330 | E35: =$A$1*1000*1000*0.3 -> 2941995 | F35: 1961330 | G35: 1 | H35: 1 | I35: 50 | J35: 0.1 | L35: ←Ver.Dまで使用していたデータ．販売部から機械諸元をストレートタイプと揃える依頼があり，参照先をストレートタイプと同一データへ移動．
A36: 33 | B36: 3000 | C36: =$A$1*1000*1000*0.2 -> 1961330 | D36: 1961330 | E36: =$A$1*1000*1000*0.2 -> 1961330 | F36: 1961330 | G36: 1 | H36: 1 | I36: 50 | J36: 0.1 | K36: RCP3-SA5R | L36: ←Ver.Dまで使用していたデータ．販売部から機械諸元をストレートタイプと揃える依頼があり，参照先をストレートタイプと同一データへ移動．
A37: 34 | B37: 6000 | C37: =$A$1*1000*1000*0.3 -> 2941995 | D37: 1961330 | E37: =$A$1*1000*1000*0.3 -> 2941995 | F37: 1961330 | G37: 1 | H37: 1 | I37: 50 | J37: 0.1 | L37: ←Ver.Dまで使用していたデータ．販売部から機械諸元をストレートタイプと揃える依頼があり，参照先をストレートタイプと同一データへ移動．
A38: 35 | B38: 12000 | C38: =$A$1*1000*1000*0.3 -> 2941995 | D38: 1961330 | E38: =$A$1*1000*1000*0.3 -> 2941995 | F38: 1961330 | G38: 1 | H38: 1 | I38: 50 | J38: 0.1 | L38: ←Ver.Dまで使用していたデータ．販売部から機械諸元をストレートタイプと揃える依頼があり，参照先をストレートタイプと同一データへ移動．
A39: 36 | B39: 3000 | C39: =$A$1*1000*1000*0.2 -> 1961330 | D39: 1961330 | E39: =$A$1*1000*1000*0.2 -> 1961330 | F39: 1961330 | G39: 1 | H39: 1 | I39: 50 | J39: 0.1 | K39: RCP3-SA6R | L39: ←Ver.Dまで使用していたデータ．販売部から機械諸元をストレートタイプと揃える依頼があり，参照先をストレートタイプと同一データへ移動．
A40: 37 | B40: 6000 | C40: =$A$1*1000*1000*0.3 -> 2941995 | D40: 1961330 | E40: =$A$1*1000*1000*0.3 -> 2941995 | F40: 1961330 | G40: 1 | H40: 1 | I40: 50 | J40: 0.1 | L40: ←Ver.Dまで使用していたデータ．販売部から機械諸元をストレートタイプと揃える依頼があり，参照先をストレートタイプと同一データへ移動．
A41: 38 | B41: 12000 | C41: =$A$1*1000*1000*0.3 -> 2941995 | D41: 1961330 | E41: =$A$1*1000*1000*0.3 -> 2941995 | F41: 1961330 | G41: 1 | H41: 1 | I41: 50 | J41: 0.1 | L41: ←Ver.Dまで使用していたデータ．販売部から機械諸元をストレートタイプと揃える依頼があり，参照先をストレートタイプと同一データへ移動．
A42: 39 | B42: 3000 | C42: =$A$1*1000*1000*0.2 -> 1961330 | D42: 1961330 | E42: =$A$1*1000*1000*0.7 -> 6864655 | F42: =$A$1*1000*1000*0.3 -> 2941995 | G42: 1 | H42: 1 | I42: 50 | J42: 0.1 | K42: RCP2-SA5C
A43: 40 | B43: 6000 | C43: =$A$1*1000*1000*0.3 -> 2941995 | D43: 1961330 | E43: 6864655 | F43: 2941995 | G43: 1 | H43: 1 | I43: 50 | J43: 0.1
A44: 41 | B44: 12000 | C44: =$A$1*1000*1000*0.3 -> 2941995 | D44: 1961330 | E44: 6864655 | F44: 2941995 | G44: 1 | H44: 1 | I44: 50 | J44: 0.1
A45: 42 | B45: 3000 | C45: =$A$1*1000*1000*0.2 -> 1961330 | D45: 1961330 | E45: 6864655 | F45: 2941995 | G45: 1 | H45: 1 | I45: 50 | J45: 0.1 | K45: RCP2-SA6C
A46: 43 | B46: 6000 | C46: =$A$1*1000*1000*0.3 -> 2941995 | D46: 1961330 | E46: 6864655 | F46: 2941995 | G46: 1 | H46: 1 | I46: 50 | J46: 0.1
A47: 44 | B47: 12000 | C47: =$A$1*1000*1000*0.3 -> 2941995 | D47: 1961330 | E47: 6864655 | F47: 2941995 | G47: 1 | H47: 1 | I47: 50 | J47: 0.1
A48: 45 | B48: 4000 | C48: =$A$1*1000*1000*0.2 -> 1961330 | D48: 1961330 | E48: =$A$1*1000*1000*0.2 -> 1961330 | F48: 1961330 | G48: 1 | H48: 1 | I48: 50 | J48: 0.1 | K48: RCP2-SA7C
A49: 46 | B49: 8000 | C49: =$A$1*1000*1000*0.3 -> 2941995 | D49: 1961330 | E49: =$A$1*1000*1000*0.3 -> 2941995 | F49: 1961330 | G49: 1 | H49: 1 | I49: 50 | J49: 0.1
A50: 47 | B50: 16000 | C50: =$A$1*1000*1000*0.3 -> 2941995 | D50: 1961330 | E50: =$A$1*1000*1000*0.3 -> 2941995 | F50: 1961330 | G50: 1 | H50: 1 | I50: 50 | J50: 0.1
A51: 48 | B51: 3000 | C51: =$A$1*1000*1000*0.2 -> 1961330 | D51: 1961330 | E51: =$A$1*1000*1000*0.2 -> 1961330 | F51: 1961330 | G51: 1 | H51: 1 | I51: 50 | J51: 0.1 | K51: RCP2-SS7C
A52: 49 | B52: 6000 | C52: =$A$1*1000*1000*0.3 -> 2941995 | D52: 1961330 | E52: =$A$1*1000*1000*0.3 -> 2941995 | F52: 1961330 | G52: 1 | H52: 1 | I52: 50 | J52: 0.1
A53: 50 | B53: 12000 | C53: =$A$1*1000*1000*0.3 -> 2941995 | D53: 1961330 | E53: =$A$1*1000*1000*0.3 -> 2941995 | F53: 1961330 | G53: 1 | H53: 1 | I53: 50 | J53: 0.1
A54: 51 | B54: 5000 | C54: =$A$1*1000*1000*0.2 -> 1961330 | D54: 1961330 | E54: =$A$1*1000*1000*0.2 -> 1961330 | F54: 1961330 | G54: 1 | H54: 1 | I54: 50 | J54: 0.1 | K54: RCP2-SS8C
A55: 52 | B55: 10000 | C55: =$A$1*1000*1000*0.3 -> 2941995 | D55: 1961330 | E55: =$A$1*1000*1000*0.3 -> 2941995 | F55: 1961330 | G55: 1 | H55: 1 | I55: 50 | J55: 0.1
A56: 53 | B56: 20000 | C56: =$A$1*1000*1000*0.3 -> 2941995 | D56: 1961330 | E56: =$A$1*1000*1000*0.3 -> 2941995 | F56: 1961330 | G56: 1 | H56: 1 | I56: 50 | J56: 0.1
A57: 54 | B57: 30000 | C57: =$A$1*1000*1000*0.3 -> 2941995 | D57: 1961330 | E57: =$A$1*1000*1000*0.5 -> 4903325 | F57: 1961330 | G57: 1 | H57: 1 | I57: 50 | J57: 0.1 | K57: RCP2-HS8C
A58: 55 | B58: 3000 | C58: =$A$1*1000*1000*0.2 -> 1961330 | D58: 1961330 | E58: =$A$1*1000*1000*0.2 -> 1961330 | F58: 1961330 | G58: 1 | H58: 1 | I58: 50 | J58: 0.1 | K58: RCP2-SA5R
A59: 56 | B59: 6000 | C59: =$A$1*1000*1000*0.3 -> 2941995 | D59: 1961330 | E59: =$A$1*1000*1000*0.3 -> 2941995 | F59: 1961330 | G59: 1 | H59: 1 | I59: 50 | J59: 0.1
A60: 57 | B60: 12000 | C60: =$A$1*1000*1000*0.3 -> 2941995 | D60: 1961330 | E60: =$A$1*1000*1000*0.3 -> 2941995 | F60: 1961330 | G60: 1 | H60: 1 | I60: 50 | J60: 0.1
A61: 58 | B61: 3000 | C61: =$A$1*1000*1000*0.2 -> 1961330 | D61: 1961330 | E61: =$A$1*1000*1000*0.2 -> 1961330 | F61: 1961330 | G61: 1 | H61: 1 | I61: 50 | J61: 0.1 | K61: RCP2-SA6R
A62: 59 | B62: 6000 | C62: =$A$1*1000*1000*0.3 -> 2941995 | D62: 1961330 | E62: =$A$1*1000*1000*0.3 -> 2941995 | F62: 1961330 | G62: 1 | H62: 1 | I62: 50 | J62: 0.1
A63: 60 | B63: 12000 | C63: =$A$1*1000*1000*0.3 -> 2941995 | D63: 1961330 | E63: =$A$1*1000*1000*0.3 -> 2941995 | F63: 1961330 | G63: 1 | H63: 1 | I63: 50 | J63: 0.1
A64: 61 | B64: 4000 | C64: =$A$1*1000*1000*0.2 -> 1961330 | D64: 1961330 | E64: =$A$1*1000*1000*0.2 -> 1961330 | F64: 1961330 | G64: 1 | H64: 1 | I64: 50 | J64: 0.1 | K64: RCP2-SA7R
A65: 62 | B65: 8000 | C65: =$A$1*1000*1000*0.3 -> 2941995 | D65: 1961330 | E65: =$A$1*1000*1000*0.3 -> 2941995 | F65: 1961330 | G65: 1 | H65: 1 | I65: 50 | J65: 0.1
A66: 63 | B66: 16000 | C66: =$A$1*1000*1000*0.3 -> 2941995 | D66: 1961330 | E66: =$A$1*1000*1000*0.3 -> 2941995 | F66: 1961330 | G66: 1 | H66: 1 | I66: 50 | J66: 0.1
A67: 64 | B67: 3000 | C67: =$A$1*1000*1000*0.2 -> 1961330 | D67: 1961330 | E67: =$A$1*1000*1000*0.2 -> 1961330 | F67: 1961330 | G67: 1 | H67: 1 | I67: 50 | J67: 0.1 | K67: RCP2-SS7R
A68: 65 | B68: 6000 | C68: =$A$1*1000*1000*0.3 -> 2941995 | D68: 1961330 | E68: =$A$1*1000*1000*0.3 -> 2941995 | F68: 1961330 | G68: 1 | H68: 1 | I68: 50 | J68: 0.1
A69: 66 | B69: 12000 | C69: =$A$1*1000*1000*0.3 -> 2941995 | D69: 1961330 | E69: =$A$1*1000*1000*0.3 -> 2941995 | F69: 1961330 | G69: 1 | H69: 1 | I69: 50 | J69: 0.1
A70: =A69+1 -> 67 | B70: 5000 | C70: =$A$1*1000*1000*0.2 -> 1961330 | D70: 1961330 | E70: =$A$1*1000*1000*0.2 -> 1961330 | F70: 1961330 | G70: 1 | H70: 1 | I70: 50 | J70: 0.1 | K70: RCP2-SS8R
A71: 68 | B71: 10000 | C71: =$A$1*1000*1000*0.3 -> 2941995 | D71: 1961330 | E71: =$A$1*1000*1000*0.3 -> 2941995 | F71: 1961330 | G71: 1 | H71: 1 | I71: 50 | J71: 0.1
A72: 69 | B72: 20000 | C72: =$A$1*1000*1000*0.3 -> 2941995 | D72: 1961330 | E72: =$A$1*1000*1000*0.3 -> 2941995 | F72: 1961330 | G72: 1 | H72: 1 | I72: 50 | J72: 0.1
A73: 70 | B73: 30000 | C73: =$A$1*1000*1000*0.3 -> 2941995 | D73: 1961330 | E73: =$A$1*1000*1000*0.5 -> 4903325 | F73: 1961330 | G73: 1 | H73: 1 | I73: 50 | J73: 0.1 | K73: RCP2-HS8R
A74: 71 | B74: 54000 | C74: =$A$1*1000*1000*0.5 -> 4903325 | D74: -1 | E74: =$A$1*1000*1000*0.5 -> 4903325 | F74: -1 | G74: 1 | H74: 1 | I74: 50 | J74: 0.1 | K74: RCP2-BA6
A75: 72 | B75: 54000 | C75: =$A$1*1000*1000*0.5 -> 4903325 | D75: -1 | E75: =$A$1*1000*1000*0.5 -> 4903325 | F75: -1 | G75: 1 | H75: 1 | I75: 50 | J75: 0.1 | K75: RCP2-BA7
A76: 73 | B76: 3000 | C76: =$A$1*1000*1000*0.2 -> 1961330 | D76: =$A$1*1000*1000*0.2 -> 1961330 | E76: =$A$1*1000*1000*0.2 -> 1961330 | F76: =$A$1*1000*1000*0.2 -> 1961330 | G76: 1 | H76: 1 | I76: 50 | J76: 0.1 | K76: ERC2-SA6C
A77: 74 | B77: 6000 | C77: =$A$1*1000*1000*0.3 -> 2941995 | D77: =$A$1*1000*1000*0.2 -> 1961330 | E77: =$A$1*1000*1000*0.3 -> 2941995 | F77: =$A$1*1000*1000*0.2 -> 1961330 | G77: 1 | H77: 1 | I77: 50 | J77: 0.1
A78: 75 | B78: 12000 | C78: =$A$1*1000*1000*0.3 -> 2941995 | D78: 1961330 | E78: =$A$1*1000*1000*0.3 -> 2941995 | F78: 1961330 | G78: 1 | H78: 1 | I78: 50 | J78: 0.1
A79: 76 | B79: 4000 | C79: =$A$1*1000*1000*0.2 -> 1961330 | D79: 1961330 | E79: =$A$1*1000*1000*0.2 -> 1961330 | F79: 1961330 | G79: 1 | H79: 1 | I79: 50 | J79: 0.1 | K79: ERC2-SA7C
A80: 77 | B80: 8000 | C80: =$A$1*1000*1000*0.3 -> 2941995 | D80: 1961330 | E80: =$A$1*1000*1000*0.3 -> 2941995 | F80: 1961330 | G80: 1 | H80: 1 | I80: 50 | J80: 0.1
A81: 78 | B81: 16000 | C81: =$A$1*1000*1000*0.3 -> 2941995 | D81: 1961330 | E81: =$A$1*1000*1000*0.3 -> 2941995 | F81: 1961330 | G81: 1 | H81: 1 | I81: 50 | J81: 0.1
A82: 79 | B82: 1000 | C82: =$A$1*1000*1000*0.2 -> 1961330 | D82: 1961330 | E82: =$A$1*1000*1000*0.2 -> 1961330 | F82: 1961330 | G82: 1 | H82: 1 | I82: 25 | J82: 0.1 | K82: RCP3-RA2AC-20P-*S
A83: 80 | B83: 2000 | C83: 1961330 | D83: 1961330 | E83: 1961330 | F83: 1961330 | G83: 1 | H83: 1 | I83: 25 | J83: 0.1
A84: 81 | B84: 4000 | C84: 1961330 | D84: 1961330 | E84: 1961330 | F84: 1961330 | G84: 1 | H84: 1 | I84: 25 | J84: 0.1
A85: 82 | B85: 2000 | C85: 1961330 | D85: 1961330 | E85: 1961330 | F85: 1961330 | G85: 1 | H85: 1 | I85: 25 | J85: 0.1 | K85: RCP3-RA2BC-20P-*S
A86: 83 | B86: 4000 | C86: 1961330 | D86: 1961330 | E86: 1961330 | F86: 1961330 | G86: 1 | H86: 1 | I86: 25 | J86: 0.1
A87: 84 | B87: 6000 | C87: 1961330 | D87: 1961330 | E87: 1961330 | F87: 1961330 | G87: 1 | H87: 1 | I87: 25 | J87: 0.1
A88: 85 | B88: 1000 | C88: 1961330 | D88: 1961330 | E88: 1961330 | F88: 1961330 | G88: 1 | H88: 1 | I88: 25 | J88: 0.1 | K88: RCP3-RA2AR-20P-*S
A89: 86 | B89: 2000 | C89: 1961330 | D89: 1961330 | E89: 1961330 | F89: 1961330 | G89: 1 | H89: 1 | I89: 25 | J89: 0.1
A90: 87 | B90: 4000 | C90: 1961330 | D90: 1961330 | E90: 1961330 | F90: 1961330 | G90: 1 | H90: 1 | I90: 25 | J90: 0.1
A91: 88 | B91: 2000 | C91: 1961330 | D91: 1961330 | E91: 1961330 | F91: 1961330 | G91: 1 | H91: 1 | I91: 25 | J91: 0.1 | K91: RCP3-RA2BR-20P-*S
A92: 89 | B92: 4000 | C92: 1961330 | D92: 1961330 | E92: 1961330 | F92: 1961330 | G92: 1 | H92: 1 | I92: 25 | J92: 0.1
A93: 90 | B93: 6000 | C93: 1961330 | D93: 1961330 | E93: 1961330 | F93: 1961330 | G93: 1 | H93: 1 | I93: 25 | J93: 0.1
A94: 91 | B94: 1000 | C94: =$A$1*1000*1000*0.05 -> 490332.5 | D94: =$A$1*1000*1000*0.05 -> 490332.5 | E94: =$A$1*1000*1000*0.05 -> 490332.5 | F94: =$A$1*1000*1000*0.05 -> 490332.5 | G94: 1 | H94: 1 | I94: 25 | J94: 0.1 | K94: RCP2-RA2C
A95: 92 | B95: 2500 | C95: =$A$1*1000*1000*0.2 -> 1961330 | D95: 1961330 | E95: 1961330 | F95: 1961330 | G95: 1 | H95: 1 | I95: 50 | J95: 0.1 | K95: RCP2-RA3C
A96: 93 | B96: 5000 | C96: 1961330 | D96: 1961330 | E96: 1961330 | F96: 1961330 | G96: 1 | H96: 1 | I96: 50 | J96: 0.1
A97: 94 | B97: 2500 | C97: 1961330 | D97: 1961330 | E97: 1961330 | F97: 1961330 | G97: 1 | H97: 1 | I97: 50 | J97: 0.1 | K97: RCP2-RA4C
A98: 95 | B98: 5000 | C98: 1961330 | D98: 1961330 | E98: 1961330 | F98: 1961330 | G98: 1 | H98: 1 | I98: 50 | J98: 0.1
A99: 96 | B99: 10000 | C99: 1961330 | D99: 1961330 | E99: 1961330 | F99: 1961330 | G99: 1 | H99: 1 | I99: 50 | J99: 0.1
A100: 97 | B100: 4000 | C100: 1961330 | D100: 1961330 | E100: 1961330 | F100: 1961330 | G100: 1 | H100: 1 | I100: 50 | J100: 0.1 | K100: RCP2-RA6C
A101: 98 | B101: 8000 | C101: 1961330 | D101: 1961330 | E101: 1961330 | F101: 1961330 | G101: 1 | H101: 1 | I101: 50 | J101: 0.1
A102: 99 | B102: 16000 | C102: 1961330 | D102: 1961330 | E102: 1961330 | F102: 1961330 | G102: 1 | H102: 1 | I102: 50 | J102: 0.1
A103: 100 | B103: 2500 | C103: =$A$1*1000*1000*0.01 -> 98066.5 | D103: =$A$1*1000*1000*0.01 -> 98066.5 | E103: =$A$1*1000*1000*0.01 -> 98066.5 | F103: =$A$1*1000*1000*0.01 -> 98066.5 | G103: 1 | H103: 1 | I103: 50 | J103: 0.1 | K103: RCP2-RA10C
A104: 101 | B104: 5000 | C104: =$A$1*1000*1000*0.02 -> 196133 | D104: =$A$1*1000*1000*0.02 -> 196133 | E104: =$A$1*1000*1000*0.02 -> 196133 | F104: =$A$1*1000*1000*0.02 -> 196133 | G104: 1 | H104: 1 | I104: 50 | J104: 0.1
A105: 102 | B105: 10000 | C105: =$A$1*1000*1000*0.04 -> 392266 | D105: =$A$1*1000*1000*0.04 -> 392266 | E105: =$A$1*1000*1000*0.04 -> 392266 | F105: =$A$1*1000*1000*0.04 -> 392266 | G105: 1 | H105: 1 | I105: 50 | J105: 0.1
A106: 103 | B106: 2500 | C106: 1961330 | D106: 1961330 | E106: 1961330 | F106: 1961330 | G106: 1 | H106: 1 | I106: 10 | J106: 0.1 | K106: RCP2-SRA4R
A107: 104 | B107: 5000 | C107: =$A$1*1000*1000*0.3 -> 2941995 | D107: =$A$1*1000*1000*0.2 -> 1961330 | E107: =$A$1*1000*1000*0.3 -> 2941995 | F107: =$A$1*1000*1000*0.2 -> 1961330 | G107: 1 | H107: 1 | I107: 10 | J107: 0.1
A108: 105 | B108: 2500 | C108: =$A$1*1000*1000*0.2 -> 1961330 | D108: 1961330 | E108: =$A$1*1000*1000*0.2 -> 1961330 | F108: 1961330 | G108: 1 | H108: 1 | I108: 50 | J108: 0.1 | K108: RCP2-RGS4C
A109: 106 | B109: 5000 | C109: 1961330 | D109: 1961330 | E109: 1961330 | F109: 1961330 | G109: 1 | H109: 1 | I109: 50 | J109: 0.1
A110: 107 | B110: 10000 | C110: 1961330 | D110: 1961330 | E110: 1961330 | F110: 1961330 | G110: 1 | H110: 1 | I110: 50 | J110: 0.1
A111: 108 | B111: 4000 | C111: 1961330 | D111: 1961330 | E111: 1961330 | F111: 1961330 | G111: 1 | H111: 1 | I111: 50 | J111: 0.1 | K111: RCP2-RGS6C
A112: 109 | B112: 8000 | C112: 1961330 | D112: 1961330 | E112: 1961330 | F112: 1961330 | G112: 1 | H112: 1 | I112: 50 | J112: 0.1
A113: 110 | B113: 16000 | C113: 1961330 | D113: 1961330 | E113: 1961330 | F113: 1961330 | G113: 1 | H113: 1 | I113: 50 | J113: 0.1
A114: 111 | B114: 2500 | C114: 1961330 | D114: 1961330 | E114: 1961330 | F114: 1961330 | G114: 1 | H114: 1 | I114: 10 | J114: 0.1 | K114: RCP2-SRGS4R
A115: 112 | B115: 5000 | C115: =$A$1*1000*1000*0.3 -> 2941995 | D115: 1961330 | E115: =$A$1*1000*1000*0.3 -> 2941995 | F115: 1961330 | G115: 1 | H115: 1 | I115: 10 | J115: 0.1
A116: 113 | B116: 2500 | C116: =$A$1*1000*1000*0.2 -> 1961330 | D116: 1961330 | E116: =$A$1*1000*1000*0.2 -> 1961330 | F116: 1961330 | G116: 1 | H116: 1 | I116: 50 | J116: 0.1 | K116: RCP2-RGD3C
A117: 114 | B117: 5000 | C117: 1961330 | D117: 1961330 | E117: 1961330 | F117: 1961330 | G117: 1 | H117: 1 | I117: 50 | J117: 0.1
A118: 115 | B118: 2500 | C118: 1961330 | D118: 1961330 | E118: 1961330 | F118: 1961330 | G118: 1 | H118: 1 | I118: 50 | J118: 0.1 | K118: RCP2-RGD4C
A119: 116 | B119: 5000 | C119: 1961330 | D119: 1961330 | E119: 1961330 | F119: 1961330 | G119: 1 | H119: 1 | I119: 50 | J119: 0.1
A120: 117 | B120: 10000 | C120: 1961330 | D120: 1961330 | E120: 1961330 | F120: 1961330 | G120: 1 | H120: 1 | I120: 50 | J120: 0.1
A121: 118 | B121: 4000 | C121: 1961330 | D121: 1961330 | E121: 1961330 | F121: 1961330 | G121: 1 | H121: 1 | I121: 50 | J121: 0.1 | K121: RCP2-RGD6C
A122: 119 | B122: 8000 | C122: 1961330 | D122: 1961330 | E122: 1961330 | F122: 1961330 | G122: 1 | H122: 1 | I122: 50 | J122: 0.1
A123: 120 | B123: 16000 | C123: 1961330 | D123: 1961330 | E123: 1961330 | F123: 1961330 | G123: 1 | H123: 1 | I123: 50 | J123: 0.1
A124: 121 | B124: 2500 | C124: 1961330 | D124: 1961330 | E124: 1961330 | F124: 1961330 | G124: 1 | H124: 1 | I124: 10 | J124: 0.1 | K124: RCP2-SRGD4R
A125: 122 | B125: 5000 | C125: =$A$1*1000*1000*0.3 -> 2941995 | D125: 1961330 | E125: =$A$1*1000*1000*0.3 -> 2941995 | F125: 1961330 | G125: 1 | H125: 1 | I125: 10 | J125: 0.1
A126: 123 | B126: 3000 | C126: =$A$1*1000*1000*0.2 -> 1961330 | D126: 1961330 | E126: =$A$1*1000*1000*0.2 -> 1961330 | F126: 1961330 | G126: 1 | H126: 1 | I126: 50 | J126: 0.1 | K126: ERC2-RA6C
A127: 124 | B127: 6000 | C127: =$A$1*1000*1000*0.3 -> 2941995 | D127: 1961330 | E127: =$A$1*1000*1000*0.3 -> 2941995 | F127: 1961330 | G127: 1 | H127: 1 | I127: 50 | J127: 0.1
A128: 125 | B128: 12000 | C128: =$A$1*1000*1000*0.3 -> 2941995 | D128: 1961330 | E128: =$A$1*1000*1000*0.3 -> 2941995 | F128: 1961330 | G128: 1 | H128: 1 | I128: 50 | J128: 0.1
A129: 126 | B129: 4000 | C129: =$A$1*1000*1000*0.2 -> 1961330 | D129: 1961330 | E129: =$A$1*1000*1000*0.2 -> 1961330 | F129: 1961330 | G129: 1 | H129: 1 | I129: 50 | J129: 0.1 | K129: ERC2-RA7C
A130: 127 | B130: 8000 | C130: =$A$1*1000*1000*0.3 -> 2941995 | D130: 1961330 | E130: =$A$1*1000*1000*0.3 -> 2941995 | F130: 1961330 | G130: 1 | H130: 1 | I130: 50 | J130: 0.1
A131: 128 | B131: 16000 | C131: =$A$1*1000*1000*0.3 -> 2941995 | D131: 1961330 | E131: =$A$1*1000*1000*0.3 -> 2941995 | F131: 1961330 | G131: 1 | H131: 1 | I131: 50 | J131: 0.1
A132: 129 | B132: 3000 | C132: =$A$1*1000*1000*0.2 -> 1961330 | D132: 1961330 | E132: =$A$1*1000*1000*0.2 -> 1961330 | F132: 1961330 | G132: 1 | H132: 1 | I132: 50 | J132: 0.1 | K132: ERC2-RGS6C
A133: 130 | B133: 6000 | C133: =$A$1*1000*1000*0.3 -> 2941995 | D133: 1961330 | E133: =$A$1*1000*1000*0.3 -> 2941995 | F133: 1961330 | G133: 1 | H133: 1 | I133: 50 | J133: 0.1
A134: =A133+1 -> 131 | B134: 12000 | C134: =$A$1*1000*1000*0.3 -> 2941995 | D134: 1961330 | E134: =$A$1*1000*1000*0.3 -> 2941995 | F134: 1961330 | G134: 1 | H134: 1 | I134: 50 | J134: 0.1
A135: 132 | B135: 4000 | C135: =$A$1*1000*1000*0.2 -> 1961330 | D135: 1961330 | E135: =$A$1*1000*1000*0.2 -> 1961330 | F135: 1961330 | G135: 1 | H135: 1 | I135: 50 | J135: 0.1 | K135: ERC2-RGS7C
A136: 133 | B136: 8000 | C136: =$A$1*1000*1000*0.3 -> 2941995 | D136: 1961330 | E136: =$A$1*1000*1000*0.3 -> 2941995 | F136: 1961330 | G136: 1 | H136: 1 | I136: 50 | J136: 0.1
A137: 134 | B137: 16000 | C137: =$A$1*1000*1000*0.3 -> 2941995 | D137: 1961330 | E137: =$A$1*1000*1000*0.3 -> 2941995 | F137: 1961330 | G137: 1 | H137: 1 | I137: 50 | J137: 0.1
A138: 135 | B138: 3000 | C138: =$A$1*1000*1000*0.2 -> 1961330 | D138: 1961330 | E138: =$A$1*1000*1000*0.2 -> 1961330 | F138: 1961330 | G138: 1 | H138: 1 | I138: 50 | J138: 0.1 | K138: ERC2-RGD6C
A139: 136 | B139: 6000 | C139: =$A$1*1000*1000*0.3 -> 2941995 | D139: =$A$1*1000*1000*0.2 -> 1961330 | E139: =$A$1*1000*1000*0.3 -> 2941995 | F139: =$A$1*1000*1000*0.2 -> 1961330 | G139: 1 | H139: 1 | I139: 50 | J139: 0.1
A140: 137 | B140: 12000 | C140: =$A$1*1000*1000*0.3 -> 2941995 | D140: 1961330 | E140: =$A$1*1000*1000*0.3 -> 2941995 | F140: 1961330 | G140: 1 | H140: 1 | I140: 50 | J140: 0.1
A141: 138 | B141: 4000 | C141: =$A$1*1000*1000*0.2 -> 1961330 | D141: 1961330 | E141: =$A$1*1000*1000*0.2 -> 1961330 | F141: 1961330 | G141: 1 | H141: 1 | I141: 50 | J141: 0.1 | K141: ERC2-RGD7C
A142: 139 | B142: 8000 | C142: =$A$1*1000*1000*0.3 -> 2941995 | D142: 1961330 | E142: =$A$1*1000*1000*0.3 -> 2941995 | F142: 1961330 | G142: 1 | H142: 1 | I142: 50 | J142: 0.1
A143: 140 | B143: 16000 | C143: =$A$1*1000*1000*0.3 -> 2941995 | D143: 1961330 | E143: =$A$1*1000*1000*0.3 -> 2941995 | F143: 1961330 | G143: 1 | H143: 1 | I143: 50 | J143: 0.1
A144: 141 | B144: 2000 | C144: =$A$1*1000*1000*0.2 -> 1961330 | D144: 1961330 | E144: =$A$1*1000*1000*0.2 -> 1961330 | F144: 1961330 | G144: 1 | H144: 1 | I144: 10 | J144: 0.1 | K144: RCP3-TA3C
A145: 142 | B145: 4000 | C145: =$A$1*1000*1000*0.3 -> 2941995 | D145: 1961330 | E145: =$A$1*1000*1000*0.3 -> 2941995 | F145: 1961330 | G145: 1 | H145: 1 | I145: 10 | J145: 0.1
A146: 143 | B146: 6000 | C146: =$A$1*1000*1000*0.3 -> 2941995 | D146: 1961330 | E146: =$A$1*1000*1000*0.3 -> 2941995 | F146: 1961330 | G146: 1 | H146: 1 | I146: 10 | J146: 0.1
A147: 144 | B147: 2000 | C147: =$A$1*1000*1000*0.2 -> 1961330 | D147: 1961330 | E147: =$A$1*1000*1000*0.2 -> 1961330 | F147: 1961330 | G147: 1 | H147: 1 | I147: 10 | J147: 0.1 | K147: RCP3-TA4C
A148: 145 | B148: 4000 | C148: =$A$1*1000*1000*0.3 -> 2941995 | D148: 1961330 | E148: =$A$1*1000*1000*0.3 -> 2941995 | F148: 1961330 | G148: 1 | H148: 1 | I148: 10 | J148: 0.1
A149: 146 | B149: 6000 | C149: =$A$1*1000*1000*0.3 -> 2941995 | D149: 1961330 | E149: =$A$1*1000*1000*0.3 -> 2941995 | F149: 1961330 | G149: 1 | H149: 1 | I149: 10 | J149: 0.1
A150: 147 | B150: 2500 | C150: =$A$1*1000*1000*0.2 -> 1961330 | D150: 1961330 | E150: =$A$1*1000*1000*0.2 -> 1961330 | F150: 1961330 | G150: 1 | H150: 1 | I150: 25 | J150: 0.1 | K150: RCP3-TA5C
A151: 148 | B151: 5000 | C151: =$A$1*1000*1000*0.3 -> 2941995 | D151: 1961330 | E151: =$A$1*1000*1000*0.3 -> 2941995 | F151: 1961330 | G151: 1 | H151: 1 | I151: 25 | J151: 0.1
A152: 149 | B152: 10000 | C152: =$A$1*1000*1000*0.3 -> 2941995 | D152: 1961330 | E152: =$A$1*1000*1000*0.3 -> 2941995 | F152: 1961330 | G152: 1 | H152: 1 | I152: 25 | J152: 0.1
A153: 150 | B153: 3000 | C153: =$A$1*1000*1000*0.2 -> 1961330 | D153: 1961330 | E153: =$A$1*1000*1000*0.2 -> 1961330 | F153: 1961330 | G153: 1 | H153: 1 | I153: 25 | J153: 0.1 | K153: RCP3-TA6C
A154: 151 | B154: 6000 | C154: =$A$1*1000*1000*0.3 -> 2941995 | D154: 1961330 | E154: =$A$1*1000*1000*0.3 -> 2941995 | F154: 1961330 | G154: 1 | H154: 1 | I154: 25 | J154: 0.1
A155: 152 | B155: 12000 | C155: =$A$1*1000*1000*0.3 -> 2941995 | D155: 1961330 | E155: =$A$1*1000*1000*0.3 -> 2941995 | F155: 1961330 | G155: 1 | H155: 1 | I155: 25 | J155: 0.1
A156: 153 | B156: 3000 | C156: =$A$1*1000*1000*0.2 -> 1961330 | D156: 1961330 | E156: =$A$1*1000*1000*0.2 -> 1961330 | F156: 1961330 | G156: 1 | H156: 1 | I156: 25 | J156: 0.1 | K156: RCP3-TA7C
A157: 154 | B157: 6000 | C157: =$A$1*1000*1000*0.3 -> 2941995 | D157: 1961330 | E157: =$A$1*1000*1000*0.3 -> 2941995 | F157: 1961330 | G157: 1 | H157: 1 | I157: 25 | J157: 0.1
A158: 155 | B158: 12000 | C158: =$A$1*1000*1000*0.3 -> 2941995 | D158: 1961330 | E158: =$A$1*1000*1000*0.3 -> 2941995 | F158: 1961330 | G158: 1 | H158: 1 | I158: 25 | J158: 0.1
A159: 156 | B159: 2000 | C159: =$A$1*1000*1000*0.2 -> 1961330 | D159: 1961330 | E159: =$A$1*1000*1000*0.2 -> 1961330 | F159: 1961330 | G159: 1 | H159: 1 | I159: 10 | J159: 0.1 | K159: RCP3-TA3R
A160: 157 | B160: 4000 | C160: =$A$1*1000*1000*0.3 -> 2941995 | D160: 1961330 | E160: =$A$1*1000*1000*0.3 -> 2941995 | F160: 1961330 | G160: 1 | H160: 1 | I160: 10 | J160: 0.1
A161: 158 | B161: 6000 | C161: =$A$1*1000*1000*0.3 -> 2941995 | D161: 1961330 | E161: =$A$1*1000*1000*0.3 -> 2941995 | F161: 1961330 | G161: 1 | H161: 1 | I161: 10 | J161: 0.1
A162: 159 | B162: 2000 | C162: =$A$1*1000*1000*0.2 -> 1961330 | D162: 1961330 | E162: =$A$1*1000*1000*0.2 -> 1961330 | F162: 1961330 | G162: 1 | H162: 1 | I162: 10 | J162: 0.1 | K162: RCP3-TA4R
A163: 160 | B163: 4000 | C163: =$A$1*1000*1000*0.3 -> 2941995 | D163: 1961330 | E163: =$A$1*1000*1000*0.3 -> 2941995 | F163: 1961330 | G163: 1 | H163: 1 | I163: 10 | J163: 0.1
A164: 161 | B164: 6000 | C164: =$A$1*1000*1000*0.3 -> 2941995 | D164: 1961330 | E164: =$A$1*1000*1000*0.3 -> 2941995 | F164: 1961330 | G164: 1 | H164: 1 | I164: 10 | J164: 0.1
A165: 162 | B165: 2500 | C165: =$A$1*1000*1000*0.2 -> 1961330 | D165: 1961330 | E165: =$A$1*1000*1000*0.2 -> 1961330 | F165: 1961330 | G165: 1 | H165: 1 | I165: 25 | J165: 0.1 | K165: RCP3-TA5R
A166: 163 | B166: 5000 | C166: =$A$1*1000*1000*0.3 -> 2941995 | D166: 1961330 | E166: =$A$1*1000*1000*0.3 -> 2941995 | F166: 1961330 | G166: 1 | H166: 1 | I166: 25 | J166: 0.1
A167: 164 | B167: 10000 | C167: =$A$1*1000*1000*0.3 -> 2941995 | D167: 1961330 | E167: =$A$1*1000*1000*0.3 -> 2941995 | F167: 1961330 | G167: 1 | H167: 1 | I167: 25 | J167: 0.1
A168: 165 | B168: 3000 | C168: =$A$1*1000*1000*0.2 -> 1961330 | D168: 1961330 | E168: =$A$1*1000*1000*0.2 -> 1961330 | F168: 1961330 | G168: 1 | H168: 1 | I168: 25 | J168: 0.1 | K168: RCP3-TA6R
A169: 166 | B169: 6000 | C169: =$A$1*1000*1000*0.3 -> 2941995 | D169: 1961330 | E169: =$A$1*1000*1000*0.3 -> 2941995 | F169: 1961330 | G169: 1 | H169: 1 | I169: 25 | J169: 0.1
A170: 167 | B170: 12000 | C170: =$A$1*1000*1000*0.3 -> 2941995 | D170: 1961330 | E170: =$A$1*1000*1000*0.3 -> 2941995 | F170: 1961330 | G170: 1 | H170: 1 | I170: 25 | J170: 0.1
A171: 168 | B171: 3000 | C171: =$A$1*1000*1000*0.2 -> 1961330 | D171: =$A$1*1000*1000*0.2 -> 1961330 | E171: =$A$1*1000*1000*0.2 -> 1961330 | F171: =$A$1*1000*1000*0.2 -> 1961330 | G171: 1 | H171: 1 | I171: 25 | J171: 0.1 | K171: RCP3-TA7R
A172: 169 | B172: 6000 | C172: =$A$1*1000*1000*0.3 -> 2941995 | D172: =$A$1*1000*1000*0.2 -> 1961330 | E172: =$A$1*1000*1000*0.3 -> 2941995 | F172: =$A$1*1000*1000*0.2 -> 1961330 | G172: 1 | H172: 1 | I172: 25 | J172: 0.1
A173: 170 | B173: 12000 | C173: =$A$1*1000*1000*0.3 -> 2941995 | D173: =$A$1*1000*1000*0.2 -> 1961330 | E173: =$A$1*1000*1000*0.3 -> 2941995 | F173: =$A$1*1000*1000*0.2 -> 1961330 | G173: 1 | H173: 1 | I173: 25 | J173: 0.1
A174: 171 | B174: 45000 | C174: =$A$1*1000*1000*0.2 -> 1961330 | D174: -1 | E174: =$A$1*1000*1000*0.2 -> 1961330 | F174: -1 | G174: 1 | H174: 45 | I174: 360 | J174: 0.1 | K174: RCP2-RTBSL
A175: 172 | B175: 30000 | C175: =$A$1*1000*1000*0.2 -> 1961330 | D175: -1 | E175: =$A$1*1000*1000*0.2 -> 1961330 | F175: -1 | G175: 1 | H175: 30 | I175: 360 | J175: 0.1
A176: 173 | B176: 45000 | C176: =$A$1*1000*1000*0.2 -> 1961330 | D176: -1 | E176: =$A$1*1000*1000*0.2 -> 1961330 | F176: -1 | G176: 1 | H176: 45 | I176: 360 | J176: 0.1 | K176: RCP2-RTCSL
A177: 174 | B177: 30000 | C177: =$A$1*1000*1000*0.2 -> 1961330 | D177: -1 | E177: =$A$1*1000*1000*0.2 -> 1961330 | F177: -1 | G177: 1 | H177: 30 | I177: 360 | J177: 0.1
A178: 175 | B178: 30000 | C178: =$A$1*1000*1000*0.3 -> 2941995 | D178: -1 | E178: 2941995 | F178: -1 | G178: 1 | H178: 30 | I178: 360 | J178: 0.1 | K178: RCP2-RTBL
A179: 176 | B179: 20000 | C179: 2941995 | D179: -1 | E179: 2941995 | F179: -1 | G179: 1 | H179: 20 | I179: 360 | J179: 0.1
A180: 177 | B180: 30000 | C180: 2941995 | D180: -1 | E180: 2941995 | F180: -1 | G180: 1 | H180: 30 | I180: 360 | J180: 0.1 | K180: RCP2-RTCL
A181: 178 | B181: 20000 | C181: 2941995 | D181: -1 | E181: 2941995 | F181: -1 | G181: 1 | H181: 20 | I181: 360 | J181: 0.1
A182: 179 | B182: 30000 | C182: 2941995 | D182: -1 | E182: 2941995 | F182: -1 | G182: 1 | H182: 30 | I182: 360 | J182: 0.1 | K182: RCP2-RTBBL
A183: 180 | B183: 20000 | C183: 2941995 | D183: -1 | E183: 2941995 | F183: -1 | G183: 1 | H183: 20 | I183: 360 | J183: 0.1
A184: 181 | B184: 30000 | C184: 2941995 | D184: -1 | E184: 2941995 | F184: -1 | G184: 1 | H184: 30 | I184: 360 | J184: 0.1 | K184: RCP2-RTCBL
A185: 182 | B185: 20000 | C185: 2941995 | D185: -1 | E185: 2941995 | F185: -1 | G185: 1 | H185: 20 | I185: 360 | J185: 0.1
A186: 183 | B186: 3000 | C186: =$A$1*1000*1000*0.2 -> 1961330 | D186: =$A$1*1000*1000*0.2 -> 1961330 | E186: =$A$1*1000*1000*0.7 -> 6864655 | F186: =$A$1*1000*1000*0.3 -> 2941995 | G186: 1 | H186: 1 | I186: 50 | J186: 0.1 | K186: RCP2CR-SA5C
A187: 184 | B187: 6000 | C187: =$A$1*1000*1000*0.3 -> 2941995 | D187: 1961330 | E187: 6864655 | F187: 2941995 | G187: 1 | H187: 1 | I187: 50 | J187: 0.1
A188: 185 | B188: 12000 | C188: =$A$1*1000*1000*0.3 -> 2941995 | D188: 1961330 | E188: 6864655 | F188: 2941995 | G188: 1 | H188: 1 | I188: 50 | J188: 0.1
A189: 186 | B189: 3000 | C189: =$A$1*1000*1000*0.2 -> 1961330 | D189: 1961330 | E189: 6864655 | F189: 2941995 | G189: 1 | H189: 1 | I189: 50 | J189: 0.1 | K189: RCP2CR-SA6C
A190: 187 | B190: 6000 | C190: =$A$1*1000*1000*0.3 -> 2941995 | D190: 1961330 | E190: 6864655 | F190: 2941995 | G190: 1 | H190: 1 | I190: 50 | J190: 0.1
A191: 188 | B191: 12000 | C191: =$A$1*1000*1000*0.3 -> 2941995 | D191: 1961330 | E191: 6864655 | F191: 2941995 | G191: 1 | H191: 1 | I191: 50 | J191: 0.1
A192: 189 | B192: 4000 | C192: =$A$1*1000*1000*0.2 -> 1961330 | D192: =$A$1*1000*1000*0.2 -> 1961330 | E192: =$A$1*1000*1000*0.2 -> 1961330 | F192: =$A$1*1000*1000*0.2 -> 1961330 | G192: 1 | H192: 1 | I192: 50 | J192: 0.1 | K192: RCP2CR-SA7C
A193: 190 | B193: 8000 | C193: =$A$1*1000*1000*0.3 -> 2941995 | D193: 1961330 | E193: =$A$1*1000*1000*0.3 -> 2941995 | F193: 1961330 | G193: 1 | H193: 1 | I193: 50 | J193: 0.1
A194: 191 | B194: 16000 | C194: =$A$1*1000*1000*0.3 -> 2941995 | D194: 1961330 | E194: =$A$1*1000*1000*0.3 -> 2941995 | F194: 1961330 | G194: 1 | H194: 1 | I194: 50 | J194: 0.1
A195: 192 | B195: 3000 | C195: =$A$1*1000*1000*0.2 -> 1961330 | D195: 1961330 | E195: =$A$1*1000*1000*0.2 -> 1961330 | F195: 1961330 | G195: 1 | H195: 1 | I195: 50 | J195: 0.1 | K195: RCP2CR-SS7C
A196: 193 | B196: 6000 | C196: =$A$1*1000*1000*0.3 -> 2941995 | D196: 1961330 | E196: =$A$1*1000*1000*0.3 -> 2941995 | F196: 1961330 | G196: 1 | H196: 1 | I196: 50 | J196: 0.1
A197: 194 | B197: 12000 | C197: =$A$1*1000*1000*0.3 -> 2941995 | D197: 1961330 | E197: =$A$1*1000*1000*0.3 -> 2941995 | F197: 1961330 | G197: 1 | H197: 1 | I197: 50 | J197: 0.1
A198: =A197+1 -> 195 | B198: 5000 | C198: =$A$1*1000*1000*0.2 -> 1961330 | D198: 1961330 | E198: =$A$1*1000*1000*0.2 -> 1961330 | F198: 1961330 | G198: 1 | H198: 1 | I198: 50 | J198: 0.1 | K198: RCP2CR-SS8C
A199: 196 | B199: 10000 | C199: =$A$1*1000*1000*0.3 -> 2941995 | D199: 1961330 | E199: =$A$1*1000*1000*0.3 -> 2941995 | F199: 1961330 | G199: 1 | H199: 1 | I199: 50 | J199: 0.1
A200: 197 | B200: 20000 | C200: =$A$1*1000*1000*0.3 -> 2941995 | D200: 1961330 | E200: =$A$1*1000*1000*0.3 -> 2941995 | F200: 1961330 | G200: 1 | H200: 1 | I200: 50 | J200: 0.1
... 42 more rows

Sheet StrokeData (hidden)
B1: 1 | C1: 2 | D1: 5 | E1: 6 | F1: 7 | G1: 8 | H1: 9 | I1: 10 | J1: 16 | K1: 17
A2: ﾃﾞｰﾀ№ | B2: ｽﾄﾛｰｸ長 | C2: 有効ｽﾄﾛｰｸ補正 | D2: 水平可搬質量 | E2: 垂直可搬質量 | F2: 最大速度 | G2: 位置ｹﾞｲﾝ | H2: FFｹﾞｲﾝ | I2: 速度制御帯域 | J2: 前ﾃﾞｰﾀ№ | K2: 次ﾃﾞｰﾀ№ | L2: 備考
A3: =ModelData!A3 -> 0 | B3: ㎜ | C3: ㎜ | D3: 1g | E3: 1g | F3: ㎜/s | G3: 1/s | H3: % | I3: rad/s
A4: =A3+1 -> 1 | B4: 100 | C4: 0 | D4: 1000 | E4: -1 | F4: 50 | G4: 60 | H4: 0 | I4: 800 | J4: -1 | K4: -1 | L4: RCP3-SA2AC-20P-1S
A5: =A4+1 -> 2 | B5: 100 | C5: 0 | D5: 500 | E5: -1 | F5: 100 | G5: 60 | H5: 0 | I5: 800 | J5: -1 | K5: -1 | L5: RCP3-SA2AC-20P-2S
A6: =A5+1 -> 3 | B6: 100 | C6: 0 | D6: 250 | E6: -1 | F6: 200 | G6: 60 | H6: 0 | I6: 800 | J6: -1 | K6: -1 | L6: RCP3-SA2AC-20P-4S
A7: 4 | B7: 150 | C7: 0 | D7: 1000 | E7: -1 | F7: 100 | G7: 60 | H7: 0 | I7: 800 | J7: -1 | K7: -1 | L7: RCP3-SA2BC-20P-2S
A8: 5 | B8: 150 | C8: 0 | D8: 500 | E8: -1 | F8: 200 | G8: 60 | H8: 0 | I8: 800 | J8: -1 | K8: -1 | L8: RCP3-SA2BC-20P-4S
A9: 6 | B9: 150 | C9: 0 | D9: 250 | E9: -1 | F9: 300 | G9: 60 | H9: 0 | I9: 800 | J9: -1 | K9: -1 | L9: RCP3-SA2BC-20P-6S
A10: 7 | B10: 300 | C10: 0 | D10: 3000 | E10: 1500 | F10: 100 | G10: 60 | H10: 0 | I10: 400 | J10: -1 | K10: -1 | L10: RCP3-SA3C-2
A11: 8 | B11: 300 | C11: 0 | D11: 2000 | E11: 1000 | F11: 200 | G11: 60 | H11: 0 | I11: 400 | J11: -1 | K11: -1 | L11: RCP3-SA3C-4
A12: 9 | B12: 300 | C12: 0 | D12: 1000 | E12: 500 | F12: 300 | G12: 60 | H12: 0 | I12: 400 | J12: -1 | K12: -1 | L12: RCP3-SA3C-6
A13: 10 | B13: 400 | C13: 0 | D13: 11000 | E13: 8000 | F13: 125 | G13: 60 | H13: 0 | I13: 400 | J13: -1 | K13: =A14 -> 11 | L13: RCP3-SA4C-2.5 | N13: 400 | O13: 400 | P13: =IF(N13=O13, "○","") -> ○ | Q13: 125 | R13: 125 | S13: =IF(Q13=R13, "○","") -> ○
A14: 11 | B14: 500 | C14: 0 | D14: 11000 | E14: 8000 | F14: 125 | G14: 60 | H14: 0 | I14: 400 | J14: =A13 -> 10 | K14: -1 | N14: 500 | O14: 500 | P14: =IF(N14=O14, "○","") -> ○ | Q14: 125 | R14: 125 | S14: =IF(Q14=R14, "○","") -> ○
A15: 12 | B15: 400 | C15: 0 | D15: 10000 | E15: 4000 | F15: 250 | G15: 60 | H15: 0 | I15: 400 | J15: -1 | K15: =A16 -> 13 | L15: RCP3-SA4C-5 | N15: 400 | O15: 400 | P15: ○ | Q15: 250 | R15: 250 | S15: ○
A16: 13 | B16: 500 | C16: 0 | D16: 10000 | E16: 4000 | F16: 250 | G16: 60 | H16: 0 | I16: 400 | J16: =A15 -> 12 | K16: -1 | N16: 500 | O16: 500 | P16: ○ | Q16: 250 | R16: 250 | S16: =IF(Q16=R16, "○","") -> ○
A17: 14 | B17: 400 | C17: 0 | D17: 9000 | E17: 1500 | F17: 500 | G17: 60 | H17: 0 | I17: 400 | J17: -1 | K17: =A18 -> 15 | L17: RCP3-SA4C-10 | N17: 400 | O17: 400 | P17: ○ | Q17: 500 | R17: 500 | S17: ○
A18: 15 | B18: 500 | C18: 0 | D18: 9000 | E18: 1500 | F18: 500 | G18: 60 | H18: 0 | I18: 400 | J18: =A17 -> 14 | K18: -1 | N18: 500 | O18: 500 | P18: ○ | Q18: 500 | R18: 500 | S18: ○
A19: 16 | B19: 400 | C19: 0 | D19: 19000 | E19: 10000 | F19: 150 | G19: 60 | H19: 0 | I19: 300 | J19: -1 | K19: =A20 -> 17 | L19: RCP3-SA5C-3 | N19: 400 | O19: 400 | P19: ○ | Q19: 150 | R19: 150 | S19: ○
A20: 17 | B20: 550 | C20: 0 | D20: 19000 | E20: 10000 | F20: 150 | G20: 60 | H20: 0 | I20: 300 | J20: =A19 -> 16 | K20: 18 | N20: 550 | O20: 550 | P20: ○ | Q20: 150 | R20: 150 | S20: ○
A21: 18 | B21: 600 | C21: 0 | D21: 19000 | E21: 10000 | F21: 140 | G21: 60 | H21: 0 | I21: 300 | J21: 17 | K21: 19 | N21: 600 | O21: 600 | P21: ○ | Q21: 140 | R21: 140 | S21: ○
A22: 19 | B22: 650 | C22: 0 | D22: 19000 | E22: 10000 | F22: 120 | G22: 60 | H22: 0 | I22: 300 | J22: 18 | K22: 20 | N22: 650 | O22: 650 | P22: ○ | Q22: 120 | R22: 120 | S22: ○
A23: 20 | B23: 700 | C23: 0 | D23: 19000 | E23: 10000 | F23: 105 | G23: 60 | H23: 0 | I23: 300 | J23: 19 | K23: 21 | N23: 700 | O23: 700 | P23: ○ | Q23: 105 | R23: 105 | S23: ○
A24: 21 | B24: 750 | C24: 0 | D24: 19000 | E24: 10000 | F24: 90 | G24: 60 | H24: 0 | I24: 300 | J24: 20 | K24: 22 | N24: 750 | O24: 750 | P24: ○ | Q24: 90 | R24: 90 | S24: ○
A25: 22 | B25: 800 | C25: 0 | D25: 19000 | E25: 10000 | F25: 80 | G25: 60 | H25: 0 | I25: 300 | J25: 21 | K25: -1 | N25: 800 | O25: 800 | P25: ○ | Q25: 80 | R25: 80 | S25: ○
A26: 23 | B26: 400 | C26: 0 | D26: 12000 | E26: 5000 | F26: 300 | G26: 60 | H26: 0 | I26: 300 | J26: -1 | K26: =A27 -> 24 | L26: RCP3-SA5C-6 | N26: 400 | O26: 400 | P26: ○ | Q26: 300 | R26: 300 | S26: ○
A27: 24 | B27: 550 | C27: 0 | D27: 12000 | E27: 5000 | F27: 300 | G27: 60 | H27: 0 | I27: 300 | J27: =A26 -> 23 | K27: 25 | N27: 550 | O27: 550 | P27: ○ | Q27: 300 | R27: 300 | S27: ○
A28: 25 | B28: 600 | C28: 0 | D28: 12000 | E28: 5000 | F28: 285 | G28: 60 | H28: 0 | I28: 300 | J28: 24 | K28: 26 | N28: 600 | O28: 600 | P28: ○ | Q28: 285 | R28: 285 | S28: ○
A29: 26 | B29: 650 | C29: 0 | D29: 12000 | E29: 5000 | F29: 245 | G29: 60 | H29: 0 | I29: 300 | J29: 25 | K29: 27 | N29: 650 | O29: 650 | P29: ○ | Q29: 245 | R29: 245 | S29: ○
A30: 27 | B30: 700 | C30: 0 | D30: 12000 | E30: 5000 | F30: 210 | G30: 60 | H30: 0 | I30: 300 | J30: 26 | K30: 28 | N30: 700 | O30: 700 | P30: ○ | Q30: 210 | R30: 210 | S30: ○
A31: 28 | B31: 750 | C31: 0 | D31: 12000 | E31: 5000 | F31: 185 | G31: 60 | H31: 0 | I31: 300 | J31: 27 | K31: 29 | N31: 750 | O31: 750 | P31: ○ | Q31: 185 | R31: 185 | S31: ○
A32: 29 | B32: 800 | C32: 0 | D32: 12000 | E32: 5000 | F32: 165 | G32: 60 | H32: 0 | I32: 300 | J32: 28 | K32: -1 | N32: 800 | O32: 800 | P32: ○ | Q32: 165 | R32: 165 | S32: ○
A33: 30 | B33: 400 | C33: 0 | D33: 8000 | E33: 2000 | F33: 600 | G33: 60 | H33: 0 | I33: 300 | J33: -1 | K33: =A34 -> 31 | L33: RCP3-SA5C-12 | N33: 400 | O33: 400 | P33: ○ | Q33: 600 | R33: 600 | S33: ○
A34: 31 | B34: 550 | C34: 0 | D34: 8000 | E34: 2000 | F34: 600 | G34: 60 | H34: 0 | I34: 300 | J34: =A33 -> 30 | K34: 32 | N34: 550 | O34: 550 | P34: ○ | Q34: 600 | R34: 600 | S34: ○
A35: 32 | B35: 600 | C35: 0 | D35: 8000 | E35: 2000 | F35: 570 | G35: 60 | H35: 0 | I35: 300 | J35: 31 | K35: 33 | N35: 600 | O35: 600 | P35: ○ | Q35: 570 | R35: 570 | S35: ○
A36: 33 | B36: 650 | C36: 0 | D36: 8000 | E36: 2000 | F36: 490 | G36: 60 | H36: 0 | I36: 300 | J36: 32 | K36: 34 | N36: 650 | O36: 650 | P36: ○ | Q36: 490 | R36: 490 | S36: ○
A37: 34 | B37: 700 | C37: 0 | D37: 8000 | E37: 2000 | F37: 425 | G37: 60 | H37: 0 | I37: 300 | J37: 33 | K37: 35 | N37: 700 | O37: 700 | P37: ○ | Q37: 425 | R37: 425 | S37: ○
A38: 35 | B38: 750 | C38: 0 | D38: 8000 | E38: 2000 | F38: 370 | G38: 60 | H38: 0 | I38: 300 | J38: 34 | K38: 36 | N38: 750 | O38: 750 | P38: ○ | Q38: 370 | R38: 370 | S38: ○
A39: =A38+1 -> 36 | B39: 800 | C39: 0 | D39: 8000 | E39: 2000 | F39: 330 | G39: 60 | H39: 0 | I39: 300 | J39: 35 | K39: -1 | N39: 800 | O39: 800 | P39: ○ | Q39: 330 | R39: 330 | S39: ○
A40: 37 | B40: 600 | C40: 0 | D40: 4000 | E40: 500 | F40: 1000 | G40: 60 | H40: 0 | I40: 300 | J40: -1 | K40: =A41 -> 38 | L40: RCP3-SA5C-20
A41: 38 | B41: 650 | C41: 0 | D41: 4000 | E41: 500 | F41: 910 | G41: 60 | H41: 0 | I41: 300 | J41: =A40 -> 37 | K41: =A42 -> 39
A42: 39 | B42: 700 | C42: 0 | D42: 4000 | E42: 500 | F42: 790 | G42: 60 | H42: 0 | I42: 300 | J42: =A41 -> 38 | K42: =A43 -> 40
A43: 40 | B43: 750 | C43: 0 | D43: 4000 | E43: 500 | F43: 690 | G43: 60 | H43: 0 | I43: 300 | J43: =A42 -> 39 | K43: =A44 -> 41
A44: 41 | B44: 800 | C44: 0 | D44: 4000 | E44: 500 | F44: 610 | G44: 60 | H44: 0 | I44: 300 | J44: =A43 -> 40 | K44: -1
A45: 42 | B45: 400 | C45: 0 | D45: 19000 | E45: 10000 | F45: 150 | G45: 60 | H45: 0 | I45: 300 | J45: -1 | K45: =A46 -> 43 | L45: RCP3-SA6C-3 | N45: 400 | O45: 400 | P45: =IF(N45=O45, "○","") -> ○ | Q45: 150 | R45: 150 | S45: =IF(Q45=R45, "○","") -> ○
A46: 43 | B46: 550 | C46: 0 | D46: 19000 | E46: 10000 | F46: 150 | G46: 60 | H46: 0 | I46: 300 | J46: =A45 -> 42 | K46: 44 | N46: 550 | O46: 550 | P46: =IF(N46=O46, "○","") -> ○ | Q46: 150 | R46: 150 | S46: =IF(Q46=R46, "○","") -> ○
A47: 44 | B47: 600 | C47: 0 | D47: 19000 | E47: 10000 | F47: 140 | G47: 60 | H47: 0 | I47: 300 | J47: 43 | K47: 45 | N47: 600 | O47: 600 | P47: ○ | Q47: 140 | R47: 140 | S47: ○
A48: 45 | B48: 650 | C48: 0 | D48: 19000 | E48: 10000 | F48: 120 | G48: 60 | H48: 0 | I48: 300 | J48: 44 | K48: 46 | N48: 650 | O48: 650 | P48: ○ | Q48: 120 | R48: 120 | S48: ○
A49: 46 | B49: 700 | C49: 0 | D49: 19000 | E49: 10000 | F49: 105 | G49: 60 | H49: 0 | I49: 300 | J49: 45 | K49: 47 | N49: 700 | O49: 700 | P49: ○ | Q49: 105 | R49: 105 | S49: ○
A50: 47 | B50: 750 | C50: 0 | D50: 19000 | E50: 10000 | F50: 90 | G50: 60 | H50: 0 | I50: 300 | J50: 46 | K50: 48 | N50: 750 | O50: 750 | P50: ○ | Q50: 90 | R50: 90 | S50: ○
A51: 48 | B51: 800 | C51: 0 | D51: 19000 | E51: 10000 | F51: 80 | G51: 60 | H51: 0 | I51: 300 | J51: 47 | K51: -1 | N51: 800 | O51: 800 | P51: ○ | Q51: 80 | R51: 80 | S51: ○
A52: 49 | B52: 400 | C52: 0 | D52: 12000 | E52: 5000 | F52: 300 | G52: 60 | H52: 0 | I52: 300 | J52: -1 | K52: =A53 -> 50 | L52: RCP3-SA6C-6 | N52: 400 | O52: 400 | P52: ○ | Q52: 300 | R52: 300 | S52: ○
A53: 50 | B53: 550 | C53: 0 | D53: 12000 | E53: 5000 | F53: 300 | G53: 60 | H53: 0 | I53: 300 | J53: =A52 -> 49 | K53: 51 | N53: 550 | O53: 550 | P53: ○ | Q53: 300 | R53: 300 | S53: ○
A54: 51 | B54: 600 | C54: 0 | D54: 12000 | E54: 5000 | F54: 285 | G54: 60 | H54: 0 | I54: 300 | J54: 50 | K54: 52 | N54: 600 | O54: 600 | P54: ○ | Q54: 285 | R54: 285 | S54: ○
A55: 52 | B55: 650 | C55: 0 | D55: 12000 | E55: 5000 | F55: 245 | G55: 60 | H55: 0 | I55: 300 | J55: 51 | K55: 53 | N55: 650 | O55: 650 | P55: ○ | Q55: 245 | R55: 245 | S55: ○
A56: 53 | B56: 700 | C56: 0 | D56: 12000 | E56: 5000 | F56: 210 | G56: 60 | H56: 0 | I56: 300 | J56: 52 | K56: 54 | N56: 700 | O56: 700 | P56: ○ | Q56: 210 | R56: 210 | S56: ○
A57: 54 | B57: 750 | C57: 0 | D57: 12000 | E57: 5000 | F57: 185 | G57: 60 | H57: 0 | I57: 300 | J57: 53 | K57: 55 | N57: 750 | O57: 750 | P57: ○ | Q57: 185 | R57: 185 | S57: ○
A58: 55 | B58: 800 | C58: 0 | D58: 12000 | E58: 5000 | F58: 165 | G58: 60 | H58: 0 | I58: 300 | J58: 54 | K58: -1 | N58: 800 | O58: 800 | P58: ○ | Q58: 165 | R58: 165 | S58: ○
A59: 56 | B59: 400 | C59: 0 | D59: 8000 | E59: 2000 | F59: 600 | G59: 60 | H59: 0 | I59: 300 | J59: -1 | K59: =A60 -> 57 | L59: RCP3-SA6C-12 | N59: 400 | O59: 400 | P59: ○ | Q59: 600 | R59: 600 | S59: ○
A60: 57 | B60: 550 | C60: 0 | D60: 8000 | E60: 2000 | F60: 600 | G60: 60 | H60: 0 | I60: 300 | J60: =A59 -> 56 | K60: 58 | N60: 550 | O60: 550 | P60: ○ | Q60: 600 | R60: 600 | S60: ○
A61: 58 | B61: 600 | C61: 0 | D61: 8000 | E61: 2000 | F61: 570 | G61: 60 | H61: 0 | I61: 300 | J61: 57 | K61: 59 | N61: 600 | O61: 600 | P61: ○ | Q61: 570 | R61: 570 | S61: ○
A62: 59 | B62: 650 | C62: 0 | D62: 8000 | E62: 2000 | F62: 490 | G62: 60 | H62: 0 | I62: 300 | J62: 58 | K62: 60 | N62: 650 | O62: 650 | P62: ○ | Q62: 490 | R62: 490 | S62: ○
A63: 60 | B63: 700 | C63: 0 | D63: 8000 | E63: 2000 | F63: 425 | G63: 60 | H63: 0 | I63: 300 | J63: 59 | K63: 61 | N63: 700 | O63: 700 | P63: ○ | Q63: 425 | R63: 425 | S63: ○
A64: 61 | B64: 750 | C64: 0 | D64: 8000 | E64: 2000 | F64: 370 | G64: 60 | H64: 0 | I64: 300 | J64: 60 | K64: 62 | N64: 750 | O64: 750 | P64: ○ | Q64: 370 | R64: 370 | S64: ○
A65: =A64+1 -> 62 | B65: 800 | C65: 0 | D65: 8000 | E65: 2000 | F65: 330 | G65: 60 | H65: 0 | I65: 300 | J65: 61 | K65: -1 | N65: 800 | O65: 800 | P65: ○ | Q65: 330 | R65: 330 | S65: ○
A66: 63 | B66: 600 | C66: 0 | D66: 4000 | E66: 500 | F66: 1000 | G66: 60 | H66: 0 | I66: 300 | J66: -1 | K66: =A67 -> 64 | L66: RCP3-SA6C-20
A67: 64 | B67: 650 | C67: 0 | D67: 4000 | E67: 500 | F67: 910 | G67: 60 | H67: 0 | I67: 300 | J67: =A66 -> 63 | K67: =A68 -> 65
A68: 65 | B68: 700 | C68: 0 | D68: 4000 | E68: 500 | F68: 790 | G68: 60 | H68: 0 | I68: 300 | J68: =A67 -> 64 | K68: =A69 -> 66
A69: 66 | B69: 750 | C69: 0 | D69: 4000 | E69: 500 | F69: 690 | G69: 60 | H69: 0 | I69: 300 | J69: =A68 -> 65 | K69: =A70 -> 67
A70: 67 | B70: 800 | C70: 0 | D70: 4000 | E70: 500 | F70: 610 | G70: 60 | H70: 0 | I70: 300 | J70: =A69 -> 66 | K70: -1
A71: 68 | B71: 100 | C71: 0 | D71: 1000 | E71: -1 | F71: 50 | G71: 60 | H71: 0 | I71: 800 | J71: -1 | K71: -1 | L71: RCP3-SA2AR-20P-1S
A72: 69 | B72: 100 | C72: 0 | D72: 500 | E72: -1 | F72: 100 | G72: 60 | H72: 0 | I72: 800 | J72: -1 | K72: -1 | L72: RCP3-SA2AR-20P-2S
A73: 70 | B73: 100 | C73: 0 | D73: 250 | E73: -1 | F73: 200 | G73: 60 | H73: 0 | I73: 800 | J73: -1 | K73: -1 | L73: RCP3-SA2AR-20P-4S
A74: 71 | B74: 150 | C74: 0 | D74: 1000 | E74: -1 | F74: 100 | G74: 60 | H74: 0 | I74: 800 | J74: -1 | K74: -1 | L74: RCP3-SA2BR-20P-2S
A75: 72 | B75: 150 | C75: 0 | D75: 500 | E75: -1 | F75: 200 | G75: 60 | H75: 0 | I75: 800 | J75: -1 | K75: -1 | L75: RCP3-SA2BR-20P-4S
A76: 73 | B76: 150 | C76: 0 | D76: 250 | E76: -1 | F76: 300 | G76: 60 | H76: 0 | I76: 800 | J76: -1 | K76: -1 | L76: RCP3-SA2BR-20P-6S
A77: 74 | B77: 300 | C77: 0 | D77: 3000 | E77: 1500 | F77: 100 | G77: 60 | H77: 0 | I77: 400 | J77: -1 | K77: -1 | L77: RCP3-SA3R-2
A78: 75 | B78: 300 | C78: 0 | D78: 2000 | E78: 1000 | F78: 200 | G78: 60 | H78: 0 | I78: 400 | J78: -1 | K78: -1 | L78: RCP3-SA3R-4
A79: 76 | B79: 300 | C79: 0 | D79: 1000 | E79: 500 | F79: 300 | G79: 60 | H79: 0 | I79: 400 | J79: -1 | K79: -1 | L79: RCP3-SA3R-6
A80: =A79+1 -> 77 | B80: 400 | C80: 0 | D80: 6000 | E80: 3000 | F80: 125 | G80: 60 | H80: 0 | I80: 400 | J80: -1 | K80: =A81 -> 78 | L80: RCP3-SA4R-2.5 | M80: ←Ver.Dまで使用していたデータ．販売部から機械諸元をストレートタイプと揃える依頼があり，参照先をストレートタイプと同一データへ移動．
A81: 78 | B81: 500 | C81: 0 | D81: 6000 | E81: 3000 | F81: 125 | G81: 60 | H81: 0 | I81: 400 | J81: =A80 -> 77 | K81: -1 | M81: ←Ver.Dまで使用していたデータ．販売部から機械諸元をストレートタイプと揃える依頼があり，参照先をストレートタイプと同一データへ移動．
A82: 79 | B82: 400 | C82: 0 | D82: 4000 | E82: 1500 | F82: 250 | G82: 60 | H82: 0 | I82: 400 | J82: -1 | K82: =A83 -> 80 | L82: RCP3-SA4R-5 | M82: ←Ver.Dまで使用していたデータ．販売部から機械諸元をストレートタイプと揃える依頼があり，参照先をストレートタイプと同一データへ移動．
A83: 80 | B83: 500 | C83: 0 | D83: 4000 | E83: 1500 | F83: 250 | G83: 60 | H83: 0 | I83: 400 | J83: =A82 -> 79 | K83: -1 | M83: ←Ver.Dまで使用していたデータ．販売部から機械諸元をストレートタイプと揃える依頼があり，参照先をストレートタイプと同一データへ移動．
A84: 81 | B84: 400 | C84: 0 | D84: 2000 | E84: 1000 | F84: 500 | G84: 60 | H84: 0 | I84: 400 | J84: -1 | K84: =A85 -> 82 | L84: RCP3-SA4R-10 | M84: ←Ver.Dまで使用していたデータ．販売部から機械諸元をストレートタイプと揃える依頼があり，参照先をストレートタイプと同一データへ移動．
A85: 82 | B85: 500 | C85: 0 | D85: 2000 | E85: 1000 | F85: 500 | G85: 60 | H85: 0 | I85: 400 | J85: =A84 -> 81 | K85: -1 | M85: ←Ver.Dまで使用していたデータ．販売部から機械諸元をストレートタイプと揃える依頼があり，参照先をストレートタイプと同一データへ移動．
A86: 83 | B86: 400 | C86: 0 | D86: 10000 | E86: 4000 | F86: 150 | G86: 60 | H86: 0 | I86: 300 | J86: -1 | K86: =A87 -> 84 | L86: RCP3-SA5R-3 | M86: ←Ver.Dまで使用していたデータ．販売部から機械諸元をストレートタイプと揃える依頼があり，参照先をストレートタイプと同一データへ移動．
A87: 84 | B87: 550 | C87: 0 | D87: 10000 | E87: 4000 | F87: 150 | G87: 60 | H87: 0 | I87: 300 | J87: =A86 -> 83 | K87: 85 | M87: ←Ver.Dまで使用していたデータ．販売部から機械諸元をストレートタイプと揃える依頼があり，参照先をストレートタイプと同一データへ移動．
A88: 85 | B88: 600 | C88: 0 | D88: 10000 | E88: 4000 | F88: 140 | G88: 60 | H88: 0 | I88: 300 | J88: 84 | K88: 86 | M88: ←Ver.Dまで使用していたデータ．販売部から機械諸元をストレートタイプと揃える依頼があり，参照先をストレートタイプと同一データへ移動．
A89: 86 | B89: 650 | C89: 0 | D89: 10000 | E89: 4000 | F89: 120 | G89: 60 | H89: 0 | I89: 300 | J89: 85 | K89: 87 | M89: ←Ver.Dまで使用していたデータ．販売部から機械諸元をストレートタイプと揃える依頼があり，参照先をストレートタイプと同一データへ移動．
A90: 87 | B90: 700 | C90: 0 | D90: 10000 | E90: 4000 | F90: 105 | G90: 60 | H90: 0 | I90: 300 | J90: 86 | K90: 88 | M90: ←Ver.Dまで使用していたデータ．販売部から機械諸元をストレートタイプと揃える依頼があり，参照先をストレートタイプと同一データへ移動．
A91: 88 | B91: 750 | C91: 0 | D91: 10000 | E91: 4000 | F91: 90 | G91: 60 | H91: 0 | I91: 300 | J91: 87 | K91: 89 | M91: ←Ver.Dまで使用していたデータ．販売部から機械諸元をストレートタイプと揃える依頼があり，参照先をストレートタイプと同一データへ移動．
A92: 89 | B92: 800 | C92: 0 | D92: 10000 | E92: 4000 | F92: 80 | G92: 60 | H92: 0 | I92: 300 | J92: 88 | K92: -1 | M92: ←Ver.Dまで使用していたデータ．販売部から機械諸元をストレートタイプと揃える依頼があり，参照先をストレートタイプと同一データへ移動．
A93: 90 | B93: 400 | C93: 0 | D93: 8000 | E93: 2000 | F93: 300 | G93: 60 | H93: 0 | I93: 300 | J93: -1 | K93: =A94 -> 91 | L93: RCP3-SA5R-6 | M93: ←Ver.Dまで使用していたデータ．販売部から機械諸元をストレートタイプと揃える依頼があり，参照先をストレートタイプと同一データへ移動．
A94: 91 | B94: 550 | C94: 0 | D94: 8000 | E94: 2000 | F94: 300 | G94: 60 | H94: 0 | I94: 300 | J94: =A93 -> 90 | K94: 92 | M94: ←Ver.Dまで使用していたデータ．販売部から機械諸元をストレートタイプと揃える依頼があり，参照先をストレートタイプと同一データへ移動．
A95: 92 | B95: 600 | C95: 0 | D95: 8000 | E95: 2000 | F95: 285 | G95: 60 | H95: 0 | I95: 300 | J95: 91 | K95: 93 | M95: ←Ver.Dまで使用していたデータ．販売部から機械諸元をストレートタイプと揃える依頼があり，参照先をストレートタイプと同一データへ移動．
A96: 93 | B96: 650 | C96: 0 | D96: 8000 | E96: 2000 | F96: 245 | G96: 60 | H96: 0 | I96: 300 | J96: 92 | K96: 94 | M96: ←Ver.Dまで使用していたデータ．販売部から機械諸元をストレートタイプと揃える依頼があり，参照先をストレートタイプと同一データへ移動．
A97: 94 | B97: 700 | C97: 0 | D97: 8000 | E97: 2000 | F97: 210 | G97: 60 | H97: 0 | I97: 300 | J97: 93 | K97: 95 | M97: ←Ver.Dまで使用していたデータ．販売部から機械諸元をストレートタイプと揃える依頼があり，参照先をストレートタイプと同一データへ移動．
A98: 95 | B98: 750 | C98: 0 | D98: 8000 | E98: 2000 | F98: 185 | G98: 60 | H98: 0 | I98: 300 | J98: 94 | K98: 96 | M98: ←Ver.Dまで使用していたデータ．販売部から機械諸元をストレートタイプと揃える依頼があり，参照先をストレートタイプと同一データへ移動．
A99: 96 | B99: 800 | C99: 0 | D99: 8000 | E99: 2000 | F99: 165 | G99: 60 | H99: 0 | I99: 300 | J99: 95 | K99: -1 | M99: ←Ver.Dまで使用していたデータ．販売部から機械諸元をストレートタイプと揃える依頼があり，参照先をストレートタイプと同一データへ移動．
A100: 97 | B100: 400 | C100: 0 | D100: 6000 | E100: 1000 | F100: 600 | G100: 60 | H100: 0 | I100: 300 | J100: -1 | K100: =A101 -> 98 | L100: RCP3-SA5R-12 | M100: ←Ver.Dまで使用していたデータ．販売部から機械諸元をストレートタイプと揃える依頼があり，参照先をストレートタイプと同一データへ移動．
A101: 98 | B101: 550 | C101: 0 | D101: 6000 | E101: 1000 | F101: 600 | G101: 60 | H101: 0 | I101: 300 | J101: =A100 -> 97 | K101: 99 | M101: ←Ver.Dまで使用していたデータ．販売部から機械諸元をストレートタイプと揃える依頼があり，参照先をストレートタイプと同一データへ移動．
A102: 99 | B102: 600 | C102: 0 | D102: 6000 | E102: 1000 | F102: 570 | G102: 60 | H102: 0 | I102: 300 | J102: 98 | K102: 100 | M102: ←Ver.Dまで使用していたデータ．販売部から機械諸元をストレートタイプと揃える依頼があり，参照先をストレートタイプと同一データへ移動．
A103: 100 | B103: 650 | C103: 0 | D103: 6000 | E103: 1000 | F103: 490 | G103: 60 | H103: 0 | I103: 300 | J103: 99 | K103: 101 | M103: ←Ver.Dまで使用していたデータ．販売部から機械諸元をストレートタイプと揃える依頼があり，参照先をストレートタイプと同一データへ移動．
A104: 101 | B104: 700 | C104: 0 | D104: 6000 | E104: 1000 | F104: 425 | G104: 60 | H104: 0 | I104: 300 | J104: 100 | K104: 102 | M104: ←Ver.Dまで使用していたデータ．販売部から機械諸元をストレートタイプと揃える依頼があり，参照先をストレートタイプと同一データへ移動．
A105: 102 | B105: 750 | C105: 0 | D105: 6000 | E105: 1000 | F105: 370 | G105: 60 | H105: 0 | I105: 300 | J105: 101 | K105: 103 | M105: ←Ver.Dまで使用していたデータ．販売部から機械諸元をストレートタイプと揃える依頼があり，参照先をストレートタイプと同一データへ移動．
A106: 103 | B106: 800 | C106: 0 | D106: 6000 | E106: 1000 | F106: 330 | G106: 60 | H106: 0 | I106: 300 | J106: 102 | K106: -1 | M106: ←Ver.Dまで使用していたデータ．販売部から機械諸元をストレートタイプと揃える依頼があり，参照先をストレートタイプと同一データへ移動．
A107: 104 | B107: 400 | C107: 0 | D107: 10000 | E107: 4000 | F107: 150 | G107: 60 | H107: 0 | I107: 300 | J107: -1 | K107: =A108 -> 105 | L107: RCP3-SA6R-3 | M107: ←Ver.Dまで使用していたデータ．販売部から機械諸元をストレートタイプと揃える依頼があり，参照先をストレートタイプと同一データへ移動．
A108: 105 | B108: 550 | C108: 0 | D108: 10000 | E108: 4000 | F108: 150 | G108: 60 | H108: 0 | I108: 300 | J108: =A107 -> 104 | K108: 106 | M108: ←Ver.Dまで使用していたデータ．販売部から機械諸元をストレートタイプと揃える依頼があり，参照先をストレートタイプと同一データへ移動．
A109: 106 | B109: 600 | C109: 0 | D109: 10000 | E109: 4000 | F109: 140 | G109: 60 | H109: 0 | I109: 300 | J109: 105 | K109: 107 | M109: ←Ver.Dまで使用していたデータ．販売部から機械諸元をストレートタイプと揃える依頼があり，参照先をストレートタイプと同一データへ移動．
A110: 107 | B110: 650 | C110: 0 | D110: 10000 | E110: 4000 | F110: 120 | G110: 60 | H110: 0 | I110: 300 | J110: 106 | K110: 108 | M110: ←Ver.Dまで使用していたデータ．販売部から機械諸元をストレートタイプと揃える依頼があり，参照先をストレートタイプと同一データへ移動．
A111: 108 | B111: 700 | C111: 0 | D111: 10000 | E111: 4000 | F111: 105 | G111: 60 | H111: 0 | I111: 300 | J111: 107 | K111: 109 | M111: ←Ver.Dまで使用していたデータ．販売部から機械諸元をストレートタイプと揃える依頼があり，参照先をストレートタイプと同一データへ移動．
A112: 109 | B112: 750 | C112: 0 | D112: 10000 | E112: 4000 | F112: 90 | G112: 60 | H112: 0 | I112: 300 | J112: 108 | K112: 110 | M112: ←Ver.Dまで使用していたデータ．販売部から機械諸元をストレートタイプと揃える依頼があり，参照先をストレートタイプと同一データへ移動．
A113: 110 | B113: 800 | C113: 0 | D113: 10000 | E113: 4000 | F113: 80 | G113: 60 | H113: 0 | I113: 300 | J113: 109 | K113: -1 | M113: ←Ver.Dまで使用していたデータ．販売部から機械諸元をストレートタイプと揃える依頼があり，参照先をストレートタイプと同一データへ移動．
A114: 111 | B114: 400 | C114: 0 | D114: 8000 | E114: 2000 | F114: 300 | G114: 60 | H114: 0 | I114: 300 | J114: -1 | K114: =A115 -> 112 | L114: RCP3-SA6R-6 | M114: ←Ver.Dまで使用していたデータ．販売部から機械諸元をストレートタイプと揃える依頼があり，参照先をストレートタイプと同一データへ移動．
A115: 112 | B115: 550 | C115: 0 | D115: 8000 | E115: 2000 | F115: 300 | G115: 60 | H115: 0 | I115: 300 | J115: =A114 -> 111 | K115: 113 | M115: ←Ver.Dまで使用していたデータ．販売部から機械諸元をストレートタイプと揃える依頼があり，参照先をストレートタイプと同一データへ移動．
A116: 113 | B116: 600 | C116: 0 | D116: 8000 | E116: 2000 | F116: 285 | G116: 60 | H116: 0 | I116: 300 | J116: 112 | K116: 114 | M116: ←Ver.Dまで使用していたデータ．販売部から機械諸元をストレートタイプと揃える依頼があり，参照先をストレートタイプと同一データへ移動．
A117: 114 | B117: 650 | C117: 0 | D117: 8000 | E117: 2000 | F117: 245 | G117: 60 | H117: 0 | I117: 300 | J117: 113 | K117: 115 | M117: ←Ver.Dまで使用していたデータ．販売部から機械諸元をストレートタイプと揃える依頼があり，参照先をストレートタイプと同一データへ移動．
A118: 115 | B118: 700 | C118: 0 | D118: 8000 | E118: 2000 | F118: 210 | G118: 60 | H118: 0 | I118: 300 | J118: 114 | K118: 116 | M118: ←Ver.Dまで使用していたデータ．販売部から機械諸元をストレートタイプと揃える依頼があり，参照先をストレートタイプと同一データへ移動．
A119: 116 | B119: 750 | C119: 0 | D119: 8000 | E119: 2000 | F119: 185 | G119: 60 | H119: 0 | I119: 300 | J119: 115 | K119: 117 | M119: ←Ver.Dまで使用していたデータ．販売部から機械諸元をストレートタイプと揃える依頼があり，参照先をストレートタイプと同一データへ移動．
A120: 117 | B120: 800 | C120: 0 | D120: 8000 | E120: 2000 | F120: 165 | G120: 60 | H120: 0 | I120: 300 | J120: 116 | K120: -1 | M120: ←Ver.Dまで使用していたデータ．販売部から機械諸元をストレートタイプと揃える依頼があり，参照先をストレートタイプと同一データへ移動．
A121: 118 | B121: 400 | C121: 0 | D121: 6000 | E121: 1000 | F121: 600 | G121: 60 | H121: 0 | I121: 300 | J121: -1 | K121: =A122 -> 119 | L121: RCP3-SA6R-12 | M121: ←Ver.Dまで使用していたデータ．販売部から機械諸元をストレートタイプと揃える依頼があり，参照先をストレートタイプと同一データへ移動．
A122: 119 | B122: 550 | C122: 0 | D122: 6000 | E122: 1000 | F122: 600 | G122: 60 | H122: 0 | I122: 300 | J122: =A121 -> 118 | K122: 120 | M122: ←Ver.Dまで使用していたデータ．販売部から機械諸元をストレートタイプと揃える依頼があり，参照先をストレートタイプと同一データへ移動．
A123: 120 | B123: 600 | C123: 0 | D123: 6000 | E123: 1000 | F123: 570 | G123: 60 | H123: 0 | I123: 300 | J123: 119 | K123: 121 | M123: ←Ver.Dまで使用していたデータ．販売部から機械諸元をストレートタイプと揃える依頼があり，参照先をストレートタイプと同一データへ移動．
A124: 121 | B124: 650 | C124: 0 | D124: 6000 | E124: 1000 | F124: 490 | G124: 60 | H124: 0 | I124: 300 | J124: 120 | K124: 122 | M124: ←Ver.Dまで使用していたデータ．販売部から機械諸元をストレートタイプと揃える依頼があり，参照先をストレートタイプと同一データへ移動．
A125: 122 | B125: 700 | C125: 0 | D125: 6000 | E125: 1000 | F125: 425 | G125: 60 | H125: 0 | I125: 300 | J125: 121 | K125: 123 | M125: ←Ver.Dまで使用していたデータ．販売部から機械諸元をストレートタイプと揃える依頼があり，参照先をストレートタイプと同一データへ移動．
A126: 123 | B126: 750 | C126: 0 | D126: 6000 | E126: 1000 | F126: 370 | G126: 60 | H126: 0 | I126: 300 | J126: 122 | K126: 124 | M126: ←Ver.Dまで使用していたデータ．販売部から機械諸元をストレートタイプと揃える依頼があり，参照先をストレートタイプと同一データへ移動．
A127: 124 | B127: 800 | C127: 0 | D127: 6000 | E127: 1000 | F127: 330 | G127: 60 | H127: 0 | I127: 300 | J127: 123 | K127: -1 | M127: ←Ver.Dまで使用していたデータ．販売部から機械諸元をストレートタイプと揃える依頼があり，参照先をストレートタイプと同一データへ移動．
A128: 125 | B128: 550 | C128: 0 | D128: 16000 | E128: 8000 | F128: 150 | G128: 45 | H128: 0 | I128: 300 | J128: -1 | K128: =A129 -> 126 | L128: RCP2-SA5C-3
A129: 126 | B129: 600 | C129: 0 | D129: 16000 | E129: 8000 | F129: 135 | G129: 45 | H129: 0 | I129: 300 | J129: =A128 -> 125 | K129: =A130 -> 127
A130: 127 | B130: 650 | C130: 0 | D130: 16000 | E130: 8000 | F130: 115 | G130: 45 | H130: 0 | I130: 300 | J130: 126 | K130: =A131 -> 128
A131: 128 | B131: 700 | C131: 0 | D131: 16000 | E131: 8000 | F131: 100 | G131: 45 | H131: 0 | I131: 300 | J131: 127 | K131: =A132 -> 129
A132: 129 | B132: 750 | C132: 0 | D132: 16000 | E132: 8000 | F132: 90 | G132: 45 | H132: 0 | I132: 300 | J132: 128 | K132: =A133 -> 130
A133: 130 | B133: 800 | C133: 0 | D133: 16000 | E133: 8000 | F133: 75 | G133: 45 | H133: 0 | I133: 300 | J133: 129 | K133: -1
A134: 131 | B134: 550 | C134: 0 | D134: 13000 | E134: 4000 | F134: 300 | G134: 45 | H134: 0 | I134: 300 | J134: -1 | K134: =A135 -> 132 | L134: RCP2-SA5C-6
A135: 132 | B135: 600 | C135: 0 | D135: 13000 | E135: 4000 | F135: 270 | G135: 45 | H135: 0 | I135: 300 | J135: 131 | K135: =A136 -> 133
A136: 133 | B136: 650 | C136: 0 | D136: 13000 | E136: 4000 | F136: 230 | G136: 45 | H136: 0 | I136: 300 | J136: 132 | K136: =A137 -> 134
A137: 134 | B137: 700 | C137: 0 | D137: 13000 | E137: 4000 | F137: 200 | G137: 45 | H137: 0 | I137: 300 | J137: 133 | K137: =A138 -> 135
A138: 135 | B138: 750 | C138: 0 | D138: 13000 | E138: 4000 | F138: 180 | G138: 45 | H138: 0 | I138: 300 | J138: 134 | K138: =A139 -> 136
A139: 136 | B139: 800 | C139: 0 | D139: 13000 | E139: 4000 | F139: 150 | G139: 45 | H139: 0 | I139: 300 | J139: 135 | K139: -1
A140: 137 | B140: 550 | C140: 0 | D140: 8000 | E140: 1000 | F140: 600 | G140: 45 | H140: 0 | I140: 300 | J140: -1 | K140: =A141 -> 138 | L140: RCP2-SA5C-12
A141: 138 | B141: 600 | C141: 0 | D141: 8000 | E141: 1000 | F141: 540 | G141: 45 | H141: 0 | I141: 300 | J141: 137 | K141: =A142 -> 139
A142: 139 | B142: 650 | C142: 0 | D142: 8000 | E142: 1000 | F142: 460 | G142: 45 | H142: 0 | I142: 300 | J142: 138 | K142: =A143 -> 140
A143: 140 | B143: 700 | C143: 0 | D143: 8000 | E143: 1000 | F143: 400 | G143: 45 | H143: 0 | I143: 300 | J143: 139 | K143: =A144 -> 141
A144: 141 | B144: 750 | C144: 0 | D144: 8000 | E144: 1000 | F144: 360 | G144: 45 | H144: 0 | I144: 300 | J144: 140 | K144: =A145 -> 142
A145: 142 | B145: 800 | C145: 0 | D145: 8000 | E145: 1000 | F145: 300 | G145: 45 | H145: 0 | I145: 300 | J145: 141 | K145: -1
A146: 143 | B146: 550 | C146: 0 | D146: 19000 | E146: 6000 | F146: 150 | G146: 45 | H146: 0 | I146: 300 | J146: -1 | K146: =A147 -> 144 | L146: RCP2-SA6C-3
A147: 144 | B147: 600 | C147: 0 | D147: 19000 | E147: 6000 | F147: 135 | G147: 45 | H147: 0 | I147: 300 | J147: =A146 -> 143 | K147: =A148 -> 145
A148: 145 | B148: 650 | C148: 0 | D148: 19000 | E148: 6000 | F148: 115 | G148: 45 | H148: 0 | I148: 300 | J148: =A147 -> 144 | K148: =A149 -> 146
A149: 146 | B149: 700 | C149: 0 | D149: 19000 | E149: 6000 | F149: 100 | G149: 45 | H149: 0 | I149: 300 | J149: =A148 -> 145 | K149: =A150 -> 147
A150: 147 | B150: 750 | C150: 0 | D150: 19000 | E150: 6000 | F150: 90 | G150: 45 | H150: 0 | I150: 300 | J150: =A149 -> 146 | K150: =A151 -> 148
A151: 148 | B151: 800 | C151: 0 | D151: 19000 | E151: 6000 | F151: 75 | G151: 45 | H151: 0 | I151: 300 | J151: =A150 -> 147 | K151: -1
A152: 149 | B152: 550 | C152: 0 | D152: 16000 | E152: 4000 | F152: 300 | G152: 45 | H152: 0 | I152: 300 | J152: -1 | K152: =A153 -> 150 | L152: RCP2-SA6C-6
A153: 150 | B153: 600 | C153: 0 | D153: 16000 | E153: 4000 | F153: 270 | G153: 45 | H153: 0 | I153: 300 | J153: =A152 -> 149 | K153: =A154 -> 151
A154: 151 | B154: 650 | C154: 0 | D154: 16000 | E154: 4000 | F154: 230 | G154: 45 | H154: 0 | I154: 300 | J154: =A153 -> 150 | K154: =A155 -> 152
A155: 152 | B155: 700 | C155: 0 | D155: 16000 | E155: 4000 | F155: 200 | G155: 45 | H155: 0 | I155: 300 | J155: =A154 -> 151 | K155: =A156 -> 153
A156: 153 | B156: 750 | C156: 0 | D156: 16000 | E156: 4000 | F156: 180 | G156: 45 | H156: 0 | I156: 300 | J156: =A155 -> 152 | K156: =A157 -> 154
A157: =A156+1 -> 154 | B157: 800 | C157: 0 | D157: 16000 | E157: 4000 | F157: 150 | G157: 45 | H157: 0 | I157: 300 | J157: =A156 -> 153 | K157: -1
A158: 155 | B158: 550 | C158: 0 | D158: 8500 | E158: 1500 | F158: 600 | G158: 45 | H158: 0 | I158: 300 | J158: -1 | K158: =A159 -> 156 | L158: RCP2-SA6C-12
A159: 156 | B159: 600 | C159: 0 | D159: 8500 | E159: 1500 | F159: 540 | G159: 45 | H159: 0 | I159: 300 | J159: =A158 -> 155 | K159: =A160 -> 157
A160: 157 | B160: 650 | C160: 0 | D160: 8500 | E160: 1500 | F160: 460 | G160: 45 | H160: 0 | I160: 300 | J160: 156 | K160: =A161 -> 158
A161: 158 | B161: 700 | C161: 0 | D161: 8500 | E161: 1500 | F161: 400 | G161: 45 | H161: 0 | I161: 300 | J161: 157 | K161: =A162 -> 159
A162: 159 | B162: 750 | C162: 0 | D162: 8500 | E162: 1500 | F162: 360 | G162: 45 | H162: 0 | I162: 300 | J162: 158 | K162: =A163 -> 160
A163: 160 | B163: 800 | C163: 0 | D163: 8500 | E163: 1500 | F163: 300 | G163: 45 | H163: 0 | I163: 300 | J163: 159 | K163: -1
A164: 161 | B164: 600 | C164: 0 | D164: 40000 | E164: 15000 | F164: 133 | G164: 45 | H164: 0 | I164: 350 | J164: -1 | K164: =A165 -> 162 | L164: RCP2-SA7C-4
A165: 162 | B165: 700 | C165: 0 | D165: 40000 | E165: 15000 | F165: 133 | G165: 45 | H165: 0 | I165: 350 | J165: 161 | K165: =A166 -> 163
A166: 163 | B166: 800 | C166: 0 | D166: 40000 | E166: 15000 | F166: 120 | G166: 45 | H166: 0 | I166: 300 | J166: 162 | K166: -1
A167: 164 | B167: 600 | C167: 0 | D167: 40000 | E167: 10000 | F167: 266 | G167: 45 | H167: 0 | I167: 350 | J167: -1 | K167: =A168 -> 165 | L167: RCP2-SA7C-8
A168: 165 | B168: 700 | C168: 0 | D168: 40000 | E168: 10000 | F168: 266 | G168: 45 | H168: 0 | I168: 350 | J168: =A167 -> 164 | K168: =A169 -> 166
A169: 166 | B169: 800 | C169: 0 | D169: 40000 | E169: 10000 | F169: 240 | G169: 45 | H169: 0 | I169: 300 | J169: =A168 -> 165 | K169: -1
A170: 167 | B170: 100 | C170: 0 | D170: 35000 | E170: 5000 | F170: 533 | G170: 45 | H170: 0 | I170: 200 | J170: -1 | K170: =A171 -> 168 | L170: RCP2-SA7C-16
A171: 168 | B171: 200 | C171: 0 | D171: 35000 | E171: 5000 | F171: 533 | G171: 45 | H171: 0 | I171: 180 | J171: =A170 -> 167 | K171: 169
A172: 169 | B172: 300 | C172: 0 | D172: 35000 | E172: 5000 | F172: 533 | G172: 45 | H172: 0 | I172: 160 | J172: 168 | K172: 170
A173: 170 | B173: 400 | C173: 0 | D173: 35000 | E173: 5000 | F173: 533 | G173: 45 | H173: 0 | I173: 140 | J173: 169 | K173: 171
A174: 171 | B174: 500 | C174: 0 | D174: 35000 | E174: 5000 | F174: 533 | G174: 45 | H174: 0 | I174: 120 | J174: 170 | K174: 172
A175: 172 | B175: 700 | C175: 0 | D175: 35000 | E175: 5000 | F175: 533 | G175: 45 | H175: 0 | I175: 80 | J175: 171 | K175: 173
A176: 173 | B176: 800 | C176: 0 | D176: 35000 | E176: 5000 | F176: 480 | G176: 45 | H176: 0 | I176: 80 | J176: 172 | K176: -1
A177: 174 | B177: 500 | C177: 0 | D177: 30000 | E177: 12000 | F177: 150 | G177: 45 | H177: 0 | I177: 200 | J177: -1 | K177: =A178 -> 175 | L177: RCP2-SS7C-3
A178: 175 | B178: 600 | C178: 0 | D178: 30000 | E178: 12000 | F178: 115 | G178: 45 | H178: 0 | I178: 200 | J178: =A177 -> 174 | K178: -1
A179: 176 | B179: 500 | C179: 0 | D179: 30000 | E179: 8000 | F179: 300 | G179: 45 | H179: 0 | I179: 200 | J179: -1 | K179: =A180 -> 177 | L179: RCP2-SS7C-6
A180: 177 | B180: 600 | C180: 0 | D180: 30000 | E180: 8000 | F180: 230 | G180: 45 | H180: 0 | I180: 200 | J180: =A179 -> 176 | K180: -1
A181: 178 | B181: 500 | C181: 0 | D181: 30000 | E181: 4000 | F181: 600 | G181: 45 | H181: 0 | I181: 200 | J181: -1 | K181: =A182 -> 179 | L181: RCP2-SS7C-12
A182: 179 | B182: 600 | C182: 0 | D182: 30000 | E182: 4000 | F182: 470 | G182: 45 | H182: 0 | I182: 200 | J182: =A181 -> 178 | K182: -1
A183: 180 | B183: 600 | C183: 0 | D183: 55000 | E183: 20000 | F183: 165 | G183: 45 | H183: 0 | I183: 180 | J183: -1 | K183: =A184 -> 181 | L183: RCP2-SS8C-5
A184: 181 | B184: 800 | C184: 0 | D184: 55000 | E184: 20000 | F184: 165 | G184: 45 | H184: 0 | I184: 180 | J184: =A183 -> 180 | K184: =A185 -> 182
A185: 182 | B185: 900 | C185: 0 | D185: 55000 | E185: 20000 | F185: 155 | G185: 45 | H185: 0 | I185: 180 | J185: =A184 -> 181 | K185: =A186 -> 183
A186: 183 | B186: 1000 | C186: 0 | D186: 55000 | E186: 20000 | F186: 125 | G186: 45 | H186: 0 | I186: 180 | J186: =A185 -> 182 | K186: -1
A187: 184 | B187: 600 | C187: 0 | D187: 50000 | E187: 12000 | F187: 333 | G187: 45 | H187: 0 | I187: 180 | J187: -1 | K187: =A188 -> 185 | L187: RCP2-SS8C-10
A188: 185 | B188: 800 | C188: 0 | D188: 50000 | E188: 12000 | F188: 333 | G188: 45 | H188: 0 | I188: 180 | J188: =A187 -> 184 | K188: =A189 -> 186
A189: 186 | B189: 900 | C189: 0 | D189: 50000 | E189: 12000 | F189: 310 | G189: 45 | H189: 0 | I189: 180 | J189: =A188 -> 185 | K189: =A190 -> 187
A190: 187 | B190: 1000 | C190: 0 | D190: 50000 | E190: 12000 | F190: 255 | G190: 45 | H190: 0 | I190: 180 | J190: =A189 -> 186 | K190: -1
A191: 188 | B191: 700 | C191: 0 | D191: 40000 | E191: 5000 | F191: 666 | G191: 45 | H191: 0 | I191: 160 | J191: -1 | K191: =A192 -> 189 | L191: RCP2-SS8C-20
A192: 189 | B192: 800 | C192: 0 | D192: 40000 | E192: 5000 | F192: 666 | G192: 45 | H192: 0 | I192: 160 | J192: =A191 -> 188 | K192: =A193 -> 190
A193: 190 | B193: 900 | C193: 0 | D193: 40000 | E193: 5000 | F193: 625 | G193: 45 | H193: 0 | I193: 160 | J193: =A192 -> 189 | K193: =A194 -> 191
A194: 191 | B194: 1000 | C194: 0 | D194: 40000 | E194: 5000 | F194: 515 | G194: 45 | H194: 0 | I194: 160 | J194: =A193 -> 190 | K194: -1
A195: 192 | B195: 500 | C195: 0 | D195: 20000 | E195: 3000 | F195: 1200 | G195: 35 | H195: 0 | I195: 80 | J195: -1 | K195: =A196 -> 193 | L195: RCP2-HS8C-30
A196: 193 | B196: 800 | C196: 0 | D196: 20000 | E196: 3000 | F196: 1200 | G196: 35 | H196: 0 | I196: 80 | J196: =A195 -> 192 | K196: =A197 -> 194
A197: 194 | B197: 900 | C197: 0 | D197: 20000 | E197: 3000 | F197: 1000 | G197: 35 | H197: 0 | I197: 80 | J197: =A196 -> 193 | K197: =A198 -> 195
A198: 195 | B198: 1000 | C198: 0 | D198: 20000 | E198: 3000 | F198: 800 | G198: 35 | H198: 0 | I198: 80 | J198: =A197 -> 194 | K198: -1
A199: 196 | B199: 550 | C199: 0 | D199: 8000 | E199: 4500 | F199: 150 | G199: 45 | H199: 0 | I199: 300 | J199: -1 | K199: =A200 -> 197 | L199: RCP2-SA5R-3
A200: 197 | B200: 600 | C200: 0 | D200: 8000 | E200: 4500 | F200: 135 | G200: 45 | H200: 0 | I200: 300 | J200: =A199 -> 196 | K200: =A201 -> 198
... 325 more rows

Sheet MassDataLink (hidden)
B1: 1 | C1: 2 | D1: 3 | E1: 4 | F1: 5 | H1: 1000
A2: ﾃﾞｰﾀ№ | B2: ｱｸﾁｭｴｰﾀ姿勢 | C2: 搬送負荷質量 | D2: 加減速・速度ﾃﾞｰﾀ | E2: 前ﾃﾞｰﾀ№ | F2: 次ﾃﾞｰﾀ№ | G2: 備考
A3: =ModelData!A3 -> 0 | B3: 0/1 | C3: 1g | D3: ﾚｺｰﾄﾞ№ | E3: ﾚｺｰﾄﾞ№ | F3: ﾚｺｰﾄﾞ№ | G3: 型式-姿勢 | H3: 質量 | I3: 前№ﾁｪｯｸ | J3: 後№ﾁｪｯｸ
A4: =A3+1 -> 1 | B4: 0 | C4: 1000 | D4: =AccVelDataLink!A4 -> 1 | E4: -1 | F4: -1 | G4: RCP3-SA2AC-20P-1S水平
A5: 2 | B5: 0 | C5: 500 | D5: =AccVelDataLink!A5 -> 2 | E5: -1 | F5: -1 | G5: RCP3-SA2AC-20P-2S水平
A6: 3 | B6: 0 | C6: 250 | D6: =AccVelDataLink!A6 -> 3 | E6: -1 | F6: -1 | G6: RCP3-SA2AC-20P-4S水平
A7: 4 | B7: 0 | C7: 1000 | D7: =AccVelDataLink!A7 -> 4 | E7: -1 | F7: -1 | G7: RCP3-SA2BC-20P-2S水平
A8: 5 | B8: 0 | C8: 500 | D8: =AccVelDataLink!A8 -> 5 | E8: -1 | F8: -1 | G8: RCP3-SA2BC-20P-4S水平
A9: 6 | B9: 0 | C9: 250 | D9: =AccVelDataLink!A9 -> 6 | E9: -1 | F9: -1 | G9: RCP3-SA2BC-20P-6S水平
A10: 7 | B10: 0 | C10: 3000 | D10: =AccVelDataLink!A10 -> 7 | E10: -1 | F10: =A11 -> 8 | G10: RCP3-SA3C-2水平
A11: 8 | B11: 1 | C11: 1500 | D11: =AccVelDataLink!A11 -> 8 | E11: =A10 -> 7 | F11: -1 | G11: RCP3-SA3C-2垂直
A12: 9 | B12: 0 | C12: 2000 | D12: =AccVelDataLink!A12 -> 9 | E12: -1 | F12: =A13 -> 10 | G12: RCP3-SA3C-4水平
A13: 10 | B13: 1 | C13: 1000 | D13: =AccVelDataLink!A13 -> 10 | E13: =A12 -> 9 | F13: -1 | G13: RCP3-SA3C-4垂直
A14: 11 | B14: 0 | C14: 1000 | D14: =AccVelDataLink!A14 -> 11 | E14: -1 | F14: =A15 -> 12 | G14: RCP3-SA3C-6水平
A15: 12 | B15: 1 | C15: 500 | D15: =AccVelDataLink!A15 -> 12 | E15: =A14 -> 11 | F15: -1 | G15: RCP3-SA3C-6垂直
A16: 13 | B16: 0 | C16: 6000 | D16: =AccVelDataLink!A16 -> 13 | E16: -1 | F16: =A17 -> 14 | G16: RCP3-SA4C-2.5-水平-06kg
A17: 14 | B17: 0 | C17: 7000 | D17: =AccVelDataLink!A17 -> 14 | E17: =A16 -> 13 | F17: 15 | G17: RCP3-SA4C-2.5-水平-07kg
A18: 15 | B18: 0 | C18: 8000 | D18: =AccVelDataLink!A18 -> 15 | E18: 14 | F18: 16 | G18: RCP3-SA4C-2.5-水平-08kg
A19: 16 | B19: 0 | C19: 9000 | D19: =AccVelDataLink!A20 -> 17 | E19: 15 | F19: 17 | G19: RCP3-SA4C-2.5-水平-09kg
A20: 17 | B20: 0 | C20: 10000 | D20: =AccVelDataLink!A22 -> 19 | E20: 16 | F20: 18 | G20: RCP3-SA4C-2.5-水平-10kg
A21: 18 | B21: 0 | C21: 11000 | D21: =AccVelDataLink!A23 -> 20 | E21: 17 | F21: 19 | G21: RCP3-SA4C-2.5-水平-11kg
A22: 19 | B22: 1 | C22: 4000 | D22: =AccVelDataLink!A24 -> 21 | E22: 18 | F22: 20 | G22: RCP3-SA4C-2.5-垂直-04kg
A23: 20 | B23: 1 | C23: 5000 | D23: =AccVelDataLink!A25 -> 22 | E23: 19 | F23: 21 | G23: RCP3-SA4C-2.5-垂直-05kg
A24: 21 | B24: 1 | C24: 6000 | D24: =AccVelDataLink!A26 -> 23 | E24: 20 | F24: 22 | G24: RCP3-SA4C-2.5-垂直-06kg
A25: 22 | B25: 1 | C25: 8000 | D25: =AccVelDataLink!A27 -> 24 | E25: 21 | F25: -1 | G25: RCP3-SA4C-2.5-垂直-08kg
A26: 23 | B26: 0 | C26: 5000 | D26: =AccVelDataLink!A29 -> 26 | E26: -1 | F26: =A27 -> 24 | G26: RCP3-SA4C-5-水平-05kg
A27: 24 | B27: 0 | C27: 6000 | D27: =AccVelDataLink!A30 -> 27 | E27: =A26 -> 23 | F27: 25 | G27: RCP3-SA4C-5-水平-06kg
A28: 25 | B28: 0 | C28: 7000 | D28: =AccVelDataLink!A32 -> 29 | E28: 24 | F28: 26 | G28: RCP3-SA4C-5-水平-07kg
A29: 26 | B29: 0 | C29: 8000 | D29: =AccVelDataLink!A35 -> 32 | E29: 25 | F29: 27 | G29: RCP3-SA4C-5-水平-08kg
A30: 27 | B30: 0 | C30: 9000 | D30: =AccVelDataLink!A38 -> 35 | E30: 26 | F30: 28 | G30: RCP3-SA4C-5-水平-09kg
A31: 28 | B31: 0 | C31: 10000 | D31: =AccVelDataLink!A40 -> 37 | E31: 27 | F31: 29 | G31: RCP3-SA4C-5-水平-10kg
A32: 29 | B32: 1 | C32: 2000 | D32: =AccVelDataLink!A41 -> 38 | E32: 28 | F32: 30 | G32: RCP3-SA4C-5-垂直-02kg
A33: 30 | B33: 1 | C33: 2500 | D33: =AccVelDataLink!A42 -> 39 | E33: 29 | F33: 31 | G33: RCP3-SA4C-5-垂直-02.5kg
A34: 31 | B34: 1 | C34: 3000 | D34: =AccVelDataLink!A43 -> 40 | E34: 30 | F34: 32 | G34: RCP3-SA4C-5-垂直-03kg
A35: 32 | B35: 1 | C35: 4000 | D35: =AccVelDataLink!A44 -> 41 | E35: 31 | F35: -1 | G35: RCP3-SA4C-5-垂直-04kg
A36: 33 | B36: 0 | C36: 1000 | D36: =AccVelDataLink!A45 -> 42 | E36: -1 | F36: =A37 -> 34 | G36: RCP3-SA4C-10-水平-01kg
A37: 34 | B37: 0 | C37: 2000 | D37: =AccVelDataLink!A46 -> 43 | E37: =A36 -> 33 | F37: 35 | G37: RCP3-SA4C-10-水平-02kg
A38: 35 | B38: 0 | C38: 3000 | D38: =AccVelDataLink!A48 -> 45 | E38: 34 | F38: 36 | G38: RCP3-SA4C-10-水平-03kg
A39: 36 | B39: 0 | C39: 4000 | D39: =AccVelDataLink!A51 -> 48 | E39: 35 | F39: 37 | G39: RCP3-SA4C-10-水平-04kg
A40: 37 | B40: 0 | C40: 5000 | D40: =AccVelDataLink!A55 -> 52 | E40: 36 | F40: 38 | G40: RCP3-SA4C-10-水平-05kg
A41: 38 | B41: 0 | C41: 5500 | D41: =AccVelDataLink!A58 -> 55 | E41: 37 | F41: 39 | G41: RCP3-SA4C-10-水平-05.5kg
A42: 39 | B42: 0 | C42: 6000 | D42: =AccVelDataLink!A59 -> 56 | E42: 38 | F42: 40 | G42: RCP3-SA4C-10-水平-06kg
A43: 40 | B43: 0 | C43: 6500 | D43: =AccVelDataLink!A61 -> 58 | E43: 39 | F43: 41 | G43: RCP3-SA4C-10-水平-06.5kg
A44: 41 | B44: 0 | C44: 7000 | D44: =AccVelDataLink!A62 -> 59 | E44: 40 | F44: 42 | G44: RCP3-SA4C-10-水平-07kg
A45: 42 | B45: 0 | C45: 7500 | D45: =AccVelDataLink!A63 -> 60 | E45: 41 | F45: 43 | G45: RCP3-SA4C-10-水平-07.5kg
A46: 43 | B46: 0 | C46: 9000 | D46: =AccVelDataLink!A64 -> 61 | E46: 42 | F46: 44 | G46: RCP3-SA4C-10-水平-09kg
A47: 44 | B47: 1 | C47: 500 | D47: =AccVelDataLink!A65 -> 62 | E47: 43 | F47: 45 | G47: RCP3-SA4C-10-垂直-00.5kg
A48: 45 | B48: 1 | C48: 1000 | D48: =AccVelDataLink!A66 -> 63 | E48: 44 | F48: 46 | G48: RCP3-SA4C-10-垂直-01kg
A49: 46 | B49: 1 | C49: 1500 | D49: =AccVelDataLink!A67 -> 64 | E49: 45 | F49: -1 | G49: RCP3-SA4C-10-垂直-01.5kg
A50: 47 | B50: 0 | C50: 3000 | D50: =AccVelDataLink!A68 -> 65 | E50: -1 | F50: =A51 -> 48 | G50: RCP3-SA5C-3-水平-03kg
A51: 48 | B51: 0 | C51: 5000 | D51: =AccVelDataLink!A69 -> 66 | E51: =A50 -> 47 | F51: 49 | G51: RCP3-SA5C-3-水平-05kg
A52: 49 | B52: 0 | C52: 7000 | D52: =AccVelDataLink!A71 -> 68 | E52: 48 | F52: 50 | G52: RCP3-SA5C-3-水平-07kg
A53: 50 | B53: 0 | C53: 8000 | D53: =AccVelDataLink!A73 -> 70 | E53: 49 | F53: 51 | G53: RCP3-SA5C-3-水平-08kg
A54: 51 | B54: 0 | C54: 9000 | D54: =AccVelDataLink!A74 -> 71 | E54: 50 | F54: 52 | G54: RCP3-SA5C-3-水平-09kg
A55: 52 | B55: 0 | C55: 11000 | D55: =AccVelDataLink!A75 -> 72 | E55: 51 | F55: 53 | G55: RCP3-SA5C-3-水平-11kg
A56: 53 | B56: 0 | C56: 12000 | D56: =AccVelDataLink!A76 -> 73 | E56: 52 | F56: 54 | G56: RCP3-SA5C-3-水平-12kg
A57: 54 | B57: 0 | C57: 14000 | D57: =AccVelDataLink!A77 -> 74 | E57: 53 | F57: 55 | G57: RCP3-SA5C-3-水平-14kg
A58: 55 | B58: 0 | C58: 16000 | D58: =AccVelDataLink!A78 -> 75 | E58: 54 | F58: 56 | G58: RCP3-SA5C-3-水平-16kg
A59: 56 | B59: 0 | C59: 19000 | D59: =AccVelDataLink!A79 -> 76 | E59: 55 | F59: 57 | G59: RCP3-SA5C-3-水平-19kg
A60: 57 | B60: 1 | C60: 2000 | D60: =AccVelDataLink!A80 -> 77 | E60: 56 | F60: 58 | G60: RCP3-SA5C-3-垂直-02kg
A61: 58 | B61: 1 | C61: 3000 | D61: =AccVelDataLink!A81 -> 78 | E61: 57 | F61: 59 | G61: RCP3-SA5C-3-垂直-03kg
A62: 59 | B62: 1 | C62: 4000 | D62: =AccVelDataLink!A82 -> 79 | E62: 58 | F62: 60 | G62: RCP3-SA5C-3-垂直-04kg
A63: 60 | B63: 1 | C63: 5000 | D63: =AccVelDataLink!A83 -> 80 | E63: 59 | F63: 61 | G63: RCP3-SA5C-3-垂直-05kg
A64: 61 | B64: 1 | C64: 6000 | D64: =AccVelDataLink!A84 -> 81 | E64: 60 | F64: 62 | G64: RCP3-SA5C-3-垂直-06kg
A65: 62 | B65: 1 | C65: 7000 | D65: =AccVelDataLink!A85 -> 82 | E65: 61 | F65: 63 | G65: RCP3-SA5C-3-垂直-07kg
A66: 63 | B66: 1 | C66: 8000 | D66: =AccVelDataLink!A86 -> 83 | E66: 62 | F66: 64 | G66: RCP3-SA5C-3-垂直-08kg
A67: 64 | B67: 1 | C67: 9000 | D67: =AccVelDataLink!A87 -> 84 | E67: 63 | F67: 65 | G67: RCP3-SA5C-3-垂直-09kg
A68: =A67+1 -> 65 | B68: 1 | C68: 10000 | D68: =AccVelDataLink!A88 -> 85 | E68: 64 | F68: -1 | G68: RCP3-SA5C-3-垂直-10kg
A69: 66 | B69: 0 | C69: 1000 | D69: =AccVelDataLink!A90 -> 87 | E69: -1 | F69: =A70 -> 67 | G69: RCP3-SA5C-6-水平-01kg
A70: 67 | B70: 0 | C70: 3000 | D70: =AccVelDataLink!A91 -> 88 | E70: =A69 -> 66 | F70: 68 | G70: RCP3-SA5C-6-水平-03kg
A71: 68 | B71: 0 | C71: 4500 | D71: =AccVelDataLink!A92 -> 89 | E71: 67 | F71: 69 | G71: RCP3-SA5C-6-水平-04.5kg
A72: 69 | B72: 0 | C72: 6000 | D72: =AccVelDataLink!A93 -> 90 | E72: 68 | F72: 70 | G72: RCP3-SA5C-6-水平-06kg
A73: 70 | B73: 0 | C73: 7000 | D73: =AccVelDataLink!A96 -> 93 | E73: 69 | F73: 71 | G73: RCP3-SA5C-6-水平-07kg
A74: 71 | B74: 0 | C74: 8000 | D74: =AccVelDataLink!A97 -> 94 | E74: 70 | F74: 72 | G74: RCP3-SA5C-6-水平-08kg
A75: 72 | B75: 0 | C75: 8500 | D75: =AccVelDataLink!A98 -> 95 | E75: 71 | F75: 73 | G75: RCP3-SA5C-6-水平-08.5kg
A76: 73 | B76: 0 | C76: 10000 | D76: =AccVelDataLink!A99 -> 96 | E76: 72 | F76: 74 | G76: RCP3-SA5C-6-水平-10kg
A77: 74 | B77: 0 | C77: 12000 | D77: =AccVelDataLink!A101 -> 98 | E77: 73 | F77: 75 | G77: RCP3-SA5C-6-水平-12kg
A78: 75 | B78: 1 | C78: 500 | D78: =AccVelDataLink!A102 -> 99 | E78: 74 | F78: 76 | G78: RCP3-SA5C-6-垂直-00.5kg
A79: 76 | B79: 1 | C79: 1500 | D79: =AccVelDataLink!A103 -> 100 | E79: 75 | F79: 77 | G79: RCP3-SA5C-6-垂直-01.5kg
A80: 77 | B80: 1 | C80: 2000 | D80: =AccVelDataLink!A104 -> 101 | E80: 76 | F80: 78 | G80: RCP3-SA5C-6-垂直-02kg
A81: 78 | B81: 1 | C81: 3000 | D81: =AccVelDataLink!A106 -> 103 | E81: 77 | F81: 79 | G81: RCP3-SA5C-6-垂直-03kg
A82: 79 | B82: 1 | C82: 3500 | D82: =AccVelDataLink!A107 -> 104 | E82: 78 | F82: 80 | G82: RCP3-SA5C-6-垂直-03.5kg
A83: 80 | B83: 1 | C83: 4500 | D83: =AccVelDataLink!A109 -> 106 | E83: 79 | F83: 81 | G83: RCP3-SA5C-6-垂直-04.5kg
A84: 81 | B84: 1 | C84: 5000 | D84: =AccVelDataLink!A110 -> 107 | E84: 80 | F84: -1 | G84: RCP3-SA5C-6-垂直-05kg
A85: 82 | B85: 0 | C85: 500 | D85: =AccVelDataLink!A112 -> 109 | E85: -1 | F85: =A86 -> 83 | G85: RCP3-SA5C-12-水平-00.5kg
A86: 83 | B86: 0 | C86: 1000 | D86: =AccVelDataLink!A113 -> 110 | E86: =A85 -> 82 | F86: 84 | G86: RCP3-SA5C-12-水平-01kg
A87: 84 | B87: 0 | C87: 1500 | D87: =AccVelDataLink!A114 -> 111 | E87: 83 | F87: 85 | G87: RCP3-SA5C-12-水平-01.5kg
A88: 85 | B88: 0 | C88: 2000 | D88: =AccVelDataLink!A115 -> 112 | E88: 84 | F88: 86 | G88: RCP3-SA5C-12-水平-02kg
A89: 86 | B89: 0 | C89: 2500 | D89: =AccVelDataLink!A117 -> 114 | E89: 85 | F89: 87 | G89: RCP3-SA5C-12-水平-02.5kg
A90: 87 | B90: 0 | C90: 3000 | D90: =AccVelDataLink!A118 -> 115 | E90: 86 | F90: 88 | G90: RCP3-SA5C-12-水平-03kg
A91: 88 | B91: 0 | C91: 4000 | D91: =AccVelDataLink!A122 -> 119 | E91: 87 | F91: 89 | G91: RCP3-SA5C-12-水平-04kg
A92: 89 | B92: 0 | C92: 5000 | D92: =AccVelDataLink!A125 -> 122 | E92: 88 | F92: 90 | G92: RCP3-SA5C-12-水平-05kg
A93: 90 | B93: 0 | C93: 6000 | D93: =AccVelDataLink!A126 -> 123 | E93: 89 | F93: 91 | G93: RCP3-SA5C-12-水平-06kg
A94: 91 | B94: 0 | C94: 8000 | D94: =AccVelDataLink!A127 -> 124 | E94: 90 | F94: 92 | G94: RCP3-SA5C-12-水平-08kg
A95: 92 | B95: 1 | C95: 500 | D95: =AccVelDataLink!A128 -> 125 | E95: 91 | F95: 93 | G95: RCP3-SA5C-12-垂直-00.5kg
A96: 93 | B96: 1 | C96: 1000 | D96: =AccVelDataLink!A129 -> 126 | E96: 92 | F96: 94 | G96: RCP3-SA5C-12-垂直-01kg
A97: =A96+1 -> 94 | B97: 1 | C97: 2000 | D97: =AccVelDataLink!A130 -> 127 | E97: 93 | F97: -1 | G97: RCP3-SA5C-12-垂直-02kg
A98: 95 | B98: 0 | C98: =H98*$H$1 -> 300 | D98: =AccVelDataLink!A131 -> 128 | E98: -1 | F98: =A99 -> 96 | G98: =AccVelDataLink!F131 -> RCP3-SA5C-20-水平 | H98: =AccVelDataLink!G131 -> 0.3 | I98: =IF(E98=-1,IF(B98=B97,"切替異常","○"),IF(E98<>A97,"リンク№異常","○")) -> ○ | J98: =IF(F98=-1,IF(B98=B99,"切替異常","○"),IF(F98<>A99,"リンク№異常","○")) -> ○
A99: 96 | B99: 0 | C99: 500 | D99: =AccVelDataLink!A132 -> 129 | E99: =A98 -> 95 | F99: 97 | H99: =AccVelDataLink!G132 -> 0.5 | I99: ○ | J99: ○
A100: 97 | B100: 0 | C100: 1000 | D100: =AccVelDataLink!A133 -> 130 | E100: 96 | F100: 98 | H100: =AccVelDataLink!G133 -> 1 | I100: ○ | J100: ○
A101: 98 | B101: 0 | C101: 1500 | D101: =AccVelDataLink!A134 -> 131 | E101: 97 | F101: 99 | H101: =AccVelDataLink!G134 -> 1.5 | I101: ○ | J101: ○
A102: 99 | B102: 0 | C102: 2000 | D102: =AccVelDataLink!A135 -> 132 | E102: 98 | F102: 100 | H102: =AccVelDataLink!G135 -> 2 | I102: ○ | J102: ○
A103: 100 | B103: 0 | C103: 3000 | D103: =AccVelDataLink!A137 -> 134 | E103: 99 | F103: 101 | H103: =AccVelDataLink!G137 -> 3 | I103: ○ | J103: ○
A104: 101 | B104: 0 | C104: 4000 | D104: =AccVelDataLink!A138 -> 135 | E104: 100 | F104: 102 | H104: =AccVelDataLink!G138 -> 4 | I104: ○ | J104: ○
A105: 102 | B105: 1 | C105: 500 | D105: =AccVelDataLink!A139 -> 136 | E105: 101 | F105: -1 | G105: =AccVelDataLink!F139 -> RCP3-SA5C-20-垂直 | H105: =AccVelDataLink!G139 -> 0.5 | I105: ○ | J105: ○
A106: 103 | B106: 0 | C106: 3000 | D106: =AccVelDataLink!A140 -> 137 | E106: -1 | F106: =A107 -> 104 | G106: RCP3-SA6C-3-水平-03kg
A107: 104 | B107: 0 | C107: 5000 | D107: =AccVelDataLink!A141 -> 138 | E107: =A106 -> 103 | F107: 105 | G107: RCP3-SA6C-3-水平-05kg
A108: 105 | B108: 0 | C108: 7000 | D108: =AccVelDataLink!A143 -> 140 | E108: 104 | F108: 106 | G108: RCP3-SA6C-3-水平-07kg
A109: 106 | B109: 0 | C109: 8000 | D109: =AccVelDataLink!A145 -> 142 | E109: 105 | F109: 107 | G109: RCP3-SA6C-3-水平-08kg
A110: 107 | B110: 0 | C110: 9000 | D110: =AccVelDataLink!A146 -> 143 | E110: 106 | F110: 108 | G110: RCP3-SA6C-3-水平-09kg
A111: 108 | B111: 0 | C111: 11000 | D111: =AccVelDataLink!A147 -> 144 | E111: 107 | F111: 109 | G111: RCP3-SA6C-3-水平-11kg
A112: 109 | B112: 0 | C112: 12000 | D112: =AccVelDataLink!A148 -> 145 | E112: 108 | F112: 110 | G112: RCP3-SA6C-3-水平-12kg
A113: 110 | B113: 0 | C113: 14000 | D113: =AccVelDataLink!A149 -> 146 | E113: 109 | F113: 111 | G113: RCP3-SA6C-3-水平-14kg
A114: 111 | B114: 0 | C114: 16000 | D114: =AccVelDataLink!A150 -> 147 | E114: 110 | F114: 112 | G114: RCP3-SA6C-3-水平-16kg
A115: 112 | B115: 0 | C115: 19000 | D115: =AccVelDataLink!A151 -> 148 | E115: 111 | F115: 113 | G115: RCP3-SA6C-3-水平-19kg
A116: 113 | B116: 1 | C116: 2000 | D116: =AccVelDataLink!A152 -> 149 | E116: 112 | F116: 114 | G116: RCP3-SA6C-3-垂直-02kg
A117: 114 | B117: 1 | C117: 3000 | D117: =AccVelDataLink!A153 -> 150 | E117: 113 | F117: 115 | G117: RCP3-SA6C-3-垂直-03kg
A118: 115 | B118: 1 | C118: 4000 | D118: =AccVelDataLink!A154 -> 151 | E118: 114 | F118: 116 | G118: RCP3-SA6C-3-垂直-04kg
A119: 116 | B119: 1 | C119: 5000 | D119: =AccVelDataLink!A155 -> 152 | E119: 115 | F119: 117 | G119: RCP3-SA6C-3-垂直-05kg
A120: 117 | B120: 1 | C120: 6000 | D120: =AccVelDataLink!A156 -> 153 | E120: 116 | F120: 118 | G120: RCP3-SA6C-3-垂直-06kg
A121: 118 | B121: 1 | C121: 7000 | D121: =AccVelDataLink!A157 -> 154 | E121: 117 | F121: 119 | G121: RCP3-SA6C-3-垂直-07kg
A122: 119 | B122: 1 | C122: 8000 | D122: =AccVelDataLink!A158 -> 155 | E122: 118 | F122: 120 | G122: RCP3-SA6C-3-垂直-08kg
A123: 120 | B123: 1 | C123: 9000 | D123: =AccVelDataLink!A159 -> 156 | E123: 119 | F123: 121 | G123: RCP3-SA6C-3-垂直-09kg
A124: 121 | B124: 1 | C124: 10000 | D124: =AccVelDataLink!A160 -> 157 | E124: 120 | F124: -1 | G124: RCP3-SA6C-3-垂直-10kg
A125: 122 | B125: 0 | C125: 1000 | D125: =AccVelDataLink!A162 -> 159 | E125: -1 | F125: =A126 -> 123 | G125: RCP3-SA6C-6-水平-01kg
A126: 123 | B126: 0 | C126: 3000 | D126: =AccVelDataLink!A163 -> 160 | E126: =A125 -> 122 | F126: 124 | G126: RCP3-SA6C-6-水平-03kg
A127: 124 | B127: 0 | C127: 4500 | D127: =AccVelDataLink!A164 -> 161 | E127: 123 | F127: 125 | G127: RCP3-SA6C-6-水平-04.5kg
A128: 125 | B128: 0 | C128: 6000 | D128: =AccVelDataLink!A165 -> 162 | E128: 124 | F128: 126 | G128: RCP3-SA6C-6-水平-06kg
A129: 126 | B129: 0 | C129: 7000 | D129: =AccVelDataLink!A168 -> 165 | E129: 125 | F129: 127 | G129: RCP3-SA6C-6-水平-07kg
A130: 127 | B130: 0 | C130: 8000 | D130: =AccVelDataLink!A169 -> 166 | E130: 126 | F130: 128 | G130: RCP3-SA6C-6-水平-08kg
A131: 128 | B131: 0 | C131: 8500 | D131: =AccVelDataLink!A170 -> 167 | E131: 127 | F131: 129 | G131: RCP3-SA6C-6-水平-08.5kg
A132: 129 | B132: 0 | C132: 10000 | D132: =AccVelDataLink!A171 -> 168 | E132: 128 | F132: 130 | G132: RCP3-SA6C-6-水平-10kg
A133: 130 | B133: 0 | C133: 12000 | D133: =AccVelDataLink!A173 -> 170 | E133: 129 | F133: 131 | G133: RCP3-SA6C-6-水平-12kg
A134: 131 | B134: 1 | C134: 500 | D134: =AccVelDataLink!A174 -> 171 | E134: 130 | F134: 132 | G134: RCP3-SA6C-6-垂直-00.5kg
A135: 132 | B135: 1 | C135: 1500 | D135: =AccVelDataLink!A175 -> 172 | E135: 131 | F135: 133 | G135: RCP3-SA6C-6-垂直-01.5kg
A136: 133 | B136: 1 | C136: 2000 | D136: =AccVelDataLink!A176 -> 173 | E136: 132 | F136: 134 | G136: RCP3-SA6C-6-垂直-02kg
A137: 134 | B137: 1 | C137: 3000 | D137: =AccVelDataLink!A178 -> 175 | E137: 133 | F137: 135 | G137: RCP3-SA6C-6-垂直-03kg
A138: 135 | B138: 1 | C138: 3500 | D138: =AccVelDataLink!A179 -> 176 | E138: 134 | F138: 136 | G138: RCP3-SA6C-6-垂直-03.5kg
A139: 136 | B139: 1 | C139: 4500 | D139: =AccVelDataLink!A181 -> 178 | E139: 135 | F139: 137 | G139: RCP3-SA6C-6-垂直-04.5kg
A140: =A139+1 -> 137 | B140: 1 | C140: 5000 | D140: =AccVelDataLink!A182 -> 179 | E140: 136 | F140: -1 | G140: RCP3-SA6C-6-垂直-05kg
A141: 138 | B141: 0 | C141: 500 | D141: =AccVelDataLink!A184 -> 181 | E141: -1 | F141: =A142 -> 139 | G141: RCP3-SA6C-12-水平-00.5kg
A142: 139 | B142: 0 | C142: 1000 | D142: =AccVelDataLink!A185 -> 182 | E142: =A141 -> 138 | F142: 140 | G142: RCP3-SA6C-12-水平-01kg
A143: 140 | B143: 0 | C143: 1500 | D143: =AccVelDataLink!A186 -> 183 | E143: 139 | F143: 141 | G143: RCP3-SA6C-12-水平-01.5kg
A144: 141 | B144: 0 | C144: 2000 | D144: =AccVelDataLink!A187 -> 184 | E144: 140 | F144: 142 | G144: RCP3-SA6C-12-水平-02kg
A145: 142 | B145: 0 | C145: 2500 | D145: =AccVelDataLink!A189 -> 186 | E145: 141 | F145: 143 | G145: RCP3-SA6C-12-水平-02.5kg
A146: 143 | B146: 0 | C146: 3000 | D146: =AccVelDataLink!A190 -> 187 | E146: 142 | F146: 144 | G146: RCP3-SA6C-12-水平-03kg
A147: 144 | B147: 0 | C147: 4000 | D147: =AccVelDataLink!A194 -> 191 | E147: 143 | F147: 145 | G147: RCP3-SA6C-12-水平-04kg
A148: 145 | B148: 0 | C148: 5000 | D148: =AccVelDataLink!A197 -> 194 | E148: 144 | F148: 146 | G148: RCP3-SA6C-12-水平-05kg
A149: 146 | B149: 0 | C149: 6000 | D149: =AccVelDataLink!A198 -> 195 | E149: 145 | F149: 147 | G149: RCP3-SA6C-12-水平-06kg
A150: 147 | B150: 0 | C150: 8000 | D150: =AccVelDataLink!A199 -> 196 | E150: 146 | F150: 148 | G150: RCP3-SA6C-12-水平-08kg
A151: 148 | B151: 1 | C151: 500 | D151: =AccVelDataLink!A200 -> 197 | E151: 147 | F151: 149 | G151: RCP3-SA6C-12-垂直-00.5kg
A152: 149 | B152: 1 | C152: 1000 | D152: =AccVelDataLink!A201 -> 198 | E152: 148 | F152: 150 | G152: RCP3-SA6C-12-垂直-01kg
A153: =A152+1 -> 150 | B153: 1 | C153: 2000 | D153: =AccVelDataLink!A202 -> 199 | E153: 149 | F153: -1 | G153: RCP3-SA6C-12-垂直-02kg
A154: 151 | B154: 0 | C154: =H154*$H$1 -> 300 | D154: =AccVelDataLink!A203 -> 200 | E154: -1 | F154: =A155 -> 152 | G154: =AccVelDataLink!F203 -> RCP3-SA6C-20-水平 | H154: =AccVelDataLink!G203 -> 0.3 | I154: =IF(E154=-1,IF(B154=B153,"切替異常","○"),IF(E154<>A153,"リンク№異常","○")) -> ○ | J154: =IF(F154=-1,IF(B154=B155,"切替異常","○"),IF(F154<>A155,"リンク№異常","○")) -> ○
A155: 152 | B155: 0 | C155: 500 | D155: =AccVelDataLink!A204 -> 201 | E155: =A154 -> 151 | F155: 153 | H155: =AccVelDataLink!G204 -> 0.5 | I155: ○ | J155: ○
A156: 153 | B156: 0 | C156: 1000 | D156: =AccVelDataLink!A205 -> 202 | E156: 152 | F156: 154 | H156: =AccVelDataLink!G205 -> 1 | I156: ○ | J156: ○
A157: 154 | B157: 0 | C157: 1500 | D157: =AccVelDataLink!A206 -> 203 | E157: 153 | F157: 155 | H157: =AccVelDataLink!G206 -> 1.5 | I157: ○ | J157: ○
A158: 155 | B158: 0 | C158: 2000 | D158: =AccVelDataLink!A207 -> 204 | E158: 154 | F158: 156 | H158: =AccVelDataLink!G207 -> 2 | I158: ○ | J158: ○
A159: 156 | B159: 0 | C159: 3000 | D159: =AccVelDataLink!A209 -> 206 | E159: 155 | F159: 157 | H159: =AccVelDataLink!G209 -> 3 | I159: ○ | J159: ○
A160: 157 | B160: 0 | C160: 4000 | D160: =AccVelDataLink!A210 -> 207 | E160: 156 | F160: 158 | H160: =AccVelDataLink!G210 -> 4 | I160: ○ | J160: ○
A161: 158 | B161: 1 | C161: 500 | D161: =AccVelDataLink!A211 -> 208 | E161: 157 | F161: -1 | G161: =AccVelDataLink!F211 -> RCP3-SA6C-20-垂直 | H161: =AccVelDataLink!G211 -> 0.5 | I161: ○ | J161: ○
A162: 159 | B162: 0 | C162: 1000 | D162: =AccVelDataLink!A212 -> 209 | E162: -1 | F162: -1 | G162: RCP3-SA2AR-20P-1S水平
A163: 160 | B163: 0 | C163: 500 | D163: =AccVelDataLink!A213 -> 210 | E163: -1 | F163: -1 | G163: RCP3-SA2AR-20P-2S水平
A164: 161 | B164: 0 | C164: 250 | D164: =AccVelDataLink!A214 -> 211 | E164: -1 | F164: -1 | G164: RCP3-SA2AR-20P-4S水平
A165: 162 | B165: 0 | C165: 1000 | D165: =AccVelDataLink!A215 -> 212 | E165: -1 | F165: -1 | G165: RCP3-SA2BR-20P-2S水平
A166: 163 | B166: 0 | C166: 500 | D166: =AccVelDataLink!A216 -> 213 | E166: -1 | F166: -1 | G166: RCP3-SA2BR-20P-4S水平
A167: 164 | B167: 0 | C167: 250 | D167: =AccVelDataLink!A217 -> 214 | E167: -1 | F167: -1 | G167: RCP3-SA2BR-20P-6S水平
A168: 165 | B168: 0 | C168: 3000 | D168: =AccVelDataLink!A218 -> 215 | E168: -1 | F168: =A169 -> 166 | G168: RCP3-SA3R-2水平
A169: 166 | B169: 1 | C169: 1500 | D169: =AccVelDataLink!A219 -> 216 | E169: =A168 -> 165 | F169: -1 | G169: RCP3-SA3R-2垂直
A170: 167 | B170: 0 | C170: 2000 | D170: =AccVelDataLink!A220 -> 217 | E170: -1 | F170: =A171 -> 168 | G170: RCP3-SA3R-4水平
A171: 168 | B171: 1 | C171: 1000 | D171: =AccVelDataLink!A221 -> 218 | E171: =A170 -> 167 | F171: -1 | G171: RCP3-SA3R-4垂直
A172: 169 | B172: 0 | C172: 1000 | D172: =AccVelDataLink!A222 -> 219 | E172: -1 | F172: =A173 -> 170 | G172: RCP3-SA3R-6水平
A173: 170 | B173: 1 | C173: 500 | D173: =AccVelDataLink!A223 -> 220 | E173: =A172 -> 169 | F173: -1 | G173: RCP3-SA3R-6垂直
A174: 171 | B174: 0 | C174: 6000 | D174: =AccVelDataLink!A224 -> 221 | E174: -1 | F174: =A175 -> 172 | G174: RCP3-SA4R-2.5水平 | H174: ←Ver.Dまで使用していたデータ．販売部から機械諸元をストレートタイプと揃える依頼があり，参照先をストレートタイプと同一データへ移動．
A175: 172 | B175: 1 | C175: 3000 | D175: =AccVelDataLink!A225 -> 222 | E175: =A174 -> 171 | F175: -1 | G175: RCP3-SA4R-2.5垂直 | H175: ←Ver.Dまで使用していたデータ．販売部から機械諸元をストレートタイプと揃える依頼があり，参照先をストレートタイプと同一データへ移動．
A176: 173 | B176: 0 | C176: 4000 | D176: =AccVelDataLink!A226 -> 223 | E176: -1 | F176: =A177 -> 174 | G176: RCP3-SA4R-5水平 | H176: ←Ver.Dまで使用していたデータ．販売部から機械諸元をストレートタイプと揃える依頼があり，参照先をストレートタイプと同一データへ移動．
A177: 174 | B177: 1 | C177: 1500 | D177: =AccVelDataLink!A227 -> 224 | E177: =A176 -> 173 | F177: -1 | G177: RCP3-SA4R-5垂直 | H177: ←Ver.Dまで使用していたデータ．販売部から機械諸元をストレートタイプと揃える依頼があり，参照先をストレートタイプと同一データへ移動．
A178: 175 | B178: 0 | C178: 2000 | D178: =AccVelDataLink!A228 -> 225 | E178: -1 | F178: =A179 -> 176 | G178: RCP3-SA4R-10水平 | H178: ←Ver.Dまで使用していたデータ．販売部から機械諸元をストレートタイプと揃える依頼があり，参照先をストレートタイプと同一データへ移動．
A179: 176 | B179: 1 | C179: 500 | D179: =AccVelDataLink!A229 -> 226 | E179: =A178 -> 175 | F179: =A180 -> 177 | G179: RCP3-SA4R-10垂直-00.5kg | H179: ←Ver.Dまで使用していたデータ．販売部から機械諸元をストレートタイプと揃える依頼があり，参照先をストレートタイプと同一データへ移動．
A180: 177 | B180: 1 | C180: 1000 | D180: =AccVelDataLink!A230 -> 227 | E180: =A179 -> 176 | F180: -1 | G180: RCP3-SA4R-10垂直-01kg | H180: ←Ver.Dまで使用していたデータ．販売部から機械諸元をストレートタイプと揃える依頼があり，参照先をストレートタイプと同一データへ移動．
A181: 178 | B181: 0 | C181: 10000 | D181: =AccVelDataLink!A231 -> 228 | E181: -1 | F181: =A182 -> 179 | G181: RCP3-SA5R-3水平 | H181: ←Ver.Dまで使用していたデータ．販売部から機械諸元をストレートタイプと揃える依頼があり，参照先をストレートタイプと同一データへ移動．
A182: 179 | B182: 1 | C182: 2000 | D182: =AccVelDataLink!A232 -> 229 | E182: =A181 -> 178 | F182: =A183 -> 180 | G182: RCP3-SA5R-3垂直-02kg | H182: ←Ver.Dまで使用していたデータ．販売部から機械諸元をストレートタイプと揃える依頼があり，参照先をストレートタイプと同一データへ移動．
A183: 180 | B183: 1 | C183: 4000 | D183: =AccVelDataLink!A233 -> 230 | E183: =A182 -> 179 | F183: -1 | G183: RCP3-SA5R-3垂直-04kg | H183: ←Ver.Dまで使用していたデータ．販売部から機械諸元をストレートタイプと揃える依頼があり，参照先をストレートタイプと同一データへ移動．
A184: 181 | B184: 0 | C184: 6000 | D184: =AccVelDataLink!A234 -> 231 | E184: -1 | F184: =A185 -> 182 | G184: RCP3-SA5R-6水平-06kg | H184: ←Ver.Dまで使用していたデータ．販売部から機械諸元をストレートタイプと揃える依頼があり，参照先をストレートタイプと同一データへ移動．
A185: 182 | B185: 0 | C185: 8000 | D185: =AccVelDataLink!A235 -> 232 | E185: =A184 -> 181 | F185: =A186 -> 183 | G185: RCP3-SA5R-6水平-08kg | H185: ←Ver.Dまで使用していたデータ．販売部から機械諸元をストレートタイプと揃える依頼があり，参照先をストレートタイプと同一データへ移動．
A186: 183 | B186: 1 | C186: 1000 | D186: =AccVelDataLink!A236 -> 233 | E186: =A185 -> 182 | F186: =A187 -> 184 | G186: RCP3-SA5R-6垂直-01kg | H186: ←Ver.Dまで使用していたデータ．販売部から機械諸元をストレートタイプと揃える依頼があり，参照先をストレートタイプと同一データへ移動．
A187: 184 | B187: 1 | C187: 2000 | D187: =AccVelDataLink!A237 -> 234 | E187: =A186 -> 183 | F187: -1 | G187: RCP3-SA5R-6垂直-02kg | H187: ←Ver.Dまで使用していたデータ．販売部から機械諸元をストレートタイプと揃える依頼があり，参照先をストレートタイプと同一データへ移動．
A188: 185 | B188: 0 | C188: 2000 | D188: =AccVelDataLink!A238 -> 235 | E188: -1 | F188: =A189 -> 186 | G188: RCP3-SA5R-12水平-02kg | H188: ←Ver.Dまで使用していたデータ．販売部から機械諸元をストレートタイプと揃える依頼があり，参照先をストレートタイプと同一データへ移動．
A189: 186 | B189: 0 | C189: 4000 | D189: =AccVelDataLink!A239 -> 236 | E189: =A188 -> 185 | F189: =A190 -> 187 | G189: RCP3-SA5R-12水平-04kg | H189: ←Ver.Dまで使用していたデータ．販売部から機械諸元をストレートタイプと揃える依頼があり，参照先をストレートタイプと同一データへ移動．
A190: 187 | B190: 0 | C190: 6000 | D190: =AccVelDataLink!A240 -> 237 | E190: =A189 -> 186 | F190: =A191 -> 188 | G190: RCP3-SA5R-12水平-06kg | H190: ←Ver.Dまで使用していたデータ．販売部から機械諸元をストレートタイプと揃える依頼があり，参照先をストレートタイプと同一データへ移動．
A191: 188 | B191: 1 | C191: 500 | D191: =AccVelDataLink!A241 -> 238 | E191: =A190 -> 187 | F191: =A192 -> 189 | G191: RCP3-SA5R-12垂直-00.5kg | H191: ←Ver.Dまで使用していたデータ．販売部から機械諸元をストレートタイプと揃える依頼があり，参照先をストレートタイプと同一データへ移動．
A192: 189 | B192: 1 | C192: 1000 | D192: =AccVelDataLink!A242 -> 239 | E192: =A191 -> 188 | F192: -1 | G192: RCP3-SA5R-12垂直-01kg | H192: ←Ver.Dまで使用していたデータ．販売部から機械諸元をストレートタイプと揃える依頼があり，参照先をストレートタイプと同一データへ移動．
A193: 190 | B193: 0 | C193: 10000 | D193: =AccVelDataLink!A243 -> 240 | E193: -1 | F193: =A194 -> 191 | G193: RCP3-SA6R-3水平 | H193: ←Ver.Dまで使用していたデータ．販売部から機械諸元をストレートタイプと揃える依頼があり，参照先をストレートタイプと同一データへ移動．
A194: 191 | B194: 1 | C194: 2000 | D194: =AccVelDataLink!A244 -> 241 | E194: =A193 -> 190 | F194: =A195 -> 192 | G194: RCP3-SA6R-3垂直-02kg | H194: ←Ver.Dまで使用していたデータ．販売部から機械諸元をストレートタイプと揃える依頼があり，参照先をストレートタイプと同一データへ移動．
A195: 192 | B195: 1 | C195: 4000 | D195: =AccVelDataLink!A245 -> 242 | E195: =A194 -> 191 | F195: -1 | G195: RCP3-SA6R-3垂直-04kg | H195: ←Ver.Dまで使用していたデータ．販売部から機械諸元をストレートタイプと揃える依頼があり，参照先をストレートタイプと同一データへ移動．
A196: 193 | B196: 0 | C196: 6000 | D196: =AccVelDataLink!A246 -> 243 | E196: -1 | F196: =A197 -> 194 | G196: RCP3-SA6R-6水平-06kg | H196: ←Ver.Dまで使用していたデータ．販売部から機械諸元をストレートタイプと揃える依頼があり，参照先をストレートタイプと同一データへ移動．
A197: 194 | B197: 0 | C197: 8000 | D197: =AccVelDataLink!A247 -> 244 | E197: =A196 -> 193 | F197: =A198 -> 195 | G197: RCP3-SA6R-6水平-08kg | H197: ←Ver.Dまで使用していたデータ．販売部から機械諸元をストレートタイプと揃える依頼があり，参照先をストレートタイプと同一データへ移動．
A198: 195 | B198: 1 | C198: 1000 | D198: =AccVelDataLink!A248 -> 245 | E198: =A197 -> 194 | F198: =A199 -> 196 | G198: RCP3-SA6R-6垂直-01kg | H198: ←Ver.Dまで使用していたデータ．販売部から機械諸元をストレートタイプと揃える依頼があり，参照先をストレートタイプと同一データへ移動．
A199: 196 | B199: 1 | C199: 2000 | D199: =AccVelDataLink!A249 -> 246 | E199: =A198 -> 195 | F199: -1 | G199: RCP3-SA6R-6垂直-02kg | H199: ←Ver.Dまで使用していたデータ．販売部から機械諸元をストレートタイプと揃える依頼があり，参照先をストレートタイプと同一データへ移動．
A200: 197 | B200: 0 | C200: 2000 | D200: =AccVelDataLink!A250 -> 247 | E200: -1 | F200: =A201 -> 198 | G200: RCP3-SA6R-12水平-02kg | H200: ←Ver.Dまで使用していたデータ．販売部から機械諸元をストレートタイプと揃える依頼があり，参照先をストレートタイプと同一データへ移動．
... 1115 more rows

Sheet AccVelDataLink (hidden)
A1: =LeadData!A1 -> 9.80665 | B1: 1 | C1: 2 | D1: 3 | E1: 4
A2: ﾃﾞｰﾀ№ | B2: 水平定格加速度 | C2: 最高速度 | D2: 前ﾃﾞｰﾀ№ | E2: 次ﾃﾞｰﾀ№ | F2: 備考
A3: =ModelData!A3 -> 0 | B3: 0.001mm/s^2 | C3: ㎜/s | D3: ﾚｺｰﾄﾞ№ | E3: ﾚｺｰﾄﾞ№ | G3: Weigh | H3: G | I3: mm/s | J3: 前№ﾁｪｯｸ | K3: 後№ﾁｪｯｸ
A4: =A3+1 -> 1 | B4: =0.2*$A$1*1000*1000 -> 1961330 | C4: 50 | D4: -1 | E4: -1 | F4: RCP3-SA2AC-20P-1S-水平
A5: 2 | B5: 1961330 | C5: 100 | D5: -1 | E5: -1 | F5: RCP3-SA2AC-20P-2S-水平
A6: 3 | B6: 1961330 | C6: 200 | D6: -1 | E6: -1 | F6: RCP3-SA2AC-20P-4S-水平
A7: 4 | B7: 1961330 | C7: 100 | D7: -1 | E7: -1 | F7: RCP3-SA2BC-20P-2S-水平
A8: 5 | B8: 1961330 | C8: 200 | D8: -1 | E8: -1 | F8: RCP3-SA2BC-20P-4S-水平
A9: 6 | B9: 1961330 | C9: 300 | D9: -1 | E9: -1 | F9: RCP3-SA2BC-20P-6S-水平
A10: 7 | B10: 1961330 | C10: 100 | D10: -1 | E10: -1 | F10: RCP3-SA3C-2-水平
A11: 8 | B11: 1961330 | C11: 100 | D11: -1 | E11: -1 | F11: RCP3-SA3C-2-垂直
A12: 9 | B12: =0.3*$A$1*1000*1000 -> 2941995 | C12: 200 | D12: -1 | E12: -1 | F12: RCP3-SA3C-4-水平
A13: 10 | B13: =0.2*$A$1*1000*1000 -> 1961330 | C13: 200 | D13: -1 | E13: -1 | F13: RCP3-SA3C-4-垂直
A14: 11 | B14: =0.3*$A$1*1000*1000 -> 2941995 | C14: 300 | D14: -1 | E14: -1 | F14: RCP3-SA3C-6-水平
A15: 12 | B15: =0.2*$A$1*1000*1000 -> 1961330 | C15: 300 | D15: -1 | E15: -1 | F15: RCP3-SA3C-6-垂直
A16: 13 | B16: =0.7*$A$1*1000*1000 -> 6864655 | C16: 125 | D16: -1 | E16: -1 | F16: RCP3-SA4C-2.5-水平-06kg-0.7G
A17: 14 | B17: =0.5*$A$1*1000*1000 -> 4903325 | C17: 125 | D17: -1 | E17: -1 | F17: RCP3-SA4C-2.5-水平-07kg-0.5G
A18: 15 | B18: =0.3*$A$1*1000*1000 -> 2941995 | C18: 125 | D18: -1 | E18: =A19 -> 16 | F18: RCP3-SA4C-2.5-水平-08kg-0.3G-125mm/s
A19: 16 | B19: =0.7*$A$1*1000*1000 -> 6864655 | C19: 63 | D19: =A18 -> 15 | E19: -1 | F19: RCP3-SA4C-2.5-水平-08kg-0.7G-063mm/s
A20: 17 | B20: =0.2*$A$1*1000*1000 -> 1961330 | C20: 125 | D20: -1 | E20: =A21 -> 18 | F20: RCP3-SA4C-2.5-水平-09kg-0.2G-125mm/s
A21: 18 | B21: =0.5*$A$1*1000*1000 -> 4903325 | C21: 63 | D21: =A20 -> 17 | E21: -1 | F21: RCP3-SA4C-2.5-水平-09kg-0.5G-063mm/s
A22: 19 | B22: =0.3*$A$1*1000*1000 -> 2941995 | C22: 63 | D22: -1 | E22: -1 | F22: RCP3-SA4C-2.5-水平-10kg-0.3G
A23: 20 | B23: =0.2*$A$1*1000*1000 -> 1961330 | C23: 63 | D23: -1 | E23: -1 | F23: RCP3-SA4C-2.5-水平-11kg-0.2G
A24: 21 | B24: =0.3*$A$1*1000*1000 -> 2941995 | C24: 125 | D24: -1 | E24: -1 | F24: RCP3-SA4C-2.5-垂直-04kg-0.3G
A25: 22 | B25: =0.1*$A$1*1000*1000 -> 980665 | C25: 125 | D25: -1 | E25: -1 | F25: RCP3-SA4C-2.5-垂直-05kg-0.1G
A26: 23 | B26: =0.3*$A$1*1000*1000 -> 2941995 | C26: 104 | D26: -1 | E26: -1 | F26: RCP3-SA4C-2.5-垂直-06kg-0.3G
A27: 24 | B27: =0.1*$A$1*1000*1000 -> 980665 | C27: 104 | D27: -1 | E27: =A28 -> 25 | F27: RCP3-SA4C-2.5-垂直-08kg-0.1G-104mm/s
A28: 25 | B28: =0.3*$A$1*1000*1000 -> 2941995 | C28: 83 | D28: =A27 -> 24 | E28: -1 | F28: RCP3-SA4C-2.5-垂直-08kg-0.3G-083mm/s
A29: 26 | B29: =0.7*$A$1*1000*1000 -> 6864655 | C29: 250 | D29: -1 | E29: -1 | F29: RCP3-SA4C-5-水平-05kg-0.7G
A30: 27 | B30: =0.5*$A$1*1000*1000 -> 4903325 | C30: 250 | D30: -1 | E30: =A31 -> 28 | F30: RCP3-SA4C-5-水平-06kg-0.5G-250mm/s
A31: 28 | B31: =0.7*$A$1*1000*1000 -> 6864655 | C31: 208 | D31: =A30 -> 27 | E31: -1 | F31: RCP3-SA4C-5-水平-06kg-0.7G-208mm/s
A32: 29 | B32: =0.3*$A$1*1000*1000 -> 2941995 | C32: 250 | D32: -1 | E32: =A33 -> 30 | F32: RCP3-SA4C-5-水平-07kg-0.3G-250mm/s
A33: 30 | B33: =0.5*$A$1*1000*1000 -> 4903325 | C33: 208 | D33: =A32 -> 29 | E33: =A34 -> 31 | F33: RCP3-SA4C-5-水平-07kg-0.5G-208mm/s
A34: 31 | B34: =0.7*$A$1*1000*1000 -> 6864655 | C34: 167 | D34: =A33 -> 30 | E34: -1 | F34: RCP3-SA4C-5-水平-07kg-0.7G-167mm/s
A35: 32 | B35: =0.2*$A$1*1000*1000 -> 1961330 | C35: 250 | D35: -1 | E35: =A36 -> 33 | F35: RCP3-SA4C-5-水平-08kg-0.2G-250mm/s
A36: 33 | B36: =0.3*$A$1*1000*1000 -> 2941995 | C36: 208 | D36: =A35 -> 32 | E36: =A37 -> 34 | F36: RCP3-SA4C-5-水平-08kg-0.3G-208mm/s
A37: 34 | B37: =0.5*$A$1*1000*1000 -> 4903325 | C37: 167 | D37: =A36 -> 33 | E37: -1 | F37: RCP3-SA4C-5-水平-08kg-0.5G-167mm/s
A38: 35 | B38: =0.2*$A$1*1000*1000 -> 1961330 | C38: 208 | D38: -1 | E38: =A39 -> 36 | F38: RCP3-SA4C-5-水平-09kg-0.2G-208mm/s
A39: 36 | B39: =0.3*$A$1*1000*1000 -> 2941995 | C39: 167 | D39: =A38 -> 35 | E39: -1 | F39: RCP3-SA4C-5-水平-09kg-0.3G-167mm/s
A40: 37 | B40: =0.2*$A$1*1000*1000 -> 1961330 | C40: 167 | D40: -1 | E40: -1 | F40: RCP3-SA4C-5-水平-10kg-0.2G
A41: 38 | B41: =0.3*$A$1*1000*1000 -> 2941995 | C41: 250 | D41: -1 | E41: -1 | F41: RCP3-SA4C-5-垂直-02kg-0.3G
A42: 39 | B42: =0.2*$A$1*1000*1000 -> 1961330 | C42: 250 | D42: -1 | E42: -1 | F42: RCP3-SA4C-5-垂直-02.5kg-0.2G
A43: 40 | B43: =0.1*$A$1*1000*1000 -> 980665 | C43: 250 | D43: -1 | E43: -1 | F43: RCP3-SA4C-5-垂直-03kg-0.1G
A44: 41 | B44: =0.3*$A$1*1000*1000 -> 2941995 | C44: 208 | D44: -1 | E44: -1 | F44: RCP3-SA4C-5-垂直-04kg-0.3G
A45: 42 | B45: =0.7*$A$1*1000*1000 -> 6864655 | C45: 500 | D45: -1 | E45: -1 | F45: RCP3-SA4C-10-水平-01kg-0.7G
A46: 43 | B46: =0.5*$A$1*1000*1000 -> 4903325 | C46: 500 | D46: -1 | E46: =A47 -> 44 | F46: RCP3-SA4C-10-水平-02kg-0.5G-500mm/s
A47: 44 | B47: =0.7*$A$1*1000*1000 -> 6864655 | C47: 417 | D47: =A46 -> 43 | E47: -1 | F47: RCP3-SA4C-10-水平-02kg-0.7G-417mm/s
A48: 45 | B48: =0.3*$A$1*1000*1000 -> 2941995 | C48: 500 | D48: -1 | E48: =A49 -> 46 | F48: RCP3-SA4C-10-水平-03kg-0.3G-500mm/s
A49: 46 | B49: =0.5*$A$1*1000*1000 -> 4903325 | C49: 417 | D49: =A48 -> 45 | E49: =A50 -> 47 | F49: RCP3-SA4C-10-水平-03kg-0.5G-417mm/s
A50: 47 | B50: =0.7*$A$1*1000*1000 -> 6864655 | C50: 333 | D50: =A49 -> 46 | E50: -1 | F50: RCP3-SA4C-10-水平-03kg-0.7G-333mm/s
A51: 48 | B51: =0.2*$A$1*1000*1000 -> 1961330 | C51: 500 | D51: -1 | E51: =A52 -> 49 | F51: RCP3-SA4C-10-水平-04kg-0.2G-500mm/s
A52: 49 | B52: =0.3*$A$1*1000*1000 -> 2941995 | C52: 417 | D52: =A51 -> 48 | E52: =A53 -> 50 | F52: RCP3-SA4C-10-水平-04kg-0.3G-417mm/s
A53: 50 | B53: =0.5*$A$1*1000*1000 -> 4903325 | C53: 333 | D53: =A52 -> 49 | E53: =A54 -> 51 | F53: RCP3-SA4C-10-水平-04kg-0.5G-333mm/s
A54: 51 | B54: =0.7*$A$1*1000*1000 -> 6864655 | C54: 250 | D54: =A53 -> 50 | E54: -1 | F54: RCP3-SA4C-10-水平-04kg-0.7G-250mm/s
A55: 52 | B55: =0.2*$A$1*1000*1000 -> 1961330 | C55: 417 | D55: -1 | E55: =A56 -> 53 | F55: RCP3-SA4C-10-水平-05kg-0.2G-417mm/s
A56: 53 | B56: =0.3*$A$1*1000*1000 -> 2941995 | C56: 333 | D56: =A55 -> 52 | E56: =A57 -> 54 | F56: RCP3-SA4C-10-水平-05kg-0.3G-333mm/s
A57: 54 | B57: =0.5*$A$1*1000*1000 -> 4903325 | C57: 250 | D57: =A56 -> 53 | E57: -1 | F57: RCP3-SA4C-10-水平-05kg-0.5G-250mm/s
A58: 55 | B58: =0.7*$A$1*1000*1000 -> 6864655 | C58: 167 | D58: -1 | E58: -1 | F58: RCP3-SA4C-10-水平-05.5kg-0.7G
A59: 56 | B59: =0.2*$A$1*1000*1000 -> 1961330 | C59: 333 | D59: -1 | E59: =A60 -> 57 | F59: RCP3-SA4C-10-水平-06kg-0.2G-333mm/s
A60: 57 | B60: =0.3*$A$1*1000*1000 -> 2941995 | C60: 250 | D60: =A59 -> 56 | E60: -1 | F60: RCP3-SA4C-10-水平-06kg-0.3G-250mm/s
A61: 58 | B61: =0.5*$A$1*1000*1000 -> 4903325 | C61: 167 | D61: -1 | E61: -1 | F61: RCP3-SA4C-10-水平-06.5kg-0.5G
A62: 59 | B62: =0.2*$A$1*1000*1000 -> 1961330 | C62: 250 | D62: -1 | E62: -1 | F62: RCP3-SA4C-10-水平-07kg-0.2G
A63: 60 | B63: =0.3*$A$1*1000*1000 -> 2941995 | C63: 167 | D63: -1 | E63: -1 | F63: RCP3-SA4C-10-水平-07.5kg-0.3G
A64: 61 | B64: =0.2*$A$1*1000*1000 -> 1961330 | C64: 167 | D64: -1 | E64: -1 | F64: RCP3-SA4C-10-水平-09kg-0.2G
A65: 62 | B65: =0.3*$A$1*1000*1000 -> 2941995 | C65: 500 | D65: -1 | E65: -1 | F65: RCP3-SA4C-10-垂直-00.5kg-0.3G
A66: 63 | B66: =0.1*$A$1*1000*1000 -> 980665 | C66: 500 | D66: -1 | E66: -1 | F66: RCP3-SA4C-10-垂直-01kg-0.1G
A67: 64 | B67: =0.3*$A$1*1000*1000 -> 2941995 | C67: 417 | D67: -1 | E67: -1 | F67: RCP3-SA4C-10-垂直-01.5kg-0.3G
A68: =A67+1 -> 65 | B68: =0.7*$A$1*1000*1000 -> 6864655 | C68: 150 | D68: -1 | E68: -1 | F68: RCP3-SA5C-3-水平-03kg-0.7G
A69: 66 | B69: =0.5*$A$1*1000*1000 -> 4903325 | C69: 150 | D69: -1 | E69: =A70 -> 67 | F69: RCP3-SA5C-3-水平-05kg-0.5G-150mm/s
A70: 67 | B70: =0.7*$A$1*1000*1000 -> 6864655 | C70: 125 | D70: =A69 -> 66 | E70: -1 | F70: RCP3-SA5C-3-水平-05kg-0.7G-125mm/s
A71: 68 | B71: =0.5*$A$1*1000*1000 -> 4903325 | C71: 125 | D71: -1 | E71: =A72 -> 69 | F71: RCP3-SA5C-3-水平-07kg-0.5G-125mm/s
A72: 69 | B72: =0.7*$A$1*1000*1000 -> 6864655 | C72: 100 | D72: =A71 -> 68 | E72: -1 | F72: RCP3-SA5C-3-水平-07kg-0.7G-100mm/s
A73: 70 | B73: =0.3*$A$1*1000*1000 -> 2941995 | C73: 150 | D73: -1 | E73: -1 | F73: RCP3-SA5C-3-水平-08kg-0.3G
A74: 71 | B74: =0.5*$A$1*1000*1000 -> 4903325 | C74: 100 | D74: -1 | E74: -1 | F74: RCP3-SA5C-3-水平-09kg-0.5G
A75: 72 | B75: =0.3*$A$1*1000*1000 -> 2941995 | C75: 125 | D75: -1 | E75: -1 | F75: RCP3-SA5C-3-水平-11kg-0.3G
A76: 73 | B76: =0.2*$A$1*1000*1000 -> 1961330 | C76: 150 | D76: -1 | E76: -1 | F76: RCP3-SA5C-3-水平-12kg-0.2G
A77: 74 | B77: =0.3*$A$1*1000*1000 -> 2941995 | C77: 100 | D77: -1 | E77: -1 | F77: RCP3-SA5C-3-水平-14kg-0.3G
A78: 75 | B78: =0.2*$A$1*1000*1000 -> 1961330 | C78: 125 | D78: -1 | E78: -1 | F78: RCP3-SA5C-3-水平-16kg-0.2G
A79: 76 | B79: =0.2*$A$1*1000*1000 -> 1961330 | C79: 100 | D79: -1 | E79: -1 | F79: RCP3-SA5C-3-水平-19kg-0.2G
A80: 77 | B80: =0.3*$A$1*1000*1000 -> 2941995 | C80: 150 | D80: -1 | E80: -1 | F80: RCP3-SA5C-3-垂直-02kg-0.3G
A81: 78 | B81: =0.2*$A$1*1000*1000 -> 1961330 | C81: 150 | D81: -1 | E81: -1 | F81: RCP3-SA5C-3-垂直-03kg-0.2G
A82: 79 | B82: =0.1*$A$1*1000*1000 -> 980665 | C82: 150 | D82: -1 | E82: -1 | F82: RCP3-SA5C-3-垂直-04kg-0.1G
A83: 80 | B83: =0.3*$A$1*1000*1000 -> 2941995 | C83: 125 | D83: -1 | E83: -1 | F83: RCP3-SA5C-3-垂直-05kg-0.3G
A84: 81 | B84: =0.2*$A$1*1000*1000 -> 1961330 | C84: 125 | D84: -1 | E84: -1 | F84: RCP3-SA5C-3-垂直-06kg-0.2G
A85: 82 | B85: =0.1*$A$1*1000*1000 -> 980665 | C85: 125 | D85: -1 | E85: -1 | F85: RCP3-SA5C-3-垂直-07kg-0.1G
A86: 83 | B86: =0.3*$A$1*1000*1000 -> 2941995 | C86: 100 | D86: -1 | E86: -1 | F86: RCP3-SA5C-3-垂直-08kg-0.3G
A87: 84 | B87: =0.2*$A$1*1000*1000 -> 1961330 | C87: 100 | D87: -1 | E87: -1 | F87: RCP3-SA5C-3-垂直-09kg-0.2G
A88: 85 | B88: =0.1*$A$1*1000*1000 -> 980665 | C88: 100 | D88: -1 | E88: =A89 -> 86 | F88: RCP3-SA5C-3-垂直-10kg-0.1G
A89: 86 | B89: =0.3*$A$1*1000*1000 -> 2941995 | C89: 75 | D89: =A88 -> 85 | E89: -1 | F89: RCP3-SA5C-3-垂直-10kg-0.3G
A90: 87 | B90: =0.7*$A$1*1000*1000 -> 6864655 | C90: 300 | D90: -1 | E90: -1 | F90: RCP3-SA5C-6-水平-01kg-0.7G
A91: 88 | B91: =0.5*$A$1*1000*1000 -> 4903325 | C91: 300 | D91: -1 | E91: -1 | F91: RCP3-SA5C-6-水平-03kg-0.5G
A92: 89 | B92: =0.7*$A$1*1000*1000 -> 6864655 | C92: 250 | D92: -1 | E92: -1 | F92: RCP3-SA5C-6-水平-04.5kg-0.7G
A93: 90 | B93: =0.3*$A$1*1000*1000 -> 2941995 | C93: 300 | D93: -1 | E93: =A94 -> 91 | F93: RCP3-SA5C-6-水平-06kg-0.3G-300mm/s
A94: 91 | B94: =0.5*$A$1*1000*1000 -> 4903325 | C94: 250 | D94: =A93 -> 90 | E94: =A95 -> 92 | F94: RCP3-SA5C-6-水平-06kg-0.5G-250mm/s
A95: 92 | B95: =0.7*$A$1*1000*1000 -> 6864655 | C95: 200 | D95: =A94 -> 91 | E95: -1 | F95: RCP3-SA5C-6-水平-06kg-0.7G-200mm/s
A96: 93 | B96: =0.2*$A$1*1000*1000 -> 1961330 | C96: 300 | D96: -1 | E96: -1 | F96: RCP3-SA5C-6-水平-07kg-0.2G
A97: 94 | B97: =0.5*$A$1*1000*1000 -> 4903325 | C97: 200 | D97: -1 | E97: -1 | F97: RCP3-SA5C-6-水平-08kg-0.5G
A98: 95 | B98: =0.3*$A$1*1000*1000 -> 2941995 | C98: 250 | D98: -1 | E98: -1 | F98: RCP3-SA5C-6-水平-08.5kg-0.3G
A99: 96 | B99: =0.2*$A$1*1000*1000 -> 1961330 | C99: 250 | D99: -1 | E99: =A100 -> 97 | F99: RCP3-SA5C-6-水平-10kg-0.2G-250mm/s
A100: 97 | B100: =0.3*$A$1*1000*1000 -> 2941995 | C100: 200 | D100: =A99 -> 96 | E100: -1 | F100: RCP3-SA5C-6-水平-10kg-0.3G-200mm/s
A101: 98 | B101: =0.2*$A$1*1000*1000 -> 1961330 | C101: 200 | D101: -1 | E101: -1 | F101: RCP3-SA5C-6-水平-12kg-0.2G
A102: 99 | B102: =0.3*$A$1*1000*1000 -> 2941995 | C102: 300 | D102: -1 | E102: -1 | F102: RCP3-SA5C-6-垂直-00.5kg-0.3G
A103: 100 | B103: =0.2*$A$1*1000*1000 -> 1961330 | C103: 300 | D103: -1 | E103: -1 | F103: RCP3-SA5C-6-垂直-01.5kg-0.2G
A104: 101 | B104: =0.1*$A$1*1000*1000 -> 980665 | C104: 300 | D104: -1 | E104: =A105 -> 102 | F104: RCP3-SA5C-6-垂直-02kg-0.1G-300mm/s
A105: 102 | B105: =0.3*$A$1*1000*1000 -> 2941995 | C105: 250 | D105: =A104 -> 101 | E105: -1 | F105: RCP3-SA5C-6-垂直-02kg-0.3G-250mm/s
A106: 103 | B106: =0.2*$A$1*1000*1000 -> 1961330 | C106: 250 | D106: -1 | E106: -1 | F106: RCP3-SA5C-6-垂直-03kg-0.2G
A107: 104 | B107: =0.1*$A$1*1000*1000 -> 980665 | C107: 250 | D107: -1 | E107: =A108 -> 105 | F107: RCP3-SA5C-6-垂直-03.5kg-0.1G-250mm/s
A108: 105 | B108: =0.3*$A$1*1000*1000 -> 2941995 | C108: 200 | D108: =A107 -> 104 | E108: -1 | F108: RCP3-SA5C-6-垂直-03.5kg-0.3G-200mm/s
A109: 106 | B109: =0.2*$A$1*1000*1000 -> 1961330 | C109: 200 | D109: -1 | E109: -1 | F109: RCP3-SA5C-6-垂直-04.5kg-0.2G
A110: 107 | B110: =0.1*$A$1*1000*1000 -> 980665 | C110: 200 | D110: -1 | E110: =A111 -> 108 | F110: RCP3-SA5C-6-垂直-05kg-0.1G-200mm/s
A111: 108 | B111: =0.3*$A$1*1000*1000 -> 2941995 | C111: 150 | D111: =A110 -> 107 | E111: -1 | F111: RCP3-SA5C-6-垂直-05kg-0.3G-150mm/s
A112: 109 | B112: =0.7*$A$1*1000*1000 -> 6864655 | C112: 600 | D112: -1 | E112: -1 | F112: RCP3-SA5C-12-水平-00.5kg-0.7G
A113: 110 | B113: =0.5*$A$1*1000*1000 -> 4903325 | C113: 600 | D113: -1 | E113: -1 | F113: RCP3-SA5C-12-水平-01kg-0.5G
A114: 111 | B114: =0.7*$A$1*1000*1000 -> 6864655 | C114: 500 | D114: -1 | E114: -1 | F114: RCP3-SA5C-12-水平-01.5kg-0.7G
A115: 112 | B115: =0.3*$A$1*1000*1000 -> 2941995 | C115: 600 | D115: -1 | E115: =A116 -> 113 | F115: RCP3-SA5C-12-水平-02kg-0.3G-600mm/s
A116: 113 | B116: =0.5*$A$1*1000*1000 -> 4903325 | C116: 500 | D116: =A115 -> 112 | E116: -1 | F116: RCP3-SA5C-12-水平-02kg-0.5G-500mm/s
A117: 114 | B117: =0.7*$A$1*1000*1000 -> 6864655 | C117: 400 | D117: -1 | E117: -1 | F117: RCP3-SA5C-12-水平-02.5kg-0.7G
A118: 115 | B118: =0.2*$A$1*1000*1000 -> 1961330 | C118: 600 | D118: -1 | E118: =A119 -> 116 | F118: RCP3-SA5C-12-水平-03kg-0.2G-600mm/s
A119: 116 | B119: =0.3*$A$1*1000*1000 -> 2941995 | C119: 500 | D119: =A118 -> 115 | E119: =A120 -> 117 | F119: RCP3-SA5C-12-水平-03kg-0.3G-500mm/s
A120: 117 | B120: =0.5*$A$1*1000*1000 -> 4903325 | C120: 400 | D120: =A119 -> 116 | E120: =A121 -> 118 | F120: RCP3-SA5C-12-水平-03kg-0.5G-400mm/s
A121: 118 | B121: =0.7*$A$1*1000*1000 -> 6864655 | C121: 300 | D121: =A120 -> 117 | E121: -1 | F121: RCP3-SA5C-12-水平-03kg-0.7G-300mm/s
A122: 119 | B122: =0.2*$A$1*1000*1000 -> 1961330 | C122: 500 | D122: -1 | E122: =A123 -> 120 | F122: RCP3-SA5C-12-水平-04kg-0.2G-500mm/s
A123: 120 | B123: =0.3*$A$1*1000*1000 -> 2941995 | C123: 400 | D123: =A122 -> 119 | E123: =A124 -> 121 | F123: RCP3-SA5C-12-水平-04kg-0.3G-400mm/s
A124: 121 | B124: =0.5*$A$1*1000*1000 -> 4903325 | C124: 300 | D124: =A123 -> 120 | E124: -1 | F124: RCP3-SA5C-12-水平-04kg-0.5G-300mm/s
A125: 122 | B125: =0.2*$A$1*1000*1000 -> 1961330 | C125: 400 | D125: -1 | E125: -1 | F125: RCP3-SA5C-12-水平-05kg-0.2G
A126: 123 | B126: =0.3*$A$1*1000*1000 -> 2941995 | C126: 300 | D126: -1 | E126: -1 | F126: RCP3-SA5C-12-水平-06kg-0.3G
A127: 124 | B127: =0.2*$A$1*1000*1000 -> 1961330 | C127: 200 | D127: -1 | E127: -1 | F127: RCP3-SA5C-12-水平-08kg-0.2G
A128: 125 | B128: =0.3*$A$1*1000*1000 -> 2941995 | C128: 600 | D128: -1 | E128: -1 | F128: RCP3-SA5C-12-垂直-00.5kg-0.3G
A129: 126 | B129: =0.3*$A$1*1000*1000 -> 2941995 | C129: 500 | D129: -1 | E129: -1 | F129: RCP3-SA5C-12-垂直-01kg-0.3G
A130: 127 | B130: =0.3*$A$1*1000*1000 -> 2941995 | C130: 400 | D130: -1 | E130: -1 | F130: RCP3-SA5C-12-垂直-02kg-0.3G
A131: 128 | B131: =H131*$A$1*1000*1000 -> 6864655 | C131: =I131 -> 1000 | D131: -1 | E131: -1 | F131: RCP3-SA5C-20-水平 | G131: 0.3 | H131: 0.7 | I131: 1000 | J131: =IF(G131=0,IF(D131<>A302,"ﾘﾝｸ不正","○"),"○") -> ○ | K131: =IF(D132<>-1,IF(E131<>A132,"ﾘﾝｸ不正","○"),"○") -> ○
A132: =A131+1 -> 129 | B132: 4903325 | C132: 1000 | D132: -1 | E132: -1 | F132: RCP3-SA5C-20-水平 | G132: 0.5 | H132: 0.5 | I132: 1000 | J132: =IF(G132=0,IF(D132<>A131,"ﾘﾝｸ不正","○"),"○") -> ○ | K132: ○
A133: 130 | B133: 6864655 | C133: 833 | D133: -1 | E133: -1 | F133: RCP3-SA5C-20-水平 | G133: 1 | H133: 0.7 | I133: 833 | J133: ○ | K133: ○
A134: 131 | B134: 6864655 | C134: 666 | D134: -1 | E134: -1 | F134: RCP3-SA5C-20-水平 | G134: 1.5 | H134: 0.7 | I134: 666 | J134: ○ | K134: ○
A135: 132 | B135: 2941995 | C135: 1000 | D135: -1 | E135: =A136 -> 133 | F135: RCP3-SA5C-20-水平 | G135: 2 | H135: 0.3 | I135: 1000 | J135: ○ | K135: ○
A136: 133 | B136: 6864655 | C136: 333 | D136: =A135 -> 132 | E136: -1 | H136: 0.7 | I136: 333 | J136: ○ | K136: ○
A137: 134 | B137: 2941995 | C137: 666 | D137: -1 | E137: -1 | F137: RCP3-SA5C-20-水平 | G137: 3 | H137: 0.3 | I137: 666 | J137: ○ | K137: ○
A138: 135 | B138: 2941995 | C138: 333 | D138: -1 | E138: -1 | F138: RCP3-SA5C-20-水平 | G138: 4 | H138: 0.3 | I138: 333 | J138: ○ | K138: ○
A139: 136 | B139: 1961330 | C139: 666 | D139: -1 | E139: -1 | F139: RCP3-SA5C-20-垂直 | G139: 0.5 | H139: 0.2 | I139: 666 | J139: ○ | K139: =IF(D303<>-1,IF(E139<>A303,"ﾘﾝｸ不正","○"),"○") -> ○
A140: 137 | B140: =0.7*$A$1*1000*1000 -> 6864655 | C140: 150 | D140: -1 | E140: -1 | F140: RCP3-SA6C-3-水平-03kg-0.7G
A141: 138 | B141: =0.5*$A$1*1000*1000 -> 4903325 | C141: 150 | D141: -1 | E141: =A142 -> 139 | F141: RCP3-SA6C-3-水平-05kg-0.5G-150mm/s
A142: 139 | B142: =0.7*$A$1*1000*1000 -> 6864655 | C142: 125 | D142: =A141 -> 138 | E142: -1 | F142: RCP3-SA6C-3-水平-05kg-0.7G-125mm/s
A143: 140 | B143: =0.5*$A$1*1000*1000 -> 4903325 | C143: 125 | D143: -1 | E143: =A144 -> 141 | F143: RCP3-SA6C-3-水平-07kg-0.5G-125mm/s
A144: 141 | B144: =0.7*$A$1*1000*1000 -> 6864655 | C144: 100 | D144: =A143 -> 140 | E144: -1 | F144: RCP3-SA6C-3-水平-07kg-0.7G-100mm/s
A145: 142 | B145: =0.3*$A$1*1000*1000 -> 2941995 | C145: 150 | D145: -1 | E145: -1 | F145: RCP3-SA6C-3-水平-08kg-0.3G
A146: 143 | B146: =0.5*$A$1*1000*1000 -> 4903325 | C146: 100 | D146: -1 | E146: -1 | F146: RCP3-SA6C-3-水平-09kg-0.5G
A147: 144 | B147: =0.3*$A$1*1000*1000 -> 2941995 | C147: 125 | D147: -1 | E147: -1 | F147: RCP3-SA6C-3-水平-11kg-0.3G
A148: 145 | B148: =0.2*$A$1*1000*1000 -> 1961330 | C148: 150 | D148: -1 | E148: -1 | F148: RCP3-SA6C-3-水平-12kg-0.2G
A149: 146 | B149: =0.3*$A$1*1000*1000 -> 2941995 | C149: 100 | D149: -1 | E149: -1 | F149: RCP3-SA6C-3-水平-14kg-0.3G
A150: 147 | B150: =0.2*$A$1*1000*1000 -> 1961330 | C150: 125 | D150: -1 | E150: -1 | F150: RCP3-SA6C-3-水平-16kg-0.2G
A151: 148 | B151: =0.2*$A$1*1000*1000 -> 1961330 | C151: 100 | D151: -1 | E151: -1 | F151: RCP3-SA6C-3-水平-19kg-0.2G
A152: 149 | B152: =0.3*$A$1*1000*1000 -> 2941995 | C152: 150 | D152: -1 | E152: -1 | F152: RCP3-SA6C-3-垂直-02kg-0.3G
A153: 150 | B153: =0.2*$A$1*1000*1000 -> 1961330 | C153: 150 | D153: -1 | E153: -1 | F153: RCP3-SA6C-3-垂直-03kg-0.2G
A154: 151 | B154: =0.1*$A$1*1000*1000 -> 980665 | C154: 150 | D154: -1 | E154: -1 | F154: RCP3-SA6C-3-垂直-04kg-0.1G
A155: 152 | B155: =0.3*$A$1*1000*1000 -> 2941995 | C155: 125 | D155: -1 | E155: -1 | F155: RCP3-SA6C-3-垂直-05kg-0.3G
A156: 153 | B156: =0.2*$A$1*1000*1000 -> 1961330 | C156: 125 | D156: -1 | E156: -1 | F156: RCP3-SA6C-3-垂直-06kg-0.2G
A157: 154 | B157: =0.1*$A$1*1000*1000 -> 980665 | C157: 125 | D157: -1 | E157: -1 | F157: RCP3-SA6C-3-垂直-07kg-0.1G
A158: 155 | B158: =0.3*$A$1*1000*1000 -> 2941995 | C158: 100 | D158: -1 | E158: -1 | F158: RCP3-SA6C-3-垂直-08kg-0.3G
A159: 156 | B159: =0.2*$A$1*1000*1000 -> 1961330 | C159: 100 | D159: -1 | E159: -1 | F159: RCP3-SA6C-3-垂直-09kg-0.2G
A160: 157 | B160: =0.1*$A$1*1000*1000 -> 980665 | C160: 100 | D160: -1 | E160: =A161 -> 158 | F160: RCP3-SA6C-3-垂直-10kg-0.1G
A161: 158 | B161: =0.3*$A$1*1000*1000 -> 2941995 | C161: 75 | D161: =A160 -> 157 | E161: -1 | F161: RCP3-SA6C-3-垂直-10kg-0.3G
A162: 159 | B162: =0.7*$A$1*1000*1000 -> 6864655 | C162: 300 | D162: -1 | E162: -1 | F162: RCP3-SA6C-6-水平-01kg-0.7G
A163: 160 | B163: =0.5*$A$1*1000*1000 -> 4903325 | C163: 300 | D163: -1 | E163: -1 | F163: RCP3-SA6C-6-水平-03kg-0.5G
A164: 161 | B164: =0.7*$A$1*1000*1000 -> 6864655 | C164: 250 | D164: -1 | E164: -1 | F164: RCP3-SA6C-6-水平-04.5kg-0.7G
A165: 162 | B165: =0.3*$A$1*1000*1000 -> 2941995 | C165: 300 | D165: -1 | E165: =A166 -> 163 | F165: RCP3-SA6C-6-水平-06kg-0.3G-300mm/s
A166: 163 | B166: =0.5*$A$1*1000*1000 -> 4903325 | C166: 250 | D166: =A165 -> 162 | E166: =A167 -> 164 | F166: RCP3-SA6C-6-水平-06kg-0.5G-250mm/s
A167: 164 | B167: =0.7*$A$1*1000*1000 -> 6864655 | C167: 200 | D167: =A166 -> 163 | E167: -1 | F167: RCP3-SA6C-6-水平-06kg-0.7G-200mm/s
A168: 165 | B168: =0.2*$A$1*1000*1000 -> 1961330 | C168: 300 | D168: -1 | E168: -1 | F168: RCP3-SA6C-6-水平-07kg-0.2G
A169: 166 | B169: =0.5*$A$1*1000*1000 -> 4903325 | C169: 200 | D169: -1 | E169: -1 | F169: RCP3-SA6C-6-水平-08kg-0.5G
A170: 167 | B170: =0.3*$A$1*1000*1000 -> 2941995 | C170: 250 | D170: -1 | E170: -1 | F170: RCP3-SA6C-6-水平-08.5kg-0.3G
A171: 168 | B171: =0.2*$A$1*1000*1000 -> 1961330 | C171: 250 | D171: -1 | E171: =A172 -> 169 | F171: RCP3-SA6C-6-水平-10kg-0.2G-250mm/s
A172: 169 | B172: =0.3*$A$1*1000*1000 -> 2941995 | C172: 200 | D172: =A171 -> 168 | E172: -1 | F172: RCP3-SA6C-6-水平-10kg-0.3G-200mm/s
A173: 170 | B173: =0.2*$A$1*1000*1000 -> 1961330 | C173: 200 | D173: -1 | E173: -1 | F173: RCP3-SA6C-6-水平-12kg-0.2G
A174: 171 | B174: =0.3*$A$1*1000*1000 -> 2941995 | C174: 300 | D174: -1 | E174: -1 | F174: RCP3-SA6C-6-垂直-00.5kg-0.3G
A175: 172 | B175: =0.2*$A$1*1000*1000 -> 1961330 | C175: 300 | D175: -1 | E175: -1 | F175: RCP3-SA6C-6-垂直-01.5kg-0.2G
A176: 173 | B176: =0.1*$A$1*1000*1000 -> 980665 | C176: 300 | D176: -1 | E176: =A177 -> 174 | F176: RCP3-SA6C-6-垂直-02kg-0.1G-300mm/s
A177: 174 | B177: =0.3*$A$1*1000*1000 -> 2941995 | C177: 250 | D177: =A176 -> 173 | E177: -1 | F177: RCP3-SA6C-6-垂直-02kg-0.3G-250mm/s
A178: 175 | B178: =0.2*$A$1*1000*1000 -> 1961330 | C178: 250 | D178: -1 | E178: -1 | F178: RCP3-SA6C-6-垂直-03kg-0.2G
A179: 176 | B179: =0.1*$A$1*1000*1000 -> 980665 | C179: 250 | D179: -1 | E179: =A180 -> 177 | F179: RCP3-SA6C-6-垂直-03.5kg-0.1G-250mm/s
A180: 177 | B180: =0.3*$A$1*1000*1000 -> 2941995 | C180: 200 | D180: =A179 -> 176 | E180: -1 | F180: RCP3-SA6C-6-垂直-03.5kg-0.3G-200mm/s
A181: 178 | B181: =0.2*$A$1*1000*1000 -> 1961330 | C181: 200 | D181: -1 | E181: -1 | F181: RCP3-SA6C-6-垂直-04.5kg-0.2G
A182: 179 | B182: =0.1*$A$1*1000*1000 -> 980665 | C182: 200 | D182: -1 | E182: =A183 -> 180 | F182: RCP3-SA6C-6-垂直-05kg-0.1G-200mm/s
A183: 180 | B183: =0.3*$A$1*1000*1000 -> 2941995 | C183: 150 | D183: =A182 -> 179 | E183: -1 | F183: RCP3-SA6C-6-垂直-05kg-0.3G-150mm/s
A184: 181 | B184: =0.7*$A$1*1000*1000 -> 6864655 | C184: 600 | D184: -1 | E184: -1 | F184: RCP3-SA6C-12-水平-00.5kg-0.7G
A185: 182 | B185: =0.5*$A$1*1000*1000 -> 4903325 | C185: 600 | D185: -1 | E185: -1 | F185: RCP3-SA6C-12-水平-01kg-0.5G
A186: 183 | B186: =0.7*$A$1*1000*1000 -> 6864655 | C186: 500 | D186: -1 | E186: -1 | F186: RCP3-SA6C-12-水平-01.5kg-0.7G
A187: 184 | B187: =0.3*$A$1*1000*1000 -> 2941995 | C187: 600 | D187: -1 | E187: =A188 -> 185 | F187: RCP3-SA6C-12-水平-02kg-0.3G-600mm/s
A188: 185 | B188: =0.5*$A$1*1000*1000 -> 4903325 | C188: 500 | D188: =A187 -> 184 | E188: -1 | F188: RCP3-SA6C-12-水平-02kg-0.5G-500mm/s
A189: 186 | B189: =0.7*$A$1*1000*1000 -> 6864655 | C189: 400 | D189: -1 | E189: -1 | F189: RCP3-SA6C-12-水平-02.5kg-0.7G
A190: 187 | B190: =0.2*$A$1*1000*1000 -> 1961330 | C190: 600 | D190: -1 | E190: =A191 -> 188 | F190: RCP3-SA6C-12-水平-03kg-0.2G-600mm/s
A191: 188 | B191: =0.3*$A$1*1000*1000 -> 2941995 | C191: 500 | D191: =A190 -> 187 | E191: =A192 -> 189 | F191: RCP3-SA6C-12-水平-03kg-0.3G-500mm/s
A192: 189 | B192: =0.5*$A$1*1000*1000 -> 4903325 | C192: 400 | D192: =A191 -> 188 | E192: =A193 -> 190 | F192: RCP3-SA6C-12-水平-03kg-0.5G-400mm/s
A193: 190 | B193: =0.7*$A$1*1000*1000 -> 6864655 | C193: 300 | D193: =A192 -> 189 | E193: -1 | F193: RCP3-SA6C-12-水平-03kg-0.7G-300mm/s
A194: 191 | B194: =0.2*$A$1*1000*1000 -> 1961330 | C194: 500 | D194: -1 | E194: =A195 -> 192 | F194: RCP3-SA6C-12-水平-04kg-0.2G-500mm/s
A195: 192 | B195: =0.3*$A$1*1000*1000 -> 2941995 | C195: 400 | D195: =A194 -> 191 | E195: =A196 -> 193 | F195: RCP3-SA6C-12-水平-04kg-0.3G-400mm/s
A196: =A195+1 -> 193 | B196: =0.5*$A$1*1000*1000 -> 4903325 | C196: 300 | D196: =A195 -> 192 | E196: -1 | F196: RCP3-SA6C-12-水平-04kg-0.5G-300mm/s
A197: 194 | B197: =0.2*$A$1*1000*1000 -> 1961330 | C197: 400 | D197: -1 | E197: -1 | F197: RCP3-SA6C-12-水平-05kg-0.2G
A198: 195 | B198: =0.3*$A$1*1000*1000 -> 2941995 | C198: 300 | D198: -1 | E198: -1 | F198: RCP3-SA6C-12-水平-06kg-0.3G
A199: 196 | B199: =0.2*$A$1*1000*1000 -> 1961330 | C199: 200 | D199: -1 | E199: -1 | F199: RCP3-SA6C-12-水平-08kg-0.2G
A200: 197 | B200: =0.3*$A$1*1000*1000 -> 2941995 | C200: 600 | D200: -1 | E200: -1 | F200: RCP3-SA6C-12-垂直-00.5kg-0.3G
... 1214 more rows

Sheet Message (hidden)
A1: No. | B1: 元データ | C1: リンク用文字体裁込み
A2: 1 | B2: Ver4.1 | C2: =B2 -> Ver4.1 | D2: C列書式変更禁止 (リンク先テキストボックスの書式にも影響する為)
A3: 2 | B3: 节拍计算 | C3: 节拍计算 | D3: C列書式変更禁止 (リンク先テキストボックスの書式にも影響する為)
A4: 3 | B4: PULSE-MotorSeries | C4: PULSE-MotorSeries | D4: C列書式変更禁止 (リンク先テキストボックスの書式にも影響する為)
A5: 4 | B5: 通过速度・加减速度・移动距离自动计算单轴机械手的定位时间（Cycle Time）。 请在以下<a>～<e>项目中选择使用的产品。 在<1>～<5>中输入需要的运行条件。 点击「最快运行设定」按钮后，将根据移动距离与负载质量，计算速度与加减速度。 | C5: 通过速度・加减速度・移动距离自动计算单轴机械手的定位时间（Cycle Time）。 请在以下<a>～<e>项目中选择使用的产品。 在<1>～<5>中输入需要的运行条件。 点击「最快运行设定」按钮后，将根据移动距离与负载质量，计算速度与加减速度。
A6: 5 | B6: 系列 | C6: 系列
A7: 6 | B7: 型号 | C7: 型号
A8: 7 | B8: 导程 | C8: 导程
A9: 8 | B9: 减速比 | C9: 减速比
A10: 9 | B10: 行程 | C10: 行程
A11: 10 | B11: 安装姿态 | C11: 安装姿态
A12: 11 | B12: 移动距离[mm] | C12: 移动距离[mm]
A13: 12 | B13: 移动距离[deg] | C13: 移动距离[deg]
A14: 13 | B14: 负载质量[kg] | C14: 负载质量[kg]
A15: 14 | B15: 负载转动惯量[kgm^2] | C15: 负载转动惯量[kgm^2]
A16: 15 | B16: 速度[㎜/s] | C16: 速度[㎜/s]
A17: 16 | B17: 速度[deg/s] | C17: 速度[deg/s]
A18: 17 | B18: 加速度[G] | C18: 加速度[G]
A19: 18 | B19: 减速度[G] | C19: 减速度[G]
A20: 19 | B20: 定位宽度 [㎜] | C20: 定位宽度 [㎜]
A21: 20 | B21: 定位宽度 [deg] | C21: 定位宽度 [deg]
A22: 21 | B22: 未能正确计算定位时间 | C22: 未能正确计算定位时间
A23: 22 | B23: ※代表进入定位宽度范围内需要的时间 | C23: ※代表进入定位宽度范围内需要的时间
A24: 23 | B24: ※计算结果供参考。 根据负载情况变化，实际的定位时间也会发生变化。 ※伺服增益调整后，可能比计算结果更快定位完成。 详情请参考控制器的使用说明书。 | C24: ※计算结果供参考。 根据负载情况变化，实际的定位时间也会发生变化。 ※伺服增益调整后，可能比计算结果更快定位完成。 详情请参考控制器的使用说明书。
A25: 24 | B25: ●计算结果 | C25: ●计算结果
A26: 25 | B26: 定位时间 [s] | C26: 定位时间 [s]
A27: 26 | B27: 最快运行设定 | C27: =B27 -> 最快运行设定
A28: 27 | B28: 选择型号 | C28: =B28 -> 选择型号 | D28: VBA用
A29: 28 | B29: 请从列表选择型号 | C29: 请从列表选择型号 | D29: VBA用
A30: 29 | B30: 选择导程 | C30: 选择导程 | D30: VBA用
A31: 30 | B31: 请从列表选择导程 | C31: 请从列表选择导程 | D31: VBA用
A32: 31 | B32: 选择行程 | C32: 选择行程 | D32: VBA用
A33: 32 | B33: 请从列表选择行程。如果是特殊行程，请选择大于且最接近驱动轴行程的标准行程。 | C33: 请从列表选择行程。如果是特殊行程，请选择大于且最接近驱动轴行程的标准行程。 | D33: VBA用
A34: 33 | B34: 运行姿态选择 | C34: 运行姿态选择 | D34: VBA用
A35: 34 | B35: 请从列表选择运行姿态 | C35: 请从列表选择运行姿态 | D35: VBA用
A36: 35 | B36: 筛选负载质量 | C36: 筛选负载质量 | D36: VBA用
A37: 36 | B37: 请从列表选择负载质量 | C37: 请从列表选择负载质量 | D37: VBA用
A38: 37 | B38: 请再从候选列表中选择 | C38: 请再从候选列表中选择 | D38: VBA用
A39: 38 | B39: 移动距离为有效行程( | C39: 移动距离为有效行程( | D39: VBA用
A40: 39 | B40: @UNIT)内 | C40: @UNIT)内 | D40: VBA用
A41: 40 | B41: 设定值需大于定位宽度。 | C41: 设定值需大于定位宽度。 | D41: VBA用
A42: 41 | B42: 负载质量超范围。 | C42: 负载质量超范围。 | D42: VBA用
A43: 42 | B43: 负载質量的上限为 | C43: 负载質量的上限为 | D43: VBA用
A44: 43 | B44: kg。 | C44: kg。 | D44: VBA用
A45: 44 | B45: 负载转动惯量超范围。 | C45: 负载转动惯量超范围。 | D45: VBA用
A46: 45 | B46: 负载转动惯量的上限为 | C46: 负载转动惯量的上限为 | D46: VBA用
A47: 46 | B47: kgm^2。 | C47: kgm^2。 | D47: VBA用
A48: 47 | B48: 速度超范围。 | C48: 速度超范围。 | D48: VBA用
A49: 48 | B49: 速度的上限为 | C49: 速度的上限为 | D49: VBA用
A50: 49 | B50: @UNIT/s。 | C50: @UNIT/s。 | D50: VBA用
A51: 50 | B51: 加速度超范围。 | C51: 加速度超范围。 | D51: VBA用
A52: 51 | B52: 加速度的上限为 | C52: 加速度的上限为 | D52: VBA用
A53: 52 | B53: G。 | C53: G。 | D53: VBA用
A54: 53 | B54: 减速度超范围。 | C54: 减速度超范围。 | D54: VBA用
A55: 54 | B55: 减速度的上限为 | C55: 减速度的上限为 | D55: VBA用
A56: 55 | B56: G。 | C56: G。 | D56: VBA用
A57: 56 | B57: 相对负载和速度设定，加速度超范围。 | C57: 相对负载和速度设定，加速度超范围。 | D57: VBA用
A58: 57 | B58: 加速度的上限为 | C58: 加速度的上限为 | D58: VBA用
A59: 58 | B59: G。 | C59: G。 | D59: VBA用
A60: 59 | B60: 相对负载和速度设定，加速度超范围。 | C60: 相对负载和速度设定，加速度超范围。 | D60: VBA用
